Workbook

Sheet AER NRs (hidden)
B1: AER NAMED RANGES
B3: DROP DOWN SELECTORS USED IN WORKBOOKS
B5: COVER SHEET | C5: dms_DataQuality_List | D5: dms_Confid_status_List
C6: -- select -- | D6: -- select --
C7: Actual | D7: Public
C8: Estimate | D8: Confidential
C9: Consolidated
C12: For all files either AER or business needs to be able to specify the type of submission | D12: For PTRM & RFM templates we must provide a choice in case they change their form of control - otherwise it is drawn from the business specific lookup table above.
C13: dms_SourceList | D13: dms_FormControl_Choices
C14: -- select -- | D14: Revenue cap
C15: After appeal | D15: Revenue yield
C16: Draft decision | D16: Tariff cap
C17: Final decision
C18: PTRM update 1
C19: PTRM update 2
C20: PTRM update 3
C21: PTRM update 4
C22: PTRM update 5
C23: PTRM update 6
C24: PTRM update 7
C25: Regulatory proposal
C26: Reporting
C27: Revised regulatory proposal
K30: This is used to create an image to insert on 6.3 STPIS sheet - not for dropdown lists. | N30: GAS
B31: CA & RESET RINS DNSP | C31: dms_DNSP_020301_SubstationType | D31: dms_DNSP_020301_ProjectType | E31: dms_DNSP_020301_ProjectTrigger | F31: dms_DNSP_020302_ProjectType | G31: dms_DNSP_020302_ProjectTrigger | H31: dms_STPIS_Exclusion_List | I31: dms_Reason_Interruption | J31: dms_Reason_Interruption_Detailed | K31: Reason for interruption | N31: dms_N0205_AssetType
C32: Subtransmission substation | D32: New substation establishment | E32: Demand growth | F32: New line on new route - single circuit | G32: Demand growth | H32: Weather | I32: Animal | J32: Animal impact | K32: Animal | L32: Animal impact | N32: Cast Iron
C33: Zone substation | D33: Substation upgrade - capacity | E33: Voltage issues | F33: New line on new route - dual circuit | G33: Voltage issues | H33: Equipment failure | I33: Asset failure | J33: Animal nesting/burrowing, etc and other | L33: Animal nesting/burrowing, etc and other | N33: PVC
C34: Switching station | D34: Substation upgrade - voltage | E34: Reactive power issue | F34: New line on new route - other | G34: Reactive power issue | H34: Operational error | I34: Other | J34: Other | L34: Other | N34: Polyamide
C35: Other | D35: Other | E35: Fault level issues | F35: Line rebuild over existing route - single circuit | G35: Fault level issues | H35: Vegetation | I35: Overloads | J35: LV | K35: Asset failure | L35: LV | N35: High density polyethylene (80)
E36: Safety | F36: Line rebuild over existing route - dual circuit | G36: Net market benefit | H36: Animals | I36: Planned | J36: Distribution substation | L36: Distribution substation | N36: High density polyethylene (100)
E37: Environment | F37: Reconductor - Single circuit | G37: Safety | H37: Third party impacts | I37: Network business | J37: HV | L37: HV | N37: High density polyethylene (250)
E38: Other | F38: Reconductor - Dual circuit | G38: Environment | H38: Transmission failure | I38: Third party | J38: Zone substation | L38: Zone substation | N38: High density polyethylene (575)
F39: Reconductor - Other | G39: Other | H39: Load shedding | I39: Unknown | J39: Subtransmission | L39: Subtransmission | N39: Medium density polyethylene
F40: Line upgrade - raising/retensoring | H40: Inter-distributor connection failure | I40: Vegetation | J40: insert description of 'other' | K40: Other | L40: insert description of 'other' | N40: Unprotected steel
F41: Line upgrade - voltage upgrade | H41: Other | I41: Weather | J41: Network error | K41: Overloads | N41: Protected steel
F42: Line upgrade - capacity | I42: 2 - STPIS Exclusion (3.3)(a) | J42: Switching and protection error | K42: Planned | N42: Other
F43: String spare circuit | I43: 3 - STPIS Exclusion (3.3)(a) | J43: Fire | K43: Network business | L43: Network error
F44: Other | I44: 4 - STPIS Exclusion (3.3)(a) | J44: Other | L44: Switching and protection error
I45: 5 - STPIS Exclusion (3.3)(a) | J45: Dig-in | K45: Third party | L45: Fire
I46: 6 - STPIS Exclusion (3.3)(a) | J46: Unauthorised access | L46: Other
I47: 7 - STPIS Exclusion (3.3)(a) | J47: Vehicle impact | L47: Dig-in
J48: Unknown | L48: Unauthorised access
J49: Blow-in/Fall-in - NSP responsibility | L49: Vehicle impact
J50: Grow-in - NSP responsibility | K50: Unknown | L50: Unknown
J51: Blow-in/Fall-in - Other responsible party | K51: Vegetation | L51: Blow-in/Fall-in - NSP responsibility
J52: Grow-in - Other responsible party | L52: Grow-in - NSP responsibility
L53: Blow-in/Fall-in - Other responsible party
L54: Grow-in - Other responsible party
K55: Weather
K56: 2 - STPIS Exclusion (3.3)(a)
K57: 3 - STPIS Exclusion (3.3)(a)
K58: 4 - STPIS Exclusion (3.3)(a)
K59: 5 - STPIS Exclusion (3.3)(a)
K60: 6 - STPIS Exclusion (3.3)(a)
K61: 7 - STPIS Exclusion (3.3)(a)
B64: CA & RESET RINS TNSP | C64: dms_TNSP_0203_SubstationType | D64: dms_TNSP_020301_ProjectType | E64: dms_TNSP_020301_ProjectTrigger | F64: dms_TNSP_020302_ProjectType | G64: dms_TNSP_0203_ProjectTrigger
C65: Terminal station | D65: New substation establishment | E65: Demand growth | F65: New line on new route - single circuit | G65: Demand growth
C66: Switching station | D66: Capacity upgrade | E66: Voltage issues | F66: New line on new route - dual circuit | G66: Voltage issues
C67: Transmission substation | D67: Voltage upgrade | E67: Reactive power issue | F67: New line on new route - other | G67: Reactive power issue
C68: Other | D68: Other | E68: Fault level issues | F68: Line rebuild over existing route - single circuit | G68: Fault level issues
E69: Net market benefit | F69: Line rebuild over existing route - dual circuit | G69: Net market benefit
E70: Safety | F70: Reconductor - Single circuit | G70: Safety
E71: Environment | F71: Reconductor - Dual circuit | G71: Environment
E72: Other | F72: Reconductor - Other | G72: Other
F73: Line upgrade - raising/retensoring
F74: Line upgrade - voltage upgrade
F75: Line upgrade - capacity
F76: String spare circuit
F77: Other
B81: NAMED RANGES USED IN ETL PROCESS
M82: GAS ARR & RESET
B83: CA & RESET RINS DNSP ONLY | C83: dms_020303_01_UOM | D83: dms_020501_01_UOM | E83: dms_020501_02_UOM | F83: dms_020501_03_UOM | G83: dms_020501_04_UOM | H83: dms_020701_01_UOM | I83: dms_020701_02_UOM | J83: dms_020701_01_Rows | K83: dms_040102_01_UOM | L83: dms_040102_04_UOM | M83: dms_S140101_UOM | N83: dms_S140201_UOM | O83: dms_E050201_UOM | P83: dms_E050202_UOM
C84: Circuit line length in km | D84: 0's | E84: 0's | F84: 0's | G84: 0's | H84: km | I84: km | J84: Route line length within zone | K84: 0's | L84: days | M84: number | N84: number per km | O84: per metre per connection | P84: metres per connection
C85: Circuit line length in km | D85: 0's | E85: 0's | F85: 0's | G85: 0's | H85: 0's | I85: 0's | J85: Number of maintenance spans | K85: 0's | L85: 0's | M85: number | N85: number | O85: per service per connection | P85: number per connection
C86: Circuit line length in km | D86: MVA added | E86: MVA added | F86: MVA added | G86: MVA added | H86: km | I86: km | J86: Total length of maintenance spans | K86: 0's | L86: $0s | M86: number | N86: number | O86: number per connection | P86: number per connection
C87: Circuit line length in km | D87: 0's | E87: 0's | F87: 0's | G87: 0's | H87: km | I87: km | J87: Length of vegetation corridors | K87: $0s | L87: 0's | M87: km
C88: Number | D88: total spend $0s | E88: total spend $0s | F88: total spend $0s | G88: total spend $0s | H88: 0's | I88: 0's | J88: Average number of trees per maintenance span
C89: Number | D89: net circuit km added | E89: net circuit km added | F89: net circuit km added | G89: net circuit km added | H89: years | I89: years | J89: Average frequency of cutting cycle
C90: Number | D90: total spend $0s | E90: total spend $0s | F90: total spend $0s | G90: total spend $0s
D91: net circuit km added | E91: net circuit km added | F91: net circuit km added | G91: net circuit km added
D92: total spend $0s | E92: total spend $0s | F92: total spend $0s | G92: total spend $0s
D93: 0's | F93: $0s
D94: 0's
D95: 0's
D96: $0s
B99: CA & RESET RINS TNSP ONLY | C99: dms_020701_01_UOM
C100: km
C101: 0's
C102: km
C103: 0's
C104: km
C105: metres
C106: years
B109: CA & RESET RINS DNSP & TNSP | C109: dms_020603_01_UOM
C110: 0's
C111: 0's
C112: 0's
C113: 0's
C114: (per cent)
B117: EB & RESET RINS DNSP ONLY | C117: dms_030601_01_UOM | D117: dms_030601_02_UOM | E117: dms_030701_01_UOM | F117: dms_030702_01_UOM | G117: dms_030703_01_UOM
C118: minutes/customer | D118: minutes/customer | E118: Customer / km | F118: % | G118: km
C119: minutes/customer | D119: minutes/customer | E119: MWh/customer | F119: Number of spans
C120: interruptions/customer | D120: interruptions/customer | E120: kVA / customer | F120: Number of spans
C121: interruptions/customer | D121: interruptions/customer | F121: Number of spans
F122: Number of spans
F123: Years
F124: Years
F125: Trees
F126: Trees
F127: Defects
F128: Defects
F129: Spans
F130: km
F131: Spans
C133: WHEN INSERTING COVER SHEET INTO A TNSP FILE - APPLY THESE NAMED RANGES
B134: EB & RESET RINS TNSP ONLY | C134: dms_030601_01_UOM | E134: dms_030701_01_UOM | F134: dms_030702_01_UOM
C135: % | E135: Number of spans | F135: km
C136: number | E136: Years | F136: %
C137: number | E137: Trees | F137: km
C138: % | E138: Defects | F138: number
C139: number | E139: Number of spans
C140: number | E140: km
C141: % | E141: km
C142: number | E142: Number of spans
C143: number
C144: %
C145: number
C146: %
C147: number
C148: %
C149: number
B151: EB & RESET RINS DNSP & TNSP | C151: dms_EB_RAB_PIT
C152: Beginning of year
C153: End of year
C154: End of year
C155: End of year
C156: End of year
C157: End of year
B159: ARR DNSP ONLY | C159: dms_030605_UOM | D159: dms_03060703_UOM | E159: dms_E020202_UOM | F159: Spare
C160: number | D160: number | E160: Length of mains replaced
C161: number | D161: number | E161: Number of services replaced
C162: number | D162: number
C163: number | D163: number
C164: number | D164: (per cent)
C165: number
C166: number
C167: number
C168: number
C169: number
C170: number
C171: number
C172: (per cent)
C173: (per cent)
B175: RFM | C175: dms_Beg | D175: dms_Mid | E175: dms_End
C176: Beginning of year | D176: Mid year | E176: End of Year
B178: PTRM | C178: dms_PTRM_RAB_PIT | D178: dms_PTRM_TAB_PIT | E178: DMS_Xfactor
C179: Beginning of year | D179: Beginning of year | E179: x factors
C180: End of year | D180: End of year
C181: End of year | D181: End of year
C182: End of year | D182: End of year
C183: End of year
B186: STPIS & MIC NAMED RANGES
B188: These "row descriptions" are the column headings in the various templates but become row descriptions in the ETL process
B190: Table 6.3 sustained interruptions - row descriptions | C190: dms_060301_CustNo_Affected_Row | D190: dms_060301_Avg_Duration_Sustained_Int_Row | E190: dms_060301_Effect_unplanned_SAIDI_Row | F190: dms_060301_Effect_unplanned_SAIFI_Row
C191: Number of customers affected by the interruption | D191: Average duration of sustained customer interruption | E191: Effect on unplanned SAIDI | F191: Effect on unplanned SAIFI
B194: Table 6.1 telephone answering - row descriptions and start date | C194: dms_060101_Rows | D194: dms_060102_Rows | E194: dms_060101_StartDateTxt
C195: Total number of calls (after removing excluded events) | D195: Number of calls answered within 30 seconds (after excluding excluded events) | E195: =dms_060701_StartDateTxt -> 1-Jul-2013
B198: Table 6.8.1 - row descriptions | C198: dms_060801_01_Rows | D198: dms_060801_02_Rows | E198: dms_060801_03_Rows | F198: dms_060801_04_Rows
C199: Number of interruptions | D199: Duration of interruptions | E199: Total unplanned minutes off supply | F199: Effect on unplanned MAIFI
B202: Table 7.9.4 - market impact component - row descriptions | C202: dms_070904_01_Rows | D202: without exclusions | E202: with exclusions
B205: These headings (Lists) are determined from the INDEX/MATCH function on the NSP selected on the Business & other details sheet
B207: Table 6.7.1 - daily performance data - unplanned - MAIFI -- row descriptions and header named range values | C207: dms_060701_Feeder_Header_Lvl4 | D207: =INDEX(dms_FeederName_1,MATCH(dms_TradingName,dms_TradingName_List)) -> CBD | E207: =INDEX(dms_FeederName_1,MATCH(dms_TradingName,dms_TradingName_List)) -> CBD | F207: =INDEX(dms_FeederName_2,MATCH(dms_TradingName,dms_TradingName_List)) -> Urban | G207: =INDEX(dms_FeederName_2,MATCH(dms_TradingName,dms_TradingName_List)) -> Urban | H207: =INDEX(dms_FeederName_3,MATCH(dms_TradingName,dms_TradingName_List)) -> Short rural | I207: =INDEX(dms_FeederName_3,MATCH(dms_TradingName,dms_TradingName_List)) -> Short rural | J207: =INDEX(dms_FeederName_4,MATCH(dms_TradingName,dms_TradingName_List)) -> Long rural | K207: =INDEX(dms_FeederName_4,MATCH(dms_TradingName,dms_TradingName_List)) -> Long rural | L207: =IF((INDEX(dms_FeederName_5,MATCH(dms_TradingName,dms_TradingName_List))=0),"Network",(INDEX(dms_FeederName_5,MATCH(dms_TradingName,dms_TradingName_List)))) -> Network | M207: =IF((INDEX(dms_FeederName_5,MATCH(dms_TradingName,dms_TradingName_List))=0),"Network",(INDEX(dms_FeederName_5,MATCH(dms_TradingName,dms_TradingName_List)))) -> Network | N207: Network | O207: Network
C209: dms_060701_Rows | D209: All events | E209: After removing excluded events | F209: All events | G209: After removing excluded events | H209: All events | I209: After removing excluded events | J209: All events | K209: After removing excluded events | L209: All events | M209: After removing excluded events | N209: All events | O209: After removing excluded events
D210: the number of column headings changes from 10 to 12 depending on the number of feeder categories for the NSP
C212: dms_0603_FeederList | D212: =INDEX(dms_FeederName_1,MATCH(dms_TradingName,dms_TradingName_List)) -> CBD | E212: =INDEX(dms_FeederName_2,MATCH(dms_TradingName,dms_TradingName_List)) -> Urban | F212: =INDEX(dms_FeederName_3,MATCH(dms_TradingName,dms_TradingName_List)) -> Short rural | G212: =INDEX(dms_FeederName_4,MATCH(dms_TradingName,dms_TradingName_List)) -> Long rural
B215: Use these to add to specific worksheets in existing files | C215: Use these to add to specific worksheets in existing files
B218: ARRs 6.7 STPIS daily performance | C218: dms_060101_Values | D218: dms_060102_Values | E218: dms_060701_Values
C219: dms_LeapYear
B222: ARR's 6.8 STPIS exclusions | C222: dms_060801_Event_Date | D222: dms_060801_OutageID | E222: dms_060801_FeederID | F222: dms_060801_FeederClass | G222: dms_060801_CauseID | H222: dms_060801_01_Values | I222: dms_060801_02_Values | J222: dms_060801_03_Values | K222: dms_060801_Excl_Cat | L222: dms_060801_04_Values
C223: dms_060801_StartCell
B226: CA 6.3 sustained interruptions | C226: dms_060301_Event_Date | D226: dms_060301_Event_Time | E226: dms_060301_AssetID | F226: dms_060301_FeederClass | G226: dms_060301_Reason | H226: dms_060301_DetailedReason | I226: dms_060301_CustNo_Affected_Values | J226: dms_060301_Avg_Duration_Sustained_Int_Values | K226: dms_060301_Effect_unplanned_SAIDI_Values | L226: dms_060301_Effect_unplanned_SAIFI_Values | M226: dms_060301_MED

Sheet AER lookups (hidden)
B1: AER LOOKUP TABLES
B3: Data in these columns used for data validation and database purposes.
B4: Date last modified: | C4: 2017-01-16 | D4: added (Albury and Victora) for AGN
C5: 2016-10-17 | D5: updated TransGrid's correct legal name, corrected TasNetworks (T) to June financial year
C6: 2017-02-01 | D6: inserted Power and Water, added NRs (dms_FeederCat_1 and dms_FeederCat_2)
C7: 2017-03-03 | D7: inserted AEMO as a business
C8: 2018-03-28 | D8: major changes to accommodate STPIS
C9: Template Version | D9: 5
Z11: FOR ELECTRICITY BUSINESSES ONLY
Z12: Feeder Types | AD12: TasNetworks (D) | AE12: Feeder Names
Z14: CBD | AA14: Urban | AB14: Short rural | AC14: long rural | AD14: EXTRA
B15: dms_TradingName_List | C15: dms_TradingNameFull_List | D15: dms_ABN_List | E15: dms_JurisdictionList | F15: dms_Sector_List | G15: dms_Segment_List | H15: dms_FormControl_List | I15: dms_RPT_List | J15: dms_RPTMonth_List | K15: dms_CRCPlength_List | L15: dms_FRCPlength_List | M15: dms_PRCPlength_List | N15: dms_663_List | O15: dms_DeterminationRef_List | P15: dms_Addr1_List | Q15: dms_Addr2_List | R15: dms_Suburb_List | S15: dms_State_List | T15: dms_PostCode_List | U15: dms_PAddr1_List | V15: dms_PAddr2_List | W15: dms_PSuburb_List | X15: dms_PState_List | Y15: dms_PPostCode_List | Z15: dms_CBD_flag | AA15: dms_Urban_flag | AB15: dms_ShortRural_flag | AC15: dms_LongRural_flag | AD15: dms_FeederType_5_flag | AE15: dms_FeederName_1 | AF15: dms_FeederName_2 | AG15: dms_FeederName_3 | AH15: dms_FeederName_4 | AI15: dms_FeederName_5 | AJ15: dms_Public_Lighting_List | AK15: Name
B16: Amadeus | C16: APT Pipelines (NT) Pty Ltd | D16: 39009737393 | E16: NT | F16: Gas | G16: Transmission | H16: Tariff cap | I16: Financial | J16: June | K16: 5 | L16: 5 | M16: 5 | N16: x | O16: n/a | P16: Level 19, HSBC Building | Q16: 580 George Street | R16: SYDNEY | S16: NSW | T16: 2000 | U16: Level 19, HSBC Building | V16: 580 George Street | W16: SYDNEY | X16: NSW | Y16: 2000 | Z16: NO | AA16: NO | AB16: NO | AC16: NO | AD16: NO | AE16: CBD | AF16: Urban | AG16: Short rural | AH16: Long rural | AJ16: NO | AK16: =B16 -> Amadeus
B17: APA VTS | C17: APA VTS Australia (Operations) Pty Ltd | D17: 65083009 | E17: Vic | F17: Gas | G17: Transmission | H17: Tariff cap | I17: Financial | J17: June | K17: 5 | L17: 5 | M17: 5 | N17: x | P17: Level 19, HSBC Building | Q17: 580 George Street | R17: SYDNEY | S17: NSW | T17: 2000 | U17: PO Box R41 | W17: ROYAL EXCHANGE | X17: NSW | Y17: 1225 | Z17: NO | AA17: NO | AB17: NO | AC17: NO | AD17: NO | AE17: CBD | AF17: Urban | AG17: Short rural | AH17: Long rural | AJ17: NO | AK17: =B17 -> APA VTS
B18: Australian Transmission Co. (Gas) | C18: Australian Transmission Co. (Gas) | D18: 11222333444 | E18: NSW | F18: Gas | G18: Transmission | H18: Tariff cap | I18: Financial | J18: June | K18: 5 | L18: 5 | M18: 5 | N18: 5 | O18: transmission determination | P18: 123 Straight Street | R18: SYDNEY | S18: NSW | T18: 2000 | U18: PO Box 123 | W18: SYDNEY | X18: NSW | Y18: 2000 | Z18: NO | AA18: NO | AB18: NO | AC18: NO | AD18: NO | AE18: CBD | AF18: Urban | AG18: Short rural | AH18: Long rural | AJ18: NO | AK18: =B18 -> Australian Transmission Co. (Gas)
B19: Roma to Brisbane Pipeline | C19: APT Petroleum Pipelines Limited t/a Roma to Brisbane Pipeline | D19: 009 737 393 | E19: Qld | F19: Gas | G19: Transmission | H19: Tariff cap | I19: Financial | J19: June | K19: 5 | L19: 5 | M19: 5 | N19: x | O19: n/a | P19: 580 George Street | R19: SYDNEY | S19: NSW | T19: 2000 | U19: PO Box R41 | W19: ROYAL EXCHANGE | X19: NSW | Y19: 1225 | Z19: NO | AA19: NO | AB19: NO | AC19: NO | AD19: NO | AE19: CBD | AF19: Urban | AG19: Short rural | AH19: Long rural | AJ19: NO | AK19: =B19 -> Roma to Brisbane Pipeline
B24: The Reg Year Ending (dms_RYE) must be set to the last year of the regulatory period. For forecast data is is usually (FRCP_y5) for actual it is a single year (CRY). For historical actual data the RYE will need to be set manually in the business details sheet by setting the dms_Multiyear_flag to 1 and putting the correct value in 'dms_Specified_FinalYear. See cells C67:C68
B25: dms_Model_List | C25: dms_Model_Name_Format1 | D25: dms_Worksheet_List | E25: dms_Model_Span_List
B26: ARR | C26: Annual Reporting | D26: =IF(dms_MultiYear_ResponseFlag="yes","NEW HISTORICAL ANNUAL REPORTING","ANNUAL REPORTING") -> ANNUAL REPORTING | E26: 1
B27: CA | C27: Category Analysis | D27: =IF(dms_MultiYear_ResponseFlag="yes","NEW HISTORICAL CATEGORY ANALYSIS","CATEGORY ANALYSIS") -> CATEGORY ANALYSIS | E27: 1
B28: CESS | C28: Capitlal Expenditure | D28: CAPITLAL EXPENDITURE SHARING SCHEMING | E28: 5
B29: CPI | C29: CPI | D29: CPI | E29: 5
B30: EB | C30: Economic Benchmarking | D30: =IF(dms_MultiYear_ResponseFlag="yes","NEW HISTORICAL ECONOMIC BENCHMARKING","ECONOMIC BENCHMARKING") -> ECONOMIC BENCHMARKING | E30: 1
B31: Pricing | C31: Pricing Proposal | D31: PRICING PROPOSAL | E31: 5
B32: PTRM | C32: Post Tax Revenue Model | D32: POST TAX REVENUE MODEL | E32: 5
B33: Reset | C33: Regulatory Reporting (Reset) | D33: REGULATORY REPORTING STATEMENT | E33: 5
B34: RFM | C34: Roll Forward Model | D34: ROLL FORWARD MODEL | E34: 5
B35: WACC | C35: Weighted Average Cost of Capital | D35: WEIGHTED AVERAGE COST OF CAPITAL | E35: 1
B39: Financial | C39: Calendar | E39: PREVIOUS | G39: CURRENT | I39: FORTHCOMING
B40: 1987-88 | C40: 1988 | D40: PRCP_y1 | E40: =INDEX(INDIRECT(dms_RPT),dms_PRCP_start_row) -> 2010-11 | F40: CRCP_y1 | G40: =INDEX(INDIRECT(dms_RPT),dms_CRCP_start_row) -> 2015-16 | H40: =FRCP_y1 -> 2020-21 | I40: =INDEX(INDIRECT(dms_RPT),dms_FRCP_start_row) -> 2020-21
B41: 1988-89 | C41: 1989 | D41: PRCP_y2 | E41: =INDEX(INDIRECT(dms_RPT),dms_PRCP_start_row+1) -> 2011-12 | F41: CRCP_y2 | G41: =INDEX(INDIRECT(dms_RPT),dms_CRCP_start_row+1) -> 2016-17 | H41: FRCP_y2 | I41: =INDEX(INDIRECT(dms_RPT),dms_FRCP_start_row+1) -> 2021-22
B42: 1989-90 | C42: 1990 | D42: PRCP_y3 | E42: =INDEX(INDIRECT(dms_RPT),dms_PRCP_start_row+2) -> 2012-13 | F42: CRCP_y3 | G42: =INDEX(INDIRECT(dms_RPT),dms_CRCP_start_row+2) -> 2017-18 | H42: FRCP_y3 | I42: =INDEX(INDIRECT(dms_RPT),dms_FRCP_start_row+2) -> 2022-23
B43: 1990-91 | C43: 1991 | D43: PRCP_y4 | E43: =INDEX(INDIRECT(dms_RPT),dms_PRCP_start_row+3) -> 2013-14 | F43: CRCP_y4 | G43: =INDEX(INDIRECT(dms_RPT),dms_CRCP_start_row+3) -> 2018-19 | H43: FRCP_y4 | I43: =INDEX(INDIRECT(dms_RPT),dms_FRCP_start_row+3) -> 2023-24
B44: 1991-92 | C44: 1992 | D44: PRCP_y5 | E44: =INDEX(INDIRECT(dms_RPT),dms_PRCP_start_row+4) -> 2014-15 | F44: CRCP_y5 | G44: =INDEX(INDIRECT(dms_RPT),dms_CRCP_start_row+4) -> 2019-20 | H44: FRCP_y5 | I44: =INDEX(INDIRECT(dms_RPT),dms_FRCP_start_row+4) -> 2024-25
B45: 1992-93 | C45: 1993 | D45: PRCP_y6 | E45: =INDEX(INDIRECT(dms_RPT),dms_PRCP_start_row+5) -> 2015-16 | F45: CRCP_y6 | G45: =INDEX(INDIRECT(dms_RPT),dms_CRCP_start_row+5) -> 2020-21 | H45: FRCP_y6 | I45: =INDEX(INDIRECT(dms_RPT),dms_FRCP_start_row+5) -> 2025-26
B46: 1993-94 | C46: 1994 | D46: PRCP_y7 | E46: =INDEX(INDIRECT(dms_RPT),dms_PRCP_start_row+6) -> 2016-17 | F46: CRCP_y7 | G46: =INDEX(INDIRECT(dms_RPT),dms_CRCP_start_row+6) -> 2021-22 | H46: FRCP_y7 | I46: =INDEX(INDIRECT(dms_RPT),dms_FRCP_start_row+6) -> 2026-27
B47: 1994-95 | C47: 1995 | D47: PRCP_y8 | E47: =INDEX(INDIRECT(dms_RPT),dms_PRCP_start_row+7) -> 2017-18 | F47: CRCP_y8 | G47: =INDEX(INDIRECT(dms_RPT),dms_CRCP_start_row+7) -> 2022-23 | H47: FRCP_y8 | I47: =INDEX(INDIRECT(dms_RPT),dms_FRCP_start_row+7) -> 2027-28
B48: 1995-96 | C48: 1996 | D48: PRCP_y9 | E48: =INDEX(INDIRECT(dms_RPT),dms_PRCP_start_row+8) -> 2018-19 | F48: CRCP_y9 | G48: =INDEX(INDIRECT(dms_RPT),dms_CRCP_start_row+8) -> 2023-24 | H48: FRCP_y9 | I48: =INDEX(INDIRECT(dms_RPT),dms_FRCP_start_row+8) -> 2028-29
B49: 1996-97 | C49: 1997 | D49: PRCP_y10 | E49: =INDEX(INDIRECT(dms_RPT),dms_PRCP_start_row+9) -> 2019-20 | F49: CRCP_y10 | G49: =INDEX(INDIRECT(dms_RPT),dms_CRCP_start_row+9) -> 2024-25 | H49: FRCP_y10 | I49: =INDEX(INDIRECT(dms_RPT),dms_FRCP_start_row+9) -> 2029-30
B50: 1997-98 | C50: 1998 | D50: PRCP_y11 | E50: =INDEX(INDIRECT(dms_RPT),dms_PRCP_start_row+10) -> 2020-21 | F50: CRCP_y11 | G50: =INDEX(INDIRECT(dms_RPT),dms_CRCP_start_row+10) -> 2025-26 | H50: FRCP_y11 | I50: =INDEX(INDIRECT(dms_RPT),dms_FRCP_start_row+10) -> 2030-31
B51: 1998-99 | C51: 1999 | D51: PRCP_y12 | E51: =INDEX(INDIRECT(dms_RPT),dms_PRCP_start_row+11) -> 2021-22 | F51: CRCP_y12 | G51: =INDEX(INDIRECT(dms_RPT),dms_CRCP_start_row+11) -> 2026-27 | H51: FRCP_y12 | I51: =INDEX(INDIRECT(dms_RPT),dms_FRCP_start_row+11) -> 2031-32
B52: 1999-00 | C52: 2000 | D52: PRCP_y13 | E52: =INDEX(INDIRECT(dms_RPT),dms_PRCP_start_row+12) -> 2022-23 | F52: CRCP_y13 | G52: =INDEX(INDIRECT(dms_RPT),dms_CRCP_start_row+12) -> 2027-28 | H52: FRCP_y13 | I52: =INDEX(INDIRECT(dms_RPT),dms_FRCP_start_row+12) -> 2032-33
B53: 2000-01 | C53: 2001 | D53: PRCP_y14 | E53: =INDEX(INDIRECT(dms_RPT),dms_PRCP_start_row+13) -> 2023-24 | F53: CRCP_y14 | G53: =INDEX(INDIRECT(dms_RPT),dms_CRCP_start_row+13) -> 2028-29 | H53: FRCP_y14 | I53: =INDEX(INDIRECT(dms_RPT),dms_FRCP_start_row+13) -> 2033-34
B54: 2001-02 | C54: 2002 | D54: PRCP_y15 | E54: =INDEX(INDIRECT(dms_RPT),dms_PRCP_start_row+14) -> 2024-25 | F54: CRCP_y15 | G54: =INDEX(INDIRECT(dms_RPT),dms_CRCP_start_row+14) -> 2029-30 | H54: FRCP_y15 | I54: =INDEX(INDIRECT(dms_RPT),dms_FRCP_start_row+14) -> 2034-35
B55: 2002-03 | C55: 2003 | D55: PRCP_y16 | E55: =INDEX(INDIRECT(dms_RPT),dms_PRCP_start_row+15) -> 2025-26 | F55: CRCP_y16 | G55: =INDEX(INDIRECT(dms_RPT),dms_CRCP_start_row+15) -> 2030-31 | H55: FRCP_y16 | I55: =INDEX(INDIRECT(dms_RPT),dms_FRCP_start_row+15) -> 2035-36
B56: 2003-04 | C56: 2004
B57: 2004-05 | C57: 2005
B58: 2005-06 | C58: 2006 | E58: CRY - FRY
B59: 2006-07 | C59: 2007 | D59: dms_y1 | E59: =IFERROR(INDEX(INDIRECT(dms_RPT),dms_CRY_start_row),0) -> 2020-21
B60: 2007-08 | C60: 2008 | D60: dms_y2 | E60: =IFERROR(INDEX(INDIRECT(dms_RPT),dms_CRY_start_row+1),0) -> 2021-22
B61: 2008-09 | C61: 2009 | D61: dms_y3 | E61: =IFERROR(INDEX(INDIRECT(dms_RPT),dms_CRY_start_row+2),0) -> 2022-23
B62: 2009-10 | C62: 2010 | D62: dms_y4 | E62: =IFERROR(INDEX(INDIRECT(dms_RPT),dms_CRY_start_row+3),0) -> 2023-24
B63: 2010-11 | C63: 2011 | D63: dms_y5 | E63: =IFERROR(INDEX(INDIRECT(dms_RPT),dms_CRY_start_row+4),0) -> 2024-25
B64: 2011-12 | C64: 2012 | D64: dms_y6 | E64: =IFERROR(INDEX(INDIRECT(dms_RPT),dms_CRY_start_row+5),0) -> 2025-26
B65: 2012-13 | C65: 2013 | D65: dms_y7 | E65: =IFERROR(INDEX(INDIRECT(dms_RPT),dms_CRY_start_row+6),0) -> 2026-27
B66: 2013-14 | C66: 2014 | D66: dms_y8 | E66: =IFERROR(INDEX(INDIRECT(dms_RPT),dms_CRY_start_row+7),0) -> 2027-28
B67: 2014-15 | C67: 2015 | D67: dms_y9 | E67: =IFERROR(INDEX(INDIRECT(dms_RPT),dms_CRY_start_row+8),0) -> 2028-29
B68: 2015-16 | C68: 2016 | D68: dms_y10 | E68: =IFERROR(INDEX(INDIRECT(dms_RPT),dms_CRY_start_row+9),0) -> 2029-30
B69: 2016-17 | C69: 2017 | D69: dms_y11 | E69: =IFERROR(INDEX(INDIRECT(dms_RPT),dms_CRY_start_row+10),0) -> 2030-31
B70: 2017-18 | C70: 2018 | D70: dms_y12 | E70: =IFERROR(INDEX(INDIRECT(dms_RPT),dms_CRY_start_row+11),0) -> 2031-32
B71: 2018-19 | C71: 2019 | D71: dms_y13 | E71: =IFERROR(INDEX(INDIRECT(dms_RPT),dms_CRY_start_row+12),0) -> 2032-33
B72: 2019-20 | C72: 2020 | D72: dms_y14 | E72: =IFERROR(INDEX(INDIRECT(dms_RPT),dms_CRY_start_row+13),0) -> 2033-34
B73: 2020-21 | C73: 2021 | D73: dms_y15 | E73: =IFERROR(INDEX(INDIRECT(dms_RPT),dms_CRY_start_row+14),0) -> 2034-35
B74: 2021-22 | C74: 2022 | D74: dms_y16 | E74: =IFERROR(INDEX(INDIRECT(dms_RPT),dms_CRY_start_row+15),0) -> 2035-36
B75: 2022-23 | C75: 2023
B76: 2023-24 | C76: 2024
B77: 2024-25 | C77: 2025
B78: 2025-26 | C78: 2026
B79: 2026-27 | C79: 2027
B80: 2027-28 | C80: 2028
B81: 2028-29 | C81: 2029
B82: 2029-30 | C82: 2030
B83: 2030-31 | C83: 2031
B84: 2031-32 | C84: 2032
B85: 2032-33 | C85: 2033
B86: 2033-34 | C86: 2034
B87: 2034-35 | C87: 2035
B88: 2035-36 | C88: 2036
B89: 2036-37 | C89: 2037

Sheet AER ETL (hidden)
B1: AER ETL INFORMATION
B3: USES NAMED RANGES FLAG | C3: yes | D3: dms_Defined_Names_Used
B5: IF THIS IS AN ABC RIN - make sure the the named range CRY is applied and the named range dms_dollar_nom_UOM is applied
B6: IF THIS IS A RESET RIN - make sure the named ranges CRY and dms_dollar_nom_UOM are NOT present in the workbook
B7: FOR ABC RINS THAT SPAN MULTIPLE YEARS - make sure MultiYear Flag is set and final year entered as required
B9: Full trading name | C9: =INDEX(dms_TradingNameFull_List,MATCH(dms_TradingName,dms_TradingName_List)) -> APA VTS Australia (Operations) Pty Ltd | E9: dms_TradingNameFull
B10: Trading name | C10: =dms_TradingName -> APA VTS
A11: Selected here | B11: Model / RIN | C11: PTRM | D11: dms_Model
A12: Read from Business & other details | B12: Source | C12: =dms_Selected_Source -> Final decision | D12: dms_Source
B13: Data quality | C13: Consolidated | D13: For DB purposes this is always Consoldiated
B14: Data status | C14: Public | D14: For DB purposes this is always Public
B15: Amendment reason | C15: =dms_Amendment_Text -> . | F15: dms_AmendmentReason
B16: Submission date | C16: =dms_Typed_Submission_Date -> dd/mm/yy | D16: dms_SubmissionDate
A18: Redundant | B18: EBSS - First application of scheme in forthcoming period? | C18: No
A19: Pre-populated from lookup table | B19: Data ingestion data quality | C19: Consolidated | D19: dms_DataQuality | E19: Always Consolidated
B20: Sector | C20: =INDEX(dms_Sector_List,MATCH(dms_TradingName,dms_TradingName_List)) -> Gas | D20: dms_Sector | E20: =INDEX(dms_Sector_List,MATCH(dms_TradingName,dms_TradingName_List))
B21: Segment | C21: =INDEX(dms_Segment_List,MATCH(dms_TradingName,dms_TradingName_List)) -> Transmission | D21: dms_Segment | E21: =INDEX(dms_Segment_List,MATCH(dms_TradingName,dms_TradingName_List))
B22: Regulatory Year Ending | C22: =dms_RYE_result -> 2025 | D22: dms_RYE | E22: =IF(dms_MultiYear_Flag=1,LEFT(dms_Specified_FinalYear,2)&RIGHT(dms_Specified_FinalYear,2),INDEX(dms_RYE_Formula_Result,MATCH(dms_Model,dms_Model_List)))
B23: Reporting Period Type | C23: =INDEX(dms_RPT_List,MATCH(dms_TradingName,dms_TradingName_List)) -> Financial | D23: dms_RPT | E23: =INDEX(dms_RPT_List,MATCH(dms_TradingName,dms_TradingName_List))
B24: EB/CA Unit of Measure for Monetary Values | C24: $0s | D24: dms_dollar_nom_UOM | E24: If the cover sheet is attached to an ABC RIN apply the NAMED RANGE to the cell
B25: Security Classification | C25: Public | D25: dms_Classification | E25: Always Public
B26: Jurisdiction | C26: =INDEX(dms_JurisdictionList,MATCH(dms_TradingName,dms_TradingName_List)) -> Vic | D26: dms_Jurisdiction | E26: =INDEX(dms_JurisdictionList,MATCH(dms_TradingName,dms_TradingName_List))
A27: Relevant for PTRM, RFMs and Reset RINS | B27: $ REAL REFERENCES
B28: Does the named range CRY exist in this file? | C28: =IFERROR(CRY,"NO") -> 2020-21
B29: CRY-1 (last full calendar year before CRY) | C29: =IFERROR(IF(dms_RPT="calendar",CRY-1,LEFT(CRY,4)),"CRY not present") -> 2020 | D29: dms_Cal_Year_B4_CRY | E29: '=IF(dms_RPT="financial",VALUE(LEFT(dms_SingleYear_FinalYear_Result,4)),VALUE(LEFT(dms_SingleYear_FinalYear_Result,4)-1))
B30: Dollar $ real month | C30: =INDEX(dms_RPTMonth_List,MATCH(dms_TradingName,dms_TradingName_List)) -> June | D30: dms_RPTMonth | E30: =INDEX(dms_RPTMonth_List,MATCH(dms_TradingName,dms_TradingName_List))
B31: Dollar $ real (the last month before the FRCP_y1) | C31: =IF(dms_SingleYearModel="yes",CONCATENATE(dms_RPTMonth)&" "&VALUE((LEFT(dms_CRY_start_year,2)&RIGHT(dms_CRY_start_year,2))),CONCATENATE(dms_RPTMonth)&" "&dms_DollarReal_year) -> June 2020 | D31: dms_DollarReal | E31: =IF(SUM(dms_SingleYear_Model)>0,CONCATENATE(dms_RPTMonth)&" "&VALUE((LEFT(CRY,2))&RIGHT(CRY,2)),CONCATENATE(dms_RPTMonth)&" "&VALUE((LEFT(dms_RYE,2)&RIGHT(dms_RYE,2))))
B32: Dollar $ real previous year (PRCP_y5) | C32: =CONCATENATE(dms_RPTMonth)&" "&dms_Previous_DollarReal_year -> June 2015 | D32: dms_DollarReal_Prev | E32: =IF(SUM(dms_SingleYear_Model)>0,CONCATENATE(dms_RPTMonth)&" "&VALUE(((LEFT(CRY,2))&RIGHT(CRY,2))-1),CONCATENATE(dms_RPTMonth)&" "&VALUE(((LEFT(dms_CRCP_FirstYear_Result,2)&RIGHT(dms_CRCP_FirstYear_Result,2))))-1)
B33: PTRM/ RFMs
B34: Form of control | C34: =INDEX(dms_FormControl_List,MATCH(dms_TradingName,dms_TradingName_List)) -> Tariff cap | D34: dms_FormControl | E34: =INDEX(dms_FormControl_List,MATCH(dms_TradingName,dms_TradingName_List))
A35: All potential values for Regulatory Years or RYEs as calculated | B35: This block works out the various RYE's for ALL RIN types and MODELS
B36: dms_start_year | C36: =FRCP_y1 -> 2020-21 | D36: =FRCP_y1 | E36: FRCP_y1 from cover sheet
B37: dms_CRY_start_year | C37: =IFERROR(CRY,CRCP_y4) -> 2020-21 | D37: =IFERROR(CRY,CRCP_y4)
B38: dms_CRY_start_row | C38: =IFERROR(MATCH(dms_CRY_start_year,INDIRECT(dms_RPT),0),0) -> 34 | D38: =IFERROR(MATCH(dms_CRY_start_year,INDIRECT(dms_RPT),0),0)
B39: dms_FRCP_start_row | C39: =MATCH(dms_start_year,INDIRECT(dms_RPT),0) -> 34 | D39: =MATCH(dms_start_year,INDIRECT(dms_RPT),0) | E39: Uses FRCP_y1 as a start reference
B40: dms_CRCP_start_row | C40: =dms_FRCP_start_row-dms_CRCPlength_Num -> 29 | D40: =dms_FRCP_start_row-dms_CRCPlength_Num | E40: Uses the value in dms_CRCPlength_Num
B41: dms_PRCP_start_row | C41: =dms_FRCP_start_row-dms_CRCPlength_Num-dms_PRCPlength_Num -> 24 | D41: =dms_FRCP_start_row-dms_CRCPlength_Num-dms_PRCPlength_Num | E41: Uses the value in dms_CRCPlength_Num and dms_PRCPlength_Num
B42: dms_RYE_start_row | C42: =dms_FRCP_start_row+(dms_FRCPlength_Num-1) -> 38 | D42: =dms_FRCP_start_row+(dms_FRCPlength_Num-1) | E42: Uses the value in dms_FRCPlength_Num-1
B43: FRCP_start_year | C43: =INDEX(INDIRECT(dms_RPT),dms_FRCP_start_row) -> 2020-21 | D43: =INDEX(INDIRECT(dms_RPT),dms_FRCP_start_row) | E43: Converts the FRCP start row to display the year
B44: CRCP_start_year | C44: =INDEX(INDIRECT(dms_RPT),dms_CRCP_start_row) -> 2015-16 | D44: =INDEX(INDIRECT(dms_RPT),dms_CRCP_start_row) | E44: Converts the CRCP start row to display the year
B45: PRCP_start_year | C45: =INDEX(INDIRECT(dms_RPT),dms_PRCP_start_row) -> 2010-11 | D45: =INDEX(INDIRECT(dms_RPT),dms_PRCP_start_row) | E45: Converts the PRCP start row to display the year
B46: FRCP_final_year | C46: =INDEX(INDIRECT(dms_RPT),dms_FRCP_start_row+dms_FRCPlength_Num-1) -> 2024-25 | D46: =INDEX(INDIRECT(dms_RPT),dms_FRCP_start_row+dms_FRCPlength_Num-1) | E46: Finds the FRCP final year
B47: CRCP_final_year | C47: =INDEX(INDIRECT(dms_RPT),dms_CRCP_start_row+dms_CRCPlength_Num-1) -> 2019-20 | D47: =INDEX(INDIRECT(dms_RPT),dms_CRCP_start_row+dms_CRCPlength_Num-1) | E47: Finds the CRCP final year
B48: PRCP_final_year | C48: =INDEX(INDIRECT(dms_RPT),dms_PRCP_start_row+dms_FRCPlength_Num-1) -> 2014-15 | D48: =INDEX(INDIRECT(dms_RPT),dms_PRCP_start_row+dms_FRCPlength_Num-1) | E48: Finds the PRCP final year
B49: dms_Reset_final_year | C49: =INDEX(INDIRECT(dms_RPT),dms_RYE_start_row) -> 2024-25 | D49: =INDEX(INDIRECT(dms_RPT),dms_RYE_start_row) | E49: For Resets and PTRM/RFMs (same as FRCP_final_year)
B50: dms_SpecifiedYear_final_year | C50: =FRY -> 2020-21 | D50: =FRY | E50: FRY from cover sheet
B51: dms_DollarReal_year | C51: =LEFT(CRCP_final_year,2)&RIGHT(CRCP_final_year,2) -> 2020 | D51: =LEFT(CRCP_final_year,2)&RIGHT(CRCP_final_year,2) | E51: Uses the value in CRCP_final_year
B52: dms_Previous_DollarReal_year | C52: =LEFT(PRCP_final_year,2)&RIGHT(PRCP_final_year,2) -> 2015 | D52: =LEFT(PRCP_final_year,2)&RIGHT(PRCP_final_year,2) | E52: Uses the value in PRCP_final_year
B53: dms_CRY_RYE | C53: =IFERROR(LEFT(CRY,2)&RIGHT(CRY,2),0) -> 2021 | D53: =IFERROR(LEFT(CRY,2)&RIGHT(CRY,2),0) | E53: For ABC single year RINS
B54: dms_Reset_RYE | C54: =IF(dms_Model_Span>1,IF(dms_Model="RFM",(LEFT(dms_DollarReal_year,2)&RIGHT(dms_DollarReal_year,2)),(LEFT(dms_Reset_final_year,2)&RIGHT(dms_Reset_final_year,2))),0) -> 2025 | D54: =IF(dms_Model_Span>1,IF(dms_Model="RFM",(LEFT(dms_DollarReal_year,2)&RIGHT(dms_DollarReal_year,2)),(LEFT(dms_Reset_final_year,2)&RIGHT(dms_Reset_final_year,2))),0) | E54: If model span > 1 then uses dms_Reset_RYE otherwise it's a multi year ABC and uses dms_Specified_RYE
B55: dms_Specified_RYE | C55: =IF(dms_MultiYear_ResponseFlag="Yes",(LEFT(dms_Specified_FinalYear,2)&RIGHT(dms_Specified_FinalYear,2)),0) -> 0 | D55: =IF(dms_MultiYear_ResponseFlag="Yes",(LEFT(dms_Specified_FinalYear,2)&RIGHT(dms_Specified_FinalYear,2)),0) | E55: If multi year ABC - uses dms_Specified_FinalYear
B56: dms_Model_Span | C56: =INDEX(dms_Model_Span_List,MATCH(dms_Model,dms_Model_List)) -> 5 | D56: =INDEX(dms_Model_Span_List,MATCH(dms_Model,dms_Model_List)) | E56: A result of 5 is used to signify that it is more than 1 year span
B57: dms_RYE_result | C57: =IF(dms_MultiYear_ResponseFlag="yes",dms_Specified_RYE,(IF(dms_Model_Span>1,dms_Reset_RYE,dms_CRY_RYE))) -> 2025 | D57: =IF(dms_MultiYear_ResponseFlag="yes",dms_Specified_RYE,(IF(dms_Model_Span>1,dms_Reset_RYE,dms_CRY_RYE))) | E57: Nested IF - feeds into dms_RYE
B58: dms_Reset_Span | C58: =IF(dms_Reset_RYE>0,CONCATENATE(FRCP_y1," to ",FRCP_final_year),0) -> 2020-21 to 2024-25 | D58: =IF(dms_Reset_RYE>0,CONCATENATE(FRCP_y1," to ",FRCP_final_year),0) | E58: Reset span of years as text
B59: dms_SpecifiedYear_Span | C59: =IF(dms_Specified_RYE>0,CONCATENATE(CRY," to ",dms_Specified_FinalYear),0) -> 0 | D59: =IF(dms_Specified_RYE>0,CONCATENATE(CRY," to ",dms_Specified_FinalYear),0) | E59: Multi year ABC span of years as text
B60: dms_Header_Span | C60: =IF(dms_MultiYear_Flag=1,dms_SpecifiedYear_Span,IF(dms_Model_Span>1,dms_y1&" - "&FRCP_final_year,CRY)) -> 2020-21 - 2024-25 | D60: =IF(dms_MultiYear_Flag=1,dms_SpecifiedYear_Span,IF(dms_Model_Span>1,dms_Reset_Span,CRY)) | E60: NESTED IF - for Sheet Headers
B61: ABC RINS THAT SPAN MULTIPLE YEARS
B62: This is a multi year ABC RIN? | C62: No
C63: =IF(dms_MultiYear_ResponseFlag="No",0,1) -> 0 | D63: dms_MultiYear_Flag | E63: This is set from the answer provided above
C64: =IF(dms_MultiYear_Flag=1,FRY,"not a Multiple year submission") -> not a Multiple year submission | D64: dms_Specified_FinalYear | E64: The result here is returned to dms_CRCP_FinalYear_Result if response to Q in C73 is "yes" and dms_MultiYear_Flag is set to 1
B65: Start year for 5.2 in Multi year ABC RINS | C65: =IFERROR(IF(dms_MultiYear_Flag=1,FRY,CRY),"not an ABC") -> 2020-21 | D65: dms_0502_Inst_Year | E65: =IF(dms_MultiYear_Flag=1,FRY,CRY) | G65: For single year RINS this is CRY - multi year RINS need to start a the end of the span of years (ie. FRY)
B66: WHAT IS THE RYE?
B67: Reg Period Lengths
B68: PRCP length in years | C68: =INDEX(dms_PRCPlength_List,MATCH(dms_TradingName,dms_TradingName_List)) -> 5 | D68: dms_PRCPlength_Num | E68: =INDEX(dms_PRCPlength_List,MATCH(dms_TradingName,dms_TradingName_List))
B69: CRCP length in years | C69: =INDEX(dms_CRCPlength_List,MATCH(dms_TradingName,dms_TradingName_List)) -> 5 | D69: dms_CRCPlength_Num | E69: =INDEX(dms_CRCPlength_List,MATCH(dms_TradingName,dms_TradingName_List))
B70: FRCP length in years | C70: =INDEX(dms_FRCPlength_List,MATCH(dms_TradingName,dms_TradingName_List)) -> 5 | D70: dms_FRCPlength_Num | E70: =INDEX(dms_FRCPlength_List,MATCH(dms_TradingName,dms_TradingName_List))
B71: Single year RIN?
B72: Single Year ABC RIN ? | C72: =IF(dms_Model="EB",1,0) -> 0 | D72: dms_EB
C73: =IF(dms_Model="CA",1,0) -> 0 | D73: dms_CA | E73: =dms_SingleYear_Model
C74: =IF(dms_Model="ARR",1,0) -> 0 | D74: dms_ARR
B75: Is this a single Year ABC RIN? | C75: =IF(SUM(dms_SingleYear_Model)=1,"yes","no") -> no | D75: dms_SingleYearModel | E75: =IF(SUM(dms_SingleYear_Model)=1,"yes","no")
B76: Single Year Final Year Result | C76: =IF(AND(dms_SingleYearModel="yes",dms_MultiYear_Flag=0),CRY,0) -> 0 | D76: dms_SingleYear_FinalYear_Result | E76: =IFERROR(IF(SUM(dms_SingleYear_Model)<>0,(INDIRECT(dms_SingleYear_FinalYear_Ref)),"not a single year RIN"),"CRY not present")
B77: Multi year RIN?
B79: Multi Year Reset/Model? | C79: =IF(dms_Model_Span>1,"yes","no") -> yes
B80: Final year result for Reset/Model | C80: =IF(dms_Model_Span>1,dms_Reset_final_year,0) -> 2024-25 | D80: dms_MultiYear_FinalYear_Result | E80: dms_CRCP_FinalYear_Result
B82: Multi Year ABC RIN? | C82: =IF(dms_MultiYear_Flag=1,"yes","no") -> no | D82: dms_MultiYear_ABC_RIN
B83: Final year result for ABC multi year | C83: =IF(dms_MultiYear_Flag=1,C50,0) -> 0
B85: EB RINS
B86: Calendar Year for table 3.6 data | C86: =IFERROR(IF(dms_Segment="Transmission",dms_Cal_Year_B4_CRY,CRY),"CRY not present") -> 2020 | D86: dms_0306_Year | E86: =IF(dms_Segment="Transmission",dms_Cal_Year_B4_CRY,CRY)
B87: CA RINS
B88: Find how many rows in tables 6.3 sustained interruptions? | E88: dms_060301_MaxRows only returns a valid value when cover sheet is attached to a CA file
C89: =IF(dms_Model<>"CA","not a CA","Is a CA") -> not a CA | E89: =IF(dms_Model<>"CA","not a CA","Is a CA")
B90: dms_060301_Avg_Duration_Sustained_Int_Values present? | C90: =IFERROR(IF(INDEX(dms_060301_Avg_Duration_Sustained_Int_Values,1,1)<>"","yes","no"),"no") -> no | D90: dms_060301_checkvalue | E90: =IFERROR(IF(INDEX(dms_060301_Avg_Duration_Sustained_Int_Values,1,1)<>"","yes","no"),"no")
C91: =IF(AND(dms_Model="CA",(dms_060301_checkvalue="no")),"error - NR not present","no errors") -> no errors | E91: =IF(AND(dms_Model="CA",(dms_060301_checkvalue="no")),"error - NR not present","no errors")
B92: Table 6.3.1 - last row reference | C92: =IFERROR(IF(dms_Model="CA",LOOKUP(2,1/(dms_060301_Avg_Duration_Sustained_Int_Values<>""),(ROW(dms_060301_Avg_Duration_Sustained_Int_Values))),"not a CA"),"6.3 not present") -> not a CA | D92: dms_060301_LastRow | E92: =IFERROR(IF(dms_Model="CA",LOOKUP(2,1/(dms_060301_Avg_Duration_Sustained_Int_Values<>""),(ROW(dms_060301_Avg_Duration_Sustained_Int_Values))),"not a CA"),"6.3 not present")
B93: Table 6.3.1 - max number rows | C93: =IFERROR(IF(dms_Model="CA",(dms_060301_LastRow-15),"not a CA"),"error") -> not a CA | D93: dms_060301_MaxRows | E93: =IFERROR(IF(dms_Model="CA",(dms_060301_LastRow-15),"not a CA"),"error")
B94: Table 6.6.3 - Public lighting repair - no. business days | C94: =INDEX(dms_663_List,MATCH(dms_TradingName,dms_TradingName_List)) -> x | D94: dms_663 | E94: =INDEX(dms_663_List,MATCH(dms_TradingName,dms_TradingName_List))
B95: ARR or RESET RINS
B96: How many rows in tables 6.1 or 6.7? (leap year?) | C96: insert dms_LeapYear NR if required | E96: 'dms_LeapYear is used to determine dms_060701_Max_Rows BUT it is only found on worksheet 6.1 or 6.7 and the date value in the cell is used to determine whether it is a leap year
B97: Is dms_LeapYear named range present? | C97: =IFERROR(IF(dms_LeapYear,"yes"),"no") -> no
B98: Table 6.7.1 - includes a leap year? | C98: =IFERROR(IF(MONTH(DATE(YEAR(dms_LeapYear),2,29))=2,"is a leap year","not a leap year"), "dms_LeapYear not present") -> dms_LeapYear not present | D98: dms_LeapYear_Result | E98: =IFERROR(IF(MONTH(DATE(YEAR(dms_LeapYear),2,29))=2,"is a leap year","not a leap year"),"dms_LeapYear not present")
B99: MaxRows if Reset and leap year | C99: =IF(dms_LeapYear_Result="is a leap year",1827,1826) -> 1826 | D99: dms_060701_Reset_MaxRows | E99: =IF(dms_LeapYear_Result="is a leap year",1827,1826) | H99: number of days present in Reset RIN table
B100: MaxRows if ARR and leap year | C100: =IF(dms_LeapYear_Result="is a leap year",366,365) -> 365 | D100: dms_060701_ARR_MaxRows | E100: =IF(dms_LeapYear_Result="is a leap year",366,365) | H100: number of days present in ARR RIN table
B101: Table 6.7.1 - Max Rows (leap year/ non leap year) | C101: =IF(dms_Model="ARR",dms_060701_ARR_MaxRows,IF(dms_Model="Reset",dms_060701_Reset_MaxRows,"not a relevant RIN type")) -> not a relevant RIN type | D101: dms_060701_MaxRows | E101: =IF(dms_Model="ARR",dms_060701_ARR_MaxRows,IF(dms_Model="Reset",dms_060701_Reset_MaxRows,"not a relevant RIN type"))
B102: How many columns in 6.7? (4 or 5 feeder categories) | C102: =IF(dms_FifthFeeder_flag_NSP="NO","This NSP has only 4 feeder categories","This NSP has 5 feeder categories") -> This NSP has only 4 feeder categories
B103: Table 6.7.1 - Last column (# of feeder categories > 4) | C103: =IF(dms_FifthFeeder_flag_NSP="NO",10,12) -> 10 | D103: dms_060701_MaxCols | E103: =IF(dms_FifthFeeder_flag_NSP="NO",8,10)
B104: Table 6.7.1 - Number of offset rows | C104: =IF(dms_Model="ARR",15,9) -> 9 | D104: dms_060701_OffsetRows | E104: =IF(dms_Model="ARR",15,9)
B105: Start date for telephone answering in 6.1 or 6.7? | E105: Using 060101 as naming standard not 060701 for start dates
B106: Table 6.1.1 and 6.7.1 - Start Date as Text | C106: =IF(dms_SingleYearModel="yes",(CONCATENATE(IF(LEN(CRY)=4,"1-Jan-","1-Jul-"),LEFT(CRY,4))),(CONCATENATE(IF(LEN(PRCP_y4)=4,"1-Jan-","1-Jul-"),LEFT(PRCP_y4,4)))) -> 1-Jul-2013 | D106: dms_060101_StartDateTxt | E106: =IF(SUM(dms_SingleYear_Model)>1,(CONCATENATE(IF(LEN(CRY)=4,"1-Jan-","1-Jul-"),LEFT(CRY,4))),(CONCATENATE(IF(LEN(CRCP_y4)=4,"1-Jan-","1-Jul-"),LEFT(CRCP_y4,4))))
B107: Table 6.1.1 and 6.7.1 - Start Date as Date Value | C107: =DATEVALUE(dms_060701_StartDateTxt) -> 41456 | D107: dms_060101_StartDateVal | E107: =DATEVALUE(dms_060701_StartDateTxt)
B108: ARRs
B109: How many rows in table 6.8? | C109: insert dms_060801_StartCell NR if required | E109: dms_060801_StartCell is only found on worksheet 6.8 and is used to determine the starting date for the date range
B110: Is dms_060801_StartCell named range present? | C110: yes | E110: =IFERROR(IF((ROW(dms_060801_StartCell)-1)=1,"yes","yes"),"no")
B111: Table 6.8 - Number of offset rows | C111: 12 | D111: dms_0608_OffsetRows | E111: =IFERROR(IF(dms_Model="ARR",(ROW(dms_060801_StartCell)-1),"not an ARR"),"6.8 error")
B112: Table 6.8 - Last row | C112: 0 | D112: dms_0608_LastRow | E112: =IFERROR(IF(dms_060801_StartCell<>"",IF(dms_Model="ARR",(LOOKUP(2,1/(dms_060801_01_Values<>""),(ROW(dms_060801_01_Values)))),"not an ARR"),0),"0")
B113: Table 6.8 - MaxRows | C113: =IFERROR(IF(dms_Model="ARR",(MAX(0,dms_0608_LastRow-dms_0608_OffsetRows)),"not an ARR"),"0") -> not an ARR | D113: dms_060801_MaxRows | E113: =IFERROR(IF(dms_Model="ARR",(MAX(0,dms_0608_LastRow-dms_0608_OffsetRows)),"not an ARR"),"0")
B114: TNSP RESET RINS
B115: Table 7.9.4 only appears in TNSPs Reset RIN
B116: Table 7.9.4 - first year | C116: =LEFT(PRCP_y3,4) -> 2012 | D116: dms_070904_Start_Year | E116: =LEFT(PRCP_y3,4)
B118: MISC
B119: Distribution Determination Reference | C119: =INDEX(dms_DeterminationRef_List,MATCH(dms_TradingName,dms_TradingName_List)) -> 0 | D119: dms_DeterminationRef
B120: Public lighting NSP? | C120: =INDEX(dms_Public_Lighting_List,MATCH(dms_TradingName,dms_TradingName_List)) -> NO | D120: dms_Public_Lighting | E120: =INDEX(dms_Public_Lighting_List,MATCH(dms_TradingName,dms_TradingName_List))
B121: CBD Feeder for this business | C121: =INDEX(dms_CBD_flag,MATCH(dms_TradingName,dms_TradingName_List)) -> NO | D121: dms_CBD_flag_NSP
B122: Urban Feeder for this business | C122: =INDEX(dms_Urban_flag,MATCH(dms_TradingName,dms_TradingName_List)) -> NO | D122: dms_Urban_flag_NSP
B123: Short rural Feeder for this business | C123: =INDEX(dms_ShortRural_flag,MATCH(dms_TradingName,dms_TradingName_List)) -> NO | D123: dms_ShortRural_flag_NSP
B124: Long rural Feeder for this business | C124: =INDEX(dms_LongRural_flag,MATCH(dms_TradingName,dms_TradingName_List)) -> NO | D124: dms_LongRural_flag_NSP
B125: Fifth Feeder Category (eg. TasNetworks (D)) | C125: =INDEX(dms_FeederType_5_flag,MATCH(dms_TradingName,dms_TradingName_List)) -> NO | D125: dms_FifthFeeder_flag_NSP | E125: =INDEX(dms_FeederType_5_flag,MATCH(dms_TradingName,dms_TradingName_List))
B127: DISCARD FILES
B128: discard this record? | C128: NO | D128: dms_DISCARD | E128: If record is to be discarded from DB set this flag to YES
B130: SUBSET FILES
B131: Is this Submission File a Subset File | C131: NO | D131: dms_Partial
B134: REGULATORY YEARS FOR MULTI RYE SUBMISSIONS
B135: Multiple RYE flag | C135: NO | D135: dms_Multi_RYE_flag
C136: Manually specify RYE | D136: Named ranges to apply
C137: 2013 | D137: dms_RYE_01
C138: 2014 | D138: dms_RYE_02
C139: 2015 | D139: dms_RYE_03
C140: 2016 | D140: dms_RYE_04
C141: 2017 | D141: dms_RYE_05
C142: 2018 | D142: dms_RYE_06
C143: 2019 | D143: dms_RYE_07
C144: 2020 | D144: dms_RYE_08
C145: 2021 | D145: dms_RYE_09

Sheet Business & other details (hidden)
V1: =INDEX(dms_Worksheet_List,MATCH(dms_Model,dms_Model_List)) -> POST TAX REVENUE MODEL
V2: =INDEX(dms_TradingNameFull_List,MATCH(dms_TradingName,dms_TradingName_List)) -> APA VTS Australia (Operations) Pty Ltd
V3: =dms_Header_Span -> 2020-21 - 2024-25
V4: BUSINESS & OTHER DETAILS
V6: INSTRUCTIONS
V7: Complete the following business details regulatory template before entering data or values in any other regulatory template. This regulatory template is linked to other cells within the spreadsheet and automatically generates column headings and conditional formatting to distinguish business specific input and non-input cells.
Q9: SUBMISSION PARTICULARS INPUT SHEET
V12: ENTITY DETAILS
V14: Business Name
V16: Short name | AL16: ='DMS input'!C14 -> APA VTS
V17: ACN/ABN | AL17: =INDEX(dms_ABN_List,MATCH(dms_TradingName,dms_TradingName_List)) -> 65083009
V21: Business Address | BQ21: Postal Address
V23: Address 1 | AL23: =INDEX(dms_Addr1_List,MATCH(dms_TradingName,dms_TradingName_List)) -> Level 19, HSBC Building | BI23: Address 1 | BQ23: =INDEX(dms_PAddr1_List,MATCH(dms_TradingName,dms_TradingName_List)) -> PO Box R41
V24: Address 2 | AL24: =IF(ISBLANK(INDEX(dms_Addr2_List,MATCH(dms_TradingName,dms_TradingName_List))),"",(INDEX(dms_Addr2_List,MATCH(dms_TradingName,dms_TradingName_List)))) -> 580 George Street | BI24: Address 2 | BQ24: =IF(ISBLANK(INDEX(dms_PAddr2_List,MATCH(dms_TradingName,dms_TradingName_List))),"",(INDEX(dms_PAddr2_List,MATCH(dms_TradingName,dms_TradingName_List)))) -> 
V25: Suburb | AL25: =INDEX(dms_Suburb_List,MATCH(dms_TradingName,dms_TradingName_List)) -> SYDNEY | BI25: Suburb | BQ25: =INDEX(dms_PSuburb_List,MATCH(dms_TradingName,dms_TradingName_List)) -> ROYAL EXCHANGE
V26: State | AL26: =INDEX(dms_State_List,MATCH(dms_TradingName,dms_TradingName_List)) -> NSW | AV26: Post code | BI26: State | BQ26: =INDEX(dms_PState_List,MATCH(dms_TradingName,dms_TradingName_List)) -> NSW | CA26: Post code
BA28: `
V30: Contact Names
V32: Name | AL32: -- enter name -- | BI32: Name | BQ32: -- enter name --
V33: Phone | AL33: -- enter phone number -- | BI33: Phone | BQ33: -- enter phone number --
V34: Email | AL34: -- enter email address -- | BI34: Email | BQ34: -- enter email address --
Q39: REGULATORY CONTROL PERIODS
Z42: Forthcoming period | AL42: 2020-21 | AU42: =FRCP_y2 -> 2021-22 | BD42: =FRCP_y3 -> 2022-23 | BM42: =FRCP_y4 -> 2023-24 | BV42: =FRCP_y5 -> 2024-25
AL43: =FRCP_y6 -> 2025-26 | AU43: =FRCP_y7 -> 2026-27 | BD43: =FRCP_y8 -> 2027-28 | BM43: =FRCP_y9 -> 2028-29 | BV43: =FRCP_y10 -> 2029-30
AL44: =FRCP_y11 -> 2030-31 | AU44: =FRCP_y12 -> 2031-32 | BD44: =FRCP_y13 -> 2032-33 | BM44: =FRCP_y14 -> 2033-34 | BV44: =FRCP_y15 -> 2034-35
X46: RESETS | Z46: Current period | AL46: =CRCP_y1 -> 2015-16 | AU46: =CRCP_y2 -> 2016-17 | BD46: =CRCP_y3 -> 2017-18 | BM46: =CRCP_y4 -> 2018-19 | BV46: =CRCP_y5 -> 2019-20
AL47: =CRCP_y6 -> 2020-21 | AU47: =CRCP_y7 -> 2021-22 | BD47: =CRCP_y8 -> 2022-23 | BM47: =CRCP_y9 -> 2023-24 | BV47: =CRCP_y10 -> 2024-25
AL48: =CRCP_y11 -> 2025-26 | AU48: =CRCP_y12 -> 2026-27 | BD48: =CRCP_y13 -> 2027-28 | BM48: =CRCP_y14 -> 2028-29 | BV48: =CRCP_y15 -> 2029-30
Z50: Previous period | AL50: =PRCP_y1 -> 2010-11 | AU50: =PRCP_y2 -> 2011-12 | BD50: =PRCP_y3 -> 2012-13 | BM50: =PRCP_y4 -> 2013-14 | BV50: =PRCP_y5 -> 2014-15
AL51: =PRCP_y6 -> 2015-16 | AU51: =PRCP_y7 -> 2016-17 | BD51: =PRCP_y8 -> 2017-18 | BM51: =PRCP_y9 -> 2018-19 | BV51: =PRCP_y10 -> 2019-20
AL52: =PRCP_y11 -> 2020-21 | AU52: =PRCP_y12 -> 2021-22 | BD52: =PRCP_y13 -> 2022-23 | BM52: =PRCP_y14 -> 2023-24 | BV52: =PRCP_y15 -> 2024-25
Z54: Commencing year | AL54: 2020-21
X55: ANNUAL RINS
Z56: Final year | AL56: 2020-21
Q60: SUBMISSION DETAILS
Z62: RIN type | AL62: =INDIRECT(dms_Model) -> Post Tax Revenue Model
Z64: Source | AL64: =dms_InputSource -> Final decision
X66: THIS FILE | Z66: Data Quality | AL66: Consolidated
Z68: Confidentiality Status | AL68: Public
Z70: Amended RIN Amendment Reason | AL70: .
Z74: Submission Date | AL74: dd/mm/yy | BD74: Please enter date this file submitted to AER

Sheet Intro
G2: Gas Transmission Service Provider
H3: Post-Tax Revenue Model
K4: Version: | L4: 2.1
K5: Date: | L5: May 2022
B8: Introduction | J8: Gas Transmission Model
C13: This model illustrates the basic elements of the AER's building block calculation and determines the forecast revenue for a gas transmission service provider's access arrangement period.
C14: Building block revenues and cash flows are modelled in nominal terms unless specified otherwise.
C16: INSTRUCTIONS FOR USE
C17: The full PTRM handbook is available on the AER website at https://www.aer.gov.au/node/74037
C19: 1. Prior to the commencement of the access arrangement period
C21: 1a. Fill out input cells on the 'DMS Input' sheet. These input cells are highlighted blue.
C22: This provides information on the service provider submitting the PTRM and the context for the PTRM preparation.
C23: This information also controls the automatic import of the PTRM into the AER's Data Management System (DMS).
C25: 1b. Fill out input cells on the 'PTRM Input' sheet. These input cells are highlighted blue.
C26: This provides the data for the PTRM calculations.
C27: In general, input expenditure data should be valued in real dollar terms of the year indicated, as at the end of that year.
C28: Units and basis for entry are specified where required for each data table.
C29: Review any cautions (which are generated based on data entered) before continuing.
C31: 1c. Determine the forecast revenue (smoothed revenue) using the 'Smoothed revenue' sheet
C32: This sheet provides input cells for smoothed revenue, which must be set such that the NPV of annual forecast (smoothed) revenue is equal to the NPV of the annual total (unsmoothed) revenue for that period.
C33: Smoothed revenue for the period are to be determined in an external tariff model and input into the forecast revenue cells.
C34: Macro buttons are located below each year's smoothed revenue which should be used to goal seek a specific year to equate the NPVs of smoothed and unsmoothed revenues.
C35: The default smoothing macro option is available, which will automatically calculate a revenue profile based on a revenue cap formula.
C37: 2. Within the access arrangement period when updating the annual return on debt
C39: 2a. Update input cells on the 'DMS Input' sheet. These input cells are highlighted blue.
C40: Check that the contact details are still current and describe the new amendment.
C42: 2b. Update input cells on the 'PTRM Input' sheet. These input cells are highlighted blue.
C43: In general, the only row that should be changed is the Trailing Average Portfolio Return on Debt (row 487).
C44: The basis for updating the annual return on debt will be in accordance with the relevant regulatory decision prior to the commencement of the period.
C46: 2c. Determine the maximum allowed revenue (smoothed revenue) using the 'Smoothed revenue' sheet
C47: Indicate the year of the annual debt update (cell F21) to ensure the correct content-sensitive cautions are displayed.
C48: Enter new smoothed revenue for this year (and potentially later years within the access arrangement period) and use the goal seek macro button(s) in order to equate the NPVs of smoothed and unsmoothed revenues.
C49: Note that smoothed revenue for earlier years within the access arrangement period should not be changed.
C52: VERSION RECORD
C54: Version | D54: Date | F54: Description
C55: 1 | D55: April 2020 | F55: Initial model
C57: 2 | D57: April 2021 | F57: Applied inflation review final position for calculation of expected inflation
C59: 2.1 | D59: May 2022 | F59: Fixed error in 'PTRM input' sheet for expected inflation formula reference related to access arrangement period > 5 years (cells L481:P481)

Sheet DMS input
B2: =$C$16&" - DMS Input"&" - TNSP PTRM - version "&Intro!$L$4 -> APA VTS - DMS Input - TNSP PTRM - version 2.1 | G2: Input cells are in blue
B6: This sheet requests information that allows the AER to automatically import the PTRM into our data management system (DMS).
B7: This sheet's metadata relates to the business and context for the PTRM (rather than the PTRM itself).
B8: Only change blue input cells. Some rows are hidden. To facilitate the automatic import, please do not delete or add rows on this sheet.
B9: This hidden data is automatically populated based on data entered on the PTRM input sheet.
B10: Throughout the rest of the workbook, defined name ranges are used to identify data that is imported into the DMS.
B12: Entity details
B14: Trading name | C14: APA VTS
B15: ACN / ABN | C15: =INDEX(dms_ABN_List,MATCH(dms_TradingName,dms_TradingName_List)) -> 65083009
B16: Business short name | C16: APA VTS
B19: Regulatory process details
B32: Source | C32: Final decision
B33: Amended model submission - reason
B34: Form of control | C34: Revenue yield

Sheet AER amendment
B1: Sheet | C1: Cell | D1: Comments
A2: 1 | B2: PTRM input | C2: J7 & K7 | D2: Removed the proposed adjustment for Linepacks and Spares
A3: 2 | B3: PTRM input | C3: J12 & K12 | D3: Removed the proposd adjustment for Linepacks and Spares
A4: 3 | B4: PTRM input | C4: J7:J18, K7:K18, L7:18 | D4: Updated opening capital base asset values and asset remaining lives
A5: 4 | B5: PTRM input | C5: Rows 61:73, 223:235, 282, 285 | D5: Updated forecast capex
A6: 5 | B6: PTRM input | C6: Rows 439:442 | D6: Updated forecast opex
A7: 6 | B7: PTRM input | C7: Row 448 | D7: Updated debt raising cost
A8: 7 | B8: PTRM input | C8: Row 453 | D8: Updated EBSS
A9: 8 | B9: PTRM input | C9: G481, H481 | D9: Updated 2023 and 2024 forecast inflation
A10: 9 | B10: PTRM input | C10: G491 | D10: Updated return on equity
A11: 10 | B11: PTRM input | C11: Row 496 | D11: Updated return on debt
A12: 11 | B12: PTRM input | C12: G507 | D12: Updated debt raising cost rate
A13: 12 | B13: X factors | C13: G16:K16 | D13: Updated the smoothed revenues based on tariff model outputs

Sheet RAB_Model_BO
B1: RAB Model Inputs | AZ1: Tab General_BA | BB1: General Assumptions
B2: VTS Tariff Model | G2: MORE TARIFF MODEL INPUTS TO THE RIGHT ---> | W2: Required Input from PTRM and EBSS, inputs required in White Blue Text Cells | BB2: VTS Tariff Model | BK2: Inputs to be updated
B3: Go to Table of Contents | BB3: Go to Table of Contents
A4: é | B4: ç | C4: è | J4: 2023 | K4: 2024 | L4: 2025 | M4: 2026 | N4: 2027 | W4: 2023 | X4: =W4+1 -> 2024 | Y4: =X4+1 -> 2025 | Z4: =Y4+1 -> 2026 | AA4: =Z4+1 -> 2027 | BA4: é | BB4: ç | BC4: è
V5: RoA | W5: =SUM(W10:W17)-(Assets!G1554*1000000) -> 0 | X5: =SUM(X10:X17)-(Assets!H1554*1000000) -> 0 | Y5: =SUM(Y10:Y17)-(Assets!I1554*1000000) -> 0 | Z5: =SUM(Z10:Z17)-(Assets!J1554*1000000) -> 0 | AA5: =SUM(AA10:AA17)-(Assets!K1554*1000000) -> 0 | BJ5: Calendar Year
C6: RAB Model Inputs | P6: RAB Model Inputs | V6: Dep | W6: =SUM(W25:W32)+(Assets!G1555*1000000) -> 0 | X6: =SUM(X25:X32)+(Assets!H1555*1000000) -> 0 | Y6: =SUM(Y25:Y32)+(Assets!I1555*1000000) -> 0 | Z6: =SUM(Z25:Z32)+(Assets!J1555*1000000) -> 0 | AA6: =SUM(AA25:AA32)+(Assets!K1555*1000000) -> 0 | BJ6: 2022 | BK6: 2023 | BL6: 2024 | BM6: 2025 | BN6: 2026 | BO6: 2027
J7: EBSS Numbers need to be updated, input to be provided (Scotts Team) | BC7: Inflation Assumption over 5 years | BH7: =+f -> 0.03246990753 | BJ7: 0.08 | BK7: 0.0475 | BL7: 0.0325 | BM7: 0.03 | BN7: 0.0275 | BO7: 0.025
C8: Return on Asset | P8: Return on Asset
BC9: Peak Day Calculation
D10: Pipelines | J10: =W10-J57-J60-J66-J69 -> 48835340.49 | K10: =X10-K57-K60-K66-K69 -> 54296622.89 | L10: =Y10-L57-L60-L66-L69 -> 56182837.5 | M10: =Z10-M57-M60-M66-M69 -> 56947288.53 | N10: =AA10-N57-N60-N66-N69 -> 57639825.18 | Q10: Pipelines | W10: =+(Assets!G$1457)*1000000 -> 48835340.49 | X10: =+(Assets!H$1457)*1000000 -> 54296622.89 | Y10: =+(Assets!I$1457)*1000000 -> 56182837.5 | Z10: =+(Assets!J$1457)*1000000 -> 56947288.53 | AA10: =+(Assets!K$1457)*1000000 -> 57639825.18
D11: City Gates & Field Regulators | J11: =W11 -> 3453454.196 | K11: =X11 -> 3627143.754 | L11: =Y11 -> 3602435.02 | M11: =Z11 -> 3565924.464 | N11: =AA11 -> 3516654.325 | Q11: City Gates & Field Regulators | W11: =+Assets!G$1473*1000000 -> 3453454.196 | X11: =+Assets!H$1473*1000000 -> 3627143.754 | Y11: =+Assets!I$1473*1000000 -> 3602435.02 | Z11: =+Assets!J$1473*1000000 -> 3565924.464 | AA11: =+Assets!K$1473*1000000 -> 3516654.325 | BD11: Peak | BH11: 0.525
D12: Compressors | J12: =W12-J63 -> 12184447.3 | K12: =X12-K63 -> 14741024.77 | L12: =Y12-L63 -> 14827689.7 | M12: =Z12-M63 -> 14812699.89 | N12: =AA12-N63 -> 14757877.32 | Q12: Compressors | W12: =+(Assets!G$1465+Assets!G$1537)*1000000 -> 12184447.3 | X12: =+(Assets!H$1465+Assets!H$1537)*1000000 -> 14741024.77 | Y12: =+(Assets!I$1465+Assets!I$1537)*1000000 -> 14827689.7 | Z12: =+(Assets!J$1465+Assets!J$1537)*1000000 -> 14812699.89 | AA12: =+(Assets!K$1465+Assets!K$1537)*1000000 -> 14757877.32 | BD12: Annual | BH12: 0.475
D13: Odourant Plants | J13: =W13 -> 12509.38341 | K13: 12067.19971 | L13: 11550.32466 | M13: 10953.30939 | N13: 10270.39539 | Q13: Odourant Plants | W13: =+Assets!G$1481*1000000 -> 12509.38341 | X13: =+Assets!H$1481*1000000 -> 12067.19971 | Y13: =+Assets!I$1481*1000000 -> 11550.32466 | Z13: =+Assets!J$1481*1000000 -> 10953.30939 | AA13: =+Assets!K$1481*1000000 -> 10270.39539
D14: Gas Quality | J14: 83368.83108 | K14: 84877.8911 | L14: 78705.47847 | M14: 81887.34693 | N14: 73465.22994 | Q14: Gas Quality | W14: =+Assets!G$1489*1000000 -> 83368.83108 | X14: =+Assets!H$1489*1000000 -> 84877.8911 | Y14: =+Assets!I$1489*1000000 -> 78705.47847 | Z14: =+Assets!J$1489*1000000 -> 81887.34693 | AA14: =+Assets!K$1489*1000000 -> 73465.22994 | BC14: WACC (Nominal) : | BH14: =+vanilla01 -> 0.05548801785 | BI14: 0.05749994962
D15: Other | J15: 3129807.227 | K15: 3170902.354 | L15: 3653514.686 | M15: 3821087.166 | N15: 3806924.551 | Q15: Other | W15: =+(Assets!G$1497+Assets!G$1521+Assets!G1529)*1000000 -> 3129807.227 | X15: =+(Assets!H$1497+Assets!H$1521+Assets!H1529)*1000000 -> 3170902.354 | Y15: =+(Assets!I$1497+Assets!I$1521+Assets!I1529)*1000000 -> 3653514.686 | Z15: =+(Assets!J$1497+Assets!J$1521+Assets!J1529)*1000000 -> 3821087.166 | AA15: =+(Assets!K$1497+Assets!K$1521+Assets!K1529)*1000000 -> 3806924.551
D16: General Building | J16: 1954545.872 | K16: 2020388.043 | L16: 2077316.205 | M16: 2134568.195 | N16: 2192064.663 | Q16: General Building | W16: =+Assets!G$1505*1000000 -> 1954545.872 | X16: =+Assets!H$1505*1000000 -> 2020388.043 | Y16: =+Assets!I$1505*1000000 -> 2077316.205 | Z16: =+Assets!J$1505*1000000 -> 2134568.195 | AA16: =+Assets!K$1505*1000000 -> 2192064.663 | BC16: X-factor (1) : | BH16: 0 | BJ16: =+BK7 -> 0.0475
D17: General Land | J17: 414045.411 | K17: 434070.9755 | L17: 454960.4704 | M17: 476748.8865 | N17: 499472.5758 | Q17: General Land | W17: =+Assets!G$1513*1000000 -> 414045.411 | X17: =+Assets!H$1513*1000000 -> 434070.9755 | Y17: =+Assets!I$1513*1000000 -> 454960.4704 | Z17: =+Assets!J$1513*1000000 -> 476748.8865 | AA17: =+Assets!K$1513*1000000 -> 499472.5758 | BC17: X-factor (2) : | BH17: 0 | BJ17: =+BL7 -> 0.0325
D18: Equity Raising Costs | Q18: Equity Raising Costs | W18: =ROUND(SUM(W10:W17)/1000000,2)=ROUND(Assets!G1554,2) -> TRUE | X18: =ROUND(SUM(X10:X17)/1000000,2)=ROUND(Assets!H1554,2) -> TRUE | Y18: =ROUND(SUM(Y10:Y17)/1000000,2)=ROUND(Assets!I1554,2) -> TRUE | Z18: =ROUND(SUM(Z10:Z17)/1000000,2)=ROUND(Assets!J1554,2) -> TRUE | AA18: =ROUND(SUM(AA10:AA17)/1000000,2)=ROUND(Assets!K1554,2) -> TRUE
W19: =ROUND(SUM(W10:W17),2)=ROUND('X factors'!G31*1000000,2) -> TRUE | X19: =ROUND(SUM(X10:X17),2)=ROUND('X factors'!H31*1000000,2) -> TRUE | Y19: =ROUND(SUM(Y10:Y17),2)=ROUND('X factors'!I31*1000000,2) -> TRUE | Z19: =ROUND(SUM(Z10:Z17),2)=ROUND('X factors'!J31*1000000,2) -> TRUE | AA19: =ROUND(SUM(AA10:AA17),2)=ROUND('X factors'!K31*1000000,2) -> TRUE | AB19: Agrees to building blocks
BC20: Input Annual X-Factors | BL20: =+X_02_RevCap -> 0 | BM20: =+X_03_RevCap -> 0 | BN20: =+X_04_RevCap -> 0 | BO20: =+X_05_RevCap -> 0 | BQ20: For use in <Tariff Calc BO>
C21: Debt Raising Costs (amended) | J21: =W51 -> 652997.461 | K21: =X51 -> 719455.361 | L21: =Y51 -> 731329.7671 | M21: =Z51 -> 729138.3543 | N21: =AA51 -> 724229.7749 | P21: Debt Raising Costs | W21: =+'PTRM input'!G448*Assets!G7*1000000 -> 679495.8783 | X21: =+'PTRM input'!H448*Assets!H7*1000000 -> 748650.821 | Y21: =+'PTRM input'!I448*Assets!I7*1000000 -> 761007.1229 | Z21: =+'PTRM input'!J448*Assets!J7*1000000 -> 758726.7766 | AA21: =+'PTRM input'!K448*Assets!K7*1000000 -> 753618.9937
C23: Asset Regulatory Depreciation | P23: Asset Regulatory Depreciation
D25: Pipelines | J25: =W25-J58-J61-J67-J70 -> -2952823.199 | K25: =X25-K58-K61-K67-K70 -> 1993481.416 | L25: =Y25-L58-L61-L67-L70 -> 3179886.481 | M25: =Z25-M58-M61-M67-M70 -> 4425680.173 | N25: =AA25-N58-N61-N67-N70 -> 5751140.12 | Q25: Pipelines | W25: =-(Assets!G$1454)*1000000 -> -2952823.199 | X25: =-(Assets!H$1454)*1000000 -> 1993481.416 | Y25: =-(Assets!I$1454)*1000000 -> 3179886.481 | Z25: =-(Assets!J$1454)*1000000 -> 4425680.173 | AA25: =-(Assets!K$1454)*1000000 -> 5751140.12
D26: City Gates & Field Regulators | J26: =W26 -> 1158232.142 | K26: =X26 -> 1508805.171 | L26: =Y26 -> 1674883.264 | M26: =Z26 -> 1850284.629 | N26: =AA26 -> 2035443.861 | Q26: City Gates & Field Regulators | W26: =-Assets!G$1470*1000000 -> 1158232.142 | X26: =-Assets!H$1470*1000000 -> 1508805.171 | Y26: =-Assets!I$1470*1000000 -> 1674883.264 | Z26: =-Assets!J$1470*1000000 -> 1850284.629 | AA26: =-Assets!K$1470*1000000 -> 2035443.861
D27: Compressors | J27: =W27-J64 -> 1671369.93 | K27: =X27-K64 -> 4121727.074 | L27: =Y27-L64 -> 4668594.581 | M27: =Z27-M64 -> 5246246.949 | N27: =AA27-N64 -> 5857155.66 | Q27: Compressors | W27: =-(Assets!G$1462+Assets!G$1534)*1000000 -> 1671369.93 | X27: =-(Assets!H$1462+Assets!H$1534)*1000000 -> 4121727.074 | Y27: =-(Assets!I$1462+Assets!I$1534)*1000000 -> 4668594.581 | Z27: =-(Assets!J$1462+Assets!J$1534)*1000000 -> 5246246.949 | AA27: =-(Assets!K$1462+Assets!K$1534)*1000000 -> 5857155.66
D28: Odourant Plants | J28: =W28 -> 11266.41698 | K28: 12235.73938 | L28: 13256.13128 | M28: 14329.88716 | N28: 15459.39668 | Q28: Odourant Plants | W28: =-Assets!G$1478*1000000 -> 11266.41698 | X28: =-Assets!H$1478*1000000 -> 12235.73938 | Y28: =-Assets!I$1478*1000000 -> 13256.13128 | Z28: =-Assets!J$1478*1000000 -> 14329.88716 | AA28: =-Assets!K$1478*1000000 -> 15459.39668 | BB28: WACC Assumptions | BP28: Date | BQ28: Yields on Australian government bonds,
D29: Gas Quality | J29: 113187.4383 | K29: 130416.237 | L29: 140473.7051 | M29: 163435.2938 | N29: 175535.9543 | Q29: Gas Quality | W29: =-Assets!G$1486*1000000 -> 113187.4383 | X29: =-Assets!H$1486*1000000 -> 130416.237 | Y29: =-Assets!I$1486*1000000 -> 140473.7051 | Z29: =-Assets!J$1486*1000000 -> 163435.2938 | AA29: =-Assets!K$1486*1000000 -> 175535.9543 | BB29: VTS Tariff Model | BI29: Inputs to be Updated | BQ29: 10 years maturity:
D30: Other | J30: 12583764.52 | K30: 14891818.36 | L30: 18141789.32 | M30: 18615027.29 | N30: 7992828.969 | Q30: Other | W30: =-(Assets!G$1494+Assets!G$1518+Assets!G1526)*1000000 -> 12583764.52 | X30: =-(Assets!H$1494+Assets!H$1518+Assets!H1526)*1000000 -> 14891818.36 | Y30: =-(Assets!I$1494+Assets!I$1518+Assets!I1526)*1000000 -> 18141789.32 | Z30: =-(Assets!J$1494+Assets!J$1518+Assets!J1526)*1000000 -> 18615027.29 | AA30: =-(Assets!K$1494+Assets!K$1518+Assets!K1526)*1000000 -> 7992828.969 | BB30: Go to Table of Contents | BP30: 2021-09-01
D31: General Building | J31: -634520.4708 | K31: -459717.5626 | L31: -451765.3983 | M31: -442812.144 | N31: -432801.1731 | Q31: General Building | W31: =-Assets!G$1502*1000000 -> -634520.4708 | X31: =-Assets!H$1502*1000000 -> -459717.5626 | Y31: =-Assets!I$1502*1000000 -> -451765.3983 | Z31: =-Assets!J$1502*1000000 -> -442812.144 | AA31: =-Assets!K$1502*1000000 -> -432801.1731 | BA31: é | BB31: ç | BC31: è | BP31: 2021-09-02
D32: General Land | J32: -242286.8347 | K32: -250153.8658 | L32: -258276.3387 | M32: -266662.5475 | N32: -275321.0558 | Q32: General Land | W32: =-Assets!G$1510*1000000 -> -242286.8347 | X32: =-Assets!H$1510*1000000 -> -250153.8658 | Y32: =-Assets!I$1510*1000000 -> -258276.3387 | Z32: =-Assets!J$1510*1000000 -> -266662.5475 | AA32: =-Assets!K$1510*1000000 -> -275321.0558 | BP32: 2021-09-03
D33: Equity Raising Costs | Q33: Equity Raising Costs | W33: =-ROUND(SUM(W25:W32)/1000000,2)=ROUND(Assets!G1551,2) -> TRUE | X33: =-ROUND(SUM(X25:X32)/1000000,2)=ROUND(Assets!H1551,2) -> TRUE | Y33: =-ROUND(SUM(Y25:Y32)/1000000,2)=ROUND(Assets!I1551,2) -> TRUE | Z33: =-ROUND(SUM(Z25:Z32)/1000000,2)=ROUND(Assets!J1551,2) -> TRUE | AA33: =-ROUND(SUM(AA25:AA32)/1000000,2)=ROUND(Assets!K1551,2) -> TRUE | BC33: WACC Assumptions | BP33: 2021-09-06
W34: =ROUND(SUM(W25:W32),2)=ROUND('X factors'!G32*1000000,2) -> TRUE | X34: =ROUND(SUM(X25:X32),2)=ROUND('X factors'!H32*1000000,2) -> TRUE | Y34: =ROUND(SUM(Y25:Y32),2)=ROUND('X factors'!I32*1000000,2) -> TRUE | Z34: =ROUND(SUM(Z25:Z32),2)=ROUND('X factors'!J32*1000000,2) -> TRUE | AA34: =ROUND(SUM(AA25:AA32),2)=ROUND('X factors'!K32*1000000,2) -> TRUE | AB34: Agrees to Building blocks | BP34: 2021-09-07
C35: Tax Imputation (amended) | J35: =W52 -> 26500.41725 | K35: =X52 -> 29197.46002 | L35: =Y52 -> 29679.35579 | M35: =Z52 -> 29590.42229 | N35: =AA52 -> 29391.21875 | P35: Tax Allowance | W35: =+'X factors'!G$35*1000000 -> 0 | X35: =+'X factors'!H$35*1000000 -> 0 | Y35: =+'X factors'!I$35*1000000 -> 0 | Z35: =+'X factors'!J$35*1000000 -> 0 | AA35: =+'X factors'!K$35*1000000 -> 0 | BD35: Nominal Risk Free Rate (Rf) | BI35: =+BQ50 -> 0.03784432053 | BP35: 2021-09-08
P36: Note: the Total Opex includes EBSS and Other!!! | BD36: Inflation Rate | BI36: =+f -> 0.03246990753 | BP36: 2021-09-09
C37: Controllable O&M | J37: =W39 -> 38659067.48 | K37: =X39 -> 38672236.46 | L37: =Y39 -> 38861384.95 | M37: =Z39 -> 39010954.28 | N37: =AA39 -> 40133461.13 | P37: Total O&M incl. EBSS and Debt raising costs | W37: =W39+W41+W42+W47 -> 36076754.07 | X37: =X39+X41+X42+X47 -> 36495920.31 | Y37: =Y39+Y41+Y42+Y47 -> 36483310.03 | Z37: =Z39+Z41+Z42+Z47 -> 39971169.03 | AA37: =AA39+AA41+AA42+AA47 -> 44578026.97 | AF37: Controllable opex from PTRM ($m, nominal) | BD37: Cost of Debt Margin over rf | BI37: =+BI39-BI35 -> 0.005006162206 | BP37: 2021-09-10
AF38: =SUM('PTRM input'!G439:G441,'PTRM input'!G443)*Assets!G7 -> 38.65906748 | AG38: =SUM('PTRM input'!H439:H441,'PTRM input'!H443)*Assets!H7 -> 38.67223646 | AH38: =SUM('PTRM input'!I439:I441,'PTRM input'!I443)*Assets!I7 -> 38.86138495 | AI38: =SUM('PTRM input'!J439:J441,'PTRM input'!J443)*Assets!J7 -> 40.14729772 | AJ38: =SUM('PTRM input'!K439:K441,'PTRM input'!K443)*Assets!K7 -> 41.30670154 | BD38: Cost of raising debt | BI38: =+Drc -> 0.0008686416451 | BP38: 2021-09-13
D39: Step and Scope Change | H39: Not used | Q39: Controllable opex | W39: =(AF38+AF40)*1000000-W41-W42 -> 38659067.48 | X39: =(AG38+AG40)*1000000-X41-X42 -> 38672236.46 | Y39: =(AH38+AH40)*1000000-Y41-Y42 -> 38861384.95 | Z39: =(AI38+AI40)*1000000-Z41-Z42 -> 39010954.28 | AA39: =(AJ38+AJ40)*1000000-AA41-AA42 -> 40133461.13 | AF39: Opex allowance from PTRM ($m, nominal) | BD39: Nominal pre-tax cost of debt | BI39: =+WACC!G14 -> 0.04285048273 | BK39: Return on Debt | BP39: 2021-09-14
D40: Reset Costs | J40: =W41 -> 0 | K40: =X41 -> 0 | L40: =Y41 -> 0 | M40: =Z41 -> 1136343.442 | N40: =AA41 -> 1173240.409 | Q40: Step out and scope changes | AF40: ='PTRM input'!G442*Assets!G7 -> 0 | AG40: ='PTRM input'!H442*Assets!H7 -> 0 | AH40: ='PTRM input'!I442*Assets!I7 -> 0 | AI40: ='PTRM input'!J442*Assets!J7 -> 0 | AJ40: ='PTRM input'!K442*Assets!K7 -> 0 | BD40: Market Risk Premium | BI40: 0.061 | BJ40: AER Rate of Return Instrument | BP40: 2021-09-15
D41: LinePack | J41: =+W42 -> 0 | K41: =+X42 -> 0 | L41: =+Y42 -> 0 | M41: =+Z42 -> 0 | N41: =+AA42 -> 0 | Q41: Reset costs | X41: 0 | Y41: 0 | Z41: =AI49 -> 1136343.442 | AA41: =AJ49 -> 1173240.409 | AK41: Comments | BD41: Corporate Tax Rate | BI41: =+WACC!G13 -> 0.3 | BP41: 2021-09-16
Q42: Other allowances | W42: =+AF40*1000000 -> 0 | X42: =+AG40*1000000 -> 0 | Y42: =+AH40*1000000 -> 0 | Z42: =+AI40*1000000 -> 0 | AA42: =+AJ40*1000000 -> 0 | AE42: Real$'2022 | AF42: =W39/1000000/Assets!G$7 -> 37.4432874 | AG42: =X39/1000000/Assets!H$7 -> 36.27809581 | AH42: =Y39/1000000/Assets!I$7 -> 35.30905273 | AI42: =Z39/1000000/Assets!J$7 -> 34.33024984 | AJ42: =AA39/1000000/Assets!K$7 -> 34.20736349 | AK42: Net of EBSS and linepack | BD42: Effective Tax Rate for Equity (From Relevant Cash flows) | BI42: =+Te_Final -> 0.2708670502 | BP42: 2021-09-17
AE43: Corp Overheads | AF43: 6.985995387 | AG43: 7.012687349 | AH43: 7.014048694 | AI43: 7.285651822 | AJ43: 7.337741318 | AK43: As per initial proposal | BD43: Effective Tax Rate for Debt (Effective Debt Shield) | BI43: =+Td_Final -> 0.2920624555 | BP43: 2021-09-20
C44: Total Revenue | P44: Total Revenue | W44: =SUM(W10:W37) -> 118531958.6 | X44: =SUM(X10:X37) -> 137580281.6 | Y44: =SUM(Y10:Y37) -> 145242168.3 | Z44: =SUM(Z10:Z37) -> 152186583.1 | AA44: =SUM(AA10:AA37) -> 148947641.9 | AB44: =SUM(W44:AA44)-SUM('X factors'!G36:K36)*1000000 -> 0 | AE44: Allocated Costs | AF44: =AF42-AF43 -> 30.45729202 | AG44: =AG42-AG43 -> 29.26540847 | AH44: =AH42-AH43 -> 28.29500403 | AI44: =AI42-AI43 -> 27.04459802 | AJ44: =AJ42-AJ43 -> 26.86962217 | AK44: Change in Opex accounted in the allocations | BD44: Proportion of Franking Credits or Gamma | BI44: =+g -> 0.585 | BP44: 2021-09-21
D45: Check | W45: =SUM(W10:W37)-W44 -> 0 | X45: =SUM(X10:X37)-X44 -> 0 | Y45: =SUM(Y10:Y37)-Y44 -> 0 | Z45: =SUM(Z10:Z37)-Z44 -> 0 | AA45: =SUM(AA10:AA37)-AA44 -> 0 | BD45: LT Proportion of Equity Funding | BI45: =1-BI46 -> 0.4 | BP45: 2021-09-22
BD46: LT Proportion of Debt Funding | BI46: =+Dv -> 0.6 | BP46: 2021-09-23
C47: EBSS | J47: =W47 -> -2582313.414 | K47: =X47 -> -2176316.147 | L47: =Y47 -> -2378074.92 | M47: =Z47 -> -176128.6882 | N47: =AA47 -> 3271325.43 | P47: Benefit Sharing | W47: ='X factors'!G34*1000000 -> -2582313.414 | X47: ='X factors'!H34*1000000 -> -2176316.147 | Y47: ='X factors'!I34*1000000 -> -2378074.92 | Z47: ='X factors'!J34*1000000 -> -176128.6882 | AA47: ='X factors'!K34*1000000 -> 3271325.43 | AC47: =SUM(W47:AA47)=SUM('X factors'!G34:K34)*1000000 -> TRUE | BD47: Equity Beta | BI47: 0.6 | BJ47: AER Rate of Return Instrument | BP47: 2021-09-24
AE48: Access Arrangement costs (Real$'22) | AI48: 1000000 | AJ48: 1000000 | BP48: 2021-09-27
P49: Reassignment of Tax, Equity and debt raising costs | W49: =W35+W21+W18+W33 -> 679497.8783 | X49: =X35+X21+X18+X33 -> 748652.821 | Y49: =Y35+Y21+Y18+Y33 -> 761009.1229 | Z49: =Z35+Z21+Z18+Z33 -> 758728.7766 | AA49: =AA35+AA21+AA18+AA33 -> 753620.9937 | AE49: Access Arrangement costs ($nominal) | AI49: =+AI48*Assets!J7 -> 1136343.442 | AJ49: =+AJ48*Assets!K7 -> 1173240.409 | BP49: 2021-09-28
BP50: Average | BQ50: 0.03784432053
P51: Allocated to System Assets (in row 21) | T51: 0.961 | W51: =$T$51*W49 -> 652997.461 | X51: =$T$51*X49 -> 719455.361 | Y51: =$T$51*Y49 -> 731329.7671 | Z51: =$T$51*Z49 -> 729138.3543 | AA51: =$T$51*AA49 -> 724229.7749 | BP51: Reserve Bank of Australia, Table F2 Capital market yields – Government bonds, Series ID FCMYGBAG10D
P52: Allocated to Non-System assets (in row 35) | T52: =1-T51 -> 0.039 | W52: =$T$52*W49 -> 26500.41725 | X52: =$T$52*X49 -> 29197.46002 | Y52: =$T$52*Y49 -> 29679.35579 | Z52: =$T$52*Z49 -> 29590.42229 | AA52: =$T$52*AA49 -> 29391.21875
W54: =W44-W47 -> 121114272 | X54: =X44-X47 -> 139756597.7 | Y54: =Y44-Y47 -> 147620243.2 | Z54: =Z44-Z47 -> 152362711.8 | AA54: =AA44-AA47 -> 145676316.5
W57: =W44-'Revenue summary'!G$12*1000000 -> 0 | X57: =X44-'Revenue summary'!H$12*1000000 -> 0 | Y57: =Y44-'Revenue summary'!I$12*1000000 -> 0 | Z57: =Z44-'Revenue summary'!J$12*1000000 -> 0 | AA57: =AA44-'Revenue summary'!K$12*1000000 -> 0
V59: Unsmoothed revenue | W59: ='X factors'!G36*1000000 -> 118531958.6 | X59: ='X factors'!H36*1000000 -> 137580281.6 | Y59: ='X factors'!I36*1000000 -> 145242168.3 | Z59: ='X factors'!J36*1000000 -> 152186583.1 | AA59: ='X factors'!K36*1000000 -> 148947641.9

Sheet PTRM input
E2: ='DMS input'!$C$16&" - PTRM input"&" - TNSP PTRM - version "&Intro!$L$4 -> APA VTS - PTRM input - TNSP PTRM - version 2.1 | I2: Input cells are in blue | K2: 1
E5: ="Opening Capital Base and Opening Tax Asset Base for "&Q7&" ($m Nominal)" -> Opening Capital Base and Opening Tax Asset Base for 2023 ($m Nominal)
G6: Asset Class Name | J6: Opening Asset Value (Partially As Incurred) | K6: Opening Asset Value (As Commissioned) | L6: Average Remaining Life (Year) | M6: Standard Life (Year) | N6: Opening Tax Asset Value | O6: Average Tax Remaining Life (Year) | P6: Tax Standard Life (Year) | Q6: Base Regulatory Year | R6: Length of Access Arrangement Period (Year)
E7: Asset Class 1 | G7: Pipelines | J7: 880.106055 | K7: 744.5487419 | L7: 30 | M7: 30 | N7: 256.3672827 | O7: 14.47326655 | P7: 20 | Q7: 2023 | R7: 5
E8: Asset Class 2 | G8: Compressors | J8: 219.5869987 | K8: 157.4024154 | L8: 18.46460506 | M8: 30 | N8: 96.61881353 | O8: 11.20262016 | P8: 20
E9: Asset Class 3 | G9: City Gates & Field Regulators | J9: 62.23783674 | K9: 56.30066276 | L9: 18.28471649 | M9: 30 | N9: 25.73341455 | O9: 11.80284877 | P9: 20
E10: Asset Class 4 | G10: Odourant Plants | J10: 0.2254429677 | K10: 0.2254429677 | L10: 12.52321379 | M10: 30 | N10: 0.07075251692 | O10: 8.003248446 | P10: 20
E11: Asset Class 5 | G11: Gas Quality | J11: 1.502465475 | K11: 1.421975172 | L11: 9.064180055 | M11: 10 | N11: 2.075239274 | O11: 18.46182596 | P11: 20
E12: Asset Class 6 | G12: Other - short life | J12: 56.40510057 | K12: 53.51280225 | L12: 3.832775947 | M12: 5 | N12: 54.21991947 | O12: 5.742094661 | P12: 7.5
E13: Asset Class 7 | G13: General Building | J13: 35.22464756 | K13: 24.11196382 | L13: 48.88819919 | M13: 60 | N13: 20.67205432 | O13: 52.91483379 | P13: 60
E14: Asset Class 8 | G14: General Land | J14: 7.461888657 | K14: 7.461888657 | L14: n/a | M14: n/a | N14: 4.503920735 | O14: n/a | P14: n/a
E15: Asset Class 9 | G15: Integrity Inspections | J15: 0 | K15: 0 | L15: n/a | M15: 10 | N15: 0 | O15: n/a | P15: n/a
E16: Asset Class 10 | J16: 0 | K16: 0 | N16: 0
E17: Asset Class 11 | J17: 0 | K17: 0 | N17: 0
E18: Asset Class 12 | J18: 0 | K18: 0 | N18: 0
E19: Asset Class 13 | G19: Other - long life | M19: 15 | O19: n/a | P19: 15
E20: Asset Class 14
E21: Asset Class 15
E22: Asset Class 16
E23: Asset Class 17
E24: Asset Class 18
E25: Asset Class 19
E26: Asset Class 20
E27: Asset Class 21
E28: Asset Class 22
E29: Asset Class 23
E30: Asset Class 24
E31: Asset Class 25
E32: Asset Class 26
E33: Asset Class 27
E34: Asset Class 28
E35: Asset Class 29
E36: Asset Class 30
E37: Asset Class 31
E38: Asset Class 32
E39: Asset Class 33
E40: Asset Class 34
E41: Asset Class 35
E42: Asset Class 36
E43: Asset Class 37
E44: Asset Class 38
E45: Asset Class 39
E46: Asset Class 40
E47: Asset Class 41
E48: Asset Class 42
E49: Asset Class 43
E50: Asset Class 44
E51: Asset Class 45
E52: Asset Class 46
E53: Asset Class 47 | G53: Spare straight-line tax asset class
E54: Asset Class 48 | G54: Buildings - capital works
E55: Asset Class 49 | G55: In-house software
E56: Asset Class 50 | G56: Equity raising costs | M56: n/a
E57: Total | J57: =SUM(J7:J56) -> 1262.750436 | K57: =SUM(K7:K56) -> 1044.985893 | N57: =SUM(N7:N56) -> 460.2613971
E59: ="Forecast Capital Expenditure – As Incurred ($m Real "&$F$473&")" -> Forecast Capital Expenditure – As Incurred ($m Real 2022)
E60: Year | G60: =Q7 -> 2023 | H60: =(LEFT(G60,4)+1&IF(MID(G60,5,1)="","","-"&TEXT(MOD(MID(G60,6,2)+1,100),"00"))) -> 2024 | I60: =(LEFT(H60,4)+1&IF(MID(H60,5,1)="","","-"&TEXT(MOD(MID(H60,6,2)+1,100),"00"))) -> 2025 | J60: 2026 | K60: 2027 | L60: 2028 | M60: 2029 | N60: 2030 | O60: 2031 | P60: 2032
E61: =Asset1 -> Pipelines | G61: 77.24100786 | H61: 19.0843114 | I61: 1.699941728 | J61: 1.699941728 | K61: 1.229517602
E62: =Asset2 -> Compressors | G62: 41.87859695 | H62: 1.603718611 | I62: 0.5345728705 | J62: 0.5345728705 | K62: 4.570598043
E63: =Asset3 -> City Gates & Field Regulators | G63: 3.158602688 | H63: 0.1069145741 | I63: 0.1069145741 | J63: 0.1069145741 | K63: 0.1149064385
E64: =Asset4 -> Odourant Plants | G64: 0 | H64: 0 | I64: 0 | J64: 0 | K64: 0
E65: =Asset5 -> Gas Quality | G65: 0.1122603028 | H65: 0 | I65: 0.1571644239 | J65: 0 | K65: 0
E66: =Asset6 -> Other - short life | G66: 5.349810896 | H66: 6.63381644 | I66: 5.100676006 | J66: 4.80220129 | K66: 6.48873878
E67: =Asset7 -> General Building | G67: 0 | H67: 0 | I67: 0 | J67: 0 | K67: 0
E68: =Asset8 -> General Land | G68: 0 | H68: 0 | I68: 0 | J68: 0 | K68: 0
E69: =Asset9 -> Integrity Inspections | G69: 5.834042847 | H69: 11.34898204 | I69: 9.611620212 | J69: 8.766995076 | K69: 5.452643279
E70: =Asset10 -> 0
E71: =Asset11 -> 0
E72: =Asset12 -> 0
E73: =Asset13 -> Other - long life | G73: 0.7499780398 | H73: 2.874212351 | I73: 3.325127559 | J73: 1.574210189 | K73: 1.355379577
E74: =Asset14 -> 0
E75: =Asset15 -> 0
E76: =Asset16 -> 0
E77: =Asset17 -> 0
E78: =Asset18 -> 0
E79: =Asset19 -> 0
E80: =Asset20 -> 0
E81: =Asset21 -> 0
E82: =Asset22 -> 0
E83: =Asset23 -> 0
E84: =Asset24 -> 0
E85: =Asset25 -> 0
E86: =Asset26 -> 0
E87: =Asset27 -> 0
E88: =Asset28 -> 0
E89: =Asset29 -> 0
E90: =Asset30 -> 0
E91: =Asset31 -> 0
E92: =Asset32 -> 0
E93: =Asset33 -> 0
E94: =Asset34 -> 0
E95: =Asset35 -> 0
E96: =Asset36 -> 0
E97: =Asset37 -> 0
E98: =Asset38 -> 0
E99: =Asset39 -> 0
E100: =Asset40 -> 0
E101: =Asset41 -> 0
E102: =Asset42 -> 0
E103: =Asset43 -> 0
E104: =Asset44 -> 0
E105: =Asset45 -> 0
E106: =Asset46 -> 0
E107: =Asset47 -> Spare straight-line tax asset class
E108: =Asset48 -> Buildings - capital works
E109: =Asset49 -> In-house software
E110: =Asset50 -> Equity raising costs | G110: 0
E111: Total | G111: =SUM(G61:G110) -> 134.3242996 | H111: 41.65195542 | I111: 20.53601737 | J111: 17.48483573 | K111: 19.21178372 | L111: 0 | M111: 0 | N111: 0 | O111: 0 | P111: 0
G112: TRUE | Q112: =SUM(OFFSET(G111,0,0,1,$R$7)) -> 233.2088918
E113: ="Forecast Asset Disposal – As Incurred ($m Real "&$F$473&")" -> Forecast Asset Disposal – As Incurred ($m Real 2022)
E114: Year | G114: =G60 -> 2023 | H114: 2024 | I114: 2025 | J114: 2026 | K114: 2027 | L114: 2028 | M114: 2029 | N114: 2030 | O114: 2031 | P114: 2032
E115: =Asset1 -> Pipelines
E116: =Asset2 -> Compressors
E117: =Asset3 -> City Gates & Field Regulators
E118: =Asset4 -> Odourant Plants
E119: =Asset5 -> Gas Quality
E120: =Asset6 -> Other - short life
E121: =Asset7 -> General Building
E122: =Asset8 -> General Land
E123: =Asset9 -> Integrity Inspections
E124: =Asset10 -> 0
E125: =Asset11 -> 0
E126: =Asset12 -> 0
E127: =Asset13 -> Other - long life
E128: =Asset14 -> 0
E129: =Asset15 -> 0
E130: =Asset16 -> 0
E131: =Asset17 -> 0
E132: =Asset18 -> 0
E133: =Asset19 -> 0
E134: =Asset20 -> 0
E135: =Asset21 -> 0
E136: =Asset22 -> 0
E137: =Asset23 -> 0
E138: =Asset24 -> 0
E139: =Asset25 -> 0
E140: =Asset26 -> 0
E141: =Asset27 -> 0
E142: =Asset28 -> 0
E143: =Asset29 -> 0
E144: =Asset30 -> 0
E145: =Asset31 -> 0
E146: =Asset32 -> 0
E147: =Asset33 -> 0
E148: =Asset34 -> 0
E149: =Asset35 -> 0
E150: =Asset36 -> 0
E151: =Asset37 -> 0
E152: =Asset38 -> 0
E153: =Asset39 -> 0
E154: =Asset40 -> 0
E155: =Asset41 -> 0
E156: =Asset42 -> 0
E157: =Asset43 -> 0
E158: =Asset44 -> 0
E159: =Asset45 -> 0
E160: =Asset46 -> 0
E161: =Asset47 -> Spare straight-line tax asset class
E162: =Asset48 -> Buildings - capital works
E163: =Asset49 -> In-house software
E164: =Asset50 -> Equity raising costs
E165: Total | G165: =SUM(G115:G164) -> 0 | H165: 0 | I165: 0 | J165: 0 | K165: 0 | L165: 0 | M165: 0 | N165: 0 | O165: 0 | P165: 0
Q166: =SUM(OFFSET(G165,0,0,1,$R$7)) -> 0
E167: ="Forecast Net Capital Expenditure – As Incurred ($m Real "&$F$473&")" -> Forecast Net Capital Expenditure – As Incurred ($m Real 2022)
E168: Year | G168: =G60 -> 2023 | H168: 2024 | I168: 2025 | J168: 2026 | K168: 2027 | L168: 2028 | M168: 2029 | N168: 2030 | O168: 2031 | P168: 2032
E169: =Asset1 -> Pipelines | G169: =G61-G115 -> 77.24100786 | H169: 19.0843114 | I169: 1.699941728 | J169: 1.699941728 | K169: 1.229517602 | L169: 0 | M169: 0 | N169: 0 | O169: 0 | P169: 0
E170: =Asset2 -> Compressors | G170: 41.87859695 | H170: 1.603718611 | I170: 0.5345728705 | J170: 0.5345728705 | K170: 4.570598043 | L170: 0 | M170: 0 | N170: 0 | O170: 0 | P170: 0
E171: =Asset3 -> City Gates & Field Regulators | G171: 3.158602688 | H171: 0.1069145741 | I171: 0.1069145741 | J171: 0.1069145741 | K171: 0.1149064385 | L171: 0 | M171: 0 | N171: 0 | O171: 0 | P171: 0
E172: =Asset4 -> Odourant Plants | G172: 0 | H172: 0 | I172: 0 | J172: 0 | K172: 0 | L172: 0 | M172: 0 | N172: 0 | O172: 0 | P172: 0
E173: =Asset5 -> Gas Quality | G173: 0.1122603028 | H173: 0 | I173: 0.1571644239 | J173: 0 | K173: 0 | L173: 0 | M173: 0 | N173: 0 | O173: 0 | P173: 0
E174: =Asset6 -> Other - short life | G174: 5.349810896 | H174: 6.63381644 | I174: 5.100676006 | J174: 4.80220129 | K174: 6.48873878 | L174: 0 | M174: 0 | N174: 0 | O174: 0 | P174: 0
E175: =Asset7 -> General Building | G175: 0 | H175: 0 | I175: 0 | J175: 0 | K175: 0 | L175: 0 | M175: 0 | N175: 0 | O175: 0 | P175: 0
E176: =Asset8 -> General Land | G176: 0 | H176: 0 | I176: 0 | J176: 0 | K176: 0 | L176: 0 | M176: 0 | N176: 0 | O176: 0 | P176: 0
E177: =Asset9 -> Integrity Inspections | G177: 5.834042847 | H177: 11.34898204 | I177: 9.611620212 | J177: 8.766995076 | K177: 5.452643279 | L177: 0 | M177: 0 | N177: 0 | O177: 0 | P177: 0
E178: =Asset10 -> 0 | G178: 0 | H178: 0 | I178: 0 | J178: 0 | K178: 0 | L178: 0 | M178: 0 | N178: 0 | O178: 0 | P178: 0
E179: =Asset11 -> 0 | G179: 0 | H179: 0 | I179: 0 | J179: 0 | K179: 0 | L179: 0 | M179: 0 | N179: 0 | O179: 0 | P179: 0
E180: =Asset12 -> 0 | G180: 0 | H180: 0 | I180: 0 | J180: 0 | K180: 0 | L180: 0 | M180: 0 | N180: 0 | O180: 0 | P180: 0
E181: =Asset13 -> Other - long life | G181: 0.7499780398 | H181: 2.874212351 | I181: 3.325127559 | J181: 1.574210189 | K181: 1.355379577 | L181: 0 | M181: 0 | N181: 0 | O181: 0 | P181: 0
E182: =Asset14 -> 0 | G182: 0 | H182: 0 | I182: 0 | J182: 0 | K182: 0 | L182: 0 | M182: 0 | N182: 0 | O182: 0 | P182: 0
E183: =Asset15 -> 0 | G183: 0 | H183: 0 | I183: 0 | J183: 0 | K183: 0 | L183: 0 | M183: 0 | N183: 0 | O183: 0 | P183: 0
E184: =Asset16 -> 0 | G184: 0 | H184: 0 | I184: 0 | J184: 0 | K184: 0 | L184: 0 | M184: 0 | N184: 0 | O184: 0 | P184: 0
E185: =Asset17 -> 0 | G185: =G77-G131 -> 0 | H185: 0 | I185: 0 | J185: 0 | K185: 0 | L185: 0 | M185: 0 | N185: 0 | O185: 0 | P185: 0
E186: =Asset18 -> 0 | G186: 0 | H186: 0 | I186: 0 | J186: 0 | K186: 0 | L186: 0 | M186: 0 | N186: 0 | O186: 0 | P186: 0
E187: =Asset19 -> 0 | G187: 0 | H187: 0 | I187: 0 | J187: 0 | K187: 0 | L187: 0 | M187: 0 | N187: 0 | O187: 0 | P187: 0
E188: =Asset20 -> 0 | G188: 0 | H188: 0 | I188: 0 | J188: 0 | K188: 0 | L188: 0 | M188: 0 | N188: 0 | O188: 0 | P188: 0
E189: =Asset21 -> 0 | G189: 0 | H189: 0 | I189: 0 | J189: 0 | K189: 0 | L189: 0 | M189: 0 | N189: 0 | O189: 0 | P189: 0
E190: =Asset22 -> 0 | G190: 0 | H190: 0 | I190: 0 | J190: 0 | K190: 0 | L190: 0 | M190: 0 | N190: 0 | O190: 0 | P190: 0
E191: =Asset23 -> 0 | G191: 0 | H191: 0 | I191: 0 | J191: 0 | K191: 0 | L191: 0 | M191: 0 | N191: 0 | O191: 0 | P191: 0
E192: =Asset24 -> 0 | G192: 0 | H192: 0 | I192: 0 | J192: 0 | K192: 0 | L192: 0 | M192: 0 | N192: 0 | O192: 0 | P192: 0
E193: =Asset25 -> 0 | G193: 0 | H193: 0 | I193: 0 | J193: 0 | K193: 0 | L193: 0 | M193: 0 | N193: 0 | O193: 0 | P193: 0
E194: =Asset26 -> 0 | G194: 0 | H194: 0 | I194: 0 | J194: 0 | K194: 0 | L194: 0 | M194: 0 | N194: 0 | O194: 0 | P194: 0
E195: =Asset27 -> 0 | G195: 0 | H195: 0 | I195: 0 | J195: 0 | K195: 0 | L195: 0 | M195: 0 | N195: 0 | O195: 0 | P195: 0
E196: =Asset28 -> 0 | G196: 0 | H196: 0 | I196: 0 | J196: 0 | K196: 0 | L196: 0 | M196: 0 | N196: 0 | O196: 0 | P196: 0
E197: =Asset29 -> 0 | G197: 0 | H197: 0 | I197: 0 | J197: 0 | K197: 0 | L197: 0 | M197: 0 | N197: 0 | O197: 0 | P197: 0
E198: =Asset30 -> 0 | G198: 0 | H198: 0 | I198: 0 | J198: 0 | K198: 0 | L198: 0 | M198: 0 | N198: 0 | O198: 0 | P198: 0
E199: =Asset31 -> 0 | G199: 0 | H199: 0 | I199: 0 | J199: 0 | K199: 0 | L199: 0 | M199: 0 | N199: 0 | O199: 0 | P199: 0
E200: =Asset32 -> 0 | G200: 0 | H200: 0 | I200: 0 | J200: 0 | K200: 0 | L200: 0 | M200: 0 | N200: 0 | O200: 0 | P200: 0
E201: =Asset33 -> 0 | G201: =G93-G147 -> 0 | H201: 0 | I201: 0 | J201: 0 | K201: 0 | L201: 0 | M201: 0 | N201: 0 | O201: 0 | P201: 0
E202: =Asset34 -> 0 | G202: 0 | H202: 0 | I202: 0 | J202: 0 | K202: 0 | L202: 0 | M202: 0 | N202: 0 | O202: 0 | P202: 0
E203: =Asset35 -> 0 | G203: 0 | H203: 0 | I203: 0 | J203: 0 | K203: 0 | L203: 0 | M203: 0 | N203: 0 | O203: 0 | P203: 0
E204: =Asset36 -> 0 | G204: 0 | H204: 0 | I204: 0 | J204: 0 | K204: 0 | L204: 0 | M204: 0 | N204: 0 | O204: 0 | P204: 0
... 396 more rows

Sheet WACC
B2: ='DMS input'!$C$16&" - Cost of Capital Parameters"&" - TNSP PTRM - version "&Intro!$L$4 -> APA VTS - Cost of Capital Parameters - TNSP PTRM - version 2.1
B4: Year | G4: ='PTRM input'!G60 -> 2023 | H4: ='PTRM input'!H60 -> 2024 | I4: ='PTRM input'!I60 -> 2025 | J4: ='PTRM input'!J60 -> 2026 | K4: ='PTRM input'!K60 -> 2027 | L4: ='PTRM input'!L60 -> 2028 | M4: ='PTRM input'!M60 -> 2029 | N4: ='PTRM input'!N60 -> 2030 | O4: ='PTRM input'!O60 -> 2031 | P4: ='PTRM input'!P60 -> 2032 | R4: Final decision checks
R5: This column contains calculations that presume a constant WACC. They are therefore to be used at the start of the access arrangement period (prior to any annual debt updates).
B6: Inflation Rate | D6: f | F6: Constant | G6: =f -> 0.03246990753 | H6: 0.03246990753 | I6: 0.03246990753 | J6: 0.03246990753 | K6: 0.03246990753 | L6: 0.03246990753 | M6: 0.03246990753 | N6: 0.03246990753 | O6: 0.03246990753 | P6: 0.03246990753
B7: Value of Imputation Credits (gamma) | D7: γ | F7: Constant | G7: =g -> 0.585 | H7: 0.585 | I7: 0.585 | J7: 0.585 | K7: 0.585 | L7: 0.585 | M7: 0.585 | N7: 0.585 | O7: 0.585 | P7: 0.585
B8: Proportion of Equity Funding | D8: E/V | F8: Constant | G8: =1-G9 -> 0.4 | H8: =1-H9 -> 0.4 | I8: 0.4 | J8: 0.4 | K8: 0.4 | L8: 0.4 | M8: 0.4 | N8: 0.4 | O8: 0.4 | P8: 0.4
B9: Proportion of Debt Funding | D9: D/V | F9: Constant | G9: =Dv -> 0.6 | H9: =Dv -> 0.6 | I9: 0.6 | J9: 0.6 | K9: 0.6 | L9: 0.6 | M9: 0.6 | N9: 0.6 | O9: 0.6 | P9: 0.6
B10: Post-tax Nominal Return on Equity | D10: Re | F10: Constant | G10: ='PTRM input'!$G$491 -> 0.07444432053 | H10: ='PTRM input'!$G$491 -> 0.07444432053 | I10: ='PTRM input'!$G$491 -> 0.07444432053 | J10: ='PTRM input'!$G$491 -> 0.07444432053 | K10: ='PTRM input'!$G$491 -> 0.07444432053 | L10: ='PTRM input'!$G$491 -> 0.07444432053 | M10: ='PTRM input'!$G$491 -> 0.07444432053 | N10: ='PTRM input'!$G$491 -> 0.07444432053 | O10: ='PTRM input'!$G$491 -> 0.07444432053 | P10: ='PTRM input'!$G$491 -> 0.07444432053 | R10: =Analysis!$E$110 -> 0.07444432053
B11: Post-tax Real Return on Equity | D11: Rre | F11: Constant | G11: =(1+G10)/(1+G6)-1 -> 0.04065436938 | H11: 0.04065436938 | I11: 0.04065436938 | J11: 0.04065436938 | K11: 0.04065436938 | L11: 0.04065436938 | M11: 0.04065436938 | N11: 0.04065436938 | O11: 0.04065436938 | P11: 0.04065436938 | R11: =Analysis!$E$114 -> 0.04065436938
B13: Corporate Tax Rate | D13: T | F13: Varying | G13: ='PTRM input'!G471 -> 0.3 | H13: =IF(OR(ISBLANK('PTRM input'!H471),'PTRM input'!H471=0),G13,'PTRM input'!H471) -> 0.3 | I13: =IF(OR(ISBLANK('PTRM input'!I471),'PTRM input'!I471=0),H13,'PTRM input'!I471) -> 0.3 | J13: =IF(OR(ISBLANK('PTRM input'!J471),'PTRM input'!J471=0),I13,'PTRM input'!J471) -> 0.3 | K13: =IF(OR(ISBLANK('PTRM input'!K471),'PTRM input'!K471=0),J13,'PTRM input'!K471) -> 0.3 | L13: =IF(OR(ISBLANK('PTRM input'!L471),'PTRM input'!L471=0),K13,'PTRM input'!L471) -> 0.3 | M13: =IF(OR(ISBLANK('PTRM input'!M471),'PTRM input'!M471=0),L13,'PTRM input'!M471) -> 0.3 | N13: =IF(OR(ISBLANK('PTRM input'!N471),'PTRM input'!N471=0),M13,'PTRM input'!N471) -> 0.3 | O13: =IF(OR(ISBLANK('PTRM input'!O471),'PTRM input'!O471=0),N13,'PTRM input'!O471) -> 0.3 | P13: =IF(OR(ISBLANK('PTRM input'!P471),'PTRM input'!P471=0),O13,'PTRM input'!P471) -> 0.3
B14: Nominal Pre-tax Return on Debt | D14: Rd | F14: Varying | G14: ='PTRM input'!G496 -> 0.04285048273 | H14: =IF(OR(ISBLANK('PTRM input'!H496),'PTRM input'!H496=0),G14,'PTRM input'!H496) -> 0.04427428819 | I14: =IF(OR(ISBLANK('PTRM input'!I496),'PTRM input'!I496=0),H14,'PTRM input'!I496) -> 0.04569809364 | J14: =IF(OR(ISBLANK('PTRM input'!J496),'PTRM input'!J496=0),I14,'PTRM input'!J496) -> 0.0471218991 | K14: =IF(OR(ISBLANK('PTRM input'!K496),'PTRM input'!K496=0),J14,'PTRM input'!K496) -> 0.04854570455 | L14: =IF(OR(ISBLANK('PTRM input'!L496),'PTRM input'!L496=0),K14,'PTRM input'!L496) -> 0.04854570455 | M14: =IF(OR(ISBLANK('PTRM input'!M496),'PTRM input'!M496=0),L14,'PTRM input'!M496) -> 0.04854570455 | N14: =IF(OR(ISBLANK('PTRM input'!N496),'PTRM input'!N496=0),M14,'PTRM input'!N496) -> 0.04854570455 | O14: =IF(OR(ISBLANK('PTRM input'!O496),'PTRM input'!O496=0),N14,'PTRM input'!O496) -> 0.04854570455 | P14: =IF(OR(ISBLANK('PTRM input'!P496),'PTRM input'!P496=0),O14,'PTRM input'!P496) -> 0.04854570455
B15: Real Pre-tax Return on Debt | D15: Rrd | F15: Varying | G15: =(1+G14)/(1+G6)-1 -> 0.01005411889 | H15: 0.01143314742 | I15: 0.01281217595 | J15: 0.01419120447 | K15: 0.015570233 | L15: 0.015570233 | M15: 0.015570233 | N15: 0.015570233 | O15: 0.015570233 | P15: 0.015570233
G17: Formula approximations of WACC | R17: Cashflow derivations of WACC
B18: Nominal Vanilla WACC | F18: Varying | G18: =G8*G10+G9*G14 -> 0.05548801785 | H18: 0.05634230112 | I18: 0.0571965844 | J18: 0.05805086767 | K18: 0.05890515094 | L18: 0.05890515094 | M18: 0.05890515094 | N18: 0.05890515094 | O18: 0.05890515094 | P18: 0.05890515094 | R18: =Analysis!$E$125 -> 0.05828425806
B19: Real Vanilla WACC | F19: Varying | G19: =G8*G11+G9*G15 -> 0.02229421909 | H19: 0.02312163621 | I19: 0.02394905332 | J19: 0.02477647044 | K19: 0.02560388755 | L19: 0.02560388755 | M19: 0.02560388755 | N19: 0.02560388755 | O19: 0.02560388755 | P19: 0.02560388755 | R19: =Analysis!$E$126 -> 0.02500252099
B20: Post-tax Nominal WACC | F20: Varying | G20: =G10*G8+G14*G9*(1-G28*(1-G7)) -> 0.05237177857 | H20: =H10*H8+H14*H9*(1-H28*(1-H7)) -> 0.05312251765 | I20: 0.05387325673 | J20: 0.05462399582 | K20: 0.0553747349 | L20: 0.0553747349 | M20: 0.0553747349 | N20: 0.0553747349 | O20: 0.0553747349 | P20: 0.0553747349 | R20: =Analysis!$E$122 -> 0.05280106224
B21: Post-tax Real WACC | F21: Varying | G21: =(1+G20)/(1+G6)-1 -> 0.01927598169 | H21: 0.02000311096 | I21: 0.02073024022 | J21: 0.02145736949 | K21: 0.02218449875 | L21: 0.02218449875 | M21: 0.02218449875 | N21: 0.02218449875 | O21: 0.02218449875 | P21: 0.02218449875 | R21: =Analysis!$E$124 -> 0.01969176492
B22: Pre-tax Nominal WACC | F22: Varying | G22: =G10*(1/(1-G27*(1-G7)))*G8+G14*G9 -> 0.05925925072 | H22: 0.060113534 | I22: 0.06096781727 | J22: 0.06182210054 | K22: 0.06267638381 | L22: 0.06267638381 | M22: 0.06267638381 | N22: 0.06267638381 | O22: 0.06267638381 | P22: 0.06267638381 | R22: =Analysis!$E$121 -> 0.06186562327
B23: Pre-tax Real WACC | F23: Varying | G23: =(1+G22)/(1+G6)-1 -> 0.02594685133 | H23: 0.02677426845 | I23: 0.02760168556 | J23: 0.02842910268 | K23: 0.02925651979 | L23: 0.02925651979 | M23: 0.02925651979 | N23: 0.02925651979 | O23: 0.02925651979 | P23: 0.02925651979 | R23: =Analysis!$E$123 -> 0.02847125667
B24: Nominal Tax Allowance | F24: Varying | G24: =G22-G20 -> 0.006887472157 | H24: =H22-H20 -> 0.006991016346 | I24: 0.007094560535 | J24: 0.007198104724 | K24: 0.007301648913 | L24: 0.007301648913 | M24: 0.007301648913 | N24: 0.007301648913 | O24: 0.007301648913 | P24: 0.007301648913 | R24: =$R$22-$R$20 -> 0.009064561035
B25: Real Tax Allowance | F25: Varying | G25: =G23-G21 -> 0.006670869636 | H25: =H23-H21 -> 0.006771157488 | I25: 0.00687144534 | J25: 0.006971733192 | K25: 0.007072021044 | L25: 0.007072021044 | M25: 0.007072021044 | N25: 0.007072021044 | O25: 0.007072021044 | P25: 0.007072021044 | R25: =$R$23-$R$21 -> 0.008779491752
B27: Effective Tax Rate for Equity (from relevant cashflows) | D27: Te | G27: 0.2708670502 | H27: =$G27 -> 0.2708670502 | I27: =$G27 -> 0.2708670502 | J27: 0.2708670502 | K27: 0.2708670502 | L27: 0.2708670502 | M27: 0.2708670502 | N27: 0.2708670502 | O27: 0.2708670502 | P27: 0.2708670502 | R27: =Analysis!$D$108 -> 0.2460598184
B28: Effective Tax Rate for Debt (effective debt shield) | D28: Td | G28: 0.2920624555 | H28: =$G28 -> 0.2920624555 | I28: 0.2920624555 | J28: 0.2920624555 | K28: 0.2920624555 | L28: 0.2920624555 | M28: 0.2920624555 | N28: 0.2920624555 | O28: 0.2920624555 | P28: 0.2920624555 | R28: =Analysis!$D$119 -> 0.2932931428
G30: At the start of an access arrangement period, indicative cashflow-calculated average of Te and Td are copied over to this sheet
G31: These calculations presume a constant WACC so Te/Td should not be updated during a access arrangement period
G32: when annually updating the return on debt - just use the same Te/Td from the final decision.
G34: Numbers in White cells are calculated on this sheet from input parameters.
G35: Numbers in Orange cells are transferred from relevant sheets

Sheet Assets
B2: ='DMS input'!$C$16&" - Asset Roll Forward"&" - TNSP PTRM - version "&Intro!$L$4 -> APA VTS - Asset Roll Forward - TNSP PTRM - version 2.1
F3: 0 | G3: =F3+1 -> 1 | H3: 2 | I3: 3 | J3: 4 | K3: 5 | L3: 6 | M3: 7 | N3: 8 | O3: 9 | P3: 10 | Q3: 11 | R3: 12 | S3: 13 | T3: 14 | U3: 15 | V3: 16 | W3: 17 | X3: 18 | Y3: 19 | Z3: 20 | AA3: 21 | AB3: 22 | AC3: 23 | AD3: 24 | AE3: 25 | AF3: 26 | AG3: 27 | AH3: 28 | AI3: 29 | AJ3: 30 | AK3: 31 | AL3: 32 | AM3: =AL3+1 -> 33 | AN3: 34 | AO3: 35 | AP3: 36 | AQ3: 37 | AR3: 38 | AS3: 39 | AT3: 40 | AU3: 41 | AV3: 42 | AW3: 43 | AX3: 44 | AY3: 45 | AZ3: 46 | BA3: 47 | BB3: 48 | BC3: 49 | BD3: 50 | BE3: 51 | BF3: 52 | BG3: 53 | BH3: 54 | BI3: 55
B4: Year | F4: =(LEFT(G4,4)-1&IF(MID(G4,5,1)="","","-"&TEXT(MOD(MID(G4,6,2)-1,100),"00"))) -> 2022 | G4: ='PTRM input'!G60 -> 2023 | H4: =(LEFT(G4,4)+1&IF(MID(G4,5,1)="","","-"&TEXT(MID(G4,6,2)+1,"00"))) -> 2024 | I4: =(LEFT(H4,4)+1&IF(MID(H4,5,1)="","","-"&TEXT(MID(H4,6,2)+1,"00"))) -> 2025 | J4: =(LEFT(I4,4)+1&IF(MID(I4,5,1)="","","-"&TEXT(MID(I4,6,2)+1,"00"))) -> 2026 | K4: =(LEFT(J4,4)+1&IF(MID(J4,5,1)="","","-"&TEXT(MID(J4,6,2)+1,"00"))) -> 2027 | L4: =(LEFT(K4,4)+1&IF(MID(K4,5,1)="","","-"&TEXT(MID(K4,6,2)+1,"00"))) -> 2028 | M4: =(LEFT(L4,4)+1&IF(MID(L4,5,1)="","","-"&TEXT(MID(L4,6,2)+1,"00"))) -> 2029 | N4: =(LEFT(M4,4)+1&IF(MID(M4,5,1)="","","-"&TEXT(MID(M4,6,2)+1,"00"))) -> 2030 | O4: =(LEFT(N4,4)+1&IF(MID(N4,5,1)="","","-"&TEXT(MID(N4,6,2)+1,"00"))) -> 2031 | P4: =(LEFT(O4,4)+1&IF(MID(O4,5,1)="","","-"&TEXT(MID(O4,6,2)+1,"00"))) -> 2032 | Q4: =(LEFT(P4,4)+1&IF(MID(P4,5,1)="","","-"&TEXT(MID(P4,6,2)+1,"00"))) -> 2033 | R4: =(LEFT(Q4,4)+1&IF(MID(Q4,5,1)="","","-"&TEXT(MID(Q4,6,2)+1,"00"))) -> 2034 | S4: 2035 | T4: 2036 | U4: 2037 | V4: 2038 | W4: 2039 | X4: 2040 | Y4: 2041 | Z4: 2042 | AA4: 2043 | AB4: 2044 | AC4: 2045 | AD4: 2046 | AE4: 2047 | AF4: 2048 | AG4: 2049 | AH4: 2050 | AI4: 2051 | AJ4: 2052 | AK4: 2053 | AL4: 2054 | AM4: 2055 | AN4: 2056 | AO4: 2057 | AP4: 2058 | AQ4: 2059 | AR4: 2060 | AS4: 2061 | AT4: 2062 | AU4: 2063 | AV4: 2064 | AW4: 2065 | AX4: 2066 | AY4: 2067 | AZ4: 2068 | BA4: 2069 | BB4: 2070 | BC4: 2071 | BD4: 2072 | BE4: 2073 | BF4: 2074 | BG4: 2075 | BH4: 2076 | BI4: 2077
B6: Inflation Assumption (CPI % increase) | D6: =f -> 0.03246990753 | G6: =$D$6 -> 0.03246990753 | H6: =$D$6 -> 0.03246990753 | I6: 0.03246990753 | J6: 0.03246990753 | K6: 0.03246990753 | L6: 0.03246990753 | M6: 0.03246990753 | N6: 0.03246990753 | O6: 0.03246990753 | P6: 0.03246990753 | Q6: 0.03246990753 | R6: 0.03246990753 | S6: 0.03246990753 | T6: 0.03246990753 | U6: 0.03246990753 | V6: 0.03246990753 | W6: 0.03246990753 | X6: 0.03246990753 | Y6: 0.03246990753 | Z6: 0.03246990753 | AA6: 0.03246990753 | AB6: 0.03246990753 | AC6: 0.03246990753 | AD6: 0.03246990753 | AE6: 0.03246990753 | AF6: 0.03246990753 | AG6: 0.03246990753 | AH6: 0.03246990753 | AI6: 0.03246990753 | AJ6: 0.03246990753 | AK6: 0.03246990753 | AL6: 0.03246990753 | AM6: 0.03246990753 | AN6: 0.03246990753 | AO6: 0.03246990753 | AP6: 0.03246990753 | AQ6: 0.03246990753 | AR6: 0.03246990753 | AS6: 0.03246990753 | AT6: 0.03246990753 | AU6: 0.03246990753 | AV6: 0.03246990753 | AW6: 0.03246990753 | AX6: 0.03246990753 | AY6: 0.03246990753 | AZ6: 0.03246990753 | BA6: 0.03246990753 | BB6: 0.03246990753 | BC6: 0.03246990753 | BD6: 0.03246990753 | BE6: 0.03246990753 | BF6: 0.03246990753 | BG6: 0.03246990753 | BH6: 0.03246990753 | BI6: 0.03246990753
B7: Cumulative Inflation Index (CPI end period) | F7: 1 | G7: =F7*(1+G6) -> 1.032469908 | H7: =G7*(1+H6) -> 1.06599411 | I7: =H7*(1+I6) -> 1.10060684 | J7: =I7*(1+J6) -> 1.136343442 | K7: 1.173240409 | L7: 1.211335417 | M7: 1.250667365 | N7: 1.291276419 | O7: 1.333204045 | P7: =O7*(1+P6) -> 1.376493057 | Q7: 1.421187659 | R7: 1.467333491 | S7: 1.514977674 | T7: 1.564168859 | U7: 1.614957277 | V7: 1.667394791 | W7: 1.721534945 | X7: 1.777433026 | Y7: 1.835146112 | Z7: 1.894733136 | AA7: 1.956254946 | AB7: 2.019774363 | AC7: 2.08535625 | AD7: 2.153067575 | AE7: 2.22297748 | AF7: 2.295157353 | AG7: 2.3696809 | AH7: 2.44662422 | AI7: 2.526065882 | AJ7: 2.608087008 | AK7: 2.692771352 | AL7: 2.780205388 | AM7: 2.8704784 | AN7: 2.963682568 | AO7: 3.059913067 | AP7: 3.159268162 | AQ7: 3.261849307 | AR7: 3.367761252 | AS7: 3.477112149 | AT7: 3.590013659 | AU7: 3.70658107 | AV7: 3.826933415 | AW7: 3.951193589 | AX7: 4.079488479 | AY7: 4.211949093 | AZ7: 4.34871069 | BA7: 4.489912924 | BB7: 4.635699982 | BC7: 4.786220732 | BD7: 4.941628876 | BE7: 5.102083109 | BF7: 5.267747276 | BG7: 5.438790543 | BH7: 5.615387568 | BI7: 5.797718684
B9: Opening Capital Base | F9: =RAB -> 1262.750436
B10: Real Net Capital Expenditure (capex) | G10: =SUM(G11:G60) -> 135.8133736 | H10: =SUM(H11:H60) -> 42.13073438 | I10: 20.78047151 | J10: 17.70011667 | K10: 19.45617742 | L10: =SUM(L11:L60) -> 0 | M10: 0 | N10: 0 | O10: 0 | P10: 0
C11: =Asset1 -> Pipelines | G11: ='PTRM input'!G169*(1+rvanilla01)^0.5 -> 78.09727569 | H11: ='PTRM input'!H169*(1+rvanilla02)^0.5 -> 19.30368086 | I11: ='PTRM input'!I169*(1+rvanilla03)^0.5 -> 1.720177287 | J11: ='PTRM input'!J169*(1+rvanilla04)^0.5 -> 1.720872154 | K11: ='PTRM input'!K169*(1+rvanilla05)^0.5 -> 1.245158334 | L11: ='PTRM input'!L169*(1+rvanilla06)^0.5 -> 0 | M11: ='PTRM input'!M169*(1+rvanilla07)^0.5 -> 0 | N11: ='PTRM input'!N169*(1+rvanilla08)^0.5 -> 0 | O11: ='PTRM input'!O169*(1+rvanilla09)^0.5 -> 0 | P11: ='PTRM input'!P169*(1+rvanilla10)^0.5 -> 0
C12: =Asset2 -> Compressors | G12: ='PTRM input'!G170*(1+rvanilla01)^0.5 -> 42.34284898 | H12: ='PTRM input'!H170*(1+rvanilla02)^0.5 -> 1.622152961 | I12: ='PTRM input'!I170*(1+rvanilla03)^0.5 -> 0.5409362538 | J12: ='PTRM input'!J170*(1+rvanilla04)^0.5 -> 0.5411547654 | K12: ='PTRM input'!K170*(1+rvanilla05)^0.5 -> 4.628740764 | L12: ='PTRM input'!L170*(1+rvanilla06)^0.5 -> 0 | M12: ='PTRM input'!M170*(1+rvanilla07)^0.5 -> 0 | N12: ='PTRM input'!N170*(1+rvanilla08)^0.5 -> 0 | O12: ='PTRM input'!O170*(1+rvanilla09)^0.5 -> 0 | P12: ='PTRM input'!P170*(1+rvanilla10)^0.5 -> 0
C13: =Asset3 -> City Gates & Field Regulators | G13: ='PTRM input'!G171*(1+rvanilla01)^0.5 -> 3.193617895 | H13: ='PTRM input'!H171*(1+rvanilla02)^0.5 -> 0.1081435308 | I13: ='PTRM input'!I171*(1+rvanilla03)^0.5 -> 0.1081872508 | J13: ='PTRM input'!J171*(1+rvanilla04)^0.5 -> 0.1082309531 | K13: ='PTRM input'!K171*(1+rvanilla05)^0.5 -> 0.1163681669 | L13: ='PTRM input'!L171*(1+rvanilla06)^0.5 -> 0 | M13: ='PTRM input'!M171*(1+rvanilla07)^0.5 -> 0 | N13: ='PTRM input'!N171*(1+rvanilla08)^0.5 -> 0 | O13: ='PTRM input'!O171*(1+rvanilla09)^0.5 -> 0 | P13: ='PTRM input'!P171*(1+rvanilla10)^0.5 -> 0
C14: =Asset4 -> Odourant Plants | G14: ='PTRM input'!G172*(1+rvanilla01)^0.5 -> 0 | H14: ='PTRM input'!H172*(1+rvanilla02)^0.5 -> 0 | I14: ='PTRM input'!I172*(1+rvanilla03)^0.5 -> 0 | J14: ='PTRM input'!J172*(1+rvanilla04)^0.5 -> 0 | K14: ='PTRM input'!K172*(1+rvanilla05)^0.5 -> 0 | L14: ='PTRM input'!L172*(1+rvanilla06)^0.5 -> 0 | M14: ='PTRM input'!M172*(1+rvanilla07)^0.5 -> 0 | N14: ='PTRM input'!N172*(1+rvanilla08)^0.5 -> 0 | O14: ='PTRM input'!O172*(1+rvanilla09)^0.5 -> 0 | P14: ='PTRM input'!P172*(1+rvanilla10)^0.5 -> 0
C15: =Asset5 -> Gas Quality | G15: ='PTRM input'!G173*(1+rvanilla01)^0.5 -> 0.1135047828 | H15: ='PTRM input'!H173*(1+rvanilla02)^0.5 -> 0 | I15: ='PTRM input'!I173*(1+rvanilla03)^0.5 -> 0.1590352586 | J15: ='PTRM input'!J173*(1+rvanilla04)^0.5 -> 0 | K15: ='PTRM input'!K173*(1+rvanilla05)^0.5 -> 0 | L15: ='PTRM input'!L173*(1+rvanilla06)^0.5 -> 0 | M15: ='PTRM input'!M173*(1+rvanilla07)^0.5 -> 0 | N15: ='PTRM input'!N173*(1+rvanilla08)^0.5 -> 0 | O15: ='PTRM input'!O173*(1+rvanilla09)^0.5 -> 0 | P15: ='PTRM input'!P173*(1+rvanilla10)^0.5 -> 0
C16: =Asset6 -> Other - short life | G16: ='PTRM input'!G174*(1+rvanilla01)^0.5 -> 5.4091171 | H16: ='PTRM input'!H174*(1+rvanilla02)^0.5 -> 6.710070524 | I16: ='PTRM input'!I174*(1+rvanilla03)^0.5 -> 5.16139281 | J16: ='PTRM input'!J174*(1+rvanilla04)^0.5 -> 4.861328091 | K16: ='PTRM input'!K174*(1+rvanilla05)^0.5 -> 6.571282231 | L16: ='PTRM input'!L174*(1+rvanilla06)^0.5 -> 0 | M16: ='PTRM input'!M174*(1+rvanilla07)^0.5 -> 0 | N16: ='PTRM input'!N174*(1+rvanilla08)^0.5 -> 0 | O16: ='PTRM input'!O174*(1+rvanilla09)^0.5 -> 0 | P16: ='PTRM input'!P174*(1+rvanilla10)^0.5 -> 0
C17: =Asset7 -> General Building | G17: ='PTRM input'!G175*(1+rvanilla01)^0.5 -> 0 | H17: ='PTRM input'!H175*(1+rvanilla02)^0.5 -> 0 | I17: ='PTRM input'!I175*(1+rvanilla03)^0.5 -> 0 | J17: ='PTRM input'!J175*(1+rvanilla04)^0.5 -> 0 | K17: ='PTRM input'!K175*(1+rvanilla05)^0.5 -> 0 | L17: ='PTRM input'!L175*(1+rvanilla06)^0.5 -> 0 | M17: ='PTRM input'!M175*(1+rvanilla07)^0.5 -> 0 | N17: ='PTRM input'!N175*(1+rvanilla08)^0.5 -> 0 | O17: ='PTRM input'!O175*(1+rvanilla09)^0.5 -> 0 | P17: ='PTRM input'!P175*(1+rvanilla10)^0.5 -> 0
C18: =Asset8 -> General Land | G18: ='PTRM input'!G176*(1+rvanilla01)^0.5 -> 0 | H18: ='PTRM input'!H176*(1+rvanilla02)^0.5 -> 0 | I18: ='PTRM input'!I176*(1+rvanilla03)^0.5 -> 0 | J18: ='PTRM input'!J176*(1+rvanilla04)^0.5 -> 0 | K18: ='PTRM input'!K176*(1+rvanilla05)^0.5 -> 0 | L18: ='PTRM input'!L176*(1+rvanilla06)^0.5 -> 0 | M18: ='PTRM input'!M176*(1+rvanilla07)^0.5 -> 0 | N18: ='PTRM input'!N176*(1+rvanilla08)^0.5 -> 0 | O18: ='PTRM input'!O176*(1+rvanilla09)^0.5 -> 0 | P18: ='PTRM input'!P176*(1+rvanilla10)^0.5 -> 0
C19: =Asset9 -> Integrity Inspections | G19: ='PTRM input'!G177*(1+rvanilla01)^0.5 -> 5.898717083 | H19: ='PTRM input'!H177*(1+rvanilla02)^0.5 -> 11.47943579 | I19: ='PTRM input'!I177*(1+rvanilla03)^0.5 -> 9.726033843 | J19: ='PTRM input'!J177*(1+rvanilla04)^0.5 -> 8.874938152 | K19: ='PTRM input'!K177*(1+rvanilla05)^0.5 -> 5.522006526 | L19: ='PTRM input'!L177*(1+rvanilla06)^0.5 -> 0 | M19: ='PTRM input'!M177*(1+rvanilla07)^0.5 -> 0 | N19: ='PTRM input'!N177*(1+rvanilla08)^0.5 -> 0 | O19: ='PTRM input'!O177*(1+rvanilla09)^0.5 -> 0 | P19: ='PTRM input'!P177*(1+rvanilla10)^0.5 -> 0
C20: =Asset10 -> 0 | G20: ='PTRM input'!G178*(1+rvanilla01)^0.5 -> 0 | H20: ='PTRM input'!H178*(1+rvanilla02)^0.5 -> 0 | I20: ='PTRM input'!I178*(1+rvanilla03)^0.5 -> 0 | J20: ='PTRM input'!J178*(1+rvanilla04)^0.5 -> 0 | K20: ='PTRM input'!K178*(1+rvanilla05)^0.5 -> 0 | L20: ='PTRM input'!L178*(1+rvanilla06)^0.5 -> 0 | M20: ='PTRM input'!M178*(1+rvanilla07)^0.5 -> 0 | N20: ='PTRM input'!N178*(1+rvanilla08)^0.5 -> 0 | O20: ='PTRM input'!O178*(1+rvanilla09)^0.5 -> 0 | P20: ='PTRM input'!P178*(1+rvanilla10)^0.5 -> 0
C21: =Asset11 -> 0 | G21: ='PTRM input'!G179*(1+rvanilla01)^0.5 -> 0 | H21: ='PTRM input'!H179*(1+rvanilla02)^0.5 -> 0 | I21: ='PTRM input'!I179*(1+rvanilla03)^0.5 -> 0 | J21: ='PTRM input'!J179*(1+rvanilla04)^0.5 -> 0 | K21: ='PTRM input'!K179*(1+rvanilla05)^0.5 -> 0 | L21: ='PTRM input'!L179*(1+rvanilla06)^0.5 -> 0 | M21: ='PTRM input'!M179*(1+rvanilla07)^0.5 -> 0 | N21: ='PTRM input'!N179*(1+rvanilla08)^0.5 -> 0 | O21: ='PTRM input'!O179*(1+rvanilla09)^0.5 -> 0 | P21: ='PTRM input'!P179*(1+rvanilla10)^0.5 -> 0
C22: =Asset12 -> 0 | G22: ='PTRM input'!G180*(1+rvanilla01)^0.5 -> 0 | H22: ='PTRM input'!H180*(1+rvanilla02)^0.5 -> 0 | I22: ='PTRM input'!I180*(1+rvanilla03)^0.5 -> 0 | J22: ='PTRM input'!J180*(1+rvanilla04)^0.5 -> 0 | K22: ='PTRM input'!K180*(1+rvanilla05)^0.5 -> 0 | L22: ='PTRM input'!L180*(1+rvanilla06)^0.5 -> 0 | M22: ='PTRM input'!M180*(1+rvanilla07)^0.5 -> 0 | N22: ='PTRM input'!N180*(1+rvanilla08)^0.5 -> 0 | O22: ='PTRM input'!O180*(1+rvanilla09)^0.5 -> 0 | P22: ='PTRM input'!P180*(1+rvanilla10)^0.5 -> 0
C23: =Asset13 -> Other - long life | G23: ='PTRM input'!G181*(1+rvanilla01)^0.5 -> 0.758292044 | H23: ='PTRM input'!H181*(1+rvanilla02)^0.5 -> 2.907250713 | I23: ='PTRM input'!I181*(1+rvanilla03)^0.5 -> 3.364708806 | J23: ='PTRM input'!J181*(1+rvanilla04)^0.5 -> 1.593592553 | K23: ='PTRM input'!K181*(1+rvanilla05)^0.5 -> 1.372621403 | L23: ='PTRM input'!L181*(1+rvanilla06)^0.5 -> 0 | M23: ='PTRM input'!M181*(1+rvanilla07)^0.5 -> 0 | N23: ='PTRM input'!N181*(1+rvanilla08)^0.5 -> 0 | O23: ='PTRM input'!O181*(1+rvanilla09)^0.5 -> 0 | P23: ='PTRM input'!P181*(1+rvanilla10)^0.5 -> 0
C24: =Asset14 -> 0 | G24: ='PTRM input'!G182*(1+rvanilla01)^0.5 -> 0 | H24: ='PTRM input'!H182*(1+rvanilla02)^0.5 -> 0 | I24: ='PTRM input'!I182*(1+rvanilla03)^0.5 -> 0 | J24: ='PTRM input'!J182*(1+rvanilla04)^0.5 -> 0 | K24: ='PTRM input'!K182*(1+rvanilla05)^0.5 -> 0 | L24: ='PTRM input'!L182*(1+rvanilla06)^0.5 -> 0 | M24: ='PTRM input'!M182*(1+rvanilla07)^0.5 -> 0 | N24: ='PTRM input'!N182*(1+rvanilla08)^0.5 -> 0 | O24: ='PTRM input'!O182*(1+rvanilla09)^0.5 -> 0 | P24: ='PTRM input'!P182*(1+rvanilla10)^0.5 -> 0
C25: =Asset15 -> 0 | G25: ='PTRM input'!G183*(1+rvanilla01)^0.5 -> 0 | H25: ='PTRM input'!H183*(1+rvanilla02)^0.5 -> 0 | I25: ='PTRM input'!I183*(1+rvanilla03)^0.5 -> 0 | J25: ='PTRM input'!J183*(1+rvanilla04)^0.5 -> 0 | K25: ='PTRM input'!K183*(1+rvanilla05)^0.5 -> 0 | L25: ='PTRM input'!L183*(1+rvanilla06)^0.5 -> 0 | M25: ='PTRM input'!M183*(1+rvanilla07)^0.5 -> 0 | N25: ='PTRM input'!N183*(1+rvanilla08)^0.5 -> 0 | O25: ='PTRM input'!O183*(1+rvanilla09)^0.5 -> 0 | P25: ='PTRM input'!P183*(1+rvanilla10)^0.5 -> 0
C26: =Asset16 -> 0 | G26: ='PTRM input'!G184*(1+rvanilla01)^0.5 -> 0 | H26: ='PTRM input'!H184*(1+rvanilla02)^0.5 -> 0 | I26: ='PTRM input'!I184*(1+rvanilla03)^0.5 -> 0 | J26: ='PTRM input'!J184*(1+rvanilla04)^0.5 -> 0 | K26: ='PTRM input'!K184*(1+rvanilla05)^0.5 -> 0 | L26: ='PTRM input'!L184*(1+rvanilla06)^0.5 -> 0 | M26: ='PTRM input'!M184*(1+rvanilla07)^0.5 -> 0 | N26: ='PTRM input'!N184*(1+rvanilla08)^0.5 -> 0 | O26: ='PTRM input'!O184*(1+rvanilla09)^0.5 -> 0 | P26: ='PTRM input'!P184*(1+rvanilla10)^0.5 -> 0
C27: =Asset17 -> 0 | G27: ='PTRM input'!G185*(1+rvanilla01)^0.5 -> 0 | H27: ='PTRM input'!H185*(1+rvanilla02)^0.5 -> 0 | I27: ='PTRM input'!I185*(1+rvanilla03)^0.5 -> 0 | J27: ='PTRM input'!J185*(1+rvanilla04)^0.5 -> 0 | K27: ='PTRM input'!K185*(1+rvanilla05)^0.5 -> 0 | L27: ='PTRM input'!L185*(1+rvanilla06)^0.5 -> 0 | M27: ='PTRM input'!M185*(1+rvanilla07)^0.5 -> 0 | N27: ='PTRM input'!N185*(1+rvanilla08)^0.5 -> 0 | O27: ='PTRM input'!O185*(1+rvanilla09)^0.5 -> 0 | P27: ='PTRM input'!P185*(1+rvanilla10)^0.5 -> 0
C28: =Asset18 -> 0 | G28: ='PTRM input'!G186*(1+rvanilla01)^0.5 -> 0 | H28: ='PTRM input'!H186*(1+rvanilla02)^0.5 -> 0 | I28: ='PTRM input'!I186*(1+rvanilla03)^0.5 -> 0 | J28: ='PTRM input'!J186*(1+rvanilla04)^0.5 -> 0 | K28: ='PTRM input'!K186*(1+rvanilla05)^0.5 -> 0 | L28: ='PTRM input'!L186*(1+rvanilla06)^0.5 -> 0 | M28: ='PTRM input'!M186*(1+rvanilla07)^0.5 -> 0 | N28: ='PTRM input'!N186*(1+rvanilla08)^0.5 -> 0 | O28: ='PTRM input'!O186*(1+rvanilla09)^0.5 -> 0 | P28: ='PTRM input'!P186*(1+rvanilla10)^0.5 -> 0
C29: =Asset19 -> 0 | G29: ='PTRM input'!G187*(1+rvanilla01)^0.5 -> 0 | H29: ='PTRM input'!H187*(1+rvanilla02)^0.5 -> 0 | I29: ='PTRM input'!I187*(1+rvanilla03)^0.5 -> 0 | J29: ='PTRM input'!J187*(1+rvanilla04)^0.5 -> 0 | K29: ='PTRM input'!K187*(1+rvanilla05)^0.5 -> 0 | L29: ='PTRM input'!L187*(1+rvanilla06)^0.5 -> 0 | M29: ='PTRM input'!M187*(1+rvanilla07)^0.5 -> 0 | N29: ='PTRM input'!N187*(1+rvanilla08)^0.5 -> 0 | O29: ='PTRM input'!O187*(1+rvanilla09)^0.5 -> 0 | P29: ='PTRM input'!P187*(1+rvanilla10)^0.5 -> 0
C30: =Asset20 -> 0 | G30: ='PTRM input'!G188*(1+rvanilla01)^0.5 -> 0 | H30: ='PTRM input'!H188*(1+rvanilla02)^0.5 -> 0 | I30: ='PTRM input'!I188*(1+rvanilla03)^0.5 -> 0 | J30: ='PTRM input'!J188*(1+rvanilla04)^0.5 -> 0 | K30: ='PTRM input'!K188*(1+rvanilla05)^0.5 -> 0 | L30: ='PTRM input'!L188*(1+rvanilla06)^0.5 -> 0 | M30: ='PTRM input'!M188*(1+rvanilla07)^0.5 -> 0 | N30: ='PTRM input'!N188*(1+rvanilla08)^0.5 -> 0 | O30: ='PTRM input'!O188*(1+rvanilla09)^0.5 -> 0 | P30: ='PTRM input'!P188*(1+rvanilla10)^0.5 -> 0
C31: =Asset21 -> 0 | G31: ='PTRM input'!G189*(1+rvanilla01)^0.5 -> 0 | H31: ='PTRM input'!H189*(1+rvanilla02)^0.5 -> 0 | I31: ='PTRM input'!I189*(1+rvanilla03)^0.5 -> 0 | J31: ='PTRM input'!J189*(1+rvanilla04)^0.5 -> 0 | K31: ='PTRM input'!K189*(1+rvanilla05)^0.5 -> 0 | L31: ='PTRM input'!L189*(1+rvanilla06)^0.5 -> 0 | M31: ='PTRM input'!M189*(1+rvanilla07)^0.5 -> 0 | N31: ='PTRM input'!N189*(1+rvanilla08)^0.5 -> 0 | O31: ='PTRM input'!O189*(1+rvanilla09)^0.5 -> 0 | P31: ='PTRM input'!P189*(1+rvanilla10)^0.5 -> 0
C32: =Asset22 -> 0 | G32: ='PTRM input'!G190*(1+rvanilla01)^0.5 -> 0 | H32: ='PTRM input'!H190*(1+rvanilla02)^0.5 -> 0 | I32: ='PTRM input'!I190*(1+rvanilla03)^0.5 -> 0 | J32: ='PTRM input'!J190*(1+rvanilla04)^0.5 -> 0 | K32: ='PTRM input'!K190*(1+rvanilla05)^0.5 -> 0 | L32: ='PTRM input'!L190*(1+rvanilla06)^0.5 -> 0 | M32: ='PTRM input'!M190*(1+rvanilla07)^0.5 -> 0 | N32: ='PTRM input'!N190*(1+rvanilla08)^0.5 -> 0 | O32: ='PTRM input'!O190*(1+rvanilla09)^0.5 -> 0 | P32: ='PTRM input'!P190*(1+rvanilla10)^0.5 -> 0
C33: =Asset23 -> 0 | G33: ='PTRM input'!G191*(1+rvanilla01)^0.5 -> 0 | H33: ='PTRM input'!H191*(1+rvanilla02)^0.5 -> 0 | I33: ='PTRM input'!I191*(1+rvanilla03)^0.5 -> 0 | J33: ='PTRM input'!J191*(1+rvanilla04)^0.5 -> 0 | K33: ='PTRM input'!K191*(1+rvanilla05)^0.5 -> 0 | L33: ='PTRM input'!L191*(1+rvanilla06)^0.5 -> 0 | M33: ='PTRM input'!M191*(1+rvanilla07)^0.5 -> 0 | N33: ='PTRM input'!N191*(1+rvanilla08)^0.5 -> 0 | O33: ='PTRM input'!O191*(1+rvanilla09)^0.5 -> 0 | P33: ='PTRM input'!P191*(1+rvanilla10)^0.5 -> 0
C34: =Asset24 -> 0 | G34: ='PTRM input'!G192*(1+rvanilla01)^0.5 -> 0 | H34: ='PTRM input'!H192*(1+rvanilla02)^0.5 -> 0 | I34: ='PTRM input'!I192*(1+rvanilla03)^0.5 -> 0 | J34: ='PTRM input'!J192*(1+rvanilla04)^0.5 -> 0 | K34: ='PTRM input'!K192*(1+rvanilla05)^0.5 -> 0 | L34: ='PTRM input'!L192*(1+rvanilla06)^0.5 -> 0 | M34: ='PTRM input'!M192*(1+rvanilla07)^0.5 -> 0 | N34: ='PTRM input'!N192*(1+rvanilla08)^0.5 -> 0 | O34: ='PTRM input'!O192*(1+rvanilla09)^0.5 -> 0 | P34: ='PTRM input'!P192*(1+rvanilla10)^0.5 -> 0
C35: =Asset25 -> 0 | G35: ='PTRM input'!G193*(1+rvanilla01)^0.5 -> 0 | H35: ='PTRM input'!H193*(1+rvanilla02)^0.5 -> 0 | I35: ='PTRM input'!I193*(1+rvanilla03)^0.5 -> 0 | J35: ='PTRM input'!J193*(1+rvanilla04)^0.5 -> 0 | K35: ='PTRM input'!K193*(1+rvanilla05)^0.5 -> 0 | L35: ='PTRM input'!L193*(1+rvanilla06)^0.5 -> 0 | M35: ='PTRM input'!M193*(1+rvanilla07)^0.5 -> 0 | N35: ='PTRM input'!N193*(1+rvanilla08)^0.5 -> 0 | O35: ='PTRM input'!O193*(1+rvanilla09)^0.5 -> 0 | P35: ='PTRM input'!P193*(1+rvanilla10)^0.5 -> 0
C36: =Asset26 -> 0 | G36: ='PTRM input'!G194*(1+rvanilla01)^0.5 -> 0 | H36: ='PTRM input'!H194*(1+rvanilla02)^0.5 -> 0 | I36: ='PTRM input'!I194*(1+rvanilla03)^0.5 -> 0 | J36: ='PTRM input'!J194*(1+rvanilla04)^0.5 -> 0 | K36: ='PTRM input'!K194*(1+rvanilla05)^0.5 -> 0 | L36: ='PTRM input'!L194*(1+rvanilla06)^0.5 -> 0 | M36: ='PTRM input'!M194*(1+rvanilla07)^0.5 -> 0 | N36: ='PTRM input'!N194*(1+rvanilla08)^0.5 -> 0 | O36: ='PTRM input'!O194*(1+rvanilla09)^0.5 -> 0 | P36: ='PTRM input'!P194*(1+rvanilla10)^0.5 -> 0
C37: =Asset27 -> 0 | G37: ='PTRM input'!G195*(1+rvanilla01)^0.5 -> 0 | H37: ='PTRM input'!H195*(1+rvanilla02)^0.5 -> 0 | I37: ='PTRM input'!I195*(1+rvanilla03)^0.5 -> 0 | J37: ='PTRM input'!J195*(1+rvanilla04)^0.5 -> 0 | K37: ='PTRM input'!K195*(1+rvanilla05)^0.5 -> 0 | L37: ='PTRM input'!L195*(1+rvanilla06)^0.5 -> 0 | M37: ='PTRM input'!M195*(1+rvanilla07)^0.5 -> 0 | N37: ='PTRM input'!N195*(1+rvanilla08)^0.5 -> 0 | O37: ='PTRM input'!O195*(1+rvanilla09)^0.5 -> 0 | P37: ='PTRM input'!P195*(1+rvanilla10)^0.5 -> 0
C38: =Asset28 -> 0 | G38: ='PTRM input'!G196*(1+rvanilla01)^0.5 -> 0 | H38: ='PTRM input'!H196*(1+rvanilla02)^0.5 -> 0 | I38: ='PTRM input'!I196*(1+rvanilla03)^0.5 -> 0 | J38: ='PTRM input'!J196*(1+rvanilla04)^0.5 -> 0 | K38: ='PTRM input'!K196*(1+rvanilla05)^0.5 -> 0 | L38: ='PTRM input'!L196*(1+rvanilla06)^0.5 -> 0 | M38: ='PTRM input'!M196*(1+rvanilla07)^0.5 -> 0 | N38: ='PTRM input'!N196*(1+rvanilla08)^0.5 -> 0 | O38: ='PTRM input'!O196*(1+rvanilla09)^0.5 -> 0 | P38: ='PTRM input'!P196*(1+rvanilla10)^0.5 -> 0
C39: =Asset29 -> 0 | G39: ='PTRM input'!G197*(1+rvanilla01)^0.5 -> 0 | H39: ='PTRM input'!H197*(1+rvanilla02)^0.5 -> 0 | I39: ='PTRM input'!I197*(1+rvanilla03)^0.5 -> 0 | J39: ='PTRM input'!J197*(1+rvanilla04)^0.5 -> 0 | K39: ='PTRM input'!K197*(1+rvanilla05)^0.5 -> 0 | L39: ='PTRM input'!L197*(1+rvanilla06)^0.5 -> 0 | M39: ='PTRM input'!M197*(1+rvanilla07)^0.5 -> 0 | N39: ='PTRM input'!N197*(1+rvanilla08)^0.5 -> 0 | O39: ='PTRM input'!O197*(1+rvanilla09)^0.5 -> 0 | P39: ='PTRM input'!P197*(1+rvanilla10)^0.5 -> 0
C40: =Asset30 -> 0 | G40: ='PTRM input'!G198*(1+rvanilla01)^0.5 -> 0 | H40: ='PTRM input'!H198*(1+rvanilla02)^0.5 -> 0 | I40: ='PTRM input'!I198*(1+rvanilla03)^0.5 -> 0 | J40: ='PTRM input'!J198*(1+rvanilla04)^0.5 -> 0 | K40: ='PTRM input'!K198*(1+rvanilla05)^0.5 -> 0 | L40: ='PTRM input'!L198*(1+rvanilla06)^0.5 -> 0 | M40: ='PTRM input'!M198*(1+rvanilla07)^0.5 -> 0 | N40: ='PTRM input'!N198*(1+rvanilla08)^0.5 -> 0 | O40: ='PTRM input'!O198*(1+rvanilla09)^0.5 -> 0 | P40: ='PTRM input'!P198*(1+rvanilla10)^0.5 -> 0
C41: =Asset31 -> 0 | G41: ='PTRM input'!G199*(1+rvanilla01)^0.5 -> 0 | H41: ='PTRM input'!H199*(1+rvanilla02)^0.5 -> 0 | I41: ='PTRM input'!I199*(1+rvanilla03)^0.5 -> 0 | J41: ='PTRM input'!J199*(1+rvanilla04)^0.5 -> 0 | K41: ='PTRM input'!K199*(1+rvanilla05)^0.5 -> 0 | L41: ='PTRM input'!L199*(1+rvanilla06)^0.5 -> 0 | M41: ='PTRM input'!M199*(1+rvanilla07)^0.5 -> 0 | N41: ='PTRM input'!N199*(1+rvanilla08)^0.5 -> 0 | O41: ='PTRM input'!O199*(1+rvanilla09)^0.5 -> 0 | P41: ='PTRM input'!P199*(1+rvanilla10)^0.5 -> 0
C42: =Asset32 -> 0 | G42: ='PTRM input'!G200*(1+rvanilla01)^0.5 -> 0 | H42: ='PTRM input'!H200*(1+rvanilla02)^0.5 -> 0 | I42: ='PTRM input'!I200*(1+rvanilla03)^0.5 -> 0 | J42: ='PTRM input'!J200*(1+rvanilla04)^0.5 -> 0 | K42: ='PTRM input'!K200*(1+rvanilla05)^0.5 -> 0 | L42: ='PTRM input'!L200*(1+rvanilla06)^0.5 -> 0 | M42: ='PTRM input'!M200*(1+rvanilla07)^0.5 -> 0 | N42: ='PTRM input'!N200*(1+rvanilla08)^0.5 -> 0 | O42: ='PTRM input'!O200*(1+rvanilla09)^0.5 -> 0 | P42: ='PTRM input'!P200*(1+rvanilla10)^0.5 -> 0
C43: =Asset33 -> 0 | G43: ='PTRM input'!G201*(1+rvanilla01)^0.5 -> 0 | H43: ='PTRM input'!H201*(1+rvanilla02)^0.5 -> 0 | I43: ='PTRM input'!I201*(1+rvanilla03)^0.5 -> 0 | J43: ='PTRM input'!J201*(1+rvanilla04)^0.5 -> 0 | K43: ='PTRM input'!K201*(1+rvanilla05)^0.5 -> 0 | L43: ='PTRM input'!L201*(1+rvanilla06)^0.5 -> 0 | M43: ='PTRM input'!M201*(1+rvanilla07)^0.5 -> 0 | N43: ='PTRM input'!N201*(1+rvanilla08)^0.5 -> 0 | O43: ='PTRM input'!O201*(1+rvanilla09)^0.5 -> 0 | P43: ='PTRM input'!P201*(1+rvanilla10)^0.5 -> 0
C44: =Asset34 -> 0 | G44: ='PTRM input'!G202*(1+rvanilla01)^0.5 -> 0 | H44: ='PTRM input'!H202*(1+rvanilla02)^0.5 -> 0 | I44: ='PTRM input'!I202*(1+rvanilla03)^0.5 -> 0 | J44: ='PTRM input'!J202*(1+rvanilla04)^0.5 -> 0 | K44: ='PTRM input'!K202*(1+rvanilla05)^0.5 -> 0 | L44: ='PTRM input'!L202*(1+rvanilla06)^0.5 -> 0 | M44: ='PTRM input'!M202*(1+rvanilla07)^0.5 -> 0 | N44: ='PTRM input'!N202*(1+rvanilla08)^0.5 -> 0 | O44: ='PTRM input'!O202*(1+rvanilla09)^0.5 -> 0 | P44: ='PTRM input'!P202*(1+rvanilla10)^0.5 -> 0
C45: =Asset35 -> 0 | G45: ='PTRM input'!G203*(1+rvanilla01)^0.5 -> 0 | H45: ='PTRM input'!H203*(1+rvanilla02)^0.5 -> 0 | I45: ='PTRM input'!I203*(1+rvanilla03)^0.5 -> 0 | J45: ='PTRM input'!J203*(1+rvanilla04)^0.5 -> 0 | K45: ='PTRM input'!K203*(1+rvanilla05)^0.5 -> 0 | L45: ='PTRM input'!L203*(1+rvanilla06)^0.5 -> 0 | M45: ='PTRM input'!M203*(1+rvanilla07)^0.5 -> 0 | N45: ='PTRM input'!N203*(1+rvanilla08)^0.5 -> 0 | O45: ='PTRM input'!O203*(1+rvanilla09)^0.5 -> 0 | P45: ='PTRM input'!P203*(1+rvanilla10)^0.5 -> 0
C46: =Asset36 -> 0 | G46: ='PTRM input'!G204*(1+rvanilla01)^0.5 -> 0 | H46: ='PTRM input'!H204*(1+rvanilla02)^0.5 -> 0 | I46: ='PTRM input'!I204*(1+rvanilla03)^0.5 -> 0 | J46: ='PTRM input'!J204*(1+rvanilla04)^0.5 -> 0 | K46: ='PTRM input'!K204*(1+rvanilla05)^0.5 -> 0 | L46: ='PTRM input'!L204*(1+rvanilla06)^0.5 -> 0 | M46: ='PTRM input'!M204*(1+rvanilla07)^0.5 -> 0 | N46: ='PTRM input'!N204*(1+rvanilla08)^0.5 -> 0 | O46: ='PTRM input'!O204*(1+rvanilla09)^0.5 -> 0 | P46: ='PTRM input'!P204*(1+rvanilla10)^0.5 -> 0
C47: =Asset37 -> 0 | G47: ='PTRM input'!G205*(1+rvanilla01)^0.5 -> 0 | H47: ='PTRM input'!H205*(1+rvanilla02)^0.5 -> 0 | I47: ='PTRM input'!I205*(1+rvanilla03)^0.5 -> 0 | J47: ='PTRM input'!J205*(1+rvanilla04)^0.5 -> 0 | K47: ='PTRM input'!K205*(1+rvanilla05)^0.5 -> 0 | L47: ='PTRM input'!L205*(1+rvanilla06)^0.5 -> 0 | M47: ='PTRM input'!M205*(1+rvanilla07)^0.5 -> 0 | N47: ='PTRM input'!N205*(1+rvanilla08)^0.5 -> 0 | O47: ='PTRM input'!O205*(1+rvanilla09)^0.5 -> 0 | P47: ='PTRM input'!P205*(1+rvanilla10)^0.5 -> 0
C48: =Asset38 -> 0 | G48: ='PTRM input'!G206*(1+rvanilla01)^0.5 -> 0 | H48: ='PTRM input'!H206*(1+rvanilla02)^0.5 -> 0 | I48: ='PTRM input'!I206*(1+rvanilla03)^0.5 -> 0 | J48: ='PTRM input'!J206*(1+rvanilla04)^0.5 -> 0 | K48: ='PTRM input'!K206*(1+rvanilla05)^0.5 -> 0 | L48: ='PTRM input'!L206*(1+rvanilla06)^0.5 -> 0 | M48: ='PTRM input'!M206*(1+rvanilla07)^0.5 -> 0 | N48: ='PTRM input'!N206*(1+rvanilla08)^0.5 -> 0 | O48: ='PTRM input'!O206*(1+rvanilla09)^0.5 -> 0 | P48: ='PTRM input'!P206*(1+rvanilla10)^0.5 -> 0
C49: =Asset39 -> 0 | G49: ='PTRM input'!G207*(1+rvanilla01)^0.5 -> 0 | H49: ='PTRM input'!H207*(1+rvanilla02)^0.5 -> 0 | I49: ='PTRM input'!I207*(1+rvanilla03)^0.5 -> 0 | J49: ='PTRM input'!J207*(1+rvanilla04)^0.5 -> 0 | K49: ='PTRM input'!K207*(1+rvanilla05)^0.5 -> 0 | L49: ='PTRM input'!L207*(1+rvanilla06)^0.5 -> 0 | M49: ='PTRM input'!M207*(1+rvanilla07)^0.5 -> 0 | N49: ='PTRM input'!N207*(1+rvanilla08)^0.5 -> 0 | O49: ='PTRM input'!O207*(1+rvanilla09)^0.5 -> 0 | P49: ='PTRM input'!P207*(1+rvanilla10)^0.5 -> 0
C50: =Asset40 -> 0 | G50: ='PTRM input'!G208*(1+rvanilla01)^0.5 -> 0 | H50: ='PTRM input'!H208*(1+rvanilla02)^0.5 -> 0 | I50: ='PTRM input'!I208*(1+rvanilla03)^0.5 -> 0 | J50: ='PTRM input'!J208*(1+rvanilla04)^0.5 -> 0 | K50: ='PTRM input'!K208*(1+rvanilla05)^0.5 -> 0 | L50: ='PTRM input'!L208*(1+rvanilla06)^0.5 -> 0 | M50: ='PTRM input'!M208*(1+rvanilla07)^0.5 -> 0 | N50: ='PTRM input'!N208*(1+rvanilla08)^0.5 -> 0 | O50: ='PTRM input'!O208*(1+rvanilla09)^0.5 -> 0 | P50: ='PTRM input'!P208*(1+rvanilla10)^0.5 -> 0
C51: =Asset41 -> 0 | G51: ='PTRM input'!G209*(1+rvanilla01)^0.5 -> 0 | H51: ='PTRM input'!H209*(1+rvanilla02)^0.5 -> 0 | I51: ='PTRM input'!I209*(1+rvanilla03)^0.5 -> 0 | J51: ='PTRM input'!J209*(1+rvanilla04)^0.5 -> 0 | K51: ='PTRM input'!K209*(1+rvanilla05)^0.5 -> 0 | L51: ='PTRM input'!L209*(1+rvanilla06)^0.5 -> 0 | M51: ='PTRM input'!M209*(1+rvanilla07)^0.5 -> 0 | N51: ='PTRM input'!N209*(1+rvanilla08)^0.5 -> 0 | O51: ='PTRM input'!O209*(1+rvanilla09)^0.5 -> 0 | P51: ='PTRM input'!P209*(1+rvanilla10)^0.5 -> 0
C52: =Asset42 -> 0 | G52: ='PTRM input'!G210*(1+rvanilla01)^0.5 -> 0 | H52: ='PTRM input'!H210*(1+rvanilla02)^0.5 -> 0 | I52: ='PTRM input'!I210*(1+rvanilla03)^0.5 -> 0 | J52: ='PTRM input'!J210*(1+rvanilla04)^0.5 -> 0 | K52: ='PTRM input'!K210*(1+rvanilla05)^0.5 -> 0 | L52: ='PTRM input'!L210*(1+rvanilla06)^0.5 -> 0 | M52: ='PTRM input'!M210*(1+rvanilla07)^0.5 -> 0 | N52: ='PTRM input'!N210*(1+rvanilla08)^0.5 -> 0 | O52: ='PTRM input'!O210*(1+rvanilla09)^0.5 -> 0 | P52: ='PTRM input'!P210*(1+rvanilla10)^0.5 -> 0
C53: =Asset43 -> 0 | G53: ='PTRM input'!G211*(1+rvanilla01)^0.5 -> 0 | H53: ='PTRM input'!H211*(1+rvanilla02)^0.5 -> 0 | I53: ='PTRM input'!I211*(1+rvanilla03)^0.5 -> 0 | J53: ='PTRM input'!J211*(1+rvanilla04)^0.5 -> 0 | K53: ='PTRM input'!K211*(1+rvanilla05)^0.5 -> 0 | L53: ='PTRM input'!L211*(1+rvanilla06)^0.5 -> 0 | M53: ='PTRM input'!M211*(1+rvanilla07)^0.5 -> 0 | N53: ='PTRM input'!N211*(1+rvanilla08)^0.5 -> 0 | O53: ='PTRM input'!O211*(1+rvanilla09)^0.5 -> 0 | P53: ='PTRM input'!P211*(1+rvanilla10)^0.5 -> 0
C54: =Asset44 -> 0 | G54: ='PTRM input'!G212*(1+rvanilla01)^0.5 -> 0 | H54: ='PTRM input'!H212*(1+rvanilla02)^0.5 -> 0 | I54: ='PTRM input'!I212*(1+rvanilla03)^0.5 -> 0 | J54: ='PTRM input'!J212*(1+rvanilla04)^0.5 -> 0 | K54: ='PTRM input'!K212*(1+rvanilla05)^0.5 -> 0 | L54: ='PTRM input'!L212*(1+rvanilla06)^0.5 -> 0 | M54: ='PTRM input'!M212*(1+rvanilla07)^0.5 -> 0 | N54: ='PTRM input'!N212*(1+rvanilla08)^0.5 -> 0 | O54: ='PTRM input'!O212*(1+rvanilla09)^0.5 -> 0 | P54: ='PTRM input'!P212*(1+rvanilla10)^0.5 -> 0
C55: =Asset45 -> 0 | G55: ='PTRM input'!G213*(1+rvanilla01)^0.5 -> 0 | H55: ='PTRM input'!H213*(1+rvanilla02)^0.5 -> 0 | I55: ='PTRM input'!I213*(1+rvanilla03)^0.5 -> 0 | J55: ='PTRM input'!J213*(1+rvanilla04)^0.5 -> 0 | K55: ='PTRM input'!K213*(1+rvanilla05)^0.5 -> 0 | L55: ='PTRM input'!L213*(1+rvanilla06)^0.5 -> 0 | M55: ='PTRM input'!M213*(1+rvanilla07)^0.5 -> 0 | N55: ='PTRM input'!N213*(1+rvanilla08)^0.5 -> 0 | O55: ='PTRM input'!O213*(1+rvanilla09)^0.5 -> 0 | P55: ='PTRM input'!P213*(1+rvanilla10)^0.5 -> 0
C56: =Asset46 -> 0 | G56: ='PTRM input'!G214*(1+rvanilla01)^0.5 -> 0 | H56: ='PTRM input'!H214*(1+rvanilla02)^0.5 -> 0 | I56: ='PTRM input'!I214*(1+rvanilla03)^0.5 -> 0 | J56: ='PTRM input'!J214*(1+rvanilla04)^0.5 -> 0 | K56: ='PTRM input'!K214*(1+rvanilla05)^0.5 -> 0 | L56: ='PTRM input'!L214*(1+rvanilla06)^0.5 -> 0 | M56: ='PTRM input'!M214*(1+rvanilla07)^0.5 -> 0 | N56: ='PTRM input'!N214*(1+rvanilla08)^0.5 -> 0 | O56: ='PTRM input'!O214*(1+rvanilla09)^0.5 -> 0 | P56: ='PTRM input'!P214*(1+rvanilla10)^0.5 -> 0
C57: =Asset47 -> Spare straight-line tax asset class | G57: ='PTRM input'!G215*(1+rvanilla01)^0.5 -> 0 | H57: ='PTRM input'!H215*(1+rvanilla02)^0.5 -> 0 | I57: ='PTRM input'!I215*(1+rvanilla03)^0.5 -> 0 | J57: ='PTRM input'!J215*(1+rvanilla04)^0.5 -> 0 | K57: ='PTRM input'!K215*(1+rvanilla05)^0.5 -> 0 | L57: ='PTRM input'!L215*(1+rvanilla06)^0.5 -> 0 | M57: ='PTRM input'!M215*(1+rvanilla07)^0.5 -> 0 | N57: ='PTRM input'!N215*(1+rvanilla08)^0.5 -> 0 | O57: ='PTRM input'!O215*(1+rvanilla09)^0.5 -> 0 | P57: ='PTRM input'!P215*(1+rvanilla10)^0.5 -> 0
C58: =Asset48 -> Buildings - capital works | G58: ='PTRM input'!G216*(1+rvanilla01)^0.5 -> 0 | H58: ='PTRM input'!H216*(1+rvanilla02)^0.5 -> 0 | I58: ='PTRM input'!I216*(1+rvanilla03)^0.5 -> 0 | J58: ='PTRM input'!J216*(1+rvanilla04)^0.5 -> 0 | K58: ='PTRM input'!K216*(1+rvanilla05)^0.5 -> 0 | L58: ='PTRM input'!L216*(1+rvanilla06)^0.5 -> 0 | M58: ='PTRM input'!M216*(1+rvanilla07)^0.5 -> 0 | N58: ='PTRM input'!N216*(1+rvanilla08)^0.5 -> 0 | O58: ='PTRM input'!O216*(1+rvanilla09)^0.5 -> 0 | P58: ='PTRM input'!P216*(1+rvanilla10)^0.5 -> 0
C59: =Asset49 -> In-house software | G59: ='PTRM input'!G217*(1+rvanilla01)^0.5 -> 0 | H59: ='PTRM input'!H217*(1+rvanilla02)^0.5 -> 0 | I59: ='PTRM input'!I217*(1+rvanilla03)^0.5 -> 0 | J59: ='PTRM input'!J217*(1+rvanilla04)^0.5 -> 0 | K59: ='PTRM input'!K217*(1+rvanilla05)^0.5 -> 0 | L59: ='PTRM input'!L217*(1+rvanilla06)^0.5 -> 0 | M59: ='PTRM input'!M217*(1+rvanilla07)^0.5 -> 0 | N59: ='PTRM input'!N217*(1+rvanilla08)^0.5 -> 0 | O59: ='PTRM input'!O217*(1+rvanilla09)^0.5 -> 0 | P59: ='PTRM input'!P217*(1+rvanilla10)^0.5 -> 0
C60: =Asset50 -> Equity raising costs | G60: ='PTRM input'!G218*(1+rvanilla01)^0.5 -> 0 | H60: ='PTRM input'!H218*(1+rvanilla02)^0.5 -> 0 | I60: ='PTRM input'!I218*(1+rvanilla03)^0.5 -> 0 | J60: ='PTRM input'!J218*(1+rvanilla04)^0.5 -> 0 | K60: ='PTRM input'!K218*(1+rvanilla05)^0.5 -> 0 | L60: ='PTRM input'!L218*(1+rvanilla06)^0.5 -> 0 | M60: ='PTRM input'!M218*(1+rvanilla07)^0.5 -> 0 | N60: ='PTRM input'!N218*(1+rvanilla08)^0.5 -> 0 | O60: ='PTRM input'!O218*(1+rvanilla09)^0.5 -> 0 | P60: ='PTRM input'!P218*(1+rvanilla10)^0.5 -> 0
B61: Nominal Net Capex | G61: =SUM(G62:G111) -> 140.2232213 | H61: =SUM(H62:H111) -> 44.91111469 | I61: 22.87112908 | J61: 20.11341151 | K61: 22.82677356 | L61: =SUM(L62:L111) -> 0 | M61: 0 | N61: 0 | O61: 0 | P61: 0
C62: =Asset1 -> Pipelines | G62: =G11*G$7 -> 80.63308701 | H62: =H11*H$7 -> 20.57761009 | I62: 1.893238888 | J62: 1.955501787 | K62: 1.460870073 | L62: =L11*L$7 -> 0 | M62: 0 | N62: 0 | O62: 0 | P62: 0
C63: =Asset2 -> Compressors | G63: =G12*G$7 -> 43.71771738 | H63: 1.729205502 | I63: 0.595358141 | J63: 0.614937669 | K63: 5.430625707 | L63: =L12*L$7 -> 0 | M63: 0 | N63: 0 | O63: 0 | P63: 0
C64: =Asset3 -> City Gates & Field Regulators | G64: =G13*G$7 -> 3.297314372 | H64: 0.1152803668 | I64: 0.1190716282 | J64: 0.1229875338 | K64: =K13*K$7 -> 0.1365278358 | L64: =L13*L$7 -> 0 | M64: 0 | N64: 0 | O64: 0 | P64: 0
C65: =Asset4 -> Odourant Plants | G65: 0 | H65: 0 | I65: 0 | J65: 0 | K65: 0 | L65: 0 | M65: 0 | N65: 0 | O65: 0 | P65: 0
C66: =Asset5 -> Gas Quality | G66: 0.1171902726 | H66: 0 | I66: 0.1750352934 | J66: 0 | K66: 0 | L66: 0 | M66: 0 | N66: 0 | O66: 0 | P66: 0
C67: =Asset6 -> Other - short life | G67: 5.584750632 | H67: =H16*H$7 -> 7.152895656 | I67: 5.680664231 | J67: 5.524138298 | K67: 7.709693851 | L67: 0 | M67: 0 | N67: 0 | O67: 0 | P67: 0
C68: =Asset7 -> General Building | G68: 0 | H68: 0 | I68: 0 | J68: 0 | K68: 0 | L68: 0 | M68: 0 | N68: 0 | O68: 0 | P68: 0
C69: =Asset8 -> General Land | G69: 0 | H69: 0 | I69: 0 | J69: 0 | K69: 0 | L69: 0 | M69: 0 | N69: 0 | O69: 0 | P69: 0
C70: =Asset9 -> Integrity Inspections | G70: 6.090247881 | H70: 12.23701094 | I70: 10.70453937 | J70: 10.08497777 | K70: 6.478641194 | L70: 0 | M70: 0 | N70: 0 | O70: 0 | P70: 0
C71: =Asset10 -> 0 | G71: 0 | H71: 0 | I71: 0 | J71: 0 | K71: 0 | L71: 0 | M71: 0 | N71: 0 | O71: 0 | P71: 0
C72: =Asset11 -> 0 | G72: 0 | H72: 0 | I72: 0 | J72: 0 | K72: 0 | L72: 0 | M72: 0 | N72: 0 | O72: 0 | P72: 0
C73: =Asset12 -> 0 | G73: 0 | H73: 0 | I73: 0 | J73: 0 | K73: 0 | L73: 0 | M73: 0 | N73: 0 | O73: 0 | P73: 0
C74: =Asset13 -> Other - long life | G74: 0.7829137166 | H74: 3.099112137 | I74: 3.703221527 | J74: 1.810868448 | K74: 1.610414897 | L74: 0 | M74: 0 | N74: 0 | O74: 0 | P74: 0
C75: =Asset14 -> 0 | G75: 0 | H75: 0 | I75: 0 | J75: 0 | K75: 0 | L75: 0 | M75: 0 | N75: 0 | O75: 0 | P75: 0
C76: =Asset15 -> 0 | G76: 0 | H76: 0 | I76: 0 | J76: 0 | K76: 0 | L76: 0 | M76: 0 | N76: 0 | O76: 0 | P76: 0
C77: =Asset16 -> 0 | G77: 0 | H77: 0 | I77: 0 | J77: 0 | K77: 0 | L77: 0 | M77: 0 | N77: 0 | O77: 0 | P77: 0
C78: =Asset17 -> 0 | G78: 0 | H78: 0 | I78: 0 | J78: 0 | K78: 0 | L78: 0 | M78: 0 | N78: 0 | O78: 0 | P78: 0
C79: =Asset18 -> 0 | G79: 0 | H79: 0 | I79: 0 | J79: 0 | K79: 0 | L79: 0 | M79: 0 | N79: 0 | O79: 0 | P79: 0
C80: =Asset19 -> 0 | G80: =G29*G$7 -> 0 | H80: 0 | I80: 0 | J80: 0 | K80: 0 | L80: 0 | M80: 0 | N80: 0 | O80: 0 | P80: 0
C81: =Asset20 -> 0 | G81: 0 | H81: 0 | I81: 0 | J81: 0 | K81: 0 | L81: 0 | M81: 0 | N81: 0 | O81: 0 | P81: 0
C82: =Asset21 -> 0 | G82: 0 | H82: 0 | I82: 0 | J82: 0 | K82: 0 | L82: =L31*L$7 -> 0 | M82: 0 | N82: 0 | O82: 0 | P82: 0
C83: =Asset22 -> 0 | G83: 0 | H83: 0 | I83: 0 | J83: 0 | K83: 0 | L83: =L32*L$7 -> 0 | M83: 0 | N83: 0 | O83: 0 | P83: 0
C84: =Asset23 -> 0 | G84: 0 | H84: 0 | I84: 0 | J84: 0 | K84: 0 | L84: =L33*L$7 -> 0 | M84: 0 | N84: 0 | O84: 0 | P84: 0
C85: =Asset24 -> 0 | G85: 0 | H85: 0 | I85: 0 | J85: 0 | K85: 0 | L85: =L34*L$7 -> 0 | M85: 0 | N85: 0 | O85: 0 | P85: 0
C86: =Asset25 -> 0 | G86: 0 | H86: 0 | I86: 0 | J86: 0 | K86: 0 | L86: =L35*L$7 -> 0 | M86: 0 | N86: 0 | O86: 0 | P86: 0
C87: =Asset26 -> 0 | G87: 0 | H87: 0 | I87: 0 | J87: 0 | K87: 0 | L87: =L36*L$7 -> 0 | M87: 0 | N87: 0 | O87: 0 | P87: 0
C88: =Asset27 -> 0 | G88: 0 | H88: 0 | I88: 0 | J88: 0 | K88: 0 | L88: =L37*L$7 -> 0 | M88: 0 | N88: 0 | O88: 0 | P88: 0
C89: =Asset28 -> 0 | G89: 0 | H89: 0 | I89: 0 | J89: 0 | K89: 0 | L89: =L38*L$7 -> 0 | M89: 0 | N89: 0 | O89: 0 | P89: 0
C90: =Asset29 -> 0 | G90: 0 | H90: 0 | I90: 0 | J90: 0 | K90: 0 | L90: =L39*L$7 -> 0 | M90: 0 | N90: 0 | O90: 0 | P90: 0
C91: =Asset30 -> 0 | G91: 0 | H91: 0 | I91: 0 | J91: 0 | K91: 0 | L91: =L40*L$7 -> 0 | M91: 0 | N91: 0 | O91: 0 | P91: 0
C92: =Asset31 -> 0 | G92: 0 | H92: 0 | I92: 0 | J92: 0 | K92: 0 | L92: =L41*L$7 -> 0 | M92: 0 | N92: 0 | O92: 0 | P92: 0
C93: =Asset32 -> 0 | G93: 0 | H93: 0 | I93: 0 | J93: 0 | K93: 0 | L93: =L42*L$7 -> 0 | M93: 0 | N93: 0 | O93: 0 | P93: 0
C94: =Asset33 -> 0 | G94: 0 | H94: 0 | I94: 0 | J94: 0 | K94: 0 | L94: =L43*L$7 -> 0 | M94: 0 | N94: 0 | O94: 0 | P94: 0
C95: =Asset34 -> 0 | G95: 0 | H95: 0 | I95: 0 | J95: 0 | K95: 0 | L95: =L44*L$7 -> 0 | M95: 0 | N95: 0 | O95: 0 | P95: 0
C96: =Asset35 -> 0 | G96: =G45*G$7 -> 0 | H96: 0 | I96: 0 | J96: 0 | K96: 0 | L96: =L45*L$7 -> 0 | M96: 0 | N96: 0 | O96: 0 | P96: 0
C97: =Asset36 -> 0 | G97: 0 | H97: 0 | I97: 0 | J97: 0 | K97: 0 | L97: =L46*L$7 -> 0 | M97: 0 | N97: 0 | O97: 0 | P97: 0
C98: =Asset37 -> 0 | G98: 0 | H98: 0 | I98: 0 | J98: 0 | K98: 0 | L98: =L47*L$7 -> 0 | M98: 0 | N98: 0 | O98: 0 | P98: 0
C99: =Asset38 -> 0 | G99: 0 | H99: 0 | I99: 0 | J99: 0 | K99: 0 | L99: =L48*L$7 -> 0 | M99: 0 | N99: 0 | O99: 0 | P99: 0
C100: =Asset39 -> 0 | G100: 0 | H100: 0 | I100: 0 | J100: 0 | K100: 0 | L100: =L49*L$7 -> 0 | M100: 0 | N100: 0 | O100: 0 | P100: 0
C101: =Asset40 -> 0 | G101: 0 | H101: 0 | I101: 0 | J101: 0 | K101: 0 | L101: =L50*L$7 -> 0 | M101: 0 | N101: 0 | O101: 0 | P101: 0
C102: =Asset41 -> 0 | G102: 0 | H102: 0 | I102: 0 | J102: 0 | K102: 0 | L102: =L51*L$7 -> 0 | M102: 0 | N102: 0 | O102: 0 | P102: 0
C103: =Asset42 -> 0 | G103: 0 | H103: 0 | I103: 0 | J103: 0 | K103: 0 | L103: =L52*L$7 -> 0 | M103: =M52*M$7 -> 0 | N103: 0 | O103: 0 | P103: 0
C104: =Asset43 -> 0 | G104: 0 | H104: 0 | I104: 0 | J104: 0 | K104: 0 | L104: =L53*L$7 -> 0 | M104: 0 | N104: 0 | O104: 0 | P104: 0
C105: =Asset44 -> 0 | G105: 0 | H105: 0 | I105: 0 | J105: 0 | K105: 0 | L105: =L54*L$7 -> 0 | M105: 0 | N105: 0 | O105: 0 | P105: 0
C106: =Asset45 -> 0 | G106: 0 | H106: 0 | I106: 0 | J106: 0 | K106: 0 | L106: =L55*L$7 -> 0 | M106: 0 | N106: 0 | O106: 0 | P106: 0
C107: =Asset46 -> 0 | G107: 0 | H107: 0 | I107: 0 | J107: 0 | K107: 0 | L107: =L56*L$7 -> 0 | M107: 0 | N107: 0 | O107: 0 | P107: 0
C108: =Asset47 -> Spare straight-line tax asset class | G108: 0 | H108: 0 | I108: 0 | J108: 0 | K108: 0 | L108: =L57*L$7 -> 0 | M108: 0 | N108: 0 | O108: 0 | P108: 0
C109: =Asset48 -> Buildings - capital works | G109: 0 | H109: 0 | I109: 0 | J109: 0 | K109: 0 | L109: =L58*L$7 -> 0 | M109: 0 | N109: 0 | O109: 0 | P109: 0
C110: =Asset49 -> In-house software | G110: 0 | H110: 0 | I110: 0 | J110: 0 | K110: 0 | L110: =L59*L$7 -> 0 | M110: 0 | N110: 0 | O110: 0 | P110: 0
C111: =Asset50 -> Equity raising costs | G111: 0 | H111: 0 | I111: 0 | J111: 0 | K111: 0 | L111: =L60*L$7 -> 0 | M111: 0 | N111: 0 | O111: 0 | P111: 0
B113: ="Asset Values ($m Real "&F4&")" -> Asset Values ($m Real 2022)
B115: Real Straight-line Depreciation | G115: =G128+G141+G154+G167+G180+G193+G206+G219+G232+G245+G258+G271+G284+G297+G310+G323+G336+G349+G362+G375+G388+G401+G414+G427+G440+G453+G466+G479+G492+G505+G518+G531+G544+G557+G570+G583+G596+G609+G622+G635+G648+G661+G674+G687+G700+G713+G726+G739+G752+G765 -> 51.05192842 | H115: =H128+H141+H154+H167+H180+H193+H206+H219+H232+H245+H258+H271+H284+H297+H310+H323+H336+H349+H362+H375+H388+H401+H414+H427+H440+H453+H466+H479+H492+H505+H518+H531+H544+H557+H570+H583+H596+H609+H622+H635+H648+H661+H674+H687+H700+H713+H726+H739+H752+H765 -> 62.96739635 | I115: 66.35311581 | J115: 66.34242779 | K115: 56.76030784 | L115: =L128+L141+L154+L167+L180+L193+L206+L219+L232+L245+L258+L271+L284+L297+L310+L323+L336+L349+L362+L375+L388+L401+L414+L427+L440+L453+L466+L479+L492+L505+L518+L531+L544+L557+L570+L583+L596+L609+L622+L635+L648+L661+L674+L687+L700+L713+L726+L739+L752+L765 -> 58.9179486 | M115: 57.83612518 | N115: 56.49411108 | O115: 55.46183252 | P115: 54.34275685 | Q115: 53.01843193 | R115: 52.41720974 | S115: 51.26068306 | T115: 50.26275725 | U115: 49.37526343 | V115: 48.82306278 | W115: 48.77250998 | X115: 48.57869326 | Y115: 41.58794237 | Z115: 36.64448115 | AA115: 36.55297305 | AB115: 36.55297305 | AC115: 36.55297305 | AD115: 36.55297305 | AE115: 36.55297305 | AF115: 36.55297305 | AG115: 36.55297305 | AH115: 36.55297305 | AI115: 36.55297305 | AJ115: 36.55297305 | AK115: 11.73468166 | AL115: 1.720609864 | AM115: 1.018664805 | AN115: 0.9396881118 | AO115: 0.8606795161 | AP115: 0.6610039405 | AQ115: 0.6610039405 | AR115: 0.6610039405 | AS115: 0.6610039405 | AT115: 0.6610039405 | AU115: 0.6610039405 | AV115: 0.6610039405 | AW115: 0.6610039405 | AX115: 0.6610039405 | AY115: 0.6610039405 | AZ115: 0.6610039405 | BA115: 0.6610039405 | BB115: 0.6610039405 | BC115: 0.6058630866 | BD115: 0.1677977228 | BE115: 0.1677977228 | BF115: 0.1677977228 | BG115: 0.1677977228 | BH115: 0.1677977228 | BI115: 0.1677977228
B116: =C128 -> Pipelines | D116: Initial Asset Base | G116: =IF(('PTRM input'!$E$515='PTRM input'!$G$514),IF(G$3>A1remlife,A1acvalue-SUM(F116:$F116),IF(A1remlife="N/A","n/a",A1acvalue/A1remlife)),'PTRM input'!G$520) -> 24.8182914 | H116: =IF(('PTRM input'!$E$515='PTRM input'!$G$514),IF(H$3>A1remlife,A1acvalue-SUM($F116:G116),IF(A1remlife="N/A","n/a",A1acvalue/A1remlife)),'PTRM input'!H$520) -> 24.8182914 | I116: =IF(('PTRM input'!$E$515='PTRM input'!$G$514),IF(I$3>A1remlife,A1acvalue-SUM($F116:H116),IF(A1remlife="N/A","n/a",A1acvalue/A1remlife)),'PTRM input'!I$520) -> 24.8182914 | J116: =IF(('PTRM input'!$E$515='PTRM input'!$G$514),IF(J$3>A1remlife,A1acvalue-SUM($F116:I116),IF(A1remlife="N/A","n/a",A1acvalue/A1remlife)),'PTRM input'!J$520) -> 24.8182914 | K116: =IF(('PTRM input'!$E$515='PTRM input'!$G$514),IF(K$3>A1remlife,A1acvalue-SUM($F116:J116),IF(A1remlife="N/A","n/a",A1acvalue/A1remlife)),'PTRM input'!K$520) -> 24.8182914 | L116: =IF(('PTRM input'!$E$515='PTRM input'!$G$514),IF(L$3>A1remlife,A1acvalue-SUM($F116:K116),IF(A1remlife="N/A","n/a",A1acvalue/A1remlife)),'PTRM input'!L$520) -> 24.8182914 | M116: =IF(('PTRM input'!$E$515='PTRM input'!$G$514),IF(M$3>A1remlife,A1acvalue-SUM($F116:L116),IF(A1remlife="N/A","n/a",A1acvalue/A1remlife)),'PTRM input'!M$520) -> 24.8182914 | N116: =IF(('PTRM input'!$E$515='PTRM input'!$G$514),IF(N$3>A1remlife,A1acvalue-SUM($F116:M116),IF(A1remlife="N/A","n/a",A1acvalue/A1remlife)),'PTRM input'!N$520) -> 24.8182914 | O116: =IF(('PTRM input'!$E$515='PTRM input'!$G$514),IF(O$3>A1remlife,A1acvalue-SUM($F116:N116),IF(A1remlife="N/A","n/a",A1acvalue/A1remlife)),'PTRM input'!O$520) -> 24.8182914 | P116: =IF(('PTRM input'!$E$515='PTRM input'!$G$514),IF(P$3>A1remlife,A1acvalue-SUM($F116:O116),IF(A1remlife="N/A","n/a",A1acvalue/A1remlife)),'PTRM input'!P$520) -> 24.8182914 | Q116: =IF(('PTRM input'!$E$515='PTRM input'!$G$514),IF(Q$3>A1remlife,A1acvalue-SUM($F116:P116),IF(A1remlife="N/A","n/a",A1acvalue/A1remlife)),'PTRM input'!Q$520) -> 24.8182914 | R116: =IF(('PTRM input'!$E$515='PTRM input'!$G$514),IF(R$3>A1remlife,A1acvalue-SUM($F116:Q116),IF(A1remlife="N/A","n/a",A1acvalue/A1remlife)),'PTRM input'!R$520) -> 24.8182914 | S116: =IF(('PTRM input'!$E$515='PTRM input'!$G$514),IF(S$3>A1remlife,A1acvalue-SUM($F116:R116),IF(A1remlife="N/A","n/a",A1acvalue/A1remlife)),'PTRM input'!S$520) -> 24.8182914 | T116: =IF(('PTRM input'!$E$515='PTRM input'!$G$514),IF(T$3>A1remlife,A1acvalue-SUM($F116:S116),IF(A1remlife="N/A","n/a",A1acvalue/A1remlife)),'PTRM input'!T$520) -> 24.8182914 | U116: =IF(('PTRM input'!$E$515='PTRM input'!$G$514),IF(U$3>A1remlife,A1acvalue-SUM($F116:T116),IF(A1remlife="N/A","n/a",A1acvalue/A1remlife)),'PTRM input'!U$520) -> 24.8182914 | V116: =IF(('PTRM input'!$E$515='PTRM input'!$G$514),IF(V$3>A1remlife,A1acvalue-SUM($F116:U116),IF(A1remlife="N/A","n/a",A1acvalue/A1remlife)),'PTRM input'!V$520) -> 24.8182914 | W116: =IF(('PTRM input'!$E$515='PTRM input'!$G$514),IF(W$3>A1remlife,A1acvalue-SUM($F116:V116),IF(A1remlife="N/A","n/a",A1acvalue/A1remlife)),'PTRM input'!W$520) -> 24.8182914 | X116: =IF(('PTRM input'!$E$515='PTRM input'!$G$514),IF(X$3>A1remlife,A1acvalue-SUM($F116:W116),IF(A1remlife="N/A","n/a",A1acvalue/A1remlife)),'PTRM input'!X$520) -> 24.8182914 | Y116: =IF(('PTRM input'!$E$515='PTRM input'!$G$514),IF(Y$3>A1remlife,A1acvalue-SUM($F116:X116),IF(A1remlife="N/A","n/a",A1acvalue/A1remlife)),'PTRM input'!Y$520) -> 24.8182914 | Z116: =IF(('PTRM input'!$E$515='PTRM input'!$G$514),IF(Z$3>A1remlife,A1acvalue-SUM($F116:Y116),IF(A1remlife="N/A","n/a",A1acvalue/A1remlife)),'PTRM input'!Z$520) -> 24.8182914 | AA116: =IF(('PTRM input'!$E$515='PTRM input'!$G$514),IF(AA$3>A1remlife,A1acvalue-SUM($F116:Z116),IF(A1remlife="N/A","n/a",A1acvalue/A1remlife)),'PTRM input'!AA$520) -> 24.8182914 | AB116: =IF(('PTRM input'!$E$515='PTRM input'!$G$514),IF(AB$3>A1remlife,A1acvalue-SUM($F116:AA116),IF(A1remlife="N/A","n/a",A1acvalue/A1remlife)),'PTRM input'!AB$520) -> 24.8182914 | AC116: =IF(('PTRM input'!$E$515='PTRM input'!$G$514),IF(AC$3>A1remlife,A1acvalue-SUM($F116:AB116),IF(A1remlife="N/A","n/a",A1acvalue/A1remlife)),'PTRM input'!AC$520) -> 24.8182914 | AD116: =IF(('PTRM input'!$E$515='PTRM input'!$G$514),IF(AD$3>A1remlife,A1acvalue-SUM($F116:AC116),IF(A1remlife="N/A","n/a",A1acvalue/A1remlife)),'PTRM input'!AD$520) -> 24.8182914 | AE116: =IF(('PTRM input'!$E$515='PTRM input'!$G$514),IF(AE$3>A1remlife,A1acvalue-SUM($F116:AD116),IF(A1remlife="N/A","n/a",A1acvalue/A1remlife)),'PTRM input'!AE$520) -> 24.8182914 | AF116: =IF(('PTRM input'!$E$515='PTRM input'!$G$514),IF(AF$3>A1remlife,A1acvalue-SUM($F116:AE116),IF(A1remlife="N/A","n/a",A1acvalue/A1remlife)),'PTRM input'!AF$520) -> 24.8182914 | AG116: =IF(('PTRM input'!$E$515='PTRM input'!$G$514),IF(AG$3>A1remlife,A1acvalue-SUM($F116:AF116),IF(A1remlife="N/A","n/a",A1acvalue/A1remlife)),'PTRM input'!AG$520) -> 24.8182914 | AH116: =IF(('PTRM input'!$E$515='PTRM input'!$G$514),IF(AH$3>A1remlife,A1acvalue-SUM($F116:AG116),IF(A1remlife="N/A","n/a",A1acvalue/A1remlife)),'PTRM input'!AH$520) -> 24.8182914 | AI116: =IF(('PTRM input'!$E$515='PTRM input'!$G$514),IF(AI$3>A1remlife,A1acvalue-SUM($F116:AH116),IF(A1remlife="N/A","n/a",A1acvalue/A1remlife)),'PTRM input'!AI$520) -> 24.8182914 | AJ116: =IF(('PTRM input'!$E$515='PTRM input'!$G$514),IF(AJ$3>A1remlife,A1acvalue-SUM($F116:AI116),IF(A1remlife="N/A","n/a",A1acvalue/A1remlife)),'PTRM input'!AJ$520) -> 24.8182914 | AK116: =IF(('PTRM input'!$E$515='PTRM input'!$G$514),IF(AK$3>A1remlife,A1acvalue-SUM($F116:AJ116),IF(A1remlife="N/A","n/a",A1acvalue/A1remlife)),'PTRM input'!AK$520) -> 1.136868377e-13 | AL116: =IF(('PTRM input'!$E$515='PTRM input'!$G$514),IF(AL$3>A1remlife,A1acvalue-SUM($F116:AK116),IF(A1remlife="N/A","n/a",A1acvalue/A1remlife)),'PTRM input'!AL$520) -> 0 | AM116: =IF(('PTRM input'!$E$515='PTRM input'!$G$514),IF(AM$3>A1remlife,A1acvalue-SUM($F116:AL116),IF(A1remlife="N/A","n/a",A1acvalue/A1remlife)),'PTRM input'!AM$520) -> 0 | AN116: =IF(('PTRM input'!$E$515='PTRM input'!$G$514),IF(AN$3>A1remlife,A1acvalue-SUM($F116:AM116),IF(A1remlife="N/A","n/a",A1acvalue/A1remlife)),'PTRM input'!AN$520) -> 0 | AO116: =IF(('PTRM input'!$E$515='PTRM input'!$G$514),IF(AO$3>A1remlife,A1acvalue-SUM($F116:AN116),IF(A1remlife="N/A","n/a",A1acvalue/A1remlife)),'PTRM input'!AO$520) -> 0 | AP116: =IF(('PTRM input'!$E$515='PTRM input'!$G$514),IF(AP$3>A1remlife,A1acvalue-SUM($F116:AO116),IF(A1remlife="N/A","n/a",A1acvalue/A1remlife)),'PTRM input'!AP$520) -> 0 | AQ116: =IF(('PTRM input'!$E$515='PTRM input'!$G$514),IF(AQ$3>A1remlife,A1acvalue-SUM($F116:AP116),IF(A1remlife="N/A","n/a",A1acvalue/A1remlife)),'PTRM input'!AQ$520) -> 0 | AR116: =IF(('PTRM input'!$E$515='PTRM input'!$G$514),IF(AR$3>A1remlife,A1acvalue-SUM($F116:AQ116),IF(A1remlife="N/A","n/a",A1acvalue/A1remlife)),'PTRM input'!AR$520) -> 0 | AS116: =IF(('PTRM input'!$E$515='PTRM input'!$G$514),IF(AS$3>A1remlife,A1acvalue-SUM($F116:AR116),IF(A1remlife="N/A","n/a",A1acvalue/A1remlife)),'PTRM input'!AS$520) -> 0 | AT116: =IF(('PTRM input'!$E$515='PTRM input'!$G$514),IF(AT$3>A1remlife,A1acvalue-SUM($F116:AS116),IF(A1remlife="N/A","n/a",A1acvalue/A1remlife)),'PTRM input'!AT$520) -> 0 | AU116: =IF(('PTRM input'!$E$515='PTRM input'!$G$514),IF(AU$3>A1remlife,A1acvalue-SUM($F116:AT116),IF(A1remlife="N/A","n/a",A1acvalue/A1remlife)),'PTRM input'!AU$520) -> 0 | AV116: =IF(('PTRM input'!$E$515='PTRM input'!$G$514),IF(AV$3>A1remlife,A1acvalue-SUM($F116:AU116),IF(A1remlife="N/A","n/a",A1acvalue/A1remlife)),'PTRM input'!AV$520) -> 0 | AW116: =IF(('PTRM input'!$E$515='PTRM input'!$G$514),IF(AW$3>A1remlife,A1acvalue-SUM($F116:AV116),IF(A1remlife="N/A","n/a",A1acvalue/A1remlife)),'PTRM input'!AW$520) -> 0 | AX116: =IF(('PTRM input'!$E$515='PTRM input'!$G$514),IF(AX$3>A1remlife,A1acvalue-SUM($F116:AW116),IF(A1remlife="N/A","n/a",A1acvalue/A1remlife)),'PTRM input'!AX$520) -> 0 | AY116: =IF(('PTRM input'!$E$515='PTRM input'!$G$514),IF(AY$3>A1remlife,A1acvalue-SUM($F116:AX116),IF(A1remlife="N/A","n/a",A1acvalue/A1remlife)),'PTRM input'!AY$520) -> 0 | AZ116: =IF(('PTRM input'!$E$515='PTRM input'!$G$514),IF(AZ$3>A1remlife,A1acvalue-SUM($F116:AY116),IF(A1remlife="N/A","n/a",A1acvalue/A1remlife)),'PTRM input'!AZ$520) -> 0 | BA116: =IF(('PTRM input'!$E$515='PTRM input'!$G$514),IF(BA$3>A1remlife,A1acvalue-SUM($F116:AZ116),IF(A1remlife="N/A","n/a",A1acvalue/A1remlife)),'PTRM input'!BA$520) -> 0 | BB116: =IF(('PTRM input'!$E$515='PTRM input'!$G$514),IF(BB$3>A1remlife,A1acvalue-SUM($F116:BA116),IF(A1remlife="N/A","n/a",A1acvalue/A1remlife)),'PTRM input'!BB$520) -> 0 | BC116: =IF(('PTRM input'!$E$515='PTRM input'!$G$514),IF(BC$3>A1remlife,A1acvalue-SUM($F116:BB116),IF(A1remlife="N/A","n/a",A1acvalue/A1remlife)),'PTRM input'!BC$520) -> 0 | BD116: =IF(('PTRM input'!$E$515='PTRM input'!$G$514),IF(BD$3>A1remlife,A1acvalue-SUM($F116:BC116),IF(A1remlife="N/A","n/a",A1acvalue/A1remlife)),'PTRM input'!BD$520) -> 0 | BE116: =IF(('PTRM input'!$E$515='PTRM input'!$G$514),IF(BE$3>A1remlife,A1acvalue-SUM($F116:BD116),IF(A1remlife="N/A","n/a",A1acvalue/A1remlife)),'PTRM input'!BE$520) -> 0 | BF116: =IF(('PTRM input'!$E$515='PTRM input'!$G$514),IF(BF$3>A1remlife,A1acvalue-SUM($F116:BE116),IF(A1remlife="N/A","n/a",A1acvalue/A1remlife)),'PTRM input'!BF$520) -> 0 | BG116: =IF(('PTRM input'!$E$515='PTRM input'!$G$514),IF(BG$3>A1remlife,A1acvalue-SUM($F116:BF116),IF(A1remlife="N/A","n/a",A1acvalue/A1remlife)),'PTRM input'!BG$520) -> 0 | BH116: =IF(('PTRM input'!$E$515='PTRM input'!$G$514),IF(BH$3>A1remlife,A1acvalue-SUM($F116:BG116),IF(A1remlife="N/A","n/a",A1acvalue/A1remlife)),'PTRM input'!BH$520) -> 0 | BI116: =IF(('PTRM input'!$E$515='PTRM input'!$G$514),IF(BI$3>A1remlife,A1acvalue-SUM($F116:BH116),IF(A1remlife="N/A","n/a",A1acvalue/A1remlife)),'PTRM input'!BI$520) -> 0
D117: Capex in year | E117: 0
E118: 1 | H118: =IF(A1stdlife="n/a","n/a",IF(H$3>(A1stdlife+$E118),('PTRM input'!$G$385*(1+rvanilla01)^0.5)-SUM(G118:$G118),('PTRM input'!$G$385*(1+rvanilla01)^0.5)/A1stdlife)) -> 6.405586956 | I118: =IF(A1stdlife="n/a","n/a",IF(I$3>(A1stdlife+$E118),('PTRM input'!$G$385*(1+rvanilla01)^0.5)-SUM($G118:H118),('PTRM input'!$G$385*(1+rvanilla01)^0.5)/A1stdlife)) -> 6.405586956 | J118: =IF(A1stdlife="n/a","n/a",IF(J$3>(A1stdlife+$E118),('PTRM input'!$G$385*(1+rvanilla01)^0.5)-SUM($G118:I118),('PTRM input'!$G$385*(1+rvanilla01)^0.5)/A1stdlife)) -> 6.405586956 | K118: =IF(A1stdlife="n/a","n/a",IF(K$3>(A1stdlife+$E118),('PTRM input'!$G$385*(1+rvanilla01)^0.5)-SUM($G118:J118),('PTRM input'!$G$385*(1+rvanilla01)^0.5)/A1stdlife)) -> 6.405586956 | L118: =IF(A1stdlife="n/a","n/a",IF(L$3>(A1stdlife+$E118),('PTRM input'!$G$385*(1+rvanilla01)^0.5)-SUM($G118:K118),('PTRM input'!$G$385*(1+rvanilla01)^0.5)/A1stdlife)) -> 6.405586956 | M118: =IF(A1stdlife="n/a","n/a",IF(M$3>(A1stdlife+$E118),('PTRM input'!$G$385*(1+rvanilla01)^0.5)-SUM($G118:L118),('PTRM input'!$G$385*(1+rvanilla01)^0.5)/A1stdlife)) -> 6.405586956 | N118: =IF(A1stdlife="n/a","n/a",IF(N$3>(A1stdlife+$E118),('PTRM input'!$G$385*(1+rvanilla01)^0.5)-SUM($G118:M118),('PTRM input'!$G$385*(1+rvanilla01)^0.5)/A1stdlife)) -> 6.405586956 | O118: =IF(A1stdlife="n/a","n/a",IF(O$3>(A1stdlife+$E118),('PTRM input'!$G$385*(1+rvanilla01)^0.5)-SUM($G118:N118),('PTRM input'!$G$385*(1+rvanilla01)^0.5)/A1stdlife)) -> 6.405586956 | P118: =IF(A1stdlife="n/a","n/a",IF(P$3>(A1stdlife+$E118),('PTRM input'!$G$385*(1+rvanilla01)^0.5)-SUM($G118:O118),('PTRM input'!$G$385*(1+rvanilla01)^0.5)/A1stdlife)) -> 6.405586956 | Q118: =IF(A1stdlife="n/a","n/a",IF(Q$3>(A1stdlife+$E118),('PTRM input'!$G$385*(1+rvanilla01)^0.5)-SUM($G118:P118),('PTRM input'!$G$385*(1+rvanilla01)^0.5)/A1stdlife)) -> 6.405586956 | R118: =IF(A1stdlife="n/a","n/a",IF(R$3>(A1stdlife+$E118),('PTRM input'!$G$385*(1+rvanilla01)^0.5)-SUM($G118:Q118),('PTRM input'!$G$385*(1+rvanilla01)^0.5)/A1stdlife)) -> 6.405586956 | S118: =IF(A1stdlife="n/a","n/a",IF(S$3>(A1stdlife+$E118),('PTRM input'!$G$385*(1+rvanilla01)^0.5)-SUM($G118:R118),('PTRM input'!$G$385*(1+rvanilla01)^0.5)/A1stdlife)) -> 6.405586956 | T118: =IF(A1stdlife="n/a","n/a",IF(T$3>(A1stdlife+$E118),('PTRM input'!$G$385*(1+rvanilla01)^0.5)-SUM($G118:S118),('PTRM input'!$G$385*(1+rvanilla01)^0.5)/A1stdlife)) -> 6.405586956 | U118: =IF(A1stdlife="n/a","n/a",IF(U$3>(A1stdlife+$E118),('PTRM input'!$G$385*(1+rvanilla01)^0.5)-SUM($G118:T118),('PTRM input'!$G$385*(1+rvanilla01)^0.5)/A1stdlife)) -> 6.405586956 | V118: =IF(A1stdlife="n/a","n/a",IF(V$3>(A1stdlife+$E118),('PTRM input'!$G$385*(1+rvanilla01)^0.5)-SUM($G118:U118),('PTRM input'!$G$385*(1+rvanilla01)^0.5)/A1stdlife)) -> 6.405586956 | W118: =IF(A1stdlife="n/a","n/a",IF(W$3>(A1stdlife+$E118),('PTRM input'!$G$385*(1+rvanilla01)^0.5)-SUM($G118:V118),('PTRM input'!$G$385*(1+rvanilla01)^0.5)/A1stdlife)) -> 6.405586956 | X118: =IF(A1stdlife="n/a","n/a",IF(X$3>(A1stdlife+$E118),('PTRM input'!$G$385*(1+rvanilla01)^0.5)-SUM($G118:W118),('PTRM input'!$G$385*(1+rvanilla01)^0.5)/A1stdlife)) -> 6.405586956 | Y118: =IF(A1stdlife="n/a","n/a",IF(Y$3>(A1stdlife+$E118),('PTRM input'!$G$385*(1+rvanilla01)^0.5)-SUM($G118:X118),('PTRM input'!$G$385*(1+rvanilla01)^0.5)/A1stdlife)) -> 6.405586956 | Z118: =IF(A1stdlife="n/a","n/a",IF(Z$3>(A1stdlife+$E118),('PTRM input'!$G$385*(1+rvanilla01)^0.5)-SUM($G118:Y118),('PTRM input'!$G$385*(1+rvanilla01)^0.5)/A1stdlife)) -> 6.405586956 | AA118: =IF(A1stdlife="n/a","n/a",IF(AA$3>(A1stdlife+$E118),('PTRM input'!$G$385*(1+rvanilla01)^0.5)-SUM($G118:Z118),('PTRM input'!$G$385*(1+rvanilla01)^0.5)/A1stdlife)) -> 6.405586956 | AB118: =IF(A1stdlife="n/a","n/a",IF(AB$3>(A1stdlife+$E118),('PTRM input'!$G$385*(1+rvanilla01)^0.5)-SUM($G118:AA118),('PTRM input'!$G$385*(1+rvanilla01)^0.5)/A1stdlife)) -> 6.405586956 | AC118: =IF(A1stdlife="n/a","n/a",IF(AC$3>(A1stdlife+$E118),('PTRM input'!$G$385*(1+rvanilla01)^0.5)-SUM($G118:AB118),('PTRM input'!$G$385*(1+rvanilla01)^0.5)/A1stdlife)) -> 6.405586956 | AD118: =IF(A1stdlife="n/a","n/a",IF(AD$3>(A1stdlife+$E118),('PTRM input'!$G$385*(1+rvanilla01)^0.5)-SUM($G118:AC118),('PTRM input'!$G$385*(1+rvanilla01)^0.5)/A1stdlife)) -> 6.405586956 | AE118: =IF(A1stdlife="n/a","n/a",IF(AE$3>(A1stdlife+$E118),('PTRM input'!$G$385*(1+rvanilla01)^0.5)-SUM($G118:AD118),('PTRM input'!$G$385*(1+rvanilla01)^0.5)/A1stdlife)) -> 6.405586956 | AF118: =IF(A1stdlife="n/a","n/a",IF(AF$3>(A1stdlife+$E118),('PTRM input'!$G$385*(1+rvanilla01)^0.5)-SUM($G118:AE118),('PTRM input'!$G$385*(1+rvanilla01)^0.5)/A1stdlife)) -> 6.405586956 | AG118: =IF(A1stdlife="n/a","n/a",IF(AG$3>(A1stdlife+$E118),('PTRM input'!$G$385*(1+rvanilla01)^0.5)-SUM($G118:AF118),('PTRM input'!$G$385*(1+rvanilla01)^0.5)/A1stdlife)) -> 6.405586956 | AH118: =IF(A1stdlife="n/a","n/a",IF(AH$3>(A1stdlife+$E118),('PTRM input'!$G$385*(1+rvanilla01)^0.5)-SUM($G118:AG118),('PTRM input'!$G$385*(1+rvanilla01)^0.5)/A1stdlife)) -> 6.405586956 | AI118: =IF(A1stdlife="n/a","n/a",IF(AI$3>(A1stdlife+$E118),('PTRM input'!$G$385*(1+rvanilla01)^0.5)-SUM($G118:AH118),('PTRM input'!$G$385*(1+rvanilla01)^0.5)/A1stdlife)) -> 6.405586956 | AJ118: =IF(A1stdlife="n/a","n/a",IF(AJ$3>(A1stdlife+$E118),('PTRM input'!$G$385*(1+rvanilla01)^0.5)-SUM($G118:AI118),('PTRM input'!$G$385*(1+rvanilla01)^0.5)/A1stdlife)) -> 6.405586956 | AK118: =IF(A1stdlife="n/a","n/a",IF(AK$3>(A1stdlife+$E118),('PTRM input'!$G$385*(1+rvanilla01)^0.5)-SUM($G118:AJ118),('PTRM input'!$G$385*(1+rvanilla01)^0.5)/A1stdlife)) -> 6.405586956 | AL118: =IF(A1stdlife="n/a","n/a",IF(AL$3>(A1stdlife+$E118),('PTRM input'!$G$385*(1+rvanilla01)^0.5)-SUM($G118:AK118),('PTRM input'!$G$385*(1+rvanilla01)^0.5)/A1stdlife)) -> 1.136868377e-13 | AM118: =IF(A1stdlife="n/a","n/a",IF(AM$3>(A1stdlife+$E118),('PTRM input'!$G$385*(1+rvanilla01)^0.5)-SUM($G118:AL118),('PTRM input'!$G$385*(1+rvanilla01)^0.5)/A1stdlife)) -> 0 | AN118: =IF(A1stdlife="n/a","n/a",IF(AN$3>(A1stdlife+$E118),('PTRM input'!$G$385*(1+rvanilla01)^0.5)-SUM($G118:AM118),('PTRM input'!$G$385*(1+rvanilla01)^0.5)/A1stdlife)) -> 0 | AO118: =IF(A1stdlife="n/a","n/a",IF(AO$3>(A1stdlife+$E118),('PTRM input'!$G$385*(1+rvanilla01)^0.5)-SUM($G118:AN118),('PTRM input'!$G$385*(1+rvanilla01)^0.5)/A1stdlife)) -> 0 | AP118: =IF(A1stdlife="n/a","n/a",IF(AP$3>(A1stdlife+$E118),('PTRM input'!$G$385*(1+rvanilla01)^0.5)-SUM($G118:AO118),('PTRM input'!$G$385*(1+rvanilla01)^0.5)/A1stdlife)) -> 0 | AQ118: =IF(A1stdlife="n/a","n/a",IF(AQ$3>(A1stdlife+$E118),('PTRM input'!$G$385*(1+rvanilla01)^0.5)-SUM($G118:AP118),('PTRM input'!$G$385*(1+rvanilla01)^0.5)/A1stdlife)) -> 0 | AR118: =IF(A1stdlife="n/a","n/a",IF(AR$3>(A1stdlife+$E118),('PTRM input'!$G$385*(1+rvanilla01)^0.5)-SUM($G118:AQ118),('PTRM input'!$G$385*(1+rvanilla01)^0.5)/A1stdlife)) -> 0 | AS118: =IF(A1stdlife="n/a","n/a",IF(AS$3>(A1stdlife+$E118),('PTRM input'!$G$385*(1+rvanilla01)^0.5)-SUM($G118:AR118),('PTRM input'!$G$385*(1+rvanilla01)^0.5)/A1stdlife)) -> 0 | AT118: =IF(A1stdlife="n/a","n/a",IF(AT$3>(A1stdlife+$E118),('PTRM input'!$G$385*(1+rvanilla01)^0.5)-SUM($G118:AS118),('PTRM input'!$G$385*(1+rvanilla01)^0.5)/A1stdlife)) -> 0 | AU118: =IF(A1stdlife="n/a","n/a",IF(AU$3>(A1stdlife+$E118),('PTRM input'!$G$385*(1+rvanilla01)^0.5)-SUM($G118:AT118),('PTRM input'!$G$385*(1+rvanilla01)^0.5)/A1stdlife)) -> 0 | AV118: =IF(A1stdlife="n/a","n/a",IF(AV$3>(A1stdlife+$E118),('PTRM input'!$G$385*(1+rvanilla01)^0.5)-SUM($G118:AU118),('PTRM input'!$G$385*(1+rvanilla01)^0.5)/A1stdlife)) -> 0 | AW118: =IF(A1stdlife="n/a","n/a",IF(AW$3>(A1stdlife+$E118),('PTRM input'!$G$385*(1+rvanilla01)^0.5)-SUM($G118:AV118),('PTRM input'!$G$385*(1+rvanilla01)^0.5)/A1stdlife)) -> 0 | AX118: =IF(A1stdlife="n/a","n/a",IF(AX$3>(A1stdlife+$E118),('PTRM input'!$G$385*(1+rvanilla01)^0.5)-SUM($G118:AW118),('PTRM input'!$G$385*(1+rvanilla01)^0.5)/A1stdlife)) -> 0 | AY118: =IF(A1stdlife="n/a","n/a",IF(AY$3>(A1stdlife+$E118),('PTRM input'!$G$385*(1+rvanilla01)^0.5)-SUM($G118:AX118),('PTRM input'!$G$385*(1+rvanilla01)^0.5)/A1stdlife)) -> 0 | AZ118: =IF(A1stdlife="n/a","n/a",IF(AZ$3>(A1stdlife+$E118),('PTRM input'!$G$385*(1+rvanilla01)^0.5)-SUM($G118:AY118),('PTRM input'!$G$385*(1+rvanilla01)^0.5)/A1stdlife)) -> 0 | BA118: =IF(A1stdlife="n/a","n/a",IF(BA$3>(A1stdlife+$E118),('PTRM input'!$G$385*(1+rvanilla01)^0.5)-SUM($G118:AZ118),('PTRM input'!$G$385*(1+rvanilla01)^0.5)/A1stdlife)) -> 0 | BB118: =IF(A1stdlife="n/a","n/a",IF(BB$3>(A1stdlife+$E118),('PTRM input'!$G$385*(1+rvanilla01)^0.5)-SUM($G118:BA118),('PTRM input'!$G$385*(1+rvanilla01)^0.5)/A1stdlife)) -> 0 | BC118: =IF(A1stdlife="n/a","n/a",IF(BC$3>(A1stdlife+$E118),('PTRM input'!$G$385*(1+rvanilla01)^0.5)-SUM($G118:BB118),('PTRM input'!$G$385*(1+rvanilla01)^0.5)/A1stdlife)) -> 0 | BD118: =IF(A1stdlife="n/a","n/a",IF(BD$3>(A1stdlife+$E118),('PTRM input'!$G$385*(1+rvanilla01)^0.5)-SUM($G118:BC118),('PTRM input'!$G$385*(1+rvanilla01)^0.5)/A1stdlife)) -> 0 | BE118: =IF(A1stdlife="n/a","n/a",IF(BE$3>(A1stdlife+$E118),('PTRM input'!$G$385*(1+rvanilla01)^0.5)-SUM($G118:BD118),('PTRM input'!$G$385*(1+rvanilla01)^0.5)/A1stdlife)) -> 0 | BF118: =IF(A1stdlife="n/a","n/a",IF(BF$3>(A1stdlife+$E118),('PTRM input'!$G$385*(1+rvanilla01)^0.5)-SUM($G118:BE118),('PTRM input'!$G$385*(1+rvanilla01)^0.5)/A1stdlife)) -> 0 | BG118: =IF(A1stdlife="n/a","n/a",IF(BG$3>(A1stdlife+$E118),('PTRM input'!$G$385*(1+rvanilla01)^0.5)-SUM($G118:BF118),('PTRM input'!$G$385*(1+rvanilla01)^0.5)/A1stdlife)) -> 0 | BH118: =IF(A1stdlife="n/a","n/a",IF(BH$3>(A1stdlife+$E118),('PTRM input'!$G$385*(1+rvanilla01)^0.5)-SUM($G118:BG118),('PTRM input'!$G$385*(1+rvanilla01)^0.5)/A1stdlife)) -> 0 | BI118: =IF(A1stdlife="n/a","n/a",IF(BI$3>(A1stdlife+$E118),('PTRM input'!$G$385*(1+rvanilla01)^0.5)-SUM($G118:BH118),('PTRM input'!$G$385*(1+rvanilla01)^0.5)/A1stdlife)) -> 0
E119: 2 | I119: =IF(A1stdlife="n/a","n/a",IF(I$3>(A1stdlife+$E119),('PTRM input'!$H$385*(1+rvanilla02)^0.5)-SUM(H119:$H119),('PTRM input'!$H$385*(1+rvanilla02)^0.5)/A1stdlife)) -> 0.6442685091 | J119: =IF(A1stdlife="n/a","n/a",IF(J$3>(A1stdlife+$E119),('PTRM input'!$H$385*(1+rvanilla02)^0.5)-SUM($H119:I119),('PTRM input'!$H$385*(1+rvanilla02)^0.5)/A1stdlife)) -> 0.6442685091 | K119: =IF(A1stdlife="n/a","n/a",IF(K$3>(A1stdlife+$E119),('PTRM input'!$H$385*(1+rvanilla02)^0.5)-SUM($H119:J119),('PTRM input'!$H$385*(1+rvanilla02)^0.5)/A1stdlife)) -> 0.6442685091 | L119: =IF(A1stdlife="n/a","n/a",IF(L$3>(A1stdlife+$E119),('PTRM input'!$H$385*(1+rvanilla02)^0.5)-SUM($H119:K119),('PTRM input'!$H$385*(1+rvanilla02)^0.5)/A1stdlife)) -> 0.6442685091 | M119: =IF(A1stdlife="n/a","n/a",IF(M$3>(A1stdlife+$E119),('PTRM input'!$H$385*(1+rvanilla02)^0.5)-SUM($H119:L119),('PTRM input'!$H$385*(1+rvanilla02)^0.5)/A1stdlife)) -> 0.6442685091 | N119: =IF(A1stdlife="n/a","n/a",IF(N$3>(A1stdlife+$E119),('PTRM input'!$H$385*(1+rvanilla02)^0.5)-SUM($H119:M119),('PTRM input'!$H$385*(1+rvanilla02)^0.5)/A1stdlife)) -> 0.6442685091 | O119: =IF(A1stdlife="n/a","n/a",IF(O$3>(A1stdlife+$E119),('PTRM input'!$H$385*(1+rvanilla02)^0.5)-SUM($H119:N119),('PTRM input'!$H$385*(1+rvanilla02)^0.5)/A1stdlife)) -> 0.6442685091 | P119: =IF(A1stdlife="n/a","n/a",IF(P$3>(A1stdlife+$E119),('PTRM input'!$H$385*(1+rvanilla02)^0.5)-SUM($H119:O119),('PTRM input'!$H$385*(1+rvanilla02)^0.5)/A1stdlife)) -> 0.6442685091 | Q119: =IF(A1stdlife="n/a","n/a",IF(Q$3>(A1stdlife+$E119),('PTRM input'!$H$385*(1+rvanilla02)^0.5)-SUM($H119:P119),('PTRM input'!$H$385*(1+rvanilla02)^0.5)/A1stdlife)) -> 0.6442685091 | R119: =IF(A1stdlife="n/a","n/a",IF(R$3>(A1stdlife+$E119),('PTRM input'!$H$385*(1+rvanilla02)^0.5)-SUM($H119:Q119),('PTRM input'!$H$385*(1+rvanilla02)^0.5)/A1stdlife)) -> 0.6442685091 | S119: =IF(A1stdlife="n/a","n/a",IF(S$3>(A1stdlife+$E119),('PTRM input'!$H$385*(1+rvanilla02)^0.5)-SUM($H119:R119),('PTRM input'!$H$385*(1+rvanilla02)^0.5)/A1stdlife)) -> 0.6442685091 | T119: =IF(A1stdlife="n/a","n/a",IF(T$3>(A1stdlife+$E119),('PTRM input'!$H$385*(1+rvanilla02)^0.5)-SUM($H119:S119),('PTRM input'!$H$385*(1+rvanilla02)^0.5)/A1stdlife)) -> 0.6442685091 | U119: =IF(A1stdlife="n/a","n/a",IF(U$3>(A1stdlife+$E119),('PTRM input'!$H$385*(1+rvanilla02)^0.5)-SUM($H119:T119),('PTRM input'!$H$385*(1+rvanilla02)^0.5)/A1stdlife)) -> 0.6442685091 | V119: =IF(A1stdlife="n/a","n/a",IF(V$3>(A1stdlife+$E119),('PTRM input'!$H$385*(1+rvanilla02)^0.5)-SUM($H119:U119),('PTRM input'!$H$385*(1+rvanilla02)^0.5)/A1stdlife)) -> 0.6442685091 | W119: =IF(A1stdlife="n/a","n/a",IF(W$3>(A1stdlife+$E119),('PTRM input'!$H$385*(1+rvanilla02)^0.5)-SUM($H119:V119),('PTRM input'!$H$385*(1+rvanilla02)^0.5)/A1stdlife)) -> 0.6442685091 | X119: =IF(A1stdlife="n/a","n/a",IF(X$3>(A1stdlife+$E119),('PTRM input'!$H$385*(1+rvanilla02)^0.5)-SUM($H119:W119),('PTRM input'!$H$385*(1+rvanilla02)^0.5)/A1stdlife)) -> 0.6442685091 | Y119: =IF(A1stdlife="n/a","n/a",IF(Y$3>(A1stdlife+$E119),('PTRM input'!$H$385*(1+rvanilla02)^0.5)-SUM($H119:X119),('PTRM input'!$H$385*(1+rvanilla02)^0.5)/A1stdlife)) -> 0.6442685091 | Z119: =IF(A1stdlife="n/a","n/a",IF(Z$3>(A1stdlife+$E119),('PTRM input'!$H$385*(1+rvanilla02)^0.5)-SUM($H119:Y119),('PTRM input'!$H$385*(1+rvanilla02)^0.5)/A1stdlife)) -> 0.6442685091 | AA119: =IF(A1stdlife="n/a","n/a",IF(AA$3>(A1stdlife+$E119),('PTRM input'!$H$385*(1+rvanilla02)^0.5)-SUM($H119:Z119),('PTRM input'!$H$385*(1+rvanilla02)^0.5)/A1stdlife)) -> 0.6442685091 | AB119: =IF(A1stdlife="n/a","n/a",IF(AB$3>(A1stdlife+$E119),('PTRM input'!$H$385*(1+rvanilla02)^0.5)-SUM($H119:AA119),('PTRM input'!$H$385*(1+rvanilla02)^0.5)/A1stdlife)) -> 0.6442685091 | AC119: =IF(A1stdlife="n/a","n/a",IF(AC$3>(A1stdlife+$E119),('PTRM input'!$H$385*(1+rvanilla02)^0.5)-SUM($H119:AB119),('PTRM input'!$H$385*(1+rvanilla02)^0.5)/A1stdlife)) -> 0.6442685091 | AD119: =IF(A1stdlife="n/a","n/a",IF(AD$3>(A1stdlife+$E119),('PTRM input'!$H$385*(1+rvanilla02)^0.5)-SUM($H119:AC119),('PTRM input'!$H$385*(1+rvanilla02)^0.5)/A1stdlife)) -> 0.6442685091 | AE119: =IF(A1stdlife="n/a","n/a",IF(AE$3>(A1stdlife+$E119),('PTRM input'!$H$385*(1+rvanilla02)^0.5)-SUM($H119:AD119),('PTRM input'!$H$385*(1+rvanilla02)^0.5)/A1stdlife)) -> 0.6442685091 | AF119: =IF(A1stdlife="n/a","n/a",IF(AF$3>(A1stdlife+$E119),('PTRM input'!$H$385*(1+rvanilla02)^0.5)-SUM($H119:AE119),('PTRM input'!$H$385*(1+rvanilla02)^0.5)/A1stdlife)) -> 0.6442685091 | AG119: =IF(A1stdlife="n/a","n/a",IF(AG$3>(A1stdlife+$E119),('PTRM input'!$H$385*(1+rvanilla02)^0.5)-SUM($H119:AF119),('PTRM input'!$H$385*(1+rvanilla02)^0.5)/A1stdlife)) -> 0.6442685091 | AH119: =IF(A1stdlife="n/a","n/a",IF(AH$3>(A1stdlife+$E119),('PTRM input'!$H$385*(1+rvanilla02)^0.5)-SUM($H119:AG119),('PTRM input'!$H$385*(1+rvanilla02)^0.5)/A1stdlife)) -> 0.6442685091 | AI119: =IF(A1stdlife="n/a","n/a",IF(AI$3>(A1stdlife+$E119),('PTRM input'!$H$385*(1+rvanilla02)^0.5)-SUM($H119:AH119),('PTRM input'!$H$385*(1+rvanilla02)^0.5)/A1stdlife)) -> 0.6442685091 | AJ119: =IF(A1stdlife="n/a","n/a",IF(AJ$3>(A1stdlife+$E119),('PTRM input'!$H$385*(1+rvanilla02)^0.5)-SUM($H119:AI119),('PTRM input'!$H$385*(1+rvanilla02)^0.5)/A1stdlife)) -> 0.6442685091 | AK119: =IF(A1stdlife="n/a","n/a",IF(AK$3>(A1stdlife+$E119),('PTRM input'!$H$385*(1+rvanilla02)^0.5)-SUM($H119:AJ119),('PTRM input'!$H$385*(1+rvanilla02)^0.5)/A1stdlife)) -> 0.6442685091 | AL119: =IF(A1stdlife="n/a","n/a",IF(AL$3>(A1stdlife+$E119),('PTRM input'!$H$385*(1+rvanilla02)^0.5)-SUM($H119:AK119),('PTRM input'!$H$385*(1+rvanilla02)^0.5)/A1stdlife)) -> 0.6442685091 | AM119: =IF(A1stdlife="n/a","n/a",IF(AM$3>(A1stdlife+$E119),('PTRM input'!$H$385*(1+rvanilla02)^0.5)-SUM($H119:AL119),('PTRM input'!$H$385*(1+rvanilla02)^0.5)/A1stdlife)) -> 7.105427358e-15 | AN119: =IF(A1stdlife="n/a","n/a",IF(AN$3>(A1stdlife+$E119),('PTRM input'!$H$385*(1+rvanilla02)^0.5)-SUM($H119:AM119),('PTRM input'!$H$385*(1+rvanilla02)^0.5)/A1stdlife)) -> 0 | AO119: =IF(A1stdlife="n/a","n/a",IF(AO$3>(A1stdlife+$E119),('PTRM input'!$H$385*(1+rvanilla02)^0.5)-SUM($H119:AN119),('PTRM input'!$H$385*(1+rvanilla02)^0.5)/A1stdlife)) -> 0 | AP119: =IF(A1stdlife="n/a","n/a",IF(AP$3>(A1stdlife+$E119),('PTRM input'!$H$385*(1+rvanilla02)^0.5)-SUM($H119:AO119),('PTRM input'!$H$385*(1+rvanilla02)^0.5)/A1stdlife)) -> 0 | AQ119: =IF(A1stdlife="n/a","n/a",IF(AQ$3>(A1stdlife+$E119),('PTRM input'!$H$385*(1+rvanilla02)^0.5)-SUM($H119:AP119),('PTRM input'!$H$385*(1+rvanilla02)^0.5)/A1stdlife)) -> 0 | AR119: =IF(A1stdlife="n/a","n/a",IF(AR$3>(A1stdlife+$E119),('PTRM input'!$H$385*(1+rvanilla02)^0.5)-SUM($H119:AQ119),('PTRM input'!$H$385*(1+rvanilla02)^0.5)/A1stdlife)) -> 0 | AS119: =IF(A1stdlife="n/a","n/a",IF(AS$3>(A1stdlife+$E119),('PTRM input'!$H$385*(1+rvanilla02)^0.5)-SUM($H119:AR119),('PTRM input'!$H$385*(1+rvanilla02)^0.5)/A1stdlife)) -> 0 | AT119: =IF(A1stdlife="n/a","n/a",IF(AT$3>(A1stdlife+$E119),('PTRM input'!$H$385*(1+rvanilla02)^0.5)-SUM($H119:AS119),('PTRM input'!$H$385*(1+rvanilla02)^0.5)/A1stdlife)) -> 0 | AU119: =IF(A1stdlife="n/a","n/a",IF(AU$3>(A1stdlife+$E119),('PTRM input'!$H$385*(1+rvanilla02)^0.5)-SUM($H119:AT119),('PTRM input'!$H$385*(1+rvanilla02)^0.5)/A1stdlife)) -> 0 | AV119: =IF(A1stdlife="n/a","n/a",IF(AV$3>(A1stdlife+$E119),('PTRM input'!$H$385*(1+rvanilla02)^0.5)-SUM($H119:AU119),('PTRM input'!$H$385*(1+rvanilla02)^0.5)/A1stdlife)) -> 0 | AW119: =IF(A1stdlife="n/a","n/a",IF(AW$3>(A1stdlife+$E119),('PTRM input'!$H$385*(1+rvanilla02)^0.5)-SUM($H119:AV119),('PTRM input'!$H$385*(1+rvanilla02)^0.5)/A1stdlife)) -> 0 | AX119: =IF(A1stdlife="n/a","n/a",IF(AX$3>(A1stdlife+$E119),('PTRM input'!$H$385*(1+rvanilla02)^0.5)-SUM($H119:AW119),('PTRM input'!$H$385*(1+rvanilla02)^0.5)/A1stdlife)) -> 0 | AY119: =IF(A1stdlife="n/a","n/a",IF(AY$3>(A1stdlife+$E119),('PTRM input'!$H$385*(1+rvanilla02)^0.5)-SUM($H119:AX119),('PTRM input'!$H$385*(1+rvanilla02)^0.5)/A1stdlife)) -> 0 | AZ119: =IF(A1stdlife="n/a","n/a",IF(AZ$3>(A1stdlife+$E119),('PTRM input'!$H$385*(1+rvanilla02)^0.5)-SUM($H119:AY119),('PTRM input'!$H$385*(1+rvanilla02)^0.5)/A1stdlife)) -> 0 | BA119: =IF(A1stdlife="n/a","n/a",IF(BA$3>(A1stdlife+$E119),('PTRM input'!$H$385*(1+rvanilla02)^0.5)-SUM($H119:AZ119),('PTRM input'!$H$385*(1+rvanilla02)^0.5)/A1stdlife)) -> 0 | BB119: =IF(A1stdlife="n/a","n/a",IF(BB$3>(A1stdlife+$E119),('PTRM input'!$H$385*(1+rvanilla02)^0.5)-SUM($H119:BA119),('PTRM input'!$H$385*(1+rvanilla02)^0.5)/A1stdlife)) -> 0 | BC119: =IF(A1stdlife="n/a","n/a",IF(BC$3>(A1stdlife+$E119),('PTRM input'!$H$385*(1+rvanilla02)^0.5)-SUM($H119:BB119),('PTRM input'!$H$385*(1+rvanilla02)^0.5)/A1stdlife)) -> 0 | BD119: =IF(A1stdlife="n/a","n/a",IF(BD$3>(A1stdlife+$E119),('PTRM input'!$H$385*(1+rvanilla02)^0.5)-SUM($H119:BC119),('PTRM input'!$H$385*(1+rvanilla02)^0.5)/A1stdlife)) -> 0 | BE119: =IF(A1stdlife="n/a","n/a",IF(BE$3>(A1stdlife+$E119),('PTRM input'!$H$385*(1+rvanilla02)^0.5)-SUM($H119:BD119),('PTRM input'!$H$385*(1+rvanilla02)^0.5)/A1stdlife)) -> 0 | BF119: =IF(A1stdlife="n/a","n/a",IF(BF$3>(A1stdlife+$E119),('PTRM input'!$H$385*(1+rvanilla02)^0.5)-SUM($H119:BE119),('PTRM input'!$H$385*(1+rvanilla02)^0.5)/A1stdlife)) -> 0 | BG119: =IF(A1stdlife="n/a","n/a",IF(BG$3>(A1stdlife+$E119),('PTRM input'!$H$385*(1+rvanilla02)^0.5)-SUM($H119:BF119),('PTRM input'!$H$385*(1+rvanilla02)^0.5)/A1stdlife)) -> 0 | BH119: =IF(A1stdlife="n/a","n/a",IF(BH$3>(A1stdlife+$E119),('PTRM input'!$H$385*(1+rvanilla02)^0.5)-SUM($H119:BG119),('PTRM input'!$H$385*(1+rvanilla02)^0.5)/A1stdlife)) -> 0 | BI119: =IF(A1stdlife="n/a","n/a",IF(BI$3>(A1stdlife+$E119),('PTRM input'!$H$385*(1+rvanilla02)^0.5)-SUM($H119:BH119),('PTRM input'!$H$385*(1+rvanilla02)^0.5)/A1stdlife)) -> 0
E120: 3 | J120: =IF(A1stdlife="n/a","n/a",IF(J$3>(A1stdlife+$E120),('PTRM input'!$I$385*(1+rvanilla03)^0.5)-SUM(I120:$I120),('PTRM input'!$I$385*(1+rvanilla03)^0.5)/A1stdlife)) -> 0.0573392429 | K120: =IF(A1stdlife="n/a","n/a",IF(K$3>(A1stdlife+$E120),('PTRM input'!$I$385*(1+rvanilla03)^0.5)-SUM($I120:J120),('PTRM input'!$I$385*(1+rvanilla03)^0.5)/A1stdlife)) -> 0.0573392429 | L120: =IF(A1stdlife="n/a","n/a",IF(L$3>(A1stdlife+$E120),('PTRM input'!$I$385*(1+rvanilla03)^0.5)-SUM($I120:K120),('PTRM input'!$I$385*(1+rvanilla03)^0.5)/A1stdlife)) -> 0.0573392429 | M120: =IF(A1stdlife="n/a","n/a",IF(M$3>(A1stdlife+$E120),('PTRM input'!$I$385*(1+rvanilla03)^0.5)-SUM($I120:L120),('PTRM input'!$I$385*(1+rvanilla03)^0.5)/A1stdlife)) -> 0.0573392429 | N120: =IF(A1stdlife="n/a","n/a",IF(N$3>(A1stdlife+$E120),('PTRM input'!$I$385*(1+rvanilla03)^0.5)-SUM($I120:M120),('PTRM input'!$I$385*(1+rvanilla03)^0.5)/A1stdlife)) -> 0.0573392429 | O120: =IF(A1stdlife="n/a","n/a",IF(O$3>(A1stdlife+$E120),('PTRM input'!$I$385*(1+rvanilla03)^0.5)-SUM($I120:N120),('PTRM input'!$I$385*(1+rvanilla03)^0.5)/A1stdlife)) -> 0.0573392429 | P120: =IF(A1stdlife="n/a","n/a",IF(P$3>(A1stdlife+$E120),('PTRM input'!$I$385*(1+rvanilla03)^0.5)-SUM($I120:O120),('PTRM input'!$I$385*(1+rvanilla03)^0.5)/A1stdlife)) -> 0.0573392429 | Q120: =IF(A1stdlife="n/a","n/a",IF(Q$3>(A1stdlife+$E120),('PTRM input'!$I$385*(1+rvanilla03)^0.5)-SUM($I120:P120),('PTRM input'!$I$385*(1+rvanilla03)^0.5)/A1stdlife)) -> 0.0573392429 | R120: =IF(A1stdlife="n/a","n/a",IF(R$3>(A1stdlife+$E120),('PTRM input'!$I$385*(1+rvanilla03)^0.5)-SUM($I120:Q120),('PTRM input'!$I$385*(1+rvanilla03)^0.5)/A1stdlife)) -> 0.0573392429 | S120: =IF(A1stdlife="n/a","n/a",IF(S$3>(A1stdlife+$E120),('PTRM input'!$I$385*(1+rvanilla03)^0.5)-SUM($I120:R120),('PTRM input'!$I$385*(1+rvanilla03)^0.5)/A1stdlife)) -> 0.0573392429 | T120: =IF(A1stdlife="n/a","n/a",IF(T$3>(A1stdlife+$E120),('PTRM input'!$I$385*(1+rvanilla03)^0.5)-SUM($I120:S120),('PTRM input'!$I$385*(1+rvanilla03)^0.5)/A1stdlife)) -> 0.0573392429 | U120: =IF(A1stdlife="n/a","n/a",IF(U$3>(A1stdlife+$E120),('PTRM input'!$I$385*(1+rvanilla03)^0.5)-SUM($I120:T120),('PTRM input'!$I$385*(1+rvanilla03)^0.5)/A1stdlife)) -> 0.0573392429 | V120: =IF(A1stdlife="n/a","n/a",IF(V$3>(A1stdlife+$E120),('PTRM input'!$I$385*(1+rvanilla03)^0.5)-SUM($I120:U120),('PTRM input'!$I$385*(1+rvanilla03)^0.5)/A1stdlife)) -> 0.0573392429 | W120: =IF(A1stdlife="n/a","n/a",IF(W$3>(A1stdlife+$E120),('PTRM input'!$I$385*(1+rvanilla03)^0.5)-SUM($I120:V120),('PTRM input'!$I$385*(1+rvanilla03)^0.5)/A1stdlife)) -> 0.0573392429 | X120: =IF(A1stdlife="n/a","n/a",IF(X$3>(A1stdlife+$E120),('PTRM input'!$I$385*(1+rvanilla03)^0.5)-SUM($I120:W120),('PTRM input'!$I$385*(1+rvanilla03)^0.5)/A1stdlife)) -> 0.0573392429 | Y120: =IF(A1stdlife="n/a","n/a",IF(Y$3>(A1stdlife+$E120),('PTRM input'!$I$385*(1+rvanilla03)^0.5)-SUM($I120:X120),('PTRM input'!$I$385*(1+rvanilla03)^0.5)/A1stdlife)) -> 0.0573392429 | Z120: =IF(A1stdlife="n/a","n/a",IF(Z$3>(A1stdlife+$E120),('PTRM input'!$I$385*(1+rvanilla03)^0.5)-SUM($I120:Y120),('PTRM input'!$I$385*(1+rvanilla03)^0.5)/A1stdlife)) -> 0.0573392429 | AA120: =IF(A1stdlife="n/a","n/a",IF(AA$3>(A1stdlife+$E120),('PTRM input'!$I$385*(1+rvanilla03)^0.5)-SUM($I120:Z120),('PTRM input'!$I$385*(1+rvanilla03)^0.5)/A1stdlife)) -> 0.0573392429 | AB120: =IF(A1stdlife="n/a","n/a",IF(AB$3>(A1stdlife+$E120),('PTRM input'!$I$385*(1+rvanilla03)^0.5)-SUM($I120:AA120),('PTRM input'!$I$385*(1+rvanilla03)^0.5)/A1stdlife)) -> 0.0573392429 | AC120: =IF(A1stdlife="n/a","n/a",IF(AC$3>(A1stdlife+$E120),('PTRM input'!$I$385*(1+rvanilla03)^0.5)-SUM($I120:AB120),('PTRM input'!$I$385*(1+rvanilla03)^0.5)/A1stdlife)) -> 0.0573392429 | AD120: =IF(A1stdlife="n/a","n/a",IF(AD$3>(A1stdlife+$E120),('PTRM input'!$I$385*(1+rvanilla03)^0.5)-SUM($I120:AC120),('PTRM input'!$I$385*(1+rvanilla03)^0.5)/A1stdlife)) -> 0.0573392429 | AE120: =IF(A1stdlife="n/a","n/a",IF(AE$3>(A1stdlife+$E120),('PTRM input'!$I$385*(1+rvanilla03)^0.5)-SUM($I120:AD120),('PTRM input'!$I$385*(1+rvanilla03)^0.5)/A1stdlife)) -> 0.0573392429 | AF120: =IF(A1stdlife="n/a","n/a",IF(AF$3>(A1stdlife+$E120),('PTRM input'!$I$385*(1+rvanilla03)^0.5)-SUM($I120:AE120),('PTRM input'!$I$385*(1+rvanilla03)^0.5)/A1stdlife)) -> 0.0573392429 | AG120: =IF(A1stdlife="n/a","n/a",IF(AG$3>(A1stdlife+$E120),('PTRM input'!$I$385*(1+rvanilla03)^0.5)-SUM($I120:AF120),('PTRM input'!$I$385*(1+rvanilla03)^0.5)/A1stdlife)) -> 0.0573392429 | AH120: =IF(A1stdlife="n/a","n/a",IF(AH$3>(A1stdlife+$E120),('PTRM input'!$I$385*(1+rvanilla03)^0.5)-SUM($I120:AG120),('PTRM input'!$I$385*(1+rvanilla03)^0.5)/A1stdlife)) -> 0.0573392429 | AI120: =IF(A1stdlife="n/a","n/a",IF(AI$3>(A1stdlife+$E120),('PTRM input'!$I$385*(1+rvanilla03)^0.5)-SUM($I120:AH120),('PTRM input'!$I$385*(1+rvanilla03)^0.5)/A1stdlife)) -> 0.0573392429 | AJ120: =IF(A1stdlife="n/a","n/a",IF(AJ$3>(A1stdlife+$E120),('PTRM input'!$I$385*(1+rvanilla03)^0.5)-SUM($I120:AI120),('PTRM input'!$I$385*(1+rvanilla03)^0.5)/A1stdlife)) -> 0.0573392429 | AK120: =IF(A1stdlife="n/a","n/a",IF(AK$3>(A1stdlife+$E120),('PTRM input'!$I$385*(1+rvanilla03)^0.5)-SUM($I120:AJ120),('PTRM input'!$I$385*(1+rvanilla03)^0.5)/A1stdlife)) -> 0.0573392429 | AL120: =IF(A1stdlife="n/a","n/a",IF(AL$3>(A1stdlife+$E120),('PTRM input'!$I$385*(1+rvanilla03)^0.5)-SUM($I120:AK120),('PTRM input'!$I$385*(1+rvanilla03)^0.5)/A1stdlife)) -> 0.0573392429 | AM120: =IF(A1stdlife="n/a","n/a",IF(AM$3>(A1stdlife+$E120),('PTRM input'!$I$385*(1+rvanilla03)^0.5)-SUM($I120:AL120),('PTRM input'!$I$385*(1+rvanilla03)^0.5)/A1stdlife)) -> 0.0573392429 | AN120: =IF(A1stdlife="n/a","n/a",IF(AN$3>(A1stdlife+$E120),('PTRM input'!$I$385*(1+rvanilla03)^0.5)-SUM($I120:AM120),('PTRM input'!$I$385*(1+rvanilla03)^0.5)/A1stdlife)) -> -6.661338148e-16 | AO120: =IF(A1stdlife="n/a","n/a",IF(AO$3>(A1stdlife+$E120),('PTRM input'!$I$385*(1+rvanilla03)^0.5)-SUM($I120:AN120),('PTRM input'!$I$385*(1+rvanilla03)^0.5)/A1stdlife)) -> 0 | AP120: =IF(A1stdlife="n/a","n/a",IF(AP$3>(A1stdlife+$E120),('PTRM input'!$I$385*(1+rvanilla03)^0.5)-SUM($I120:AO120),('PTRM input'!$I$385*(1+rvanilla03)^0.5)/A1stdlife)) -> 0 | AQ120: =IF(A1stdlife="n/a","n/a",IF(AQ$3>(A1stdlife+$E120),('PTRM input'!$I$385*(1+rvanilla03)^0.5)-SUM($I120:AP120),('PTRM input'!$I$385*(1+rvanilla03)^0.5)/A1stdlife)) -> 0 | AR120: =IF(A1stdlife="n/a","n/a",IF(AR$3>(A1stdlife+$E120),('PTRM input'!$I$385*(1+rvanilla03)^0.5)-SUM($I120:AQ120),('PTRM input'!$I$385*(1+rvanilla03)^0.5)/A1stdlife)) -> 0 | AS120: =IF(A1stdlife="n/a","n/a",IF(AS$3>(A1stdlife+$E120),('PTRM input'!$I$385*(1+rvanilla03)^0.5)-SUM($I120:AR120),('PTRM input'!$I$385*(1+rvanilla03)^0.5)/A1stdlife)) -> 0 | AT120: =IF(A1stdlife="n/a","n/a",IF(AT$3>(A1stdlife+$E120),('PTRM input'!$I$385*(1+rvanilla03)^0.5)-SUM($I120:AS120),('PTRM input'!$I$385*(1+rvanilla03)^0.5)/A1stdlife)) -> 0 | AU120: =IF(A1stdlife="n/a","n/a",IF(AU$3>(A1stdlife+$E120),('PTRM input'!$I$385*(1+rvanilla03)^0.5)-SUM($I120:AT120),('PTRM input'!$I$385*(1+rvanilla03)^0.5)/A1stdlife)) -> 0 | AV120: =IF(A1stdlife="n/a","n/a",IF(AV$3>(A1stdlife+$E120),('PTRM input'!$I$385*(1+rvanilla03)^0.5)-SUM($I120:AU120),('PTRM input'!$I$385*(1+rvanilla03)^0.5)/A1stdlife)) -> 0 | AW120: =IF(A1stdlife="n/a","n/a",IF(AW$3>(A1stdlife+$E120),('PTRM input'!$I$385*(1+rvanilla03)^0.5)-SUM($I120:AV120),('PTRM input'!$I$385*(1+rvanilla03)^0.5)/A1stdlife)) -> 0 | AX120: =IF(A1stdlife="n/a","n/a",IF(AX$3>(A1stdlife+$E120),('PTRM input'!$I$385*(1+rvanilla03)^0.5)-SUM($I120:AW120),('PTRM input'!$I$385*(1+rvanilla03)^0.5)/A1stdlife)) -> 0 | AY120: =IF(A1stdlife="n/a","n/a",IF(AY$3>(A1stdlife+$E120),('PTRM input'!$I$385*(1+rvanilla03)^0.5)-SUM($I120:AX120),('PTRM input'!$I$385*(1+rvanilla03)^0.5)/A1stdlife)) -> 0 | AZ120: =IF(A1stdlife="n/a","n/a",IF(AZ$3>(A1stdlife+$E120),('PTRM input'!$I$385*(1+rvanilla03)^0.5)-SUM($I120:AY120),('PTRM input'!$I$385*(1+rvanilla03)^0.5)/A1stdlife)) -> 0 | BA120: =IF(A1stdlife="n/a","n/a",IF(BA$3>(A1stdlife+$E120),('PTRM input'!$I$385*(1+rvanilla03)^0.5)-SUM($I120:AZ120),('PTRM input'!$I$385*(1+rvanilla03)^0.5)/A1stdlife)) -> 0 | BB120: =IF(A1stdlife="n/a","n/a",IF(BB$3>(A1stdlife+$E120),('PTRM input'!$I$385*(1+rvanilla03)^0.5)-SUM($I120:BA120),('PTRM input'!$I$385*(1+rvanilla03)^0.5)/A1stdlife)) -> 0 | BC120: =IF(A1stdlife="n/a","n/a",IF(BC$3>(A1stdlife+$E120),('PTRM input'!$I$385*(1+rvanilla03)^0.5)-SUM($I120:BB120),('PTRM input'!$I$385*(1+rvanilla03)^0.5)/A1stdlife)) -> 0 | BD120: =IF(A1stdlife="n/a","n/a",IF(BD$3>(A1stdlife+$E120),('PTRM input'!$I$385*(1+rvanilla03)^0.5)-SUM($I120:BC120),('PTRM input'!$I$385*(1+rvanilla03)^0.5)/A1stdlife)) -> 0 | BE120: =IF(A1stdlife="n/a","n/a",IF(BE$3>(A1stdlife+$E120),('PTRM input'!$I$385*(1+rvanilla03)^0.5)-SUM($I120:BD120),('PTRM input'!$I$385*(1+rvanilla03)^0.5)/A1stdlife)) -> 0 | BF120: =IF(A1stdlife="n/a","n/a",IF(BF$3>(A1stdlife+$E120),('PTRM input'!$I$385*(1+rvanilla03)^0.5)-SUM($I120:BE120),('PTRM input'!$I$385*(1+rvanilla03)^0.5)/A1stdlife)) -> 0 | BG120: =IF(A1stdlife="n/a","n/a",IF(BG$3>(A1stdlife+$E120),('PTRM input'!$I$385*(1+rvanilla03)^0.5)-SUM($I120:BF120),('PTRM input'!$I$385*(1+rvanilla03)^0.5)/A1stdlife)) -> 0 | BH120: =IF(A1stdlife="n/a","n/a",IF(BH$3>(A1stdlife+$E120),('PTRM input'!$I$385*(1+rvanilla03)^0.5)-SUM($I120:BG120),('PTRM input'!$I$385*(1+rvanilla03)^0.5)/A1stdlife)) -> 0 | BI120: =IF(A1stdlife="n/a","n/a",IF(BI$3>(A1stdlife+$E120),('PTRM input'!$I$385*(1+rvanilla03)^0.5)-SUM($I120:BH120),('PTRM input'!$I$385*(1+rvanilla03)^0.5)/A1stdlife)) -> 0
E121: 4 | K121: =IF(A1stdlife="n/a","n/a",IF(K$3>(A1stdlife+$E121),('PTRM input'!$J$385*(1+rvanilla04)^0.5)-SUM(J121:$J121),('PTRM input'!$J$385*(1+rvanilla04)^0.5)/A1stdlife)) -> 0.05736240513 | L121: =IF(A1stdlife="n/a","n/a",IF(L$3>(A1stdlife+$E121),('PTRM input'!$J$385*(1+rvanilla04)^0.5)-SUM($J121:K121),('PTRM input'!$J$385*(1+rvanilla04)^0.5)/A1stdlife)) -> 0.05736240513 | M121: =IF(A1stdlife="n/a","n/a",IF(M$3>(A1stdlife+$E121),('PTRM input'!$J$385*(1+rvanilla04)^0.5)-SUM($J121:L121),('PTRM input'!$J$385*(1+rvanilla04)^0.5)/A1stdlife)) -> 0.05736240513 | N121: =IF(A1stdlife="n/a","n/a",IF(N$3>(A1stdlife+$E121),('PTRM input'!$J$385*(1+rvanilla04)^0.5)-SUM($J121:M121),('PTRM input'!$J$385*(1+rvanilla04)^0.5)/A1stdlife)) -> 0.05736240513 | O121: =IF(A1stdlife="n/a","n/a",IF(O$3>(A1stdlife+$E121),('PTRM input'!$J$385*(1+rvanilla04)^0.5)-SUM($J121:N121),('PTRM input'!$J$385*(1+rvanilla04)^0.5)/A1stdlife)) -> 0.05736240513 | P121: =IF(A1stdlife="n/a","n/a",IF(P$3>(A1stdlife+$E121),('PTRM input'!$J$385*(1+rvanilla04)^0.5)-SUM($J121:O121),('PTRM input'!$J$385*(1+rvanilla04)^0.5)/A1stdlife)) -> 0.05736240513 | Q121: =IF(A1stdlife="n/a","n/a",IF(Q$3>(A1stdlife+$E121),('PTRM input'!$J$385*(1+rvanilla04)^0.5)-SUM($J121:P121),('PTRM input'!$J$385*(1+rvanilla04)^0.5)/A1stdlife)) -> 0.05736240513 | R121: =IF(A1stdlife="n/a","n/a",IF(R$3>(A1stdlife+$E121),('PTRM input'!$J$385*(1+rvanilla04)^0.5)-SUM($J121:Q121),('PTRM input'!$J$385*(1+rvanilla04)^0.5)/A1stdlife)) -> 0.05736240513 | S121: =IF(A1stdlife="n/a","n/a",IF(S$3>(A1stdlife+$E121),('PTRM input'!$J$385*(1+rvanilla04)^0.5)-SUM($J121:R121),('PTRM input'!$J$385*(1+rvanilla04)^0.5)/A1stdlife)) -> 0.05736240513 | T121: =IF(A1stdlife="n/a","n/a",IF(T$3>(A1stdlife+$E121),('PTRM input'!$J$385*(1+rvanilla04)^0.5)-SUM($J121:S121),('PTRM input'!$J$385*(1+rvanilla04)^0.5)/A1stdlife)) -> 0.05736240513 | U121: =IF(A1stdlife="n/a","n/a",IF(U$3>(A1stdlife+$E121),('PTRM input'!$J$385*(1+rvanilla04)^0.5)-SUM($J121:T121),('PTRM input'!$J$385*(1+rvanilla04)^0.5)/A1stdlife)) -> 0.05736240513 | V121: =IF(A1stdlife="n/a","n/a",IF(V$3>(A1stdlife+$E121),('PTRM input'!$J$385*(1+rvanilla04)^0.5)-SUM($J121:U121),('PTRM input'!$J$385*(1+rvanilla04)^0.5)/A1stdlife)) -> 0.05736240513 | W121: =IF(A1stdlife="n/a","n/a",IF(W$3>(A1stdlife+$E121),('PTRM input'!$J$385*(1+rvanilla04)^0.5)-SUM($J121:V121),('PTRM input'!$J$385*(1+rvanilla04)^0.5)/A1stdlife)) -> 0.05736240513 | X121: =IF(A1stdlife="n/a","n/a",IF(X$3>(A1stdlife+$E121),('PTRM input'!$J$385*(1+rvanilla04)^0.5)-SUM($J121:W121),('PTRM input'!$J$385*(1+rvanilla04)^0.5)/A1stdlife)) -> 0.05736240513 | Y121: =IF(A1stdlife="n/a","n/a",IF(Y$3>(A1stdlife+$E121),('PTRM input'!$J$385*(1+rvanilla04)^0.5)-SUM($J121:X121),('PTRM input'!$J$385*(1+rvanilla04)^0.5)/A1stdlife)) -> 0.05736240513 | Z121: =IF(A1stdlife="n/a","n/a",IF(Z$3>(A1stdlife+$E121),('PTRM input'!$J$385*(1+rvanilla04)^0.5)-SUM($J121:Y121),('PTRM input'!$J$385*(1+rvanilla04)^0.5)/A1stdlife)) -> 0.05736240513 | AA121: =IF(A1stdlife="n/a","n/a",IF(AA$3>(A1stdlife+$E121),('PTRM input'!$J$385*(1+rvanilla04)^0.5)-SUM($J121:Z121),('PTRM input'!$J$385*(1+rvanilla04)^0.5)/A1stdlife)) -> 0.05736240513 | AB121: =IF(A1stdlife="n/a","n/a",IF(AB$3>(A1stdlife+$E121),('PTRM input'!$J$385*(1+rvanilla04)^0.5)-SUM($J121:AA121),('PTRM input'!$J$385*(1+rvanilla04)^0.5)/A1stdlife)) -> 0.05736240513 | AC121: =IF(A1stdlife="n/a","n/a",IF(AC$3>(A1stdlife+$E121),('PTRM input'!$J$385*(1+rvanilla04)^0.5)-SUM($J121:AB121),('PTRM input'!$J$385*(1+rvanilla04)^0.5)/A1stdlife)) -> 0.05736240513 | AD121: =IF(A1stdlife="n/a","n/a",IF(AD$3>(A1stdlife+$E121),('PTRM input'!$J$385*(1+rvanilla04)^0.5)-SUM($J121:AC121),('PTRM input'!$J$385*(1+rvanilla04)^0.5)/A1stdlife)) -> 0.05736240513 | AE121: =IF(A1stdlife="n/a","n/a",IF(AE$3>(A1stdlife+$E121),('PTRM input'!$J$385*(1+rvanilla04)^0.5)-SUM($J121:AD121),('PTRM input'!$J$385*(1+rvanilla04)^0.5)/A1stdlife)) -> 0.05736240513 | AF121: =IF(A1stdlife="n/a","n/a",IF(AF$3>(A1stdlife+$E121),('PTRM input'!$J$385*(1+rvanilla04)^0.5)-SUM($J121:AE121),('PTRM input'!$J$385*(1+rvanilla04)^0.5)/A1stdlife)) -> 0.05736240513 | AG121: =IF(A1stdlife="n/a","n/a",IF(AG$3>(A1stdlife+$E121),('PTRM input'!$J$385*(1+rvanilla04)^0.5)-SUM($J121:AF121),('PTRM input'!$J$385*(1+rvanilla04)^0.5)/A1stdlife)) -> 0.05736240513 | AH121: =IF(A1stdlife="n/a","n/a",IF(AH$3>(A1stdlife+$E121),('PTRM input'!$J$385*(1+rvanilla04)^0.5)-SUM($J121:AG121),('PTRM input'!$J$385*(1+rvanilla04)^0.5)/A1stdlife)) -> 0.05736240513 | AI121: =IF(A1stdlife="n/a","n/a",IF(AI$3>(A1stdlife+$E121),('PTRM input'!$J$385*(1+rvanilla04)^0.5)-SUM($J121:AH121),('PTRM input'!$J$385*(1+rvanilla04)^0.5)/A1stdlife)) -> 0.05736240513 | AJ121: =IF(A1stdlife="n/a","n/a",IF(AJ$3>(A1stdlife+$E121),('PTRM input'!$J$385*(1+rvanilla04)^0.5)-SUM($J121:AI121),('PTRM input'!$J$385*(1+rvanilla04)^0.5)/A1stdlife)) -> 0.05736240513 | AK121: =IF(A1stdlife="n/a","n/a",IF(AK$3>(A1stdlife+$E121),('PTRM input'!$J$385*(1+rvanilla04)^0.5)-SUM($J121:AJ121),('PTRM input'!$J$385*(1+rvanilla04)^0.5)/A1stdlife)) -> 0.05736240513 | AL121: =IF(A1stdlife="n/a","n/a",IF(AL$3>(A1stdlife+$E121),('PTRM input'!$J$385*(1+rvanilla04)^0.5)-SUM($J121:AK121),('PTRM input'!$J$385*(1+rvanilla04)^0.5)/A1stdlife)) -> 0.05736240513 | AM121: =IF(A1stdlife="n/a","n/a",IF(AM$3>(A1stdlife+$E121),('PTRM input'!$J$385*(1+rvanilla04)^0.5)-SUM($J121:AL121),('PTRM input'!$J$385*(1+rvanilla04)^0.5)/A1stdlife)) -> 0.05736240513 | AN121: =IF(A1stdlife="n/a","n/a",IF(AN$3>(A1stdlife+$E121),('PTRM input'!$J$385*(1+rvanilla04)^0.5)-SUM($J121:AM121),('PTRM input'!$J$385*(1+rvanilla04)^0.5)/A1stdlife)) -> 0.05736240513 | AO121: =IF(A1stdlife="n/a","n/a",IF(AO$3>(A1stdlife+$E121),('PTRM input'!$J$385*(1+rvanilla04)^0.5)-SUM($J121:AN121),('PTRM input'!$J$385*(1+rvanilla04)^0.5)/A1stdlife)) -> -1.33226763e-15 | AP121: =IF(A1stdlife="n/a","n/a",IF(AP$3>(A1stdlife+$E121),('PTRM input'!$J$385*(1+rvanilla04)^0.5)-SUM($J121:AO121),('PTRM input'!$J$385*(1+rvanilla04)^0.5)/A1stdlife)) -> 0 | AQ121: =IF(A1stdlife="n/a","n/a",IF(AQ$3>(A1stdlife+$E121),('PTRM input'!$J$385*(1+rvanilla04)^0.5)-SUM($J121:AP121),('PTRM input'!$J$385*(1+rvanilla04)^0.5)/A1stdlife)) -> 0 | AR121: =IF(A1stdlife="n/a","n/a",IF(AR$3>(A1stdlife+$E121),('PTRM input'!$J$385*(1+rvanilla04)^0.5)-SUM($J121:AQ121),('PTRM input'!$J$385*(1+rvanilla04)^0.5)/A1stdlife)) -> 0 | AS121: =IF(A1stdlife="n/a","n/a",IF(AS$3>(A1stdlife+$E121),('PTRM input'!$J$385*(1+rvanilla04)^0.5)-SUM($J121:AR121),('PTRM input'!$J$385*(1+rvanilla04)^0.5)/A1stdlife)) -> 0 | AT121: =IF(A1stdlife="n/a","n/a",IF(AT$3>(A1stdlife+$E121),('PTRM input'!$J$385*(1+rvanilla04)^0.5)-SUM($J121:AS121),('PTRM input'!$J$385*(1+rvanilla04)^0.5)/A1stdlife)) -> 0 | AU121: =IF(A1stdlife="n/a","n/a",IF(AU$3>(A1stdlife+$E121),('PTRM input'!$J$385*(1+rvanilla04)^0.5)-SUM($J121:AT121),('PTRM input'!$J$385*(1+rvanilla04)^0.5)/A1stdlife)) -> 0 | AV121: =IF(A1stdlife="n/a","n/a",IF(AV$3>(A1stdlife+$E121),('PTRM input'!$J$385*(1+rvanilla04)^0.5)-SUM($J121:AU121),('PTRM input'!$J$385*(1+rvanilla04)^0.5)/A1stdlife)) -> 0 | AW121: =IF(A1stdlife="n/a","n/a",IF(AW$3>(A1stdlife+$E121),('PTRM input'!$J$385*(1+rvanilla04)^0.5)-SUM($J121:AV121),('PTRM input'!$J$385*(1+rvanilla04)^0.5)/A1stdlife)) -> 0 | AX121: =IF(A1stdlife="n/a","n/a",IF(AX$3>(A1stdlife+$E121),('PTRM input'!$J$385*(1+rvanilla04)^0.5)-SUM($J121:AW121),('PTRM input'!$J$385*(1+rvanilla04)^0.5)/A1stdlife)) -> 0 | AY121: =IF(A1stdlife="n/a","n/a",IF(AY$3>(A1stdlife+$E121),('PTRM input'!$J$385*(1+rvanilla04)^0.5)-SUM($J121:AX121),('PTRM input'!$J$385*(1+rvanilla04)^0.5)/A1stdlife)) -> 0 | AZ121: =IF(A1stdlife="n/a","n/a",IF(AZ$3>(A1stdlife+$E121),('PTRM input'!$J$385*(1+rvanilla04)^0.5)-SUM($J121:AY121),('PTRM input'!$J$385*(1+rvanilla04)^0.5)/A1stdlife)) -> 0 | BA121: =IF(A1stdlife="n/a","n/a",IF(BA$3>(A1stdlife+$E121),('PTRM input'!$J$385*(1+rvanilla04)^0.5)-SUM($J121:AZ121),('PTRM input'!$J$385*(1+rvanilla04)^0.5)/A1stdlife)) -> 0 | BB121: =IF(A1stdlife="n/a","n/a",IF(BB$3>(A1stdlife+$E121),('PTRM input'!$J$385*(1+rvanilla04)^0.5)-SUM($J121:BA121),('PTRM input'!$J$385*(1+rvanilla04)^0.5)/A1stdlife)) -> 0 | BC121: =IF(A1stdlife="n/a","n/a",IF(BC$3>(A1stdlife+$E121),('PTRM input'!$J$385*(1+rvanilla04)^0.5)-SUM($J121:BB121),('PTRM input'!$J$385*(1+rvanilla04)^0.5)/A1stdlife)) -> 0 | BD121: =IF(A1stdlife="n/a","n/a",IF(BD$3>(A1stdlife+$E121),('PTRM input'!$J$385*(1+rvanilla04)^0.5)-SUM($J121:BC121),('PTRM input'!$J$385*(1+rvanilla04)^0.5)/A1stdlife)) -> 0 | BE121: =IF(A1stdlife="n/a","n/a",IF(BE$3>(A1stdlife+$E121),('PTRM input'!$J$385*(1+rvanilla04)^0.5)-SUM($J121:BD121),('PTRM input'!$J$385*(1+rvanilla04)^0.5)/A1stdlife)) -> 0 | BF121: =IF(A1stdlife="n/a","n/a",IF(BF$3>(A1stdlife+$E121),('PTRM input'!$J$385*(1+rvanilla04)^0.5)-SUM($J121:BE121),('PTRM input'!$J$385*(1+rvanilla04)^0.5)/A1stdlife)) -> 0 | BG121: =IF(A1stdlife="n/a","n/a",IF(BG$3>(A1stdlife+$E121),('PTRM input'!$J$385*(1+rvanilla04)^0.5)-SUM($J121:BF121),('PTRM input'!$J$385*(1+rvanilla04)^0.5)/A1stdlife)) -> 0 | BH121: =IF(A1stdlife="n/a","n/a",IF(BH$3>(A1stdlife+$E121),('PTRM input'!$J$385*(1+rvanilla04)^0.5)-SUM($J121:BG121),('PTRM input'!$J$385*(1+rvanilla04)^0.5)/A1stdlife)) -> 0 | BI121: =IF(A1stdlife="n/a","n/a",IF(BI$3>(A1stdlife+$E121),('PTRM input'!$J$385*(1+rvanilla04)^0.5)-SUM($J121:BH121),('PTRM input'!$J$385*(1+rvanilla04)^0.5)/A1stdlife)) -> 0
E122: 5 | L122: =IF(A1stdlife="n/a","n/a",IF(L$3>(A1stdlife+$E122),('PTRM input'!$K$385*(1+rvanilla05)^0.5)-SUM($K122:K122),('PTRM input'!$K$385*(1+rvanilla05)^0.5)/A1stdlife)) -> 0.04150527781 | M122: =IF(A1stdlife="n/a","n/a",IF(M$3>(A1stdlife+$E122),('PTRM input'!$K$385*(1+rvanilla05)^0.5)-SUM($K122:L122),('PTRM input'!$K$385*(1+rvanilla05)^0.5)/A1stdlife)) -> 0.04150527781 | N122: =IF(A1stdlife="n/a","n/a",IF(N$3>(A1stdlife+$E122),('PTRM input'!$K$385*(1+rvanilla05)^0.5)-SUM($K122:M122),('PTRM input'!$K$385*(1+rvanilla05)^0.5)/A1stdlife)) -> 0.04150527781 | O122: =IF(A1stdlife="n/a","n/a",IF(O$3>(A1stdlife+$E122),('PTRM input'!$K$385*(1+rvanilla05)^0.5)-SUM($K122:N122),('PTRM input'!$K$385*(1+rvanilla05)^0.5)/A1stdlife)) -> 0.04150527781 | P122: =IF(A1stdlife="n/a","n/a",IF(P$3>(A1stdlife+$E122),('PTRM input'!$K$385*(1+rvanilla05)^0.5)-SUM($K122:O122),('PTRM input'!$K$385*(1+rvanilla05)^0.5)/A1stdlife)) -> 0.04150527781 | Q122: =IF(A1stdlife="n/a","n/a",IF(Q$3>(A1stdlife+$E122),('PTRM input'!$K$385*(1+rvanilla05)^0.5)-SUM($K122:P122),('PTRM input'!$K$385*(1+rvanilla05)^0.5)/A1stdlife)) -> 0.04150527781 | R122: =IF(A1stdlife="n/a","n/a",IF(R$3>(A1stdlife+$E122),('PTRM input'!$K$385*(1+rvanilla05)^0.5)-SUM($K122:Q122),('PTRM input'!$K$385*(1+rvanilla05)^0.5)/A1stdlife)) -> 0.04150527781 | S122: =IF(A1stdlife="n/a","n/a",IF(S$3>(A1stdlife+$E122),('PTRM input'!$K$385*(1+rvanilla05)^0.5)-SUM($K122:R122),('PTRM input'!$K$385*(1+rvanilla05)^0.5)/A1stdlife)) -> 0.04150527781 | T122: =IF(A1stdlife="n/a","n/a",IF(T$3>(A1stdlife+$E122),('PTRM input'!$K$385*(1+rvanilla05)^0.5)-SUM($K122:S122),('PTRM input'!$K$385*(1+rvanilla05)^0.5)/A1stdlife)) -> 0.04150527781 | U122: =IF(A1stdlife="n/a","n/a",IF(U$3>(A1stdlife+$E122),('PTRM input'!$K$385*(1+rvanilla05)^0.5)-SUM($K122:T122),('PTRM input'!$K$385*(1+rvanilla05)^0.5)/A1stdlife)) -> 0.04150527781 | V122: =IF(A1stdlife="n/a","n/a",IF(V$3>(A1stdlife+$E122),('PTRM input'!$K$385*(1+rvanilla05)^0.5)-SUM($K122:U122),('PTRM input'!$K$385*(1+rvanilla05)^0.5)/A1stdlife)) -> 0.04150527781 | W122: =IF(A1stdlife="n/a","n/a",IF(W$3>(A1stdlife+$E122),('PTRM input'!$K$385*(1+rvanilla05)^0.5)-SUM($K122:V122),('PTRM input'!$K$385*(1+rvanilla05)^0.5)/A1stdlife)) -> 0.04150527781 | X122: =IF(A1stdlife="n/a","n/a",IF(X$3>(A1stdlife+$E122),('PTRM input'!$K$385*(1+rvanilla05)^0.5)-SUM($K122:W122),('PTRM input'!$K$385*(1+rvanilla05)^0.5)/A1stdlife)) -> 0.04150527781 | Y122: =IF(A1stdlife="n/a","n/a",IF(Y$3>(A1stdlife+$E122),('PTRM input'!$K$385*(1+rvanilla05)^0.5)-SUM($K122:X122),('PTRM input'!$K$385*(1+rvanilla05)^0.5)/A1stdlife)) -> 0.04150527781 | Z122: =IF(A1stdlife="n/a","n/a",IF(Z$3>(A1stdlife+$E122),('PTRM input'!$K$385*(1+rvanilla05)^0.5)-SUM($K122:Y122),('PTRM input'!$K$385*(1+rvanilla05)^0.5)/A1stdlife)) -> 0.04150527781 | AA122: =IF(A1stdlife="n/a","n/a",IF(AA$3>(A1stdlife+$E122),('PTRM input'!$K$385*(1+rvanilla05)^0.5)-SUM($K122:Z122),('PTRM input'!$K$385*(1+rvanilla05)^0.5)/A1stdlife)) -> 0.04150527781 | AB122: =IF(A1stdlife="n/a","n/a",IF(AB$3>(A1stdlife+$E122),('PTRM input'!$K$385*(1+rvanilla05)^0.5)-SUM($K122:AA122),('PTRM input'!$K$385*(1+rvanilla05)^0.5)/A1stdlife)) -> 0.04150527781 | AC122: =IF(A1stdlife="n/a","n/a",IF(AC$3>(A1stdlife+$E122),('PTRM input'!$K$385*(1+rvanilla05)^0.5)-SUM($K122:AB122),('PTRM input'!$K$385*(1+rvanilla05)^0.5)/A1stdlife)) -> 0.04150527781 | AD122: =IF(A1stdlife="n/a","n/a",IF(AD$3>(A1stdlife+$E122),('PTRM input'!$K$385*(1+rvanilla05)^0.5)-SUM($K122:AC122),('PTRM input'!$K$385*(1+rvanilla05)^0.5)/A1stdlife)) -> 0.04150527781 | AE122: =IF(A1stdlife="n/a","n/a",IF(AE$3>(A1stdlife+$E122),('PTRM input'!$K$385*(1+rvanilla05)^0.5)-SUM($K122:AD122),('PTRM input'!$K$385*(1+rvanilla05)^0.5)/A1stdlife)) -> 0.04150527781 | AF122: =IF(A1stdlife="n/a","n/a",IF(AF$3>(A1stdlife+$E122),('PTRM input'!$K$385*(1+rvanilla05)^0.5)-SUM($K122:AE122),('PTRM input'!$K$385*(1+rvanilla05)^0.5)/A1stdlife)) -> 0.04150527781 | AG122: =IF(A1stdlife="n/a","n/a",IF(AG$3>(A1stdlife+$E122),('PTRM input'!$K$385*(1+rvanilla05)^0.5)-SUM($K122:AF122),('PTRM input'!$K$385*(1+rvanilla05)^0.5)/A1stdlife)) -> 0.04150527781 | AH122: =IF(A1stdlife="n/a","n/a",IF(AH$3>(A1stdlife+$E122),('PTRM input'!$K$385*(1+rvanilla05)^0.5)-SUM($K122:AG122),('PTRM input'!$K$385*(1+rvanilla05)^0.5)/A1stdlife)) -> 0.04150527781 | AI122: =IF(A1stdlife="n/a","n/a",IF(AI$3>(A1stdlife+$E122),('PTRM input'!$K$385*(1+rvanilla05)^0.5)-SUM($K122:AH122),('PTRM input'!$K$385*(1+rvanilla05)^0.5)/A1stdlife)) -> 0.04150527781 | AJ122: =IF(A1stdlife="n/a","n/a",IF(AJ$3>(A1stdlife+$E122),('PTRM input'!$K$385*(1+rvanilla05)^0.5)-SUM($K122:AI122),('PTRM input'!$K$385*(1+rvanilla05)^0.5)/A1stdlife)) -> 0.04150527781 | AK122: =IF(A1stdlife="n/a","n/a",IF(AK$3>(A1stdlife+$E122),('PTRM input'!$K$385*(1+rvanilla05)^0.5)-SUM($K122:AJ122),('PTRM input'!$K$385*(1+rvanilla05)^0.5)/A1stdlife)) -> 0.04150527781 | AL122: =IF(A1stdlife="n/a","n/a",IF(AL$3>(A1stdlife+$E122),('PTRM input'!$K$385*(1+rvanilla05)^0.5)-SUM($K122:AK122),('PTRM input'!$K$385*(1+rvanilla05)^0.5)/A1stdlife)) -> 0.04150527781 | AM122: =IF(A1stdlife="n/a","n/a",IF(AM$3>(A1stdlife+$E122),('PTRM input'!$K$385*(1+rvanilla05)^0.5)-SUM($K122:AL122),('PTRM input'!$K$385*(1+rvanilla05)^0.5)/A1stdlife)) -> 0.04150527781 | AN122: =IF(A1stdlife="n/a","n/a",IF(AN$3>(A1stdlife+$E122),('PTRM input'!$K$385*(1+rvanilla05)^0.5)-SUM($K122:AM122),('PTRM input'!$K$385*(1+rvanilla05)^0.5)/A1stdlife)) -> 0.04150527781 | AO122: =IF(A1stdlife="n/a","n/a",IF(AO$3>(A1stdlife+$E122),('PTRM input'!$K$385*(1+rvanilla05)^0.5)-SUM($K122:AN122),('PTRM input'!$K$385*(1+rvanilla05)^0.5)/A1stdlife)) -> 0.04150527781 | AP122: =IF(A1stdlife="n/a","n/a",IF(AP$3>(A1stdlife+$E122),('PTRM input'!$K$385*(1+rvanilla05)^0.5)-SUM($K122:AO122),('PTRM input'!$K$385*(1+rvanilla05)^0.5)/A1stdlife)) -> 0 | AQ122: =IF(A1stdlife="n/a","n/a",IF(AQ$3>(A1stdlife+$E122),('PTRM input'!$K$385*(1+rvanilla05)^0.5)-SUM($K122:AP122),('PTRM input'!$K$385*(1+rvanilla05)^0.5)/A1stdlife)) -> 0 | AR122: =IF(A1stdlife="n/a","n/a",IF(AR$3>(A1stdlife+$E122),('PTRM input'!$K$385*(1+rvanilla05)^0.5)-SUM($K122:AQ122),('PTRM input'!$K$385*(1+rvanilla05)^0.5)/A1stdlife)) -> 0 | AS122: =IF(A1stdlife="n/a","n/a",IF(AS$3>(A1stdlife+$E122),('PTRM input'!$K$385*(1+rvanilla05)^0.5)-SUM($K122:AR122),('PTRM input'!$K$385*(1+rvanilla05)^0.5)/A1stdlife)) -> 0 | AT122: =IF(A1stdlife="n/a","n/a",IF(AT$3>(A1stdlife+$E122),('PTRM input'!$K$385*(1+rvanilla05)^0.5)-SUM($K122:AS122),('PTRM input'!$K$385*(1+rvanilla05)^0.5)/A1stdlife)) -> 0 | AU122: =IF(A1stdlife="n/a","n/a",IF(AU$3>(A1stdlife+$E122),('PTRM input'!$K$385*(1+rvanilla05)^0.5)-SUM($K122:AT122),('PTRM input'!$K$385*(1+rvanilla05)^0.5)/A1stdlife)) -> 0 | AV122: =IF(A1stdlife="n/a","n/a",IF(AV$3>(A1stdlife+$E122),('PTRM input'!$K$385*(1+rvanilla05)^0.5)-SUM($K122:AU122),('PTRM input'!$K$385*(1+rvanilla05)^0.5)/A1stdlife)) -> 0 | AW122: =IF(A1stdlife="n/a","n/a",IF(AW$3>(A1stdlife+$E122),('PTRM input'!$K$385*(1+rvanilla05)^0.5)-SUM($K122:AV122),('PTRM input'!$K$385*(1+rvanilla05)^0.5)/A1stdlife)) -> 0 | AX122: =IF(A1stdlife="n/a","n/a",IF(AX$3>(A1stdlife+$E122),('PTRM input'!$K$385*(1+rvanilla05)^0.5)-SUM($K122:AW122),('PTRM input'!$K$385*(1+rvanilla05)^0.5)/A1stdlife)) -> 0 | AY122: =IF(A1stdlife="n/a","n/a",IF(AY$3>(A1stdlife+$E122),('PTRM input'!$K$385*(1+rvanilla05)^0.5)-SUM($K122:AX122),('PTRM input'!$K$385*(1+rvanilla05)^0.5)/A1stdlife)) -> 0 | AZ122: =IF(A1stdlife="n/a","n/a",IF(AZ$3>(A1stdlife+$E122),('PTRM input'!$K$385*(1+rvanilla05)^0.5)-SUM($K122:AY122),('PTRM input'!$K$385*(1+rvanilla05)^0.5)/A1stdlife)) -> 0 | BA122: =IF(A1stdlife="n/a","n/a",IF(BA$3>(A1stdlife+$E122),('PTRM input'!$K$385*(1+rvanilla05)^0.5)-SUM($K122:AZ122),('PTRM input'!$K$385*(1+rvanilla05)^0.5)/A1stdlife)) -> 0 | BB122: =IF(A1stdlife="n/a","n/a",IF(BB$3>(A1stdlife+$E122),('PTRM input'!$K$385*(1+rvanilla05)^0.5)-SUM($K122:BA122),('PTRM input'!$K$385*(1+rvanilla05)^0.5)/A1stdlife)) -> 0 | BC122: =IF(A1stdlife="n/a","n/a",IF(BC$3>(A1stdlife+$E122),('PTRM input'!$K$385*(1+rvanilla05)^0.5)-SUM($K122:BB122),('PTRM input'!$K$385*(1+rvanilla05)^0.5)/A1stdlife)) -> 0 | BD122: =IF(A1stdlife="n/a","n/a",IF(BD$3>(A1stdlife+$E122),('PTRM input'!$K$385*(1+rvanilla05)^0.5)-SUM($K122:BC122),('PTRM input'!$K$385*(1+rvanilla05)^0.5)/A1stdlife)) -> 0 | BE122: =IF(A1stdlife="n/a","n/a",IF(BE$3>(A1stdlife+$E122),('PTRM input'!$K$385*(1+rvanilla05)^0.5)-SUM($K122:BD122),('PTRM input'!$K$385*(1+rvanilla05)^0.5)/A1stdlife)) -> 0 | BF122: =IF(A1stdlife="n/a","n/a",IF(BF$3>(A1stdlife+$E122),('PTRM input'!$K$385*(1+rvanilla05)^0.5)-SUM($K122:BE122),('PTRM input'!$K$385*(1+rvanilla05)^0.5)/A1stdlife)) -> 0 | BG122: =IF(A1stdlife="n/a","n/a",IF(BG$3>(A1stdlife+$E122),('PTRM input'!$K$385*(1+rvanilla05)^0.5)-SUM($K122:BF122),('PTRM input'!$K$385*(1+rvanilla05)^0.5)/A1stdlife)) -> 0 | BH122: =IF(A1stdlife="n/a","n/a",IF(BH$3>(A1stdlife+$E122),('PTRM input'!$K$385*(1+rvanilla05)^0.5)-SUM($K122:BG122),('PTRM input'!$K$385*(1+rvanilla05)^0.5)/A1stdlife)) -> 0 | BI122: =IF(A1stdlife="n/a","n/a",IF(BI$3>(A1stdlife+$E122),('PTRM input'!$K$385*(1+rvanilla05)^0.5)-SUM($K122:BH122),('PTRM input'!$K$385*(1+rvanilla05)^0.5)/A1stdlife)) -> 0
E123: 6 | M123: =IF(A1stdlife="n/a","n/a",IF(M$3>(A1stdlife+$E123),('PTRM input'!$L$385*(1+rvanilla06)^0.5)-SUM($L123:L123),('PTRM input'!$L$385*(1+rvanilla06)^0.5)/A1stdlife)) -> 0 | N123: =IF(A1stdlife="n/a","n/a",IF(N$3>(A1stdlife+$E123),('PTRM input'!$L$385*(1+rvanilla06)^0.5)-SUM($L123:M123),('PTRM input'!$L$385*(1+rvanilla06)^0.5)/A1stdlife)) -> 0 | O123: =IF(A1stdlife="n/a","n/a",IF(O$3>(A1stdlife+$E123),('PTRM input'!$L$385*(1+rvanilla06)^0.5)-SUM($L123:N123),('PTRM input'!$L$385*(1+rvanilla06)^0.5)/A1stdlife)) -> 0 | P123: =IF(A1stdlife="n/a","n/a",IF(P$3>(A1stdlife+$E123),('PTRM input'!$L$385*(1+rvanilla06)^0.5)-SUM($L123:O123),('PTRM input'!$L$385*(1+rvanilla06)^0.5)/A1stdlife)) -> 0 | Q123: =IF(A1stdlife="n/a","n/a",IF(Q$3>(A1stdlife+$E123),('PTRM input'!$L$385*(1+rvanilla06)^0.5)-SUM($L123:P123),('PTRM input'!$L$385*(1+rvanilla06)^0.5)/A1stdlife)) -> 0 | R123: =IF(A1stdlife="n/a","n/a",IF(R$3>(A1stdlife+$E123),('PTRM input'!$L$385*(1+rvanilla06)^0.5)-SUM($L123:Q123),('PTRM input'!$L$385*(1+rvanilla06)^0.5)/A1stdlife)) -> 0 | S123: =IF(A1stdlife="n/a","n/a",IF(S$3>(A1stdlife+$E123),('PTRM input'!$L$385*(1+rvanilla06)^0.5)-SUM($L123:R123),('PTRM input'!$L$385*(1+rvanilla06)^0.5)/A1stdlife)) -> 0 | T123: =IF(A1stdlife="n/a","n/a",IF(T$3>(A1stdlife+$E123),('PTRM input'!$L$385*(1+rvanilla06)^0.5)-SUM($L123:S123),('PTRM input'!$L$385*(1+rvanilla06)^0.5)/A1stdlife)) -> 0 | U123: =IF(A1stdlife="n/a","n/a",IF(U$3>(A1stdlife+$E123),('PTRM input'!$L$385*(1+rvanilla06)^0.5)-SUM($L123:T123),('PTRM input'!$L$385*(1+rvanilla06)^0.5)/A1stdlife)) -> 0 | V123: =IF(A1stdlife="n/a","n/a",IF(V$3>(A1stdlife+$E123),('PTRM input'!$L$385*(1+rvanilla06)^0.5)-SUM($L123:U123),('PTRM input'!$L$385*(1+rvanilla06)^0.5)/A1stdlife)) -> 0 | W123: =IF(A1stdlife="n/a","n/a",IF(W$3>(A1stdlife+$E123),('PTRM input'!$L$385*(1+rvanilla06)^0.5)-SUM($L123:V123),('PTRM input'!$L$385*(1+rvanilla06)^0.5)/A1stdlife)) -> 0 | X123: =IF(A1stdlife="n/a","n/a",IF(X$3>(A1stdlife+$E123),('PTRM input'!$L$385*(1+rvanilla06)^0.5)-SUM($L123:W123),('PTRM input'!$L$385*(1+rvanilla06)^0.5)/A1stdlife)) -> 0 | Y123: =IF(A1stdlife="n/a","n/a",IF(Y$3>(A1stdlife+$E123),('PTRM input'!$L$385*(1+rvanilla06)^0.5)-SUM($L123:X123),('PTRM input'!$L$385*(1+rvanilla06)^0.5)/A1stdlife)) -> 0 | Z123: =IF(A1stdlife="n/a","n/a",IF(Z$3>(A1stdlife+$E123),('PTRM input'!$L$385*(1+rvanilla06)^0.5)-SUM($L123:Y123),('PTRM input'!$L$385*(1+rvanilla06)^0.5)/A1stdlife)) -> 0 | AA123: =IF(A1stdlife="n/a","n/a",IF(AA$3>(A1stdlife+$E123),('PTRM input'!$L$385*(1+rvanilla06)^0.5)-SUM($L123:Z123),('PTRM input'!$L$385*(1+rvanilla06)^0.5)/A1stdlife)) -> 0 | AB123: =IF(A1stdlife="n/a","n/a",IF(AB$3>(A1stdlife+$E123),('PTRM input'!$L$385*(1+rvanilla06)^0.5)-SUM($L123:AA123),('PTRM input'!$L$385*(1+rvanilla06)^0.5)/A1stdlife)) -> 0 | AC123: =IF(A1stdlife="n/a","n/a",IF(AC$3>(A1stdlife+$E123),('PTRM input'!$L$385*(1+rvanilla06)^0.5)-SUM($L123:AB123),('PTRM input'!$L$385*(1+rvanilla06)^0.5)/A1stdlife)) -> 0 | AD123: =IF(A1stdlife="n/a","n/a",IF(AD$3>(A1stdlife+$E123),('PTRM input'!$L$385*(1+rvanilla06)^0.5)-SUM($L123:AC123),('PTRM input'!$L$385*(1+rvanilla06)^0.5)/A1stdlife)) -> 0 | AE123: =IF(A1stdlife="n/a","n/a",IF(AE$3>(A1stdlife+$E123),('PTRM input'!$L$385*(1+rvanilla06)^0.5)-SUM($L123:AD123),('PTRM input'!$L$385*(1+rvanilla06)^0.5)/A1stdlife)) -> 0 | AF123: =IF(A1stdlife="n/a","n/a",IF(AF$3>(A1stdlife+$E123),('PTRM input'!$L$385*(1+rvanilla06)^0.5)-SUM($L123:AE123),('PTRM input'!$L$385*(1+rvanilla06)^0.5)/A1stdlife)) -> 0 | AG123: =IF(A1stdlife="n/a","n/a",IF(AG$3>(A1stdlife+$E123),('PTRM input'!$L$385*(1+rvanilla06)^0.5)-SUM($L123:AF123),('PTRM input'!$L$385*(1+rvanilla06)^0.5)/A1stdlife)) -> 0 | AH123: =IF(A1stdlife="n/a","n/a",IF(AH$3>(A1stdlife+$E123),('PTRM input'!$L$385*(1+rvanilla06)^0.5)-SUM($L123:AG123),('PTRM input'!$L$385*(1+rvanilla06)^0.5)/A1stdlife)) -> 0 | AI123: =IF(A1stdlife="n/a","n/a",IF(AI$3>(A1stdlife+$E123),('PTRM input'!$L$385*(1+rvanilla06)^0.5)-SUM($L123:AH123),('PTRM input'!$L$385*(1+rvanilla06)^0.5)/A1stdlife)) -> 0 | AJ123: =IF(A1stdlife="n/a","n/a",IF(AJ$3>(A1stdlife+$E123),('PTRM input'!$L$385*(1+rvanilla06)^0.5)-SUM($L123:AI123),('PTRM input'!$L$385*(1+rvanilla06)^0.5)/A1stdlife)) -> 0 | AK123: =IF(A1stdlife="n/a","n/a",IF(AK$3>(A1stdlife+$E123),('PTRM input'!$L$385*(1+rvanilla06)^0.5)-SUM($L123:AJ123),('PTRM input'!$L$385*(1+rvanilla06)^0.5)/A1stdlife)) -> 0 | AL123: =IF(A1stdlife="n/a","n/a",IF(AL$3>(A1stdlife+$E123),('PTRM input'!$L$385*(1+rvanilla06)^0.5)-SUM($L123:AK123),('PTRM input'!$L$385*(1+rvanilla06)^0.5)/A1stdlife)) -> 0 | AM123: =IF(A1stdlife="n/a","n/a",IF(AM$3>(A1stdlife+$E123),('PTRM input'!$L$385*(1+rvanilla06)^0.5)-SUM($L123:AL123),('PTRM input'!$L$385*(1+rvanilla06)^0.5)/A1stdlife)) -> 0 | AN123: =IF(A1stdlife="n/a","n/a",IF(AN$3>(A1stdlife+$E123),('PTRM input'!$L$385*(1+rvanilla06)^0.5)-SUM($L123:AM123),('PTRM input'!$L$385*(1+rvanilla06)^0.5)/A1stdlife)) -> 0 | AO123: =IF(A1stdlife="n/a","n/a",IF(AO$3>(A1stdlife+$E123),('PTRM input'!$L$385*(1+rvanilla06)^0.5)-SUM($L123:AN123),('PTRM input'!$L$385*(1+rvanilla06)^0.5)/A1stdlife)) -> 0 | AP123: =IF(A1stdlife="n/a","n/a",IF(AP$3>(A1stdlife+$E123),('PTRM input'!$L$385*(1+rvanilla06)^0.5)-SUM($L123:AO123),('PTRM input'!$L$385*(1+rvanilla06)^0.5)/A1stdlife)) -> 0 | AQ123: =IF(A1stdlife="n/a","n/a",IF(AQ$3>(A1stdlife+$E123),('PTRM input'!$L$385*(1+rvanilla06)^0.5)-SUM($L123:AP123),('PTRM input'!$L$385*(1+rvanilla06)^0.5)/A1stdlife)) -> 0 | AR123: =IF(A1stdlife="n/a","n/a",IF(AR$3>(A1stdlife+$E123),('PTRM input'!$L$385*(1+rvanilla06)^0.5)-SUM($L123:AQ123),('PTRM input'!$L$385*(1+rvanilla06)^0.5)/A1stdlife)) -> 0 | AS123: =IF(A1stdlife="n/a","n/a",IF(AS$3>(A1stdlife+$E123),('PTRM input'!$L$385*(1+rvanilla06)^0.5)-SUM($L123:AR123),('PTRM input'!$L$385*(1+rvanilla06)^0.5)/A1stdlife)) -> 0 | AT123: =IF(A1stdlife="n/a","n/a",IF(AT$3>(A1stdlife+$E123),('PTRM input'!$L$385*(1+rvanilla06)^0.5)-SUM($L123:AS123),('PTRM input'!$L$385*(1+rvanilla06)^0.5)/A1stdlife)) -> 0 | AU123: =IF(A1stdlife="n/a","n/a",IF(AU$3>(A1stdlife+$E123),('PTRM input'!$L$385*(1+rvanilla06)^0.5)-SUM($L123:AT123),('PTRM input'!$L$385*(1+rvanilla06)^0.5)/A1stdlife)) -> 0 | AV123: =IF(A1stdlife="n/a","n/a",IF(AV$3>(A1stdlife+$E123),('PTRM input'!$L$385*(1+rvanilla06)^0.5)-SUM($L123:AU123),('PTRM input'!$L$385*(1+rvanilla06)^0.5)/A1stdlife)) -> 0 | AW123: =IF(A1stdlife="n/a","n/a",IF(AW$3>(A1stdlife+$E123),('PTRM input'!$L$385*(1+rvanilla06)^0.5)-SUM($L123:AV123),('PTRM input'!$L$385*(1+rvanilla06)^0.5)/A1stdlife)) -> 0 | AX123: =IF(A1stdlife="n/a","n/a",IF(AX$3>(A1stdlife+$E123),('PTRM input'!$L$385*(1+rvanilla06)^0.5)-SUM($L123:AW123),('PTRM input'!$L$385*(1+rvanilla06)^0.5)/A1stdlife)) -> 0 | AY123: =IF(A1stdlife="n/a","n/a",IF(AY$3>(A1stdlife+$E123),('PTRM input'!$L$385*(1+rvanilla06)^0.5)-SUM($L123:AX123),('PTRM input'!$L$385*(1+rvanilla06)^0.5)/A1stdlife)) -> 0 | AZ123: =IF(A1stdlife="n/a","n/a",IF(AZ$3>(A1stdlife+$E123),('PTRM input'!$L$385*(1+rvanilla06)^0.5)-SUM($L123:AY123),('PTRM input'!$L$385*(1+rvanilla06)^0.5)/A1stdlife)) -> 0 | BA123: =IF(A1stdlife="n/a","n/a",IF(BA$3>(A1stdlife+$E123),('PTRM input'!$L$385*(1+rvanilla06)^0.5)-SUM($L123:AZ123),('PTRM input'!$L$385*(1+rvanilla06)^0.5)/A1stdlife)) -> 0 | BB123: =IF(A1stdlife="n/a","n/a",IF(BB$3>(A1stdlife+$E123),('PTRM input'!$L$385*(1+rvanilla06)^0.5)-SUM($L123:BA123),('PTRM input'!$L$385*(1+rvanilla06)^0.5)/A1stdlife)) -> 0 | BC123: =IF(A1stdlife="n/a","n/a",IF(BC$3>(A1stdlife+$E123),('PTRM input'!$L$385*(1+rvanilla06)^0.5)-SUM($L123:BB123),('PTRM input'!$L$385*(1+rvanilla06)^0.5)/A1stdlife)) -> 0 | BD123: =IF(A1stdlife="n/a","n/a",IF(BD$3>(A1stdlife+$E123),('PTRM input'!$L$385*(1+rvanilla06)^0.5)-SUM($L123:BC123),('PTRM input'!$L$385*(1+rvanilla06)^0.5)/A1stdlife)) -> 0 | BE123: =IF(A1stdlife="n/a","n/a",IF(BE$3>(A1stdlife+$E123),('PTRM input'!$L$385*(1+rvanilla06)^0.5)-SUM($L123:BD123),('PTRM input'!$L$385*(1+rvanilla06)^0.5)/A1stdlife)) -> 0 | BF123: =IF(A1stdlife="n/a","n/a",IF(BF$3>(A1stdlife+$E123),('PTRM input'!$L$385*(1+rvanilla06)^0.5)-SUM($L123:BE123),('PTRM input'!$L$385*(1+rvanilla06)^0.5)/A1stdlife)) -> 0 | BG123: =IF(A1stdlife="n/a","n/a",IF(BG$3>(A1stdlife+$E123),('PTRM input'!$L$385*(1+rvanilla06)^0.5)-SUM($L123:BF123),('PTRM input'!$L$385*(1+rvanilla06)^0.5)/A1stdlife)) -> 0 | BH123: =IF(A1stdlife="n/a","n/a",IF(BH$3>(A1stdlife+$E123),('PTRM input'!$L$385*(1+rvanilla06)^0.5)-SUM($L123:BG123),('PTRM input'!$L$385*(1+rvanilla06)^0.5)/A1stdlife)) -> 0 | BI123: =IF(A1stdlife="n/a","n/a",IF(BI$3>(A1stdlife+$E123),('PTRM input'!$L$385*(1+rvanilla06)^0.5)-SUM($L123:BH123),('PTRM input'!$L$385*(1+rvanilla06)^0.5)/A1stdlife)) -> 0
E124: 7 | N124: =IF(A1stdlife="n/a","n/a",IF(N$3>(A1stdlife+$E124),('PTRM input'!$M$385*(1+rvanilla07)^0.5)-SUM($M124:M124),('PTRM input'!$M$385*(1+rvanilla07)^0.5)/A1stdlife)) -> 0 | O124: =IF(A1stdlife="n/a","n/a",IF(O$3>(A1stdlife+$E124),('PTRM input'!$M$385*(1+rvanilla07)^0.5)-SUM($M124:N124),('PTRM input'!$M$385*(1+rvanilla07)^0.5)/A1stdlife)) -> 0 | P124: =IF(A1stdlife="n/a","n/a",IF(P$3>(A1stdlife+$E124),('PTRM input'!$M$385*(1+rvanilla07)^0.5)-SUM($M124:O124),('PTRM input'!$M$385*(1+rvanilla07)^0.5)/A1stdlife)) -> 0 | Q124: =IF(A1stdlife="n/a","n/a",IF(Q$3>(A1stdlife+$E124),('PTRM input'!$M$385*(1+rvanilla07)^0.5)-SUM($M124:P124),('PTRM input'!$M$385*(1+rvanilla07)^0.5)/A1stdlife)) -> 0 | R124: =IF(A1stdlife="n/a","n/a",IF(R$3>(A1stdlife+$E124),('PTRM input'!$M$385*(1+rvanilla07)^0.5)-SUM($M124:Q124),('PTRM input'!$M$385*(1+rvanilla07)^0.5)/A1stdlife)) -> 0 | S124: =IF(A1stdlife="n/a","n/a",IF(S$3>(A1stdlife+$E124),('PTRM input'!$M$385*(1+rvanilla07)^0.5)-SUM($M124:R124),('PTRM input'!$M$385*(1+rvanilla07)^0.5)/A1stdlife)) -> 0 | T124: =IF(A1stdlife="n/a","n/a",IF(T$3>(A1stdlife+$E124),('PTRM input'!$M$385*(1+rvanilla07)^0.5)-SUM($M124:S124),('PTRM input'!$M$385*(1+rvanilla07)^0.5)/A1stdlife)) -> 0 | U124: =IF(A1stdlife="n/a","n/a",IF(U$3>(A1stdlife+$E124),('PTRM input'!$M$385*(1+rvanilla07)^0.5)-SUM($M124:T124),('PTRM input'!$M$385*(1+rvanilla07)^0.5)/A1stdlife)) -> 0 | V124: =IF(A1stdlife="n/a","n/a",IF(V$3>(A1stdlife+$E124),('PTRM input'!$M$385*(1+rvanilla07)^0.5)-SUM($M124:U124),('PTRM input'!$M$385*(1+rvanilla07)^0.5)/A1stdlife)) -> 0 | W124: =IF(A1stdlife="n/a","n/a",IF(W$3>(A1stdlife+$E124),('PTRM input'!$M$385*(1+rvanilla07)^0.5)-SUM($M124:V124),('PTRM input'!$M$385*(1+rvanilla07)^0.5)/A1stdlife)) -> 0 | X124: =IF(A1stdlife="n/a","n/a",IF(X$3>(A1stdlife+$E124),('PTRM input'!$M$385*(1+rvanilla07)^0.5)-SUM($M124:W124),('PTRM input'!$M$385*(1+rvanilla07)^0.5)/A1stdlife)) -> 0 | Y124: =IF(A1stdlife="n/a","n/a",IF(Y$3>(A1stdlife+$E124),('PTRM input'!$M$385*(1+rvanilla07)^0.5)-SUM($M124:X124),('PTRM input'!$M$385*(1+rvanilla07)^0.5)/A1stdlife)) -> 0 | Z124: =IF(A1stdlife="n/a","n/a",IF(Z$3>(A1stdlife+$E124),('PTRM input'!$M$385*(1+rvanilla07)^0.5)-SUM($M124:Y124),('PTRM input'!$M$385*(1+rvanilla07)^0.5)/A1stdlife)) -> 0 | AA124: =IF(A1stdlife="n/a","n/a",IF(AA$3>(A1stdlife+$E124),('PTRM input'!$M$385*(1+rvanilla07)^0.5)-SUM($M124:Z124),('PTRM input'!$M$385*(1+rvanilla07)^0.5)/A1stdlife)) -> 0 | AB124: =IF(A1stdlife="n/a","n/a",IF(AB$3>(A1stdlife+$E124),('PTRM input'!$M$385*(1+rvanilla07)^0.5)-SUM($M124:AA124),('PTRM input'!$M$385*(1+rvanilla07)^0.5)/A1stdlife)) -> 0 | AC124: =IF(A1stdlife="n/a","n/a",IF(AC$3>(A1stdlife+$E124),('PTRM input'!$M$385*(1+rvanilla07)^0.5)-SUM($M124:AB124),('PTRM input'!$M$385*(1+rvanilla07)^0.5)/A1stdlife)) -> 0 | AD124: =IF(A1stdlife="n/a","n/a",IF(AD$3>(A1stdlife+$E124),('PTRM input'!$M$385*(1+rvanilla07)^0.5)-SUM($M124:AC124),('PTRM input'!$M$385*(1+rvanilla07)^0.5)/A1stdlife)) -> 0 | AE124: =IF(A1stdlife="n/a","n/a",IF(AE$3>(A1stdlife+$E124),('PTRM input'!$M$385*(1+rvanilla07)^0.5)-SUM($M124:AD124),('PTRM input'!$M$385*(1+rvanilla07)^0.5)/A1stdlife)) -> 0 | AF124: =IF(A1stdlife="n/a","n/a",IF(AF$3>(A1stdlife+$E124),('PTRM input'!$M$385*(1+rvanilla07)^0.5)-SUM($M124:AE124),('PTRM input'!$M$385*(1+rvanilla07)^0.5)/A1stdlife)) -> 0 | AG124: =IF(A1stdlife="n/a","n/a",IF(AG$3>(A1stdlife+$E124),('PTRM input'!$M$385*(1+rvanilla07)^0.5)-SUM($M124:AF124),('PTRM input'!$M$385*(1+rvanilla07)^0.5)/A1stdlife)) -> 0 | AH124: =IF(A1stdlife="n/a","n/a",IF(AH$3>(A1stdlife+$E124),('PTRM input'!$M$385*(1+rvanilla07)^0.5)-SUM($M124:AG124),('PTRM input'!$M$385*(1+rvanilla07)^0.5)/A1stdlife)) -> 0 | AI124: =IF(A1stdlife="n/a","n/a",IF(AI$3>(A1stdlife+$E124),('PTRM input'!$M$385*(1+rvanilla07)^0.5)-SUM($M124:AH124),('PTRM input'!$M$385*(1+rvanilla07)^0.5)/A1stdlife)) -> 0 | AJ124: =IF(A1stdlife="n/a","n/a",IF(AJ$3>(A1stdlife+$E124),('PTRM input'!$M$385*(1+rvanilla07)^0.5)-SUM($M124:AI124),('PTRM input'!$M$385*(1+rvanilla07)^0.5)/A1stdlife)) -> 0 | AK124: =IF(A1stdlife="n/a","n/a",IF(AK$3>(A1stdlife+$E124),('PTRM input'!$M$385*(1+rvanilla07)^0.5)-SUM($M124:AJ124),('PTRM input'!$M$385*(1+rvanilla07)^0.5)/A1stdlife)) -> 0 | AL124: =IF(A1stdlife="n/a","n/a",IF(AL$3>(A1stdlife+$E124),('PTRM input'!$M$385*(1+rvanilla07)^0.5)-SUM($M124:AK124),('PTRM input'!$M$385*(1+rvanilla07)^0.5)/A1stdlife)) -> 0 | AM124: =IF(A1stdlife="n/a","n/a",IF(AM$3>(A1stdlife+$E124),('PTRM input'!$M$385*(1+rvanilla07)^0.5)-SUM($M124:AL124),('PTRM input'!$M$385*(1+rvanilla07)^0.5)/A1stdlife)) -> 0 | AN124: =IF(A1stdlife="n/a","n/a",IF(AN$3>(A1stdlife+$E124),('PTRM input'!$M$385*(1+rvanilla07)^0.5)-SUM($M124:AM124),('PTRM input'!$M$385*(1+rvanilla07)^0.5)/A1stdlife)) -> 0 | AO124: =IF(A1stdlife="n/a","n/a",IF(AO$3>(A1stdlife+$E124),('PTRM input'!$M$385*(1+rvanilla07)^0.5)-SUM($M124:AN124),('PTRM input'!$M$385*(1+rvanilla07)^0.5)/A1stdlife)) -> 0 | AP124: =IF(A1stdlife="n/a","n/a",IF(AP$3>(A1stdlife+$E124),('PTRM input'!$M$385*(1+rvanilla07)^0.5)-SUM($M124:AO124),('PTRM input'!$M$385*(1+rvanilla07)^0.5)/A1stdlife)) -> 0 | AQ124: =IF(A1stdlife="n/a","n/a",IF(AQ$3>(A1stdlife+$E124),('PTRM input'!$M$385*(1+rvanilla07)^0.5)-SUM($M124:AP124),('PTRM input'!$M$385*(1+rvanilla07)^0.5)/A1stdlife)) -> 0 | AR124: =IF(A1stdlife="n/a","n/a",IF(AR$3>(A1stdlife+$E124),('PTRM input'!$M$385*(1+rvanilla07)^0.5)-SUM($M124:AQ124),('PTRM input'!$M$385*(1+rvanilla07)^0.5)/A1stdlife)) -> 0 | AS124: =IF(A1stdlife="n/a","n/a",IF(AS$3>(A1stdlife+$E124),('PTRM input'!$M$385*(1+rvanilla07)^0.5)-SUM($M124:AR124),('PTRM input'!$M$385*(1+rvanilla07)^0.5)/A1stdlife)) -> 0 | AT124: =IF(A1stdlife="n/a","n/a",IF(AT$3>(A1stdlife+$E124),('PTRM input'!$M$385*(1+rvanilla07)^0.5)-SUM($M124:AS124),('PTRM input'!$M$385*(1+rvanilla07)^0.5)/A1stdlife)) -> 0 | AU124: =IF(A1stdlife="n/a","n/a",IF(AU$3>(A1stdlife+$E124),('PTRM input'!$M$385*(1+rvanilla07)^0.5)-SUM($M124:AT124),('PTRM input'!$M$385*(1+rvanilla07)^0.5)/A1stdlife)) -> 0 | AV124: =IF(A1stdlife="n/a","n/a",IF(AV$3>(A1stdlife+$E124),('PTRM input'!$M$385*(1+rvanilla07)^0.5)-SUM($M124:AU124),('PTRM input'!$M$385*(1+rvanilla07)^0.5)/A1stdlife)) -> 0 | AW124: =IF(A1stdlife="n/a","n/a",IF(AW$3>(A1stdlife+$E124),('PTRM input'!$M$385*(1+rvanilla07)^0.5)-SUM($M124:AV124),('PTRM input'!$M$385*(1+rvanilla07)^0.5)/A1stdlife)) -> 0 | AX124: =IF(A1stdlife="n/a","n/a",IF(AX$3>(A1stdlife+$E124),('PTRM input'!$M$385*(1+rvanilla07)^0.5)-SUM($M124:AW124),('PTRM input'!$M$385*(1+rvanilla07)^0.5)/A1stdlife)) -> 0 | AY124: =IF(A1stdlife="n/a","n/a",IF(AY$3>(A1stdlife+$E124),('PTRM input'!$M$385*(1+rvanilla07)^0.5)-SUM($M124:AX124),('PTRM input'!$M$385*(1+rvanilla07)^0.5)/A1stdlife)) -> 0 | AZ124: =IF(A1stdlife="n/a","n/a",IF(AZ$3>(A1stdlife+$E124),('PTRM input'!$M$385*(1+rvanilla07)^0.5)-SUM($M124:AY124),('PTRM input'!$M$385*(1+rvanilla07)^0.5)/A1stdlife)) -> 0 | BA124: =IF(A1stdlife="n/a","n/a",IF(BA$3>(A1stdlife+$E124),('PTRM input'!$M$385*(1+rvanilla07)^0.5)-SUM($M124:AZ124),('PTRM input'!$M$385*(1+rvanilla07)^0.5)/A1stdlife)) -> 0 | BB124: =IF(A1stdlife="n/a","n/a",IF(BB$3>(A1stdlife+$E124),('PTRM input'!$M$385*(1+rvanilla07)^0.5)-SUM($M124:BA124),('PTRM input'!$M$385*(1+rvanilla07)^0.5)/A1stdlife)) -> 0 | BC124: =IF(A1stdlife="n/a","n/a",IF(BC$3>(A1stdlife+$E124),('PTRM input'!$M$385*(1+rvanilla07)^0.5)-SUM($M124:BB124),('PTRM input'!$M$385*(1+rvanilla07)^0.5)/A1stdlife)) -> 0 | BD124: =IF(A1stdlife="n/a","n/a",IF(BD$3>(A1stdlife+$E124),('PTRM input'!$M$385*(1+rvanilla07)^0.5)-SUM($M124:BC124),('PTRM input'!$M$385*(1+rvanilla07)^0.5)/A1stdlife)) -> 0 | BE124: =IF(A1stdlife="n/a","n/a",IF(BE$3>(A1stdlife+$E124),('PTRM input'!$M$385*(1+rvanilla07)^0.5)-SUM($M124:BD124),('PTRM input'!$M$385*(1+rvanilla07)^0.5)/A1stdlife)) -> 0 | BF124: =IF(A1stdlife="n/a","n/a",IF(BF$3>(A1stdlife+$E124),('PTRM input'!$M$385*(1+rvanilla07)^0.5)-SUM($M124:BE124),('PTRM input'!$M$385*(1+rvanilla07)^0.5)/A1stdlife)) -> 0 | BG124: =IF(A1stdlife="n/a","n/a",IF(BG$3>(A1stdlife+$E124),('PTRM input'!$M$385*(1+rvanilla07)^0.5)-SUM($M124:BF124),('PTRM input'!$M$385*(1+rvanilla07)^0.5)/A1stdlife)) -> 0 | BH124: =IF(A1stdlife="n/a","n/a",IF(BH$3>(A1stdlife+$E124),('PTRM input'!$M$385*(1+rvanilla07)^0.5)-SUM($M124:BG124),('PTRM input'!$M$385*(1+rvanilla07)^0.5)/A1stdlife)) -> 0 | BI124: =IF(A1stdlife="n/a","n/a",IF(BI$3>(A1stdlife+$E124),('PTRM input'!$M$385*(1+rvanilla07)^0.5)-SUM($M124:BH124),('PTRM input'!$M$385*(1+rvanilla07)^0.5)/A1stdlife)) -> 0
E125: 8 | O125: =IF(A1stdlife="n/a","n/a",IF(O$3>(A1stdlife+$E125),('PTRM input'!$N$385*(1+rvanilla08)^0.5)-SUM($N125:N125),('PTRM input'!$N$385*(1+rvanilla08)^0.5)/A1stdlife)) -> 0 | P125: =IF(A1stdlife="n/a","n/a",IF(P$3>(A1stdlife+$E125),('PTRM input'!$N$385*(1+rvanilla08)^0.5)-SUM($N125:O125),('PTRM input'!$N$385*(1+rvanilla08)^0.5)/A1stdlife)) -> 0 | Q125: =IF(A1stdlife="n/a","n/a",IF(Q$3>(A1stdlife+$E125),('PTRM input'!$N$385*(1+rvanilla08)^0.5)-SUM($N125:P125),('PTRM input'!$N$385*(1+rvanilla08)^0.5)/A1stdlife)) -> 0 | R125: =IF(A1stdlife="n/a","n/a",IF(R$3>(A1stdlife+$E125),('PTRM input'!$N$385*(1+rvanilla08)^0.5)-SUM($N125:Q125),('PTRM input'!$N$385*(1+rvanilla08)^0.5)/A1stdlife)) -> 0 | S125: =IF(A1stdlife="n/a","n/a",IF(S$3>(A1stdlife+$E125),('PTRM input'!$N$385*(1+rvanilla08)^0.5)-SUM($N125:R125),('PTRM input'!$N$385*(1+rvanilla08)^0.5)/A1stdlife)) -> 0 | T125: =IF(A1stdlife="n/a","n/a",IF(T$3>(A1stdlife+$E125),('PTRM input'!$N$385*(1+rvanilla08)^0.5)-SUM($N125:S125),('PTRM input'!$N$385*(1+rvanilla08)^0.5)/A1stdlife)) -> 0 | U125: =IF(A1stdlife="n/a","n/a",IF(U$3>(A1stdlife+$E125),('PTRM input'!$N$385*(1+rvanilla08)^0.5)-SUM($N125:T125),('PTRM input'!$N$385*(1+rvanilla08)^0.5)/A1stdlife)) -> 0 | V125: =IF(A1stdlife="n/a","n/a",IF(V$3>(A1stdlife+$E125),('PTRM input'!$N$385*(1+rvanilla08)^0.5)-SUM($N125:U125),('PTRM input'!$N$385*(1+rvanilla08)^0.5)/A1stdlife)) -> 0 | W125: =IF(A1stdlife="n/a","n/a",IF(W$3>(A1stdlife+$E125),('PTRM input'!$N$385*(1+rvanilla08)^0.5)-SUM($N125:V125),('PTRM input'!$N$385*(1+rvanilla08)^0.5)/A1stdlife)) -> 0 | X125: =IF(A1stdlife="n/a","n/a",IF(X$3>(A1stdlife+$E125),('PTRM input'!$N$385*(1+rvanilla08)^0.5)-SUM($N125:W125),('PTRM input'!$N$385*(1+rvanilla08)^0.5)/A1stdlife)) -> 0 | Y125: =IF(A1stdlife="n/a","n/a",IF(Y$3>(A1stdlife+$E125),('PTRM input'!$N$385*(1+rvanilla08)^0.5)-SUM($N125:X125),('PTRM input'!$N$385*(1+rvanilla08)^0.5)/A1stdlife)) -> 0 | Z125: =IF(A1stdlife="n/a","n/a",IF(Z$3>(A1stdlife+$E125),('PTRM input'!$N$385*(1+rvanilla08)^0.5)-SUM($N125:Y125),('PTRM input'!$N$385*(1+rvanilla08)^0.5)/A1stdlife)) -> 0 | AA125: =IF(A1stdlife="n/a","n/a",IF(AA$3>(A1stdlife+$E125),('PTRM input'!$N$385*(1+rvanilla08)^0.5)-SUM($N125:Z125),('PTRM input'!$N$385*(1+rvanilla08)^0.5)/A1stdlife)) -> 0 | AB125: =IF(A1stdlife="n/a","n/a",IF(AB$3>(A1stdlife+$E125),('PTRM input'!$N$385*(1+rvanilla08)^0.5)-SUM($N125:AA125),('PTRM input'!$N$385*(1+rvanilla08)^0.5)/A1stdlife)) -> 0 | AC125: =IF(A1stdlife="n/a","n/a",IF(AC$3>(A1stdlife+$E125),('PTRM input'!$N$385*(1+rvanilla08)^0.5)-SUM($N125:AB125),('PTRM input'!$N$385*(1+rvanilla08)^0.5)/A1stdlife)) -> 0 | AD125: =IF(A1stdlife="n/a","n/a",IF(AD$3>(A1stdlife+$E125),('PTRM input'!$N$385*(1+rvanilla08)^0.5)-SUM($N125:AC125),('PTRM input'!$N$385*(1+rvanilla08)^0.5)/A1stdlife)) -> 0 | AE125: =IF(A1stdlife="n/a","n/a",IF(AE$3>(A1stdlife+$E125),('PTRM input'!$N$385*(1+rvanilla08)^0.5)-SUM($N125:AD125),('PTRM input'!$N$385*(1+rvanilla08)^0.5)/A1stdlife)) -> 0 | AF125: =IF(A1stdlife="n/a","n/a",IF(AF$3>(A1stdlife+$E125),('PTRM input'!$N$385*(1+rvanilla08)^0.5)-SUM($N125:AE125),('PTRM input'!$N$385*(1+rvanilla08)^0.5)/A1stdlife)) -> 0 | AG125: =IF(A1stdlife="n/a","n/a",IF(AG$3>(A1stdlife+$E125),('PTRM input'!$N$385*(1+rvanilla08)^0.5)-SUM($N125:AF125),('PTRM input'!$N$385*(1+rvanilla08)^0.5)/A1stdlife)) -> 0 | AH125: =IF(A1stdlife="n/a","n/a",IF(AH$3>(A1stdlife+$E125),('PTRM input'!$N$385*(1+rvanilla08)^0.5)-SUM($N125:AG125),('PTRM input'!$N$385*(1+rvanilla08)^0.5)/A1stdlife)) -> 0 | AI125: =IF(A1stdlife="n/a","n/a",IF(AI$3>(A1stdlife+$E125),('PTRM input'!$N$385*(1+rvanilla08)^0.5)-SUM($N125:AH125),('PTRM input'!$N$385*(1+rvanilla08)^0.5)/A1stdlife)) -> 0 | AJ125: =IF(A1stdlife="n/a","n/a",IF(AJ$3>(A1stdlife+$E125),('PTRM input'!$N$385*(1+rvanilla08)^0.5)-SUM($N125:AI125),('PTRM input'!$N$385*(1+rvanilla08)^0.5)/A1stdlife)) -> 0 | AK125: =IF(A1stdlife="n/a","n/a",IF(AK$3>(A1stdlife+$E125),('PTRM input'!$N$385*(1+rvanilla08)^0.5)-SUM($N125:AJ125),('PTRM input'!$N$385*(1+rvanilla08)^0.5)/A1stdlife)) -> 0 | AL125: =IF(A1stdlife="n/a","n/a",IF(AL$3>(A1stdlife+$E125),('PTRM input'!$N$385*(1+rvanilla08)^0.5)-SUM($N125:AK125),('PTRM input'!$N$385*(1+rvanilla08)^0.5)/A1stdlife)) -> 0 | AM125: =IF(A1stdlife="n/a","n/a",IF(AM$3>(A1stdlife+$E125),('PTRM input'!$N$385*(1+rvanilla08)^0.5)-SUM($N125:AL125),('PTRM input'!$N$385*(1+rvanilla08)^0.5)/A1stdlife)) -> 0 | AN125: =IF(A1stdlife="n/a","n/a",IF(AN$3>(A1stdlife+$E125),('PTRM input'!$N$385*(1+rvanilla08)^0.5)-SUM($N125:AM125),('PTRM input'!$N$385*(1+rvanilla08)^0.5)/A1stdlife)) -> 0 | AO125: =IF(A1stdlife="n/a","n/a",IF(AO$3>(A1stdlife+$E125),('PTRM input'!$N$385*(1+rvanilla08)^0.5)-SUM($N125:AN125),('PTRM input'!$N$385*(1+rvanilla08)^0.5)/A1stdlife)) -> 0 | AP125: =IF(A1stdlife="n/a","n/a",IF(AP$3>(A1stdlife+$E125),('PTRM input'!$N$385*(1+rvanilla08)^0.5)-SUM($N125:AO125),('PTRM input'!$N$385*(1+rvanilla08)^0.5)/A1stdlife)) -> 0 | AQ125: =IF(A1stdlife="n/a","n/a",IF(AQ$3>(A1stdlife+$E125),('PTRM input'!$N$385*(1+rvanilla08)^0.5)-SUM($N125:AP125),('PTRM input'!$N$385*(1+rvanilla08)^0.5)/A1stdlife)) -> 0 | AR125: =IF(A1stdlife="n/a","n/a",IF(AR$3>(A1stdlife+$E125),('PTRM input'!$N$385*(1+rvanilla08)^0.5)-SUM($N125:AQ125),('PTRM input'!$N$385*(1+rvanilla08)^0.5)/A1stdlife)) -> 0 | AS125: =IF(A1stdlife="n/a","n/a",IF(AS$3>(A1stdlife+$E125),('PTRM input'!$N$385*(1+rvanilla08)^0.5)-SUM($N125:AR125),('PTRM input'!$N$385*(1+rvanilla08)^0.5)/A1stdlife)) -> 0 | AT125: =IF(A1stdlife="n/a","n/a",IF(AT$3>(A1stdlife+$E125),('PTRM input'!$N$385*(1+rvanilla08)^0.5)-SUM($N125:AS125),('PTRM input'!$N$385*(1+rvanilla08)^0.5)/A1stdlife)) -> 0 | AU125: =IF(A1stdlife="n/a","n/a",IF(AU$3>(A1stdlife+$E125),('PTRM input'!$N$385*(1+rvanilla08)^0.5)-SUM($N125:AT125),('PTRM input'!$N$385*(1+rvanilla08)^0.5)/A1stdlife)) -> 0 | AV125: =IF(A1stdlife="n/a","n/a",IF(AV$3>(A1stdlife+$E125),('PTRM input'!$N$385*(1+rvanilla08)^0.5)-SUM($N125:AU125),('PTRM input'!$N$385*(1+rvanilla08)^0.5)/A1stdlife)) -> 0 | AW125: =IF(A1stdlife="n/a","n/a",IF(AW$3>(A1stdlife+$E125),('PTRM input'!$N$385*(1+rvanilla08)^0.5)-SUM($N125:AV125),('PTRM input'!$N$385*(1+rvanilla08)^0.5)/A1stdlife)) -> 0 | AX125: =IF(A1stdlife="n/a","n/a",IF(AX$3>(A1stdlife+$E125),('PTRM input'!$N$385*(1+rvanilla08)^0.5)-SUM($N125:AW125),('PTRM input'!$N$385*(1+rvanilla08)^0.5)/A1stdlife)) -> 0 | AY125: =IF(A1stdlife="n/a","n/a",IF(AY$3>(A1stdlife+$E125),('PTRM input'!$N$385*(1+rvanilla08)^0.5)-SUM($N125:AX125),('PTRM input'!$N$385*(1+rvanilla08)^0.5)/A1stdlife)) -> 0 | AZ125: =IF(A1stdlife="n/a","n/a",IF(AZ$3>(A1stdlife+$E125),('PTRM input'!$N$385*(1+rvanilla08)^0.5)-SUM($N125:AY125),('PTRM input'!$N$385*(1+rvanilla08)^0.5)/A1stdlife)) -> 0 | BA125: =IF(A1stdlife="n/a","n/a",IF(BA$3>(A1stdlife+$E125),('PTRM input'!$N$385*(1+rvanilla08)^0.5)-SUM($N125:AZ125),('PTRM input'!$N$385*(1+rvanilla08)^0.5)/A1stdlife)) -> 0 | BB125: =IF(A1stdlife="n/a","n/a",IF(BB$3>(A1stdlife+$E125),('PTRM input'!$N$385*(1+rvanilla08)^0.5)-SUM($N125:BA125),('PTRM input'!$N$385*(1+rvanilla08)^0.5)/A1stdlife)) -> 0 | BC125: =IF(A1stdlife="n/a","n/a",IF(BC$3>(A1stdlife+$E125),('PTRM input'!$N$385*(1+rvanilla08)^0.5)-SUM($N125:BB125),('PTRM input'!$N$385*(1+rvanilla08)^0.5)/A1stdlife)) -> 0 | BD125: =IF(A1stdlife="n/a","n/a",IF(BD$3>(A1stdlife+$E125),('PTRM input'!$N$385*(1+rvanilla08)^0.5)-SUM($N125:BC125),('PTRM input'!$N$385*(1+rvanilla08)^0.5)/A1stdlife)) -> 0 | BE125: =IF(A1stdlife="n/a","n/a",IF(BE$3>(A1stdlife+$E125),('PTRM input'!$N$385*(1+rvanilla08)^0.5)-SUM($N125:BD125),('PTRM input'!$N$385*(1+rvanilla08)^0.5)/A1stdlife)) -> 0 | BF125: =IF(A1stdlife="n/a","n/a",IF(BF$3>(A1stdlife+$E125),('PTRM input'!$N$385*(1+rvanilla08)^0.5)-SUM($N125:BE125),('PTRM input'!$N$385*(1+rvanilla08)^0.5)/A1stdlife)) -> 0 | BG125: =IF(A1stdlife="n/a","n/a",IF(BG$3>(A1stdlife+$E125),('PTRM input'!$N$385*(1+rvanilla08)^0.5)-SUM($N125:BF125),('PTRM input'!$N$385*(1+rvanilla08)^0.5)/A1stdlife)) -> 0 | BH125: =IF(A1stdlife="n/a","n/a",IF(BH$3>(A1stdlife+$E125),('PTRM input'!$N$385*(1+rvanilla08)^0.5)-SUM($N125:BG125),('PTRM input'!$N$385*(1+rvanilla08)^0.5)/A1stdlife)) -> 0 | BI125: =IF(A1stdlife="n/a","n/a",IF(BI$3>(A1stdlife+$E125),('PTRM input'!$N$385*(1+rvanilla08)^0.5)-SUM($N125:BH125),('PTRM input'!$N$385*(1+rvanilla08)^0.5)/A1stdlife)) -> 0
E126: 9 | P126: =IF(A1stdlife="n/a","n/a",IF(P$3>(A1stdlife+$E126),('PTRM input'!$O$385*(1+rvanilla09)^0.5)-SUM($O126:O126),('PTRM input'!$O$385*(1+rvanilla09)^0.5)/A1stdlife)) -> 0 | Q126: =IF(A1stdlife="n/a","n/a",IF(Q$3>(A1stdlife+$E126),('PTRM input'!$O$385*(1+rvanilla09)^0.5)-SUM($O126:P126),('PTRM input'!$O$385*(1+rvanilla09)^0.5)/A1stdlife)) -> 0 | R126: =IF(A1stdlife="n/a","n/a",IF(R$3>(A1stdlife+$E126),('PTRM input'!$O$385*(1+rvanilla09)^0.5)-SUM($O126:Q126),('PTRM input'!$O$385*(1+rvanilla09)^0.5)/A1stdlife)) -> 0 | S126: =IF(A1stdlife="n/a","n/a",IF(S$3>(A1stdlife+$E126),('PTRM input'!$O$385*(1+rvanilla09)^0.5)-SUM($O126:R126),('PTRM input'!$O$385*(1+rvanilla09)^0.5)/A1stdlife)) -> 0 | T126: =IF(A1stdlife="n/a","n/a",IF(T$3>(A1stdlife+$E126),('PTRM input'!$O$385*(1+rvanilla09)^0.5)-SUM($O126:S126),('PTRM input'!$O$385*(1+rvanilla09)^0.5)/A1stdlife)) -> 0 | U126: =IF(A1stdlife="n/a","n/a",IF(U$3>(A1stdlife+$E126),('PTRM input'!$O$385*(1+rvanilla09)^0.5)-SUM($O126:T126),('PTRM input'!$O$385*(1+rvanilla09)^0.5)/A1stdlife)) -> 0 | V126: =IF(A1stdlife="n/a","n/a",IF(V$3>(A1stdlife+$E126),('PTRM input'!$O$385*(1+rvanilla09)^0.5)-SUM($O126:U126),('PTRM input'!$O$385*(1+rvanilla09)^0.5)/A1stdlife)) -> 0 | W126: =IF(A1stdlife="n/a","n/a",IF(W$3>(A1stdlife+$E126),('PTRM input'!$O$385*(1+rvanilla09)^0.5)-SUM($O126:V126),('PTRM input'!$O$385*(1+rvanilla09)^0.5)/A1stdlife)) -> 0 | X126: =IF(A1stdlife="n/a","n/a",IF(X$3>(A1stdlife+$E126),('PTRM input'!$O$385*(1+rvanilla09)^0.5)-SUM($O126:W126),('PTRM input'!$O$385*(1+rvanilla09)^0.5)/A1stdlife)) -> 0 | Y126: =IF(A1stdlife="n/a","n/a",IF(Y$3>(A1stdlife+$E126),('PTRM input'!$O$385*(1+rvanilla09)^0.5)-SUM($O126:X126),('PTRM input'!$O$385*(1+rvanilla09)^0.5)/A1stdlife)) -> 0 | Z126: =IF(A1stdlife="n/a","n/a",IF(Z$3>(A1stdlife+$E126),('PTRM input'!$O$385*(1+rvanilla09)^0.5)-SUM($O126:Y126),('PTRM input'!$O$385*(1+rvanilla09)^0.5)/A1stdlife)) -> 0 | AA126: =IF(A1stdlife="n/a","n/a",IF(AA$3>(A1stdlife+$E126),('PTRM input'!$O$385*(1+rvanilla09)^0.5)-SUM($O126:Z126),('PTRM input'!$O$385*(1+rvanilla09)^0.5)/A1stdlife)) -> 0 | AB126: =IF(A1stdlife="n/a","n/a",IF(AB$3>(A1stdlife+$E126),('PTRM input'!$O$385*(1+rvanilla09)^0.5)-SUM($O126:AA126),('PTRM input'!$O$385*(1+rvanilla09)^0.5)/A1stdlife)) -> 0 | AC126: =IF(A1stdlife="n/a","n/a",IF(AC$3>(A1stdlife+$E126),('PTRM input'!$O$385*(1+rvanilla09)^0.5)-SUM($O126:AB126),('PTRM input'!$O$385*(1+rvanilla09)^0.5)/A1stdlife)) -> 0 | AD126: =IF(A1stdlife="n/a","n/a",IF(AD$3>(A1stdlife+$E126),('PTRM input'!$O$385*(1+rvanilla09)^0.5)-SUM($O126:AC126),('PTRM input'!$O$385*(1+rvanilla09)^0.5)/A1stdlife)) -> 0 | AE126: =IF(A1stdlife="n/a","n/a",IF(AE$3>(A1stdlife+$E126),('PTRM input'!$O$385*(1+rvanilla09)^0.5)-SUM($O126:AD126),('PTRM input'!$O$385*(1+rvanilla09)^0.5)/A1stdlife)) -> 0 | AF126: =IF(A1stdlife="n/a","n/a",IF(AF$3>(A1stdlife+$E126),('PTRM input'!$O$385*(1+rvanilla09)^0.5)-SUM($O126:AE126),('PTRM input'!$O$385*(1+rvanilla09)^0.5)/A1stdlife)) -> 0 | AG126: =IF(A1stdlife="n/a","n/a",IF(AG$3>(A1stdlife+$E126),('PTRM input'!$O$385*(1+rvanilla09)^0.5)-SUM($O126:AF126),('PTRM input'!$O$385*(1+rvanilla09)^0.5)/A1stdlife)) -> 0 | AH126: =IF(A1stdlife="n/a","n/a",IF(AH$3>(A1stdlife+$E126),('PTRM input'!$O$385*(1+rvanilla09)^0.5)-SUM($O126:AG126),('PTRM input'!$O$385*(1+rvanilla09)^0.5)/A1stdlife)) -> 0 | AI126: =IF(A1stdlife="n/a","n/a",IF(AI$3>(A1stdlife+$E126),('PTRM input'!$O$385*(1+rvanilla09)^0.5)-SUM($O126:AH126),('PTRM input'!$O$385*(1+rvanilla09)^0.5)/A1stdlife)) -> 0 | AJ126: =IF(A1stdlife="n/a","n/a",IF(AJ$3>(A1stdlife+$E126),('PTRM input'!$O$385*(1+rvanilla09)^0.5)-SUM($O126:AI126),('PTRM input'!$O$385*(1+rvanilla09)^0.5)/A1stdlife)) -> 0 | AK126: =IF(A1stdlife="n/a","n/a",IF(AK$3>(A1stdlife+$E126),('PTRM input'!$O$385*(1+rvanilla09)^0.5)-SUM($O126:AJ126),('PTRM input'!$O$385*(1+rvanilla09)^0.5)/A1stdlife)) -> 0 | AL126: =IF(A1stdlife="n/a","n/a",IF(AL$3>(A1stdlife+$E126),('PTRM input'!$O$385*(1+rvanilla09)^0.5)-SUM($O126:AK126),('PTRM input'!$O$385*(1+rvanilla09)^0.5)/A1stdlife)) -> 0 | AM126: =IF(A1stdlife="n/a","n/a",IF(AM$3>(A1stdlife+$E126),('PTRM input'!$O$385*(1+rvanilla09)^0.5)-SUM($O126:AL126),('PTRM input'!$O$385*(1+rvanilla09)^0.5)/A1stdlife)) -> 0 | AN126: =IF(A1stdlife="n/a","n/a",IF(AN$3>(A1stdlife+$E126),('PTRM input'!$O$385*(1+rvanilla09)^0.5)-SUM($O126:AM126),('PTRM input'!$O$385*(1+rvanilla09)^0.5)/A1stdlife)) -> 0 | AO126: =IF(A1stdlife="n/a","n/a",IF(AO$3>(A1stdlife+$E126),('PTRM input'!$O$385*(1+rvanilla09)^0.5)-SUM($O126:AN126),('PTRM input'!$O$385*(1+rvanilla09)^0.5)/A1stdlife)) -> 0 | AP126: =IF(A1stdlife="n/a","n/a",IF(AP$3>(A1stdlife+$E126),('PTRM input'!$O$385*(1+rvanilla09)^0.5)-SUM($O126:AO126),('PTRM input'!$O$385*(1+rvanilla09)^0.5)/A1stdlife)) -> 0 | AQ126: =IF(A1stdlife="n/a","n/a",IF(AQ$3>(A1stdlife+$E126),('PTRM input'!$O$385*(1+rvanilla09)^0.5)-SUM($O126:AP126),('PTRM input'!$O$385*(1+rvanilla09)^0.5)/A1stdlife)) -> 0 | AR126: =IF(A1stdlife="n/a","n/a",IF(AR$3>(A1stdlife+$E126),('PTRM input'!$O$385*(1+rvanilla09)^0.5)-SUM($O126:AQ126),('PTRM input'!$O$385*(1+rvanilla09)^0.5)/A1stdlife)) -> 0 | AS126: =IF(A1stdlife="n/a","n/a",IF(AS$3>(A1stdlife+$E126),('PTRM input'!$O$385*(1+rvanilla09)^0.5)-SUM($O126:AR126),('PTRM input'!$O$385*(1+rvanilla09)^0.5)/A1stdlife)) -> 0 | AT126: =IF(A1stdlife="n/a","n/a",IF(AT$3>(A1stdlife+$E126),('PTRM input'!$O$385*(1+rvanilla09)^0.5)-SUM($O126:AS126),('PTRM input'!$O$385*(1+rvanilla09)^0.5)/A1stdlife)) -> 0 | AU126: =IF(A1stdlife="n/a","n/a",IF(AU$3>(A1stdlife+$E126),('PTRM input'!$O$385*(1+rvanilla09)^0.5)-SUM($O126:AT126),('PTRM input'!$O$385*(1+rvanilla09)^0.5)/A1stdlife)) -> 0 | AV126: =IF(A1stdlife="n/a","n/a",IF(AV$3>(A1stdlife+$E126),('PTRM input'!$O$385*(1+rvanilla09)^0.5)-SUM($O126:AU126),('PTRM input'!$O$385*(1+rvanilla09)^0.5)/A1stdlife)) -> 0 | AW126: =IF(A1stdlife="n/a","n/a",IF(AW$3>(A1stdlife+$E126),('PTRM input'!$O$385*(1+rvanilla09)^0.5)-SUM($O126:AV126),('PTRM input'!$O$385*(1+rvanilla09)^0.5)/A1stdlife)) -> 0 | AX126: =IF(A1stdlife="n/a","n/a",IF(AX$3>(A1stdlife+$E126),('PTRM input'!$O$385*(1+rvanilla09)^0.5)-SUM($O126:AW126),('PTRM input'!$O$385*(1+rvanilla09)^0.5)/A1stdlife)) -> 0 | AY126: =IF(A1stdlife="n/a","n/a",IF(AY$3>(A1stdlife+$E126),('PTRM input'!$O$385*(1+rvanilla09)^0.5)-SUM($O126:AX126),('PTRM input'!$O$385*(1+rvanilla09)^0.5)/A1stdlife)) -> 0 | AZ126: =IF(A1stdlife="n/a","n/a",IF(AZ$3>(A1stdlife+$E126),('PTRM input'!$O$385*(1+rvanilla09)^0.5)-SUM($O126:AY126),('PTRM input'!$O$385*(1+rvanilla09)^0.5)/A1stdlife)) -> 0 | BA126: =IF(A1stdlife="n/a","n/a",IF(BA$3>(A1stdlife+$E126),('PTRM input'!$O$385*(1+rvanilla09)^0.5)-SUM($O126:AZ126),('PTRM input'!$O$385*(1+rvanilla09)^0.5)/A1stdlife)) -> 0 | BB126: =IF(A1stdlife="n/a","n/a",IF(BB$3>(A1stdlife+$E126),('PTRM input'!$O$385*(1+rvanilla09)^0.5)-SUM($O126:BA126),('PTRM input'!$O$385*(1+rvanilla09)^0.5)/A1stdlife)) -> 0 | BC126: =IF(A1stdlife="n/a","n/a",IF(BC$3>(A1stdlife+$E126),('PTRM input'!$O$385*(1+rvanilla09)^0.5)-SUM($O126:BB126),('PTRM input'!$O$385*(1+rvanilla09)^0.5)/A1stdlife)) -> 0 | BD126: =IF(A1stdlife="n/a","n/a",IF(BD$3>(A1stdlife+$E126),('PTRM input'!$O$385*(1+rvanilla09)^0.5)-SUM($O126:BC126),('PTRM input'!$O$385*(1+rvanilla09)^0.5)/A1stdlife)) -> 0 | BE126: =IF(A1stdlife="n/a","n/a",IF(BE$3>(A1stdlife+$E126),('PTRM input'!$O$385*(1+rvanilla09)^0.5)-SUM($O126:BD126),('PTRM input'!$O$385*(1+rvanilla09)^0.5)/A1stdlife)) -> 0 | BF126: =IF(A1stdlife="n/a","n/a",IF(BF$3>(A1stdlife+$E126),('PTRM input'!$O$385*(1+rvanilla09)^0.5)-SUM($O126:BE126),('PTRM input'!$O$385*(1+rvanilla09)^0.5)/A1stdlife)) -> 0 | BG126: =IF(A1stdlife="n/a","n/a",IF(BG$3>(A1stdlife+$E126),('PTRM input'!$O$385*(1+rvanilla09)^0.5)-SUM($O126:BF126),('PTRM input'!$O$385*(1+rvanilla09)^0.5)/A1stdlife)) -> 0 | BH126: =IF(A1stdlife="n/a","n/a",IF(BH$3>(A1stdlife+$E126),('PTRM input'!$O$385*(1+rvanilla09)^0.5)-SUM($O126:BG126),('PTRM input'!$O$385*(1+rvanilla09)^0.5)/A1stdlife)) -> 0 | BI126: =IF(A1stdlife="n/a","n/a",IF(BI$3>(A1stdlife+$E126),('PTRM input'!$O$385*(1+rvanilla09)^0.5)-SUM($O126:BH126),('PTRM input'!$O$385*(1+rvanilla09)^0.5)/A1stdlife)) -> 0
E127: 10 | Q127: =IF(A1stdlife="n/a","n/a",IF(Q$3>(A1stdlife+$E127),('PTRM input'!$P$385*(1+rvanilla10)^0.5)-SUM($P127:P127),('PTRM input'!$P$385*(1+rvanilla10)^0.5)/A1stdlife)) -> 0 | R127: =IF(A1stdlife="n/a","n/a",IF(R$3>(A1stdlife+$E127),('PTRM input'!$P$385*(1+rvanilla10)^0.5)-SUM($P127:Q127),('PTRM input'!$P$385*(1+rvanilla10)^0.5)/A1stdlife)) -> 0 | S127: =IF(A1stdlife="n/a","n/a",IF(S$3>(A1stdlife+$E127),('PTRM input'!$P$385*(1+rvanilla10)^0.5)-SUM($P127:R127),('PTRM input'!$P$385*(1+rvanilla10)^0.5)/A1stdlife)) -> 0 | T127: =IF(A1stdlife="n/a","n/a",IF(T$3>(A1stdlife+$E127),('PTRM input'!$P$385*(1+rvanilla10)^0.5)-SUM($P127:S127),('PTRM input'!$P$385*(1+rvanilla10)^0.5)/A1stdlife)) -> 0 | U127: =IF(A1stdlife="n/a","n/a",IF(U$3>(A1stdlife+$E127),('PTRM input'!$P$385*(1+rvanilla10)^0.5)-SUM($P127:T127),('PTRM input'!$P$385*(1+rvanilla10)^0.5)/A1stdlife)) -> 0 | V127: =IF(A1stdlife="n/a","n/a",IF(V$3>(A1stdlife+$E127),('PTRM input'!$P$385*(1+rvanilla10)^0.5)-SUM($P127:U127),('PTRM input'!$P$385*(1+rvanilla10)^0.5)/A1stdlife)) -> 0 | W127: =IF(A1stdlife="n/a","n/a",IF(W$3>(A1stdlife+$E127),('PTRM input'!$P$385*(1+rvanilla10)^0.5)-SUM($P127:V127),('PTRM input'!$P$385*(1+rvanilla10)^0.5)/A1stdlife)) -> 0 | X127: =IF(A1stdlife="n/a","n/a",IF(X$3>(A1stdlife+$E127),('PTRM input'!$P$385*(1+rvanilla10)^0.5)-SUM($P127:W127),('PTRM input'!$P$385*(1+rvanilla10)^0.5)/A1stdlife)) -> 0 | Y127: =IF(A1stdlife="n/a","n/a",IF(Y$3>(A1stdlife+$E127),('PTRM input'!$P$385*(1+rvanilla10)^0.5)-SUM($P127:X127),('PTRM input'!$P$385*(1+rvanilla10)^0.5)/A1stdlife)) -> 0 | Z127: =IF(A1stdlife="n/a","n/a",IF(Z$3>(A1stdlife+$E127),('PTRM input'!$P$385*(1+rvanilla10)^0.5)-SUM($P127:Y127),('PTRM input'!$P$385*(1+rvanilla10)^0.5)/A1stdlife)) -> 0 | AA127: =IF(A1stdlife="n/a","n/a",IF(AA$3>(A1stdlife+$E127),('PTRM input'!$P$385*(1+rvanilla10)^0.5)-SUM($P127:Z127),('PTRM input'!$P$385*(1+rvanilla10)^0.5)/A1stdlife)) -> 0 | AB127: =IF(A1stdlife="n/a","n/a",IF(AB$3>(A1stdlife+$E127),('PTRM input'!$P$385*(1+rvanilla10)^0.5)-SUM($P127:AA127),('PTRM input'!$P$385*(1+rvanilla10)^0.5)/A1stdlife)) -> 0 | AC127: =IF(A1stdlife="n/a","n/a",IF(AC$3>(A1stdlife+$E127),('PTRM input'!$P$385*(1+rvanilla10)^0.5)-SUM($P127:AB127),('PTRM input'!$P$385*(1+rvanilla10)^0.5)/A1stdlife)) -> 0 | AD127: =IF(A1stdlife="n/a","n/a",IF(AD$3>(A1stdlife+$E127),('PTRM input'!$P$385*(1+rvanilla10)^0.5)-SUM($P127:AC127),('PTRM input'!$P$385*(1+rvanilla10)^0.5)/A1stdlife)) -> 0 | AE127: =IF(A1stdlife="n/a","n/a",IF(AE$3>(A1stdlife+$E127),('PTRM input'!$P$385*(1+rvanilla10)^0.5)-SUM($P127:AD127),('PTRM input'!$P$385*(1+rvanilla10)^0.5)/A1stdlife)) -> 0 | AF127: =IF(A1stdlife="n/a","n/a",IF(AF$3>(A1stdlife+$E127),('PTRM input'!$P$385*(1+rvanilla10)^0.5)-SUM($P127:AE127),('PTRM input'!$P$385*(1+rvanilla10)^0.5)/A1stdlife)) -> 0 | AG127: =IF(A1stdlife="n/a","n/a",IF(AG$3>(A1stdlife+$E127),('PTRM input'!$P$385*(1+rvanilla10)^0.5)-SUM($P127:AF127),('PTRM input'!$P$385*(1+rvanilla10)^0.5)/A1stdlife)) -> 0 | AH127: =IF(A1stdlife="n/a","n/a",IF(AH$3>(A1stdlife+$E127),('PTRM input'!$P$385*(1+rvanilla10)^0.5)-SUM($P127:AG127),('PTRM input'!$P$385*(1+rvanilla10)^0.5)/A1stdlife)) -> 0 | AI127: =IF(A1stdlife="n/a","n/a",IF(AI$3>(A1stdlife+$E127),('PTRM input'!$P$385*(1+rvanilla10)^0.5)-SUM($P127:AH127),('PTRM input'!$P$385*(1+rvanilla10)^0.5)/A1stdlife)) -> 0 | AJ127: =IF(A1stdlife="n/a","n/a",IF(AJ$3>(A1stdlife+$E127),('PTRM input'!$P$385*(1+rvanilla10)^0.5)-SUM($P127:AI127),('PTRM input'!$P$385*(1+rvanilla10)^0.5)/A1stdlife)) -> 0 | AK127: =IF(A1stdlife="n/a","n/a",IF(AK$3>(A1stdlife+$E127),('PTRM input'!$P$385*(1+rvanilla10)^0.5)-SUM($P127:AJ127),('PTRM input'!$P$385*(1+rvanilla10)^0.5)/A1stdlife)) -> 0 | AL127: =IF(A1stdlife="n/a","n/a",IF(AL$3>(A1stdlife+$E127),('PTRM input'!$P$385*(1+rvanilla10)^0.5)-SUM($P127:AK127),('PTRM input'!$P$385*(1+rvanilla10)^0.5)/A1stdlife)) -> 0 | AM127: =IF(A1stdlife="n/a","n/a",IF(AM$3>(A1stdlife+$E127),('PTRM input'!$P$385*(1+rvanilla10)^0.5)-SUM($P127:AL127),('PTRM input'!$P$385*(1+rvanilla10)^0.5)/A1stdlife)) -> 0 | AN127: =IF(A1stdlife="n/a","n/a",IF(AN$3>(A1stdlife+$E127),('PTRM input'!$P$385*(1+rvanilla10)^0.5)-SUM($P127:AM127),('PTRM input'!$P$385*(1+rvanilla10)^0.5)/A1stdlife)) -> 0 | AO127: =IF(A1stdlife="n/a","n/a",IF(AO$3>(A1stdlife+$E127),('PTRM input'!$P$385*(1+rvanilla10)^0.5)-SUM($P127:AN127),('PTRM input'!$P$385*(1+rvanilla10)^0.5)/A1stdlife)) -> 0 | AP127: =IF(A1stdlife="n/a","n/a",IF(AP$3>(A1stdlife+$E127),('PTRM input'!$P$385*(1+rvanilla10)^0.5)-SUM($P127:AO127),('PTRM input'!$P$385*(1+rvanilla10)^0.5)/A1stdlife)) -> 0 | AQ127: =IF(A1stdlife="n/a","n/a",IF(AQ$3>(A1stdlife+$E127),('PTRM input'!$P$385*(1+rvanilla10)^0.5)-SUM($P127:AP127),('PTRM input'!$P$385*(1+rvanilla10)^0.5)/A1stdlife)) -> 0 | AR127: =IF(A1stdlife="n/a","n/a",IF(AR$3>(A1stdlife+$E127),('PTRM input'!$P$385*(1+rvanilla10)^0.5)-SUM($P127:AQ127),('PTRM input'!$P$385*(1+rvanilla10)^0.5)/A1stdlife)) -> 0 | AS127: =IF(A1stdlife="n/a","n/a",IF(AS$3>(A1stdlife+$E127),('PTRM input'!$P$385*(1+rvanilla10)^0.5)-SUM($P127:AR127),('PTRM input'!$P$385*(1+rvanilla10)^0.5)/A1stdlife)) -> 0 | AT127: =IF(A1stdlife="n/a","n/a",IF(AT$3>(A1stdlife+$E127),('PTRM input'!$P$385*(1+rvanilla10)^0.5)-SUM($P127:AS127),('PTRM input'!$P$385*(1+rvanilla10)^0.5)/A1stdlife)) -> 0 | AU127: =IF(A1stdlife="n/a","n/a",IF(AU$3>(A1stdlife+$E127),('PTRM input'!$P$385*(1+rvanilla10)^0.5)-SUM($P127:AT127),('PTRM input'!$P$385*(1+rvanilla10)^0.5)/A1stdlife)) -> 0 | AV127: =IF(A1stdlife="n/a","n/a",IF(AV$3>(A1stdlife+$E127),('PTRM input'!$P$385*(1+rvanilla10)^0.5)-SUM($P127:AU127),('PTRM input'!$P$385*(1+rvanilla10)^0.5)/A1stdlife)) -> 0 | AW127: =IF(A1stdlife="n/a","n/a",IF(AW$3>(A1stdlife+$E127),('PTRM input'!$P$385*(1+rvanilla10)^0.5)-SUM($P127:AV127),('PTRM input'!$P$385*(1+rvanilla10)^0.5)/A1stdlife)) -> 0 | AX127: =IF(A1stdlife="n/a","n/a",IF(AX$3>(A1stdlife+$E127),('PTRM input'!$P$385*(1+rvanilla10)^0.5)-SUM($P127:AW127),('PTRM input'!$P$385*(1+rvanilla10)^0.5)/A1stdlife)) -> 0 | AY127: =IF(A1stdlife="n/a","n/a",IF(AY$3>(A1stdlife+$E127),('PTRM input'!$P$385*(1+rvanilla10)^0.5)-SUM($P127:AX127),('PTRM input'!$P$385*(1+rvanilla10)^0.5)/A1stdlife)) -> 0 | AZ127: =IF(A1stdlife="n/a","n/a",IF(AZ$3>(A1stdlife+$E127),('PTRM input'!$P$385*(1+rvanilla10)^0.5)-SUM($P127:AY127),('PTRM input'!$P$385*(1+rvanilla10)^0.5)/A1stdlife)) -> 0 | BA127: =IF(A1stdlife="n/a","n/a",IF(BA$3>(A1stdlife+$E127),('PTRM input'!$P$385*(1+rvanilla10)^0.5)-SUM($P127:AZ127),('PTRM input'!$P$385*(1+rvanilla10)^0.5)/A1stdlife)) -> 0 | BB127: =IF(A1stdlife="n/a","n/a",IF(BB$3>(A1stdlife+$E127),('PTRM input'!$P$385*(1+rvanilla10)^0.5)-SUM($P127:BA127),('PTRM input'!$P$385*(1+rvanilla10)^0.5)/A1stdlife)) -> 0 | BC127: =IF(A1stdlife="n/a","n/a",IF(BC$3>(A1stdlife+$E127),('PTRM input'!$P$385*(1+rvanilla10)^0.5)-SUM($P127:BB127),('PTRM input'!$P$385*(1+rvanilla10)^0.5)/A1stdlife)) -> 0 | BD127: =IF(A1stdlife="n/a","n/a",IF(BD$3>(A1stdlife+$E127),('PTRM input'!$P$385*(1+rvanilla10)^0.5)-SUM($P127:BC127),('PTRM input'!$P$385*(1+rvanilla10)^0.5)/A1stdlife)) -> 0 | BE127: =IF(A1stdlife="n/a","n/a",IF(BE$3>(A1stdlife+$E127),('PTRM input'!$P$385*(1+rvanilla10)^0.5)-SUM($P127:BD127),('PTRM input'!$P$385*(1+rvanilla10)^0.5)/A1stdlife)) -> 0 | BF127: =IF(A1stdlife="n/a","n/a",IF(BF$3>(A1stdlife+$E127),('PTRM input'!$P$385*(1+rvanilla10)^0.5)-SUM($P127:BE127),('PTRM input'!$P$385*(1+rvanilla10)^0.5)/A1stdlife)) -> 0 | BG127: =IF(A1stdlife="n/a","n/a",IF(BG$3>(A1stdlife+$E127),('PTRM input'!$P$385*(1+rvanilla10)^0.5)-SUM($P127:BF127),('PTRM input'!$P$385*(1+rvanilla10)^0.5)/A1stdlife)) -> 0 | BH127: =IF(A1stdlife="n/a","n/a",IF(BH$3>(A1stdlife+$E127),('PTRM input'!$P$385*(1+rvanilla10)^0.5)-SUM($P127:BG127),('PTRM input'!$P$385*(1+rvanilla10)^0.5)/A1stdlife)) -> 0 | BI127: =IF(A1stdlife="n/a","n/a",IF(BI$3>(A1stdlife+$E127),('PTRM input'!$P$385*(1+rvanilla10)^0.5)-SUM($P127:BH127),('PTRM input'!$P$385*(1+rvanilla10)^0.5)/A1stdlife)) -> 0
C128: =Asset1 -> Pipelines | G128: =SUM(G116:G127) -> 24.8182914 | H128: =SUM(H116:H127) -> 31.22387835 | I128: 31.86814686 | J128: 31.9254861 | K128: 31.98284851 | L128: =SUM(L116:L127) -> 32.02435379 | M128: 32.02435379 | N128: 32.02435379 | O128: 32.02435379 | P128: 32.02435379 | Q128: 32.02435379 | R128: 32.02435379 | S128: 32.02435379 | T128: 32.02435379 | U128: 32.02435379 | V128: 32.02435379 | W128: 32.02435379 | X128: 32.02435379 | Y128: 32.02435379 | Z128: 32.02435379 | AA128: 32.02435379 | AB128: 32.02435379 | AC128: 32.02435379 | AD128: 32.02435379 | AE128: 32.02435379 | AF128: 32.02435379 | AG128: 32.02435379 | AH128: 32.02435379 | AI128: 32.02435379 | AJ128: 32.02435379 | AK128: 7.20606239 | AL128: 0.8004754349 | AM128: 0.1562069258 | AN128: 0.09886768294 | AO128: 0.04150527781 | AP128: 0 | AQ128: 0 | AR128: 0 | AS128: 0 | AT128: 0 | AU128: 0 | AV128: 0 | AW128: 0 | AX128: 0 | AY128: 0 | AZ128: 0 | BA128: 0 | BB128: 0 | BC128: 0 | BD128: 0 | BE128: 0 | BF128: 0 | BG128: 0 | BH128: 0 | BI128: 0
B129: =C141 -> Compressors | D129: Initial Asset Base | G129: =IF(('PTRM input'!$E$515='PTRM input'!$G$514),IF(G$3>A2remlife,A2acvalue-SUM(F129:$F129),IF(A2remlife="N/A","n/a",A2acvalue/A2remlife)),'PTRM input'!G$521) -> 8.52454818 | H129: =IF(('PTRM input'!$E$515='PTRM input'!$G$514),IF(H$3>A2remlife,A2acvalue-SUM($F129:G129),IF(A2remlife="N/A","n/a",A2acvalue/A2remlife)),'PTRM input'!H$521) -> 8.52454818 | I129: =IF(('PTRM input'!$E$515='PTRM input'!$G$514),IF(I$3>A2remlife,A2acvalue-SUM($F129:H129),IF(A2remlife="N/A","n/a",A2acvalue/A2remlife)),'PTRM input'!I$521) -> 8.52454818 | J129: =IF(('PTRM input'!$E$515='PTRM input'!$G$514),IF(J$3>A2remlife,A2acvalue-SUM($F129:I129),IF(A2remlife="N/A","n/a",A2acvalue/A2remlife)),'PTRM input'!J$521) -> 8.52454818 | K129: =IF(('PTRM input'!$E$515='PTRM input'!$G$514),IF(K$3>A2remlife,A2acvalue-SUM($F129:J129),IF(A2remlife="N/A","n/a",A2acvalue/A2remlife)),'PTRM input'!K$521) -> 8.52454818 | L129: =IF(('PTRM input'!$E$515='PTRM input'!$G$514),IF(L$3>A2remlife,A2acvalue-SUM($F129:K129),IF(A2remlife="N/A","n/a",A2acvalue/A2remlife)),'PTRM input'!L$521) -> 8.52454818 | M129: =IF(('PTRM input'!$E$515='PTRM input'!$G$514),IF(M$3>A2remlife,A2acvalue-SUM($F129:L129),IF(A2remlife="N/A","n/a",A2acvalue/A2remlife)),'PTRM input'!M$521) -> 8.52454818 | N129: =IF(('PTRM input'!$E$515='PTRM input'!$G$514),IF(N$3>A2remlife,A2acvalue-SUM($F129:M129),IF(A2remlife="N/A","n/a",A2acvalue/A2remlife)),'PTRM input'!N$521) -> 8.52454818 | O129: =IF(('PTRM input'!$E$515='PTRM input'!$G$514),IF(O$3>A2remlife,A2acvalue-SUM($F129:N129),IF(A2remlife="N/A","n/a",A2acvalue/A2remlife)),'PTRM input'!O$521) -> 8.52454818 | P129: =IF(('PTRM input'!$E$515='PTRM input'!$G$514),IF(P$3>A2remlife,A2acvalue-SUM($F129:O129),IF(A2remlife="N/A","n/a",A2acvalue/A2remlife)),'PTRM input'!P$521) -> 8.52454818 | Q129: =IF(('PTRM input'!$E$515='PTRM input'!$G$514),IF(Q$3>A2remlife,A2acvalue-SUM($F129:P129),IF(A2remlife="N/A","n/a",A2acvalue/A2remlife)),'PTRM input'!Q$521) -> 8.52454818 | R129: =IF(('PTRM input'!$E$515='PTRM input'!$G$514),IF(R$3>A2remlife,A2acvalue-SUM($F129:Q129),IF(A2remlife="N/A","n/a",A2acvalue/A2remlife)),'PTRM input'!R$521) -> 8.52454818 | S129: =IF(('PTRM input'!$E$515='PTRM input'!$G$514),IF(S$3>A2remlife,A2acvalue-SUM($F129:R129),IF(A2remlife="N/A","n/a",A2acvalue/A2remlife)),'PTRM input'!S$521) -> 8.52454818 | T129: =IF(('PTRM input'!$E$515='PTRM input'!$G$514),IF(T$3>A2remlife,A2acvalue-SUM($F129:S129),IF(A2remlife="N/A","n/a",A2acvalue/A2remlife)),'PTRM input'!T$521) -> 8.52454818 | U129: =IF(('PTRM input'!$E$515='PTRM input'!$G$514),IF(U$3>A2remlife,A2acvalue-SUM($F129:T129),IF(A2remlife="N/A","n/a",A2acvalue/A2remlife)),'PTRM input'!U$521) -> 8.52454818 | V129: =IF(('PTRM input'!$E$515='PTRM input'!$G$514),IF(V$3>A2remlife,A2acvalue-SUM($F129:U129),IF(A2remlife="N/A","n/a",A2acvalue/A2remlife)),'PTRM input'!V$521) -> 8.52454818 | W129: =IF(('PTRM input'!$E$515='PTRM input'!$G$514),IF(W$3>A2remlife,A2acvalue-SUM($F129:V129),IF(A2remlife="N/A","n/a",A2acvalue/A2remlife)),'PTRM input'!W$521) -> 8.52454818 | X129: =IF(('PTRM input'!$E$515='PTRM input'!$G$514),IF(X$3>A2remlife,A2acvalue-SUM($F129:W129),IF(A2remlife="N/A","n/a",A2acvalue/A2remlife)),'PTRM input'!X$521) -> 8.52454818 | Y129: =IF(('PTRM input'!$E$515='PTRM input'!$G$514),IF(Y$3>A2remlife,A2acvalue-SUM($F129:X129),IF(A2remlife="N/A","n/a",A2acvalue/A2remlife)),'PTRM input'!Y$521) -> 3.96054818 | Z129: =IF(('PTRM input'!$E$515='PTRM input'!$G$514),IF(Z$3>A2remlife,A2acvalue-SUM($F129:Y129),IF(A2remlife="N/A","n/a",A2acvalue/A2remlife)),'PTRM input'!Z$521) -> 0 | AA129: =IF(('PTRM input'!$E$515='PTRM input'!$G$514),IF(AA$3>A2remlife,A2acvalue-SUM($F129:Z129),IF(A2remlife="N/A","n/a",A2acvalue/A2remlife)),'PTRM input'!AA$521) -> 0 | AB129: =IF(('PTRM input'!$E$515='PTRM input'!$G$514),IF(AB$3>A2remlife,A2acvalue-SUM($F129:AA129),IF(A2remlife="N/A","n/a",A2acvalue/A2remlife)),'PTRM input'!AB$521) -> 0 | AC129: =IF(('PTRM input'!$E$515='PTRM input'!$G$514),IF(AC$3>A2remlife,A2acvalue-SUM($F129:AB129),IF(A2remlife="N/A","n/a",A2acvalue/A2remlife)),'PTRM input'!AC$521) -> 0 | AD129: =IF(('PTRM input'!$E$515='PTRM input'!$G$514),IF(AD$3>A2remlife,A2acvalue-SUM($F129:AC129),IF(A2remlife="N/A","n/a",A2acvalue/A2remlife)),'PTRM input'!AD$521) -> 0 | AE129: =IF(('PTRM input'!$E$515='PTRM input'!$G$514),IF(AE$3>A2remlife,A2acvalue-SUM($F129:AD129),IF(A2remlife="N/A","n/a",A2acvalue/A2remlife)),'PTRM input'!AE$521) -> 0 | AF129: =IF(('PTRM input'!$E$515='PTRM input'!$G$514),IF(AF$3>A2remlife,A2acvalue-SUM($F129:AE129),IF(A2remlife="N/A","n/a",A2acvalue/A2remlife)),'PTRM input'!AF$521) -> 0 | AG129: =IF(('PTRM input'!$E$515='PTRM input'!$G$514),IF(AG$3>A2remlife,A2acvalue-SUM($F129:AF129),IF(A2remlife="N/A","n/a",A2acvalue/A2remlife)),'PTRM input'!AG$521) -> 0 | AH129: =IF(('PTRM input'!$E$515='PTRM input'!$G$514),IF(AH$3>A2remlife,A2acvalue-SUM($F129:AG129),IF(A2remlife="N/A","n/a",A2acvalue/A2remlife)),'PTRM input'!AH$521) -> 0 | AI129: =IF(('PTRM input'!$E$515='PTRM input'!$G$514),IF(AI$3>A2remlife,A2acvalue-SUM($F129:AH129),IF(A2remlife="N/A","n/a",A2acvalue/A2remlife)),'PTRM input'!AI$521) -> 0 | AJ129: =IF(('PTRM input'!$E$515='PTRM input'!$G$514),IF(AJ$3>A2remlife,A2acvalue-SUM($F129:AI129),IF(A2remlife="N/A","n/a",A2acvalue/A2remlife)),'PTRM input'!AJ$521) -> 0 | AK129: =IF(('PTRM input'!$E$515='PTRM input'!$G$514),IF(AK$3>A2remlife,A2acvalue-SUM($F129:AJ129),IF(A2remlife="N/A","n/a",A2acvalue/A2remlife)),'PTRM input'!AK$521) -> 0 | AL129: =IF(('PTRM input'!$E$515='PTRM input'!$G$514),IF(AL$3>A2remlife,A2acvalue-SUM($F129:AK129),IF(A2remlife="N/A","n/a",A2acvalue/A2remlife)),'PTRM input'!AL$521) -> 0 | AM129: =IF(('PTRM input'!$E$515='PTRM input'!$G$514),IF(AM$3>A2remlife,A2acvalue-SUM($F129:AL129),IF(A2remlife="N/A","n/a",A2acvalue/A2remlife)),'PTRM input'!AM$521) -> 0 | AN129: =IF(('PTRM input'!$E$515='PTRM input'!$G$514),IF(AN$3>A2remlife,A2acvalue-SUM($F129:AM129),IF(A2remlife="N/A","n/a",A2acvalue/A2remlife)),'PTRM input'!AN$521) -> 0 | AO129: =IF(('PTRM input'!$E$515='PTRM input'!$G$514),IF(AO$3>A2remlife,A2acvalue-SUM($F129:AN129),IF(A2remlife="N/A","n/a",A2acvalue/A2remlife)),'PTRM input'!AO$521) -> 0 | AP129: =IF(('PTRM input'!$E$515='PTRM input'!$G$514),IF(AP$3>A2remlife,A2acvalue-SUM($F129:AO129),IF(A2remlife="N/A","n/a",A2acvalue/A2remlife)),'PTRM input'!AP$521) -> 0 | AQ129: =IF(('PTRM input'!$E$515='PTRM input'!$G$514),IF(AQ$3>A2remlife,A2acvalue-SUM($F129:AP129),IF(A2remlife="N/A","n/a",A2acvalue/A2remlife)),'PTRM input'!AQ$521) -> 0 | AR129: =IF(('PTRM input'!$E$515='PTRM input'!$G$514),IF(AR$3>A2remlife,A2acvalue-SUM($F129:AQ129),IF(A2remlife="N/A","n/a",A2acvalue/A2remlife)),'PTRM input'!AR$521) -> 0 | AS129: =IF(('PTRM input'!$E$515='PTRM input'!$G$514),IF(AS$3>A2remlife,A2acvalue-SUM($F129:AR129),IF(A2remlife="N/A","n/a",A2acvalue/A2remlife)),'PTRM input'!AS$521) -> 0 | AT129: =IF(('PTRM input'!$E$515='PTRM input'!$G$514),IF(AT$3>A2remlife,A2acvalue-SUM($F129:AS129),IF(A2remlife="N/A","n/a",A2acvalue/A2remlife)),'PTRM input'!AT$521) -> 0 | AU129: =IF(('PTRM input'!$E$515='PTRM input'!$G$514),IF(AU$3>A2remlife,A2acvalue-SUM($F129:AT129),IF(A2remlife="N/A","n/a",A2acvalue/A2remlife)),'PTRM input'!AU$521) -> 0 | AV129: =IF(('PTRM input'!$E$515='PTRM input'!$G$514),IF(AV$3>A2remlife,A2acvalue-SUM($F129:AU129),IF(A2remlife="N/A","n/a",A2acvalue/A2remlife)),'PTRM input'!AV$521) -> 0 | AW129: =IF(('PTRM input'!$E$515='PTRM input'!$G$514),IF(AW$3>A2remlife,A2acvalue-SUM($F129:AV129),IF(A2remlife="N/A","n/a",A2acvalue/A2remlife)),'PTRM input'!AW$521) -> 0 | AX129: =IF(('PTRM input'!$E$515='PTRM input'!$G$514),IF(AX$3>A2remlife,A2acvalue-SUM($F129:AW129),IF(A2remlife="N/A","n/a",A2acvalue/A2remlife)),'PTRM input'!AX$521) -> 0 | AY129: =IF(('PTRM input'!$E$515='PTRM input'!$G$514),IF(AY$3>A2remlife,A2acvalue-SUM($F129:AX129),IF(A2remlife="N/A","n/a",A2acvalue/A2remlife)),'PTRM input'!AY$521) -> 0 | AZ129: =IF(('PTRM input'!$E$515='PTRM input'!$G$514),IF(AZ$3>A2remlife,A2acvalue-SUM($F129:AY129),IF(A2remlife="N/A","n/a",A2acvalue/A2remlife)),'PTRM input'!AZ$521) -> 0 | BA129: =IF(('PTRM input'!$E$515='PTRM input'!$G$514),IF(BA$3>A2remlife,A2acvalue-SUM($F129:AZ129),IF(A2remlife="N/A","n/a",A2acvalue/A2remlife)),'PTRM input'!BA$521) -> 0 | BB129: =IF(('PTRM input'!$E$515='PTRM input'!$G$514),IF(BB$3>A2remlife,A2acvalue-SUM($F129:BA129),IF(A2remlife="N/A","n/a",A2acvalue/A2remlife)),'PTRM input'!BB$521) -> 0 | BC129: =IF(('PTRM input'!$E$515='PTRM input'!$G$514),IF(BC$3>A2remlife,A2acvalue-SUM($F129:BB129),IF(A2remlife="N/A","n/a",A2acvalue/A2remlife)),'PTRM input'!BC$521) -> 0 | BD129: =IF(('PTRM input'!$E$515='PTRM input'!$G$514),IF(BD$3>A2remlife,A2acvalue-SUM($F129:BC129),IF(A2remlife="N/A","n/a",A2acvalue/A2remlife)),'PTRM input'!BD$521) -> 0 | BE129: =IF(('PTRM input'!$E$515='PTRM input'!$G$514),IF(BE$3>A2remlife,A2acvalue-SUM($F129:BD129),IF(A2remlife="N/A","n/a",A2acvalue/A2remlife)),'PTRM input'!BE$521) -> 0 | BF129: =IF(('PTRM input'!$E$515='PTRM input'!$G$514),IF(BF$3>A2remlife,A2acvalue-SUM($F129:BE129),IF(A2remlife="N/A","n/a",A2acvalue/A2remlife)),'PTRM input'!BF$521) -> 0 | BG129: =IF(('PTRM input'!$E$515='PTRM input'!$G$514),IF(BG$3>A2remlife,A2acvalue-SUM($F129:BF129),IF(A2remlife="N/A","n/a",A2acvalue/A2remlife)),'PTRM input'!BG$521) -> 0 | BH129: =IF(('PTRM input'!$E$515='PTRM input'!$G$514),IF(BH$3>A2remlife,A2acvalue-SUM($F129:BG129),IF(A2remlife="N/A","n/a",A2acvalue/A2remlife)),'PTRM input'!BH$521) -> 0 | BI129: =IF(('PTRM input'!$E$515='PTRM input'!$G$514),IF(BI$3>A2remlife,A2acvalue-SUM($F129:BH129),IF(A2remlife="N/A","n/a",A2acvalue/A2remlife)),'PTRM input'!BI$521) -> 0
D130: Capex in year | E130: 0
E131: 1 | H131: =IF(A2stdlife="n/a","n/a",IF(H$3>(A2stdlife+$E131),('PTRM input'!$G$386*(1+rvanilla01)^0.5)-SUM(G131:$G131),('PTRM input'!$G$386*(1+rvanilla01)^0.5)/A2stdlife)) -> 3.311293604 | I131: =IF(A2stdlife="n/a","n/a",IF(I$3>(A2stdlife+$E131),('PTRM input'!$G$386*(1+rvanilla01)^0.5)-SUM($G131:H131),('PTRM input'!$G$386*(1+rvanilla01)^0.5)/A2stdlife)) -> 3.311293604 | J131: =IF(A2stdlife="n/a","n/a",IF(J$3>(A2stdlife+$E131),('PTRM input'!$G$386*(1+rvanilla01)^0.5)-SUM($G131:I131),('PTRM input'!$G$386*(1+rvanilla01)^0.5)/A2stdlife)) -> 3.311293604 | K131: =IF(A2stdlife="n/a","n/a",IF(K$3>(A2stdlife+$E131),('PTRM input'!$G$386*(1+rvanilla01)^0.5)-SUM($G131:J131),('PTRM input'!$G$386*(1+rvanilla01)^0.5)/A2stdlife)) -> 3.311293604 | L131: =IF(A2stdlife="n/a","n/a",IF(L$3>(A2stdlife+$E131),('PTRM input'!$G$386*(1+rvanilla01)^0.5)-SUM($G131:K131),('PTRM input'!$G$386*(1+rvanilla01)^0.5)/A2stdlife)) -> 3.311293604 | M131: =IF(A2stdlife="n/a","n/a",IF(M$3>(A2stdlife+$E131),('PTRM input'!$G$386*(1+rvanilla01)^0.5)-SUM($G131:L131),('PTRM input'!$G$386*(1+rvanilla01)^0.5)/A2stdlife)) -> 3.311293604 | N131: =IF(A2stdlife="n/a","n/a",IF(N$3>(A2stdlife+$E131),('PTRM input'!$G$386*(1+rvanilla01)^0.5)-SUM($G131:M131),('PTRM input'!$G$386*(1+rvanilla01)^0.5)/A2stdlife)) -> 3.311293604 | O131: =IF(A2stdlife="n/a","n/a",IF(O$3>(A2stdlife+$E131),('PTRM input'!$G$386*(1+rvanilla01)^0.5)-SUM($G131:N131),('PTRM input'!$G$386*(1+rvanilla01)^0.5)/A2stdlife)) -> 3.311293604 | P131: =IF(A2stdlife="n/a","n/a",IF(P$3>(A2stdlife+$E131),('PTRM input'!$G$386*(1+rvanilla01)^0.5)-SUM($G131:O131),('PTRM input'!$G$386*(1+rvanilla01)^0.5)/A2stdlife)) -> 3.311293604 | Q131: =IF(A2stdlife="n/a","n/a",IF(Q$3>(A2stdlife+$E131),('PTRM input'!$G$386*(1+rvanilla01)^0.5)-SUM($G131:P131),('PTRM input'!$G$386*(1+rvanilla01)^0.5)/A2stdlife)) -> 3.311293604 | R131: =IF(A2stdlife="n/a","n/a",IF(R$3>(A2stdlife+$E131),('PTRM input'!$G$386*(1+rvanilla01)^0.5)-SUM($G131:Q131),('PTRM input'!$G$386*(1+rvanilla01)^0.5)/A2stdlife)) -> 3.311293604 | S131: =IF(A2stdlife="n/a","n/a",IF(S$3>(A2stdlife+$E131),('PTRM input'!$G$386*(1+rvanilla01)^0.5)-SUM($G131:R131),('PTRM input'!$G$386*(1+rvanilla01)^0.5)/A2stdlife)) -> 3.311293604 | T131: =IF(A2stdlife="n/a","n/a",IF(T$3>(A2stdlife+$E131),('PTRM input'!$G$386*(1+rvanilla01)^0.5)-SUM($G131:S131),('PTRM input'!$G$386*(1+rvanilla01)^0.5)/A2stdlife)) -> 3.311293604 | U131: =IF(A2stdlife="n/a","n/a",IF(U$3>(A2stdlife+$E131),('PTRM input'!$G$386*(1+rvanilla01)^0.5)-SUM($G131:T131),('PTRM input'!$G$386*(1+rvanilla01)^0.5)/A2stdlife)) -> 3.311293604 | V131: =IF(A2stdlife="n/a","n/a",IF(V$3>(A2stdlife+$E131),('PTRM input'!$G$386*(1+rvanilla01)^0.5)-SUM($G131:U131),('PTRM input'!$G$386*(1+rvanilla01)^0.5)/A2stdlife)) -> 3.311293604 | W131: =IF(A2stdlife="n/a","n/a",IF(W$3>(A2stdlife+$E131),('PTRM input'!$G$386*(1+rvanilla01)^0.5)-SUM($G131:V131),('PTRM input'!$G$386*(1+rvanilla01)^0.5)/A2stdlife)) -> 3.311293604 | X131: =IF(A2stdlife="n/a","n/a",IF(X$3>(A2stdlife+$E131),('PTRM input'!$G$386*(1+rvanilla01)^0.5)-SUM($G131:W131),('PTRM input'!$G$386*(1+rvanilla01)^0.5)/A2stdlife)) -> 3.311293604 | Y131: =IF(A2stdlife="n/a","n/a",IF(Y$3>(A2stdlife+$E131),('PTRM input'!$G$386*(1+rvanilla01)^0.5)-SUM($G131:X131),('PTRM input'!$G$386*(1+rvanilla01)^0.5)/A2stdlife)) -> 3.311293604 | Z131: =IF(A2stdlife="n/a","n/a",IF(Z$3>(A2stdlife+$E131),('PTRM input'!$G$386*(1+rvanilla01)^0.5)-SUM($G131:Y131),('PTRM input'!$G$386*(1+rvanilla01)^0.5)/A2stdlife)) -> 3.311293604 | AA131: =IF(A2stdlife="n/a","n/a",IF(AA$3>(A2stdlife+$E131),('PTRM input'!$G$386*(1+rvanilla01)^0.5)-SUM($G131:Z131),('PTRM input'!$G$386*(1+rvanilla01)^0.5)/A2stdlife)) -> 3.311293604 | AB131: =IF(A2stdlife="n/a","n/a",IF(AB$3>(A2stdlife+$E131),('PTRM input'!$G$386*(1+rvanilla01)^0.5)-SUM($G131:AA131),('PTRM input'!$G$386*(1+rvanilla01)^0.5)/A2stdlife)) -> 3.311293604 | AC131: =IF(A2stdlife="n/a","n/a",IF(AC$3>(A2stdlife+$E131),('PTRM input'!$G$386*(1+rvanilla01)^0.5)-SUM($G131:AB131),('PTRM input'!$G$386*(1+rvanilla01)^0.5)/A2stdlife)) -> 3.311293604 | AD131: =IF(A2stdlife="n/a","n/a",IF(AD$3>(A2stdlife+$E131),('PTRM input'!$G$386*(1+rvanilla01)^0.5)-SUM($G131:AC131),('PTRM input'!$G$386*(1+rvanilla01)^0.5)/A2stdlife)) -> 3.311293604 | AE131: =IF(A2stdlife="n/a","n/a",IF(AE$3>(A2stdlife+$E131),('PTRM input'!$G$386*(1+rvanilla01)^0.5)-SUM($G131:AD131),('PTRM input'!$G$386*(1+rvanilla01)^0.5)/A2stdlife)) -> 3.311293604 | AF131: =IF(A2stdlife="n/a","n/a",IF(AF$3>(A2stdlife+$E131),('PTRM input'!$G$386*(1+rvanilla01)^0.5)-SUM($G131:AE131),('PTRM input'!$G$386*(1+rvanilla01)^0.5)/A2stdlife)) -> 3.311293604 | AG131: =IF(A2stdlife="n/a","n/a",IF(AG$3>(A2stdlife+$E131),('PTRM input'!$G$386*(1+rvanilla01)^0.5)-SUM($G131:AF131),('PTRM input'!$G$386*(1+rvanilla01)^0.5)/A2stdlife)) -> 3.311293604 | AH131: =IF(A2stdlife="n/a","n/a",IF(AH$3>(A2stdlife+$E131),('PTRM input'!$G$386*(1+rvanilla01)^0.5)-SUM($G131:AG131),('PTRM input'!$G$386*(1+rvanilla01)^0.5)/A2stdlife)) -> 3.311293604 | AI131: =IF(A2stdlife="n/a","n/a",IF(AI$3>(A2stdlife+$E131),('PTRM input'!$G$386*(1+rvanilla01)^0.5)-SUM($G131:AH131),('PTRM input'!$G$386*(1+rvanilla01)^0.5)/A2stdlife)) -> 3.311293604 | AJ131: =IF(A2stdlife="n/a","n/a",IF(AJ$3>(A2stdlife+$E131),('PTRM input'!$G$386*(1+rvanilla01)^0.5)-SUM($G131:AI131),('PTRM input'!$G$386*(1+rvanilla01)^0.5)/A2stdlife)) -> 3.311293604 | AK131: =IF(A2stdlife="n/a","n/a",IF(AK$3>(A2stdlife+$E131),('PTRM input'!$G$386*(1+rvanilla01)^0.5)-SUM($G131:AJ131),('PTRM input'!$G$386*(1+rvanilla01)^0.5)/A2stdlife)) -> 3.311293604 | AL131: =IF(A2stdlife="n/a","n/a",IF(AL$3>(A2stdlife+$E131),('PTRM input'!$G$386*(1+rvanilla01)^0.5)-SUM($G131:AK131),('PTRM input'!$G$386*(1+rvanilla01)^0.5)/A2stdlife)) -> 5.684341886e-14 | AM131: =IF(A2stdlife="n/a","n/a",IF(AM$3>(A2stdlife+$E131),('PTRM input'!$G$386*(1+rvanilla01)^0.5)-SUM($G131:AL131),('PTRM input'!$G$386*(1+rvanilla01)^0.5)/A2stdlife)) -> 0 | AN131: =IF(A2stdlife="n/a","n/a",IF(AN$3>(A2stdlife+$E131),('PTRM input'!$G$386*(1+rvanilla01)^0.5)-SUM($G131:AM131),('PTRM input'!$G$386*(1+rvanilla01)^0.5)/A2stdlife)) -> 0 | AO131: =IF(A2stdlife="n/a","n/a",IF(AO$3>(A2stdlife+$E131),('PTRM input'!$G$386*(1+rvanilla01)^0.5)-SUM($G131:AN131),('PTRM input'!$G$386*(1+rvanilla01)^0.5)/A2stdlife)) -> 0 | AP131: =IF(A2stdlife="n/a","n/a",IF(AP$3>(A2stdlife+$E131),('PTRM input'!$G$386*(1+rvanilla01)^0.5)-SUM($G131:AO131),('PTRM input'!$G$386*(1+rvanilla01)^0.5)/A2stdlife)) -> 0 | AQ131: =IF(A2stdlife="n/a","n/a",IF(AQ$3>(A2stdlife+$E131),('PTRM input'!$G$386*(1+rvanilla01)^0.5)-SUM($G131:AP131),('PTRM input'!$G$386*(1+rvanilla01)^0.5)/A2stdlife)) -> 0 | AR131: =IF(A2stdlife="n/a","n/a",IF(AR$3>(A2stdlife+$E131),('PTRM input'!$G$386*(1+rvanilla01)^0.5)-SUM($G131:AQ131),('PTRM input'!$G$386*(1+rvanilla01)^0.5)/A2stdlife)) -> 0 | AS131: =IF(A2stdlife="n/a","n/a",IF(AS$3>(A2stdlife+$E131),('PTRM input'!$G$386*(1+rvanilla01)^0.5)-SUM($G131:AR131),('PTRM input'!$G$386*(1+rvanilla01)^0.5)/A2stdlife)) -> 0 | AT131: =IF(A2stdlife="n/a","n/a",IF(AT$3>(A2stdlife+$E131),('PTRM input'!$G$386*(1+rvanilla01)^0.5)-SUM($G131:AS131),('PTRM input'!$G$386*(1+rvanilla01)^0.5)/A2stdlife)) -> 0 | AU131: =IF(A2stdlife="n/a","n/a",IF(AU$3>(A2stdlife+$E131),('PTRM input'!$G$386*(1+rvanilla01)^0.5)-SUM($G131:AT131),('PTRM input'!$G$386*(1+rvanilla01)^0.5)/A2stdlife)) -> 0 | AV131: =IF(A2stdlife="n/a","n/a",IF(AV$3>(A2stdlife+$E131),('PTRM input'!$G$386*(1+rvanilla01)^0.5)-SUM($G131:AU131),('PTRM input'!$G$386*(1+rvanilla01)^0.5)/A2stdlife)) -> 0 | AW131: =IF(A2stdlife="n/a","n/a",IF(AW$3>(A2stdlife+$E131),('PTRM input'!$G$386*(1+rvanilla01)^0.5)-SUM($G131:AV131),('PTRM input'!$G$386*(1+rvanilla01)^0.5)/A2stdlife)) -> 0 | AX131: =IF(A2stdlife="n/a","n/a",IF(AX$3>(A2stdlife+$E131),('PTRM input'!$G$386*(1+rvanilla01)^0.5)-SUM($G131:AW131),('PTRM input'!$G$386*(1+rvanilla01)^0.5)/A2stdlife)) -> 0 | AY131: =IF(A2stdlife="n/a","n/a",IF(AY$3>(A2stdlife+$E131),('PTRM input'!$G$386*(1+rvanilla01)^0.5)-SUM($G131:AX131),('PTRM input'!$G$386*(1+rvanilla01)^0.5)/A2stdlife)) -> 0 | AZ131: =IF(A2stdlife="n/a","n/a",IF(AZ$3>(A2stdlife+$E131),('PTRM input'!$G$386*(1+rvanilla01)^0.5)-SUM($G131:AY131),('PTRM input'!$G$386*(1+rvanilla01)^0.5)/A2stdlife)) -> 0 | BA131: =IF(A2stdlife="n/a","n/a",IF(BA$3>(A2stdlife+$E131),('PTRM input'!$G$386*(1+rvanilla01)^0.5)-SUM($G131:AZ131),('PTRM input'!$G$386*(1+rvanilla01)^0.5)/A2stdlife)) -> 0 | BB131: =IF(A2stdlife="n/a","n/a",IF(BB$3>(A2stdlife+$E131),('PTRM input'!$G$386*(1+rvanilla01)^0.5)-SUM($G131:BA131),('PTRM input'!$G$386*(1+rvanilla01)^0.5)/A2stdlife)) -> 0 | BC131: =IF(A2stdlife="n/a","n/a",IF(BC$3>(A2stdlife+$E131),('PTRM input'!$G$386*(1+rvanilla01)^0.5)-SUM($G131:BB131),('PTRM input'!$G$386*(1+rvanilla01)^0.5)/A2stdlife)) -> 0 | BD131: =IF(A2stdlife="n/a","n/a",IF(BD$3>(A2stdlife+$E131),('PTRM input'!$G$386*(1+rvanilla01)^0.5)-SUM($G131:BC131),('PTRM input'!$G$386*(1+rvanilla01)^0.5)/A2stdlife)) -> 0 | BE131: =IF(A2stdlife="n/a","n/a",IF(BE$3>(A2stdlife+$E131),('PTRM input'!$G$386*(1+rvanilla01)^0.5)-SUM($G131:BD131),('PTRM input'!$G$386*(1+rvanilla01)^0.5)/A2stdlife)) -> 0 | BF131: =IF(A2stdlife="n/a","n/a",IF(BF$3>(A2stdlife+$E131),('PTRM input'!$G$386*(1+rvanilla01)^0.5)-SUM($G131:BE131),('PTRM input'!$G$386*(1+rvanilla01)^0.5)/A2stdlife)) -> 0 | BG131: =IF(A2stdlife="n/a","n/a",IF(BG$3>(A2stdlife+$E131),('PTRM input'!$G$386*(1+rvanilla01)^0.5)-SUM($G131:BF131),('PTRM input'!$G$386*(1+rvanilla01)^0.5)/A2stdlife)) -> 0 | BH131: =IF(A2stdlife="n/a","n/a",IF(BH$3>(A2stdlife+$E131),('PTRM input'!$G$386*(1+rvanilla01)^0.5)-SUM($G131:BG131),('PTRM input'!$G$386*(1+rvanilla01)^0.5)/A2stdlife)) -> 0 | BI131: =IF(A2stdlife="n/a","n/a",IF(BI$3>(A2stdlife+$E131),('PTRM input'!$G$386*(1+rvanilla01)^0.5)-SUM($G131:BH131),('PTRM input'!$G$386*(1+rvanilla01)^0.5)/A2stdlife)) -> 0
E132: 2 | I132: =IF(A2stdlife="n/a","n/a",IF(I$3>(A2stdlife+$E132),('PTRM input'!$H$386*(1+rvanilla02)^0.5)-SUM(H132:$H132),('PTRM input'!$H$386*(1+rvanilla02)^0.5)/A2stdlife)) -> 0.05407176538 | J132: =IF(A2stdlife="n/a","n/a",IF(J$3>(A2stdlife+$E132),('PTRM input'!$H$386*(1+rvanilla02)^0.5)-SUM($H132:I132),('PTRM input'!$H$386*(1+rvanilla02)^0.5)/A2stdlife)) -> 0.05407176538 | K132: =IF(A2stdlife="n/a","n/a",IF(K$3>(A2stdlife+$E132),('PTRM input'!$H$386*(1+rvanilla02)^0.5)-SUM($H132:J132),('PTRM input'!$H$386*(1+rvanilla02)^0.5)/A2stdlife)) -> 0.05407176538 | L132: =IF(A2stdlife="n/a","n/a",IF(L$3>(A2stdlife+$E132),('PTRM input'!$H$386*(1+rvanilla02)^0.5)-SUM($H132:K132),('PTRM input'!$H$386*(1+rvanilla02)^0.5)/A2stdlife)) -> 0.05407176538 | M132: =IF(A2stdlife="n/a","n/a",IF(M$3>(A2stdlife+$E132),('PTRM input'!$H$386*(1+rvanilla02)^0.5)-SUM($H132:L132),('PTRM input'!$H$386*(1+rvanilla02)^0.5)/A2stdlife)) -> 0.05407176538 | N132: =IF(A2stdlife="n/a","n/a",IF(N$3>(A2stdlife+$E132),('PTRM input'!$H$386*(1+rvanilla02)^0.5)-SUM($H132:M132),('PTRM input'!$H$386*(1+rvanilla02)^0.5)/A2stdlife)) -> 0.05407176538 | O132: =IF(A2stdlife="n/a","n/a",IF(O$3>(A2stdlife+$E132),('PTRM input'!$H$386*(1+rvanilla02)^0.5)-SUM($H132:N132),('PTRM input'!$H$386*(1+rvanilla02)^0.5)/A2stdlife)) -> 0.05407176538 | P132: =IF(A2stdlife="n/a","n/a",IF(P$3>(A2stdlife+$E132),('PTRM input'!$H$386*(1+rvanilla02)^0.5)-SUM($H132:O132),('PTRM input'!$H$386*(1+rvanilla02)^0.5)/A2stdlife)) -> 0.05407176538 | Q132: =IF(A2stdlife="n/a","n/a",IF(Q$3>(A2stdlife+$E132),('PTRM input'!$H$386*(1+rvanilla02)^0.5)-SUM($H132:P132),('PTRM input'!$H$386*(1+rvanilla02)^0.5)/A2stdlife)) -> 0.05407176538 | R132: =IF(A2stdlife="n/a","n/a",IF(R$3>(A2stdlife+$E132),('PTRM input'!$H$386*(1+rvanilla02)^0.5)-SUM($H132:Q132),('PTRM input'!$H$386*(1+rvanilla02)^0.5)/A2stdlife)) -> 0.05407176538 | S132: =IF(A2stdlife="n/a","n/a",IF(S$3>(A2stdlife+$E132),('PTRM input'!$H$386*(1+rvanilla02)^0.5)-SUM($H132:R132),('PTRM input'!$H$386*(1+rvanilla02)^0.5)/A2stdlife)) -> 0.05407176538 | T132: =IF(A2stdlife="n/a","n/a",IF(T$3>(A2stdlife+$E132),('PTRM input'!$H$386*(1+rvanilla02)^0.5)-SUM($H132:S132),('PTRM input'!$H$386*(1+rvanilla02)^0.5)/A2stdlife)) -> 0.05407176538 | U132: =IF(A2stdlife="n/a","n/a",IF(U$3>(A2stdlife+$E132),('PTRM input'!$H$386*(1+rvanilla02)^0.5)-SUM($H132:T132),('PTRM input'!$H$386*(1+rvanilla02)^0.5)/A2stdlife)) -> 0.05407176538 | V132: =IF(A2stdlife="n/a","n/a",IF(V$3>(A2stdlife+$E132),('PTRM input'!$H$386*(1+rvanilla02)^0.5)-SUM($H132:U132),('PTRM input'!$H$386*(1+rvanilla02)^0.5)/A2stdlife)) -> 0.05407176538 | W132: =IF(A2stdlife="n/a","n/a",IF(W$3>(A2stdlife+$E132),('PTRM input'!$H$386*(1+rvanilla02)^0.5)-SUM($H132:V132),('PTRM input'!$H$386*(1+rvanilla02)^0.5)/A2stdlife)) -> 0.05407176538 | X132: =IF(A2stdlife="n/a","n/a",IF(X$3>(A2stdlife+$E132),('PTRM input'!$H$386*(1+rvanilla02)^0.5)-SUM($H132:W132),('PTRM input'!$H$386*(1+rvanilla02)^0.5)/A2stdlife)) -> 0.05407176538 | Y132: =IF(A2stdlife="n/a","n/a",IF(Y$3>(A2stdlife+$E132),('PTRM input'!$H$386*(1+rvanilla02)^0.5)-SUM($H132:X132),('PTRM input'!$H$386*(1+rvanilla02)^0.5)/A2stdlife)) -> 0.05407176538 | Z132: =IF(A2stdlife="n/a","n/a",IF(Z$3>(A2stdlife+$E132),('PTRM input'!$H$386*(1+rvanilla02)^0.5)-SUM($H132:Y132),('PTRM input'!$H$386*(1+rvanilla02)^0.5)/A2stdlife)) -> 0.05407176538 | AA132: =IF(A2stdlife="n/a","n/a",IF(AA$3>(A2stdlife+$E132),('PTRM input'!$H$386*(1+rvanilla02)^0.5)-SUM($H132:Z132),('PTRM input'!$H$386*(1+rvanilla02)^0.5)/A2stdlife)) -> 0.05407176538 | AB132: =IF(A2stdlife="n/a","n/a",IF(AB$3>(A2stdlife+$E132),('PTRM input'!$H$386*(1+rvanilla02)^0.5)-SUM($H132:AA132),('PTRM input'!$H$386*(1+rvanilla02)^0.5)/A2stdlife)) -> 0.05407176538 | AC132: =IF(A2stdlife="n/a","n/a",IF(AC$3>(A2stdlife+$E132),('PTRM input'!$H$386*(1+rvanilla02)^0.5)-SUM($H132:AB132),('PTRM input'!$H$386*(1+rvanilla02)^0.5)/A2stdlife)) -> 0.05407176538 | AD132: =IF(A2stdlife="n/a","n/a",IF(AD$3>(A2stdlife+$E132),('PTRM input'!$H$386*(1+rvanilla02)^0.5)-SUM($H132:AC132),('PTRM input'!$H$386*(1+rvanilla02)^0.5)/A2stdlife)) -> 0.05407176538 | AE132: =IF(A2stdlife="n/a","n/a",IF(AE$3>(A2stdlife+$E132),('PTRM input'!$H$386*(1+rvanilla02)^0.5)-SUM($H132:AD132),('PTRM input'!$H$386*(1+rvanilla02)^0.5)/A2stdlife)) -> 0.05407176538 | AF132: =IF(A2stdlife="n/a","n/a",IF(AF$3>(A2stdlife+$E132),('PTRM input'!$H$386*(1+rvanilla02)^0.5)-SUM($H132:AE132),('PTRM input'!$H$386*(1+rvanilla02)^0.5)/A2stdlife)) -> 0.05407176538 | AG132: =IF(A2stdlife="n/a","n/a",IF(AG$3>(A2stdlife+$E132),('PTRM input'!$H$386*(1+rvanilla02)^0.5)-SUM($H132:AF132),('PTRM input'!$H$386*(1+rvanilla02)^0.5)/A2stdlife)) -> 0.05407176538 | AH132: =IF(A2stdlife="n/a","n/a",IF(AH$3>(A2stdlife+$E132),('PTRM input'!$H$386*(1+rvanilla02)^0.5)-SUM($H132:AG132),('PTRM input'!$H$386*(1+rvanilla02)^0.5)/A2stdlife)) -> 0.05407176538 | AI132: =IF(A2stdlife="n/a","n/a",IF(AI$3>(A2stdlife+$E132),('PTRM input'!$H$386*(1+rvanilla02)^0.5)-SUM($H132:AH132),('PTRM input'!$H$386*(1+rvanilla02)^0.5)/A2stdlife)) -> 0.05407176538 | AJ132: =IF(A2stdlife="n/a","n/a",IF(AJ$3>(A2stdlife+$E132),('PTRM input'!$H$386*(1+rvanilla02)^0.5)-SUM($H132:AI132),('PTRM input'!$H$386*(1+rvanilla02)^0.5)/A2stdlife)) -> 0.05407176538 | AK132: =IF(A2stdlife="n/a","n/a",IF(AK$3>(A2stdlife+$E132),('PTRM input'!$H$386*(1+rvanilla02)^0.5)-SUM($H132:AJ132),('PTRM input'!$H$386*(1+rvanilla02)^0.5)/A2stdlife)) -> 0.05407176538 | AL132: =IF(A2stdlife="n/a","n/a",IF(AL$3>(A2stdlife+$E132),('PTRM input'!$H$386*(1+rvanilla02)^0.5)-SUM($H132:AK132),('PTRM input'!$H$386*(1+rvanilla02)^0.5)/A2stdlife)) -> 0.05407176538 | AM132: =IF(A2stdlife="n/a","n/a",IF(AM$3>(A2stdlife+$E132),('PTRM input'!$H$386*(1+rvanilla02)^0.5)-SUM($H132:AL132),('PTRM input'!$H$386*(1+rvanilla02)^0.5)/A2stdlife)) -> 4.440892099e-16 | AN132: =IF(A2stdlife="n/a","n/a",IF(AN$3>(A2stdlife+$E132),('PTRM input'!$H$386*(1+rvanilla02)^0.5)-SUM($H132:AM132),('PTRM input'!$H$386*(1+rvanilla02)^0.5)/A2stdlife)) -> 0 | AO132: =IF(A2stdlife="n/a","n/a",IF(AO$3>(A2stdlife+$E132),('PTRM input'!$H$386*(1+rvanilla02)^0.5)-SUM($H132:AN132),('PTRM input'!$H$386*(1+rvanilla02)^0.5)/A2stdlife)) -> 0 | AP132: =IF(A2stdlife="n/a","n/a",IF(AP$3>(A2stdlife+$E132),('PTRM input'!$H$386*(1+rvanilla02)^0.5)-SUM($H132:AO132),('PTRM input'!$H$386*(1+rvanilla02)^0.5)/A2stdlife)) -> 0 | AQ132: =IF(A2stdlife="n/a","n/a",IF(AQ$3>(A2stdlife+$E132),('PTRM input'!$H$386*(1+rvanilla02)^0.5)-SUM($H132:AP132),('PTRM input'!$H$386*(1+rvanilla02)^0.5)/A2stdlife)) -> 0 | AR132: =IF(A2stdlife="n/a","n/a",IF(AR$3>(A2stdlife+$E132),('PTRM input'!$H$386*(1+rvanilla02)^0.5)-SUM($H132:AQ132),('PTRM input'!$H$386*(1+rvanilla02)^0.5)/A2stdlife)) -> 0 | AS132: =IF(A2stdlife="n/a","n/a",IF(AS$3>(A2stdlife+$E132),('PTRM input'!$H$386*(1+rvanilla02)^0.5)-SUM($H132:AR132),('PTRM input'!$H$386*(1+rvanilla02)^0.5)/A2stdlife)) -> 0 | AT132: =IF(A2stdlife="n/a","n/a",IF(AT$3>(A2stdlife+$E132),('PTRM input'!$H$386*(1+rvanilla02)^0.5)-SUM($H132:AS132),('PTRM input'!$H$386*(1+rvanilla02)^0.5)/A2stdlife)) -> 0 | AU132: =IF(A2stdlife="n/a","n/a",IF(AU$3>(A2stdlife+$E132),('PTRM input'!$H$386*(1+rvanilla02)^0.5)-SUM($H132:AT132),('PTRM input'!$H$386*(1+rvanilla02)^0.5)/A2stdlife)) -> 0 | AV132: =IF(A2stdlife="n/a","n/a",IF(AV$3>(A2stdlife+$E132),('PTRM input'!$H$386*(1+rvanilla02)^0.5)-SUM($H132:AU132),('PTRM input'!$H$386*(1+rvanilla02)^0.5)/A2stdlife)) -> 0 | AW132: =IF(A2stdlife="n/a","n/a",IF(AW$3>(A2stdlife+$E132),('PTRM input'!$H$386*(1+rvanilla02)^0.5)-SUM($H132:AV132),('PTRM input'!$H$386*(1+rvanilla02)^0.5)/A2stdlife)) -> 0 | AX132: =IF(A2stdlife="n/a","n/a",IF(AX$3>(A2stdlife+$E132),('PTRM input'!$H$386*(1+rvanilla02)^0.5)-SUM($H132:AW132),('PTRM input'!$H$386*(1+rvanilla02)^0.5)/A2stdlife)) -> 0 | AY132: =IF(A2stdlife="n/a","n/a",IF(AY$3>(A2stdlife+$E132),('PTRM input'!$H$386*(1+rvanilla02)^0.5)-SUM($H132:AX132),('PTRM input'!$H$386*(1+rvanilla02)^0.5)/A2stdlife)) -> 0 | AZ132: =IF(A2stdlife="n/a","n/a",IF(AZ$3>(A2stdlife+$E132),('PTRM input'!$H$386*(1+rvanilla02)^0.5)-SUM($H132:AY132),('PTRM input'!$H$386*(1+rvanilla02)^0.5)/A2stdlife)) -> 0 | BA132: =IF(A2stdlife="n/a","n/a",IF(BA$3>(A2stdlife+$E132),('PTRM input'!$H$386*(1+rvanilla02)^0.5)-SUM($H132:AZ132),('PTRM input'!$H$386*(1+rvanilla02)^0.5)/A2stdlife)) -> 0 | BB132: =IF(A2stdlife="n/a","n/a",IF(BB$3>(A2stdlife+$E132),('PTRM input'!$H$386*(1+rvanilla02)^0.5)-SUM($H132:BA132),('PTRM input'!$H$386*(1+rvanilla02)^0.5)/A2stdlife)) -> 0 | BC132: =IF(A2stdlife="n/a","n/a",IF(BC$3>(A2stdlife+$E132),('PTRM input'!$H$386*(1+rvanilla02)^0.5)-SUM($H132:BB132),('PTRM input'!$H$386*(1+rvanilla02)^0.5)/A2stdlife)) -> 0 | BD132: =IF(A2stdlife="n/a","n/a",IF(BD$3>(A2stdlife+$E132),('PTRM input'!$H$386*(1+rvanilla02)^0.5)-SUM($H132:BC132),('PTRM input'!$H$386*(1+rvanilla02)^0.5)/A2stdlife)) -> 0 | BE132: =IF(A2stdlife="n/a","n/a",IF(BE$3>(A2stdlife+$E132),('PTRM input'!$H$386*(1+rvanilla02)^0.5)-SUM($H132:BD132),('PTRM input'!$H$386*(1+rvanilla02)^0.5)/A2stdlife)) -> 0 | BF132: =IF(A2stdlife="n/a","n/a",IF(BF$3>(A2stdlife+$E132),('PTRM input'!$H$386*(1+rvanilla02)^0.5)-SUM($H132:BE132),('PTRM input'!$H$386*(1+rvanilla02)^0.5)/A2stdlife)) -> 0 | BG132: =IF(A2stdlife="n/a","n/a",IF(BG$3>(A2stdlife+$E132),('PTRM input'!$H$386*(1+rvanilla02)^0.5)-SUM($H132:BF132),('PTRM input'!$H$386*(1+rvanilla02)^0.5)/A2stdlife)) -> 0 | BH132: =IF(A2stdlife="n/a","n/a",IF(BH$3>(A2stdlife+$E132),('PTRM input'!$H$386*(1+rvanilla02)^0.5)-SUM($H132:BG132),('PTRM input'!$H$386*(1+rvanilla02)^0.5)/A2stdlife)) -> 0 | BI132: =IF(A2stdlife="n/a","n/a",IF(BI$3>(A2stdlife+$E132),('PTRM input'!$H$386*(1+rvanilla02)^0.5)-SUM($H132:BH132),('PTRM input'!$H$386*(1+rvanilla02)^0.5)/A2stdlife)) -> 0
E133: 3 | J133: =IF(A2stdlife="n/a","n/a",IF(J$3>(A2stdlife+$E133),('PTRM input'!$I$386*(1+rvanilla03)^0.5)-SUM(I133:$I133),('PTRM input'!$I$386*(1+rvanilla03)^0.5)/A2stdlife)) -> 0.01803120846 | K133: =IF(A2stdlife="n/a","n/a",IF(K$3>(A2stdlife+$E133),('PTRM input'!$I$386*(1+rvanilla03)^0.5)-SUM($I133:J133),('PTRM input'!$I$386*(1+rvanilla03)^0.5)/A2stdlife)) -> 0.01803120846 | L133: =IF(A2stdlife="n/a","n/a",IF(L$3>(A2stdlife+$E133),('PTRM input'!$I$386*(1+rvanilla03)^0.5)-SUM($I133:K133),('PTRM input'!$I$386*(1+rvanilla03)^0.5)/A2stdlife)) -> 0.01803120846 | M133: =IF(A2stdlife="n/a","n/a",IF(M$3>(A2stdlife+$E133),('PTRM input'!$I$386*(1+rvanilla03)^0.5)-SUM($I133:L133),('PTRM input'!$I$386*(1+rvanilla03)^0.5)/A2stdlife)) -> 0.01803120846 | N133: =IF(A2stdlife="n/a","n/a",IF(N$3>(A2stdlife+$E133),('PTRM input'!$I$386*(1+rvanilla03)^0.5)-SUM($I133:M133),('PTRM input'!$I$386*(1+rvanilla03)^0.5)/A2stdlife)) -> 0.01803120846 | O133: =IF(A2stdlife="n/a","n/a",IF(O$3>(A2stdlife+$E133),('PTRM input'!$I$386*(1+rvanilla03)^0.5)-SUM($I133:N133),('PTRM input'!$I$386*(1+rvanilla03)^0.5)/A2stdlife)) -> 0.01803120846 | P133: =IF(A2stdlife="n/a","n/a",IF(P$3>(A2stdlife+$E133),('PTRM input'!$I$386*(1+rvanilla03)^0.5)-SUM($I133:O133),('PTRM input'!$I$386*(1+rvanilla03)^0.5)/A2stdlife)) -> 0.01803120846 | Q133: =IF(A2stdlife="n/a","n/a",IF(Q$3>(A2stdlife+$E133),('PTRM input'!$I$386*(1+rvanilla03)^0.5)-SUM($I133:P133),('PTRM input'!$I$386*(1+rvanilla03)^0.5)/A2stdlife)) -> 0.01803120846 | R133: =IF(A2stdlife="n/a","n/a",IF(R$3>(A2stdlife+$E133),('PTRM input'!$I$386*(1+rvanilla03)^0.5)-SUM($I133:Q133),('PTRM input'!$I$386*(1+rvanilla03)^0.5)/A2stdlife)) -> 0.01803120846 | S133: =IF(A2stdlife="n/a","n/a",IF(S$3>(A2stdlife+$E133),('PTRM input'!$I$386*(1+rvanilla03)^0.5)-SUM($I133:R133),('PTRM input'!$I$386*(1+rvanilla03)^0.5)/A2stdlife)) -> 0.01803120846 | T133: =IF(A2stdlife="n/a","n/a",IF(T$3>(A2stdlife+$E133),('PTRM input'!$I$386*(1+rvanilla03)^0.5)-SUM($I133:S133),('PTRM input'!$I$386*(1+rvanilla03)^0.5)/A2stdlife)) -> 0.01803120846 | U133: =IF(A2stdlife="n/a","n/a",IF(U$3>(A2stdlife+$E133),('PTRM input'!$I$386*(1+rvanilla03)^0.5)-SUM($I133:T133),('PTRM input'!$I$386*(1+rvanilla03)^0.5)/A2stdlife)) -> 0.01803120846 | V133: =IF(A2stdlife="n/a","n/a",IF(V$3>(A2stdlife+$E133),('PTRM input'!$I$386*(1+rvanilla03)^0.5)-SUM($I133:U133),('PTRM input'!$I$386*(1+rvanilla03)^0.5)/A2stdlife)) -> 0.01803120846 | W133: =IF(A2stdlife="n/a","n/a",IF(W$3>(A2stdlife+$E133),('PTRM input'!$I$386*(1+rvanilla03)^0.5)-SUM($I133:V133),('PTRM input'!$I$386*(1+rvanilla03)^0.5)/A2stdlife)) -> 0.01803120846 | X133: =IF(A2stdlife="n/a","n/a",IF(X$3>(A2stdlife+$E133),('PTRM input'!$I$386*(1+rvanilla03)^0.5)-SUM($I133:W133),('PTRM input'!$I$386*(1+rvanilla03)^0.5)/A2stdlife)) -> 0.01803120846 | Y133: =IF(A2stdlife="n/a","n/a",IF(Y$3>(A2stdlife+$E133),('PTRM input'!$I$386*(1+rvanilla03)^0.5)-SUM($I133:X133),('PTRM input'!$I$386*(1+rvanilla03)^0.5)/A2stdlife)) -> 0.01803120846 | Z133: =IF(A2stdlife="n/a","n/a",IF(Z$3>(A2stdlife+$E133),('PTRM input'!$I$386*(1+rvanilla03)^0.5)-SUM($I133:Y133),('PTRM input'!$I$386*(1+rvanilla03)^0.5)/A2stdlife)) -> 0.01803120846 | AA133: =IF(A2stdlife="n/a","n/a",IF(AA$3>(A2stdlife+$E133),('PTRM input'!$I$386*(1+rvanilla03)^0.5)-SUM($I133:Z133),('PTRM input'!$I$386*(1+rvanilla03)^0.5)/A2stdlife)) -> 0.01803120846 | AB133: =IF(A2stdlife="n/a","n/a",IF(AB$3>(A2stdlife+$E133),('PTRM input'!$I$386*(1+rvanilla03)^0.5)-SUM($I133:AA133),('PTRM input'!$I$386*(1+rvanilla03)^0.5)/A2stdlife)) -> 0.01803120846 | AC133: =IF(A2stdlife="n/a","n/a",IF(AC$3>(A2stdlife+$E133),('PTRM input'!$I$386*(1+rvanilla03)^0.5)-SUM($I133:AB133),('PTRM input'!$I$386*(1+rvanilla03)^0.5)/A2stdlife)) -> 0.01803120846 | AD133: =IF(A2stdlife="n/a","n/a",IF(AD$3>(A2stdlife+$E133),('PTRM input'!$I$386*(1+rvanilla03)^0.5)-SUM($I133:AC133),('PTRM input'!$I$386*(1+rvanilla03)^0.5)/A2stdlife)) -> 0.01803120846 | AE133: =IF(A2stdlife="n/a","n/a",IF(AE$3>(A2stdlife+$E133),('PTRM input'!$I$386*(1+rvanilla03)^0.5)-SUM($I133:AD133),('PTRM input'!$I$386*(1+rvanilla03)^0.5)/A2stdlife)) -> 0.01803120846 | AF133: =IF(A2stdlife="n/a","n/a",IF(AF$3>(A2stdlife+$E133),('PTRM input'!$I$386*(1+rvanilla03)^0.5)-SUM($I133:AE133),('PTRM input'!$I$386*(1+rvanilla03)^0.5)/A2stdlife)) -> 0.01803120846 | AG133: =IF(A2stdlife="n/a","n/a",IF(AG$3>(A2stdlife+$E133),('PTRM input'!$I$386*(1+rvanilla03)^0.5)-SUM($I133:AF133),('PTRM input'!$I$386*(1+rvanilla03)^0.5)/A2stdlife)) -> 0.01803120846 | AH133: =IF(A2stdlife="n/a","n/a",IF(AH$3>(A2stdlife+$E133),('PTRM input'!$I$386*(1+rvanilla03)^0.5)-SUM($I133:AG133),('PTRM input'!$I$386*(1+rvanilla03)^0.5)/A2stdlife)) -> 0.01803120846 | AI133: =IF(A2stdlife="n/a","n/a",IF(AI$3>(A2stdlife+$E133),('PTRM input'!$I$386*(1+rvanilla03)^0.5)-SUM($I133:AH133),('PTRM input'!$I$386*(1+rvanilla03)^0.5)/A2stdlife)) -> 0.01803120846 | AJ133: =IF(A2stdlife="n/a","n/a",IF(AJ$3>(A2stdlife+$E133),('PTRM input'!$I$386*(1+rvanilla03)^0.5)-SUM($I133:AI133),('PTRM input'!$I$386*(1+rvanilla03)^0.5)/A2stdlife)) -> 0.01803120846 | AK133: =IF(A2stdlife="n/a","n/a",IF(AK$3>(A2stdlife+$E133),('PTRM input'!$I$386*(1+rvanilla03)^0.5)-SUM($I133:AJ133),('PTRM input'!$I$386*(1+rvanilla03)^0.5)/A2stdlife)) -> 0.01803120846 | AL133: =IF(A2stdlife="n/a","n/a",IF(AL$3>(A2stdlife+$E133),('PTRM input'!$I$386*(1+rvanilla03)^0.5)-SUM($I133:AK133),('PTRM input'!$I$386*(1+rvanilla03)^0.5)/A2stdlife)) -> 0.01803120846 | AM133: =IF(A2stdlife="n/a","n/a",IF(AM$3>(A2stdlife+$E133),('PTRM input'!$I$386*(1+rvanilla03)^0.5)-SUM($I133:AL133),('PTRM input'!$I$386*(1+rvanilla03)^0.5)/A2stdlife)) -> 0.01803120846 | AN133: =IF(A2stdlife="n/a","n/a",IF(AN$3>(A2stdlife+$E133),('PTRM input'!$I$386*(1+rvanilla03)^0.5)-SUM($I133:AM133),('PTRM input'!$I$386*(1+rvanilla03)^0.5)/A2stdlife)) -> -2.220446049e-16 | AO133: =IF(A2stdlife="n/a","n/a",IF(AO$3>(A2stdlife+$E133),('PTRM input'!$I$386*(1+rvanilla03)^0.5)-SUM($I133:AN133),('PTRM input'!$I$386*(1+rvanilla03)^0.5)/A2stdlife)) -> 0 | AP133: =IF(A2stdlife="n/a","n/a",IF(AP$3>(A2stdlife+$E133),('PTRM input'!$I$386*(1+rvanilla03)^0.5)-SUM($I133:AO133),('PTRM input'!$I$386*(1+rvanilla03)^0.5)/A2stdlife)) -> 0 | AQ133: =IF(A2stdlife="n/a","n/a",IF(AQ$3>(A2stdlife+$E133),('PTRM input'!$I$386*(1+rvanilla03)^0.5)-SUM($I133:AP133),('PTRM input'!$I$386*(1+rvanilla03)^0.5)/A2stdlife)) -> 0 | AR133: =IF(A2stdlife="n/a","n/a",IF(AR$3>(A2stdlife+$E133),('PTRM input'!$I$386*(1+rvanilla03)^0.5)-SUM($I133:AQ133),('PTRM input'!$I$386*(1+rvanilla03)^0.5)/A2stdlife)) -> 0 | AS133: =IF(A2stdlife="n/a","n/a",IF(AS$3>(A2stdlife+$E133),('PTRM input'!$I$386*(1+rvanilla03)^0.5)-SUM($I133:AR133),('PTRM input'!$I$386*(1+rvanilla03)^0.5)/A2stdlife)) -> 0 | AT133: =IF(A2stdlife="n/a","n/a",IF(AT$3>(A2stdlife+$E133),('PTRM input'!$I$386*(1+rvanilla03)^0.5)-SUM($I133:AS133),('PTRM input'!$I$386*(1+rvanilla03)^0.5)/A2stdlife)) -> 0 | AU133: =IF(A2stdlife="n/a","n/a",IF(AU$3>(A2stdlife+$E133),('PTRM input'!$I$386*(1+rvanilla03)^0.5)-SUM($I133:AT133),('PTRM input'!$I$386*(1+rvanilla03)^0.5)/A2stdlife)) -> 0 | AV133: =IF(A2stdlife="n/a","n/a",IF(AV$3>(A2stdlife+$E133),('PTRM input'!$I$386*(1+rvanilla03)^0.5)-SUM($I133:AU133),('PTRM input'!$I$386*(1+rvanilla03)^0.5)/A2stdlife)) -> 0 | AW133: =IF(A2stdlife="n/a","n/a",IF(AW$3>(A2stdlife+$E133),('PTRM input'!$I$386*(1+rvanilla03)^0.5)-SUM($I133:AV133),('PTRM input'!$I$386*(1+rvanilla03)^0.5)/A2stdlife)) -> 0 | AX133: =IF(A2stdlife="n/a","n/a",IF(AX$3>(A2stdlife+$E133),('PTRM input'!$I$386*(1+rvanilla03)^0.5)-SUM($I133:AW133),('PTRM input'!$I$386*(1+rvanilla03)^0.5)/A2stdlife)) -> 0 | AY133: =IF(A2stdlife="n/a","n/a",IF(AY$3>(A2stdlife+$E133),('PTRM input'!$I$386*(1+rvanilla03)^0.5)-SUM($I133:AX133),('PTRM input'!$I$386*(1+rvanilla03)^0.5)/A2stdlife)) -> 0 | AZ133: =IF(A2stdlife="n/a","n/a",IF(AZ$3>(A2stdlife+$E133),('PTRM input'!$I$386*(1+rvanilla03)^0.5)-SUM($I133:AY133),('PTRM input'!$I$386*(1+rvanilla03)^0.5)/A2stdlife)) -> 0 | BA133: =IF(A2stdlife="n/a","n/a",IF(BA$3>(A2stdlife+$E133),('PTRM input'!$I$386*(1+rvanilla03)^0.5)-SUM($I133:AZ133),('PTRM input'!$I$386*(1+rvanilla03)^0.5)/A2stdlife)) -> 0 | BB133: =IF(A2stdlife="n/a","n/a",IF(BB$3>(A2stdlife+$E133),('PTRM input'!$I$386*(1+rvanilla03)^0.5)-SUM($I133:BA133),('PTRM input'!$I$386*(1+rvanilla03)^0.5)/A2stdlife)) -> 0 | BC133: =IF(A2stdlife="n/a","n/a",IF(BC$3>(A2stdlife+$E133),('PTRM input'!$I$386*(1+rvanilla03)^0.5)-SUM($I133:BB133),('PTRM input'!$I$386*(1+rvanilla03)^0.5)/A2stdlife)) -> 0 | BD133: =IF(A2stdlife="n/a","n/a",IF(BD$3>(A2stdlife+$E133),('PTRM input'!$I$386*(1+rvanilla03)^0.5)-SUM($I133:BC133),('PTRM input'!$I$386*(1+rvanilla03)^0.5)/A2stdlife)) -> 0 | BE133: =IF(A2stdlife="n/a","n/a",IF(BE$3>(A2stdlife+$E133),('PTRM input'!$I$386*(1+rvanilla03)^0.5)-SUM($I133:BD133),('PTRM input'!$I$386*(1+rvanilla03)^0.5)/A2stdlife)) -> 0 | BF133: =IF(A2stdlife="n/a","n/a",IF(BF$3>(A2stdlife+$E133),('PTRM input'!$I$386*(1+rvanilla03)^0.5)-SUM($I133:BE133),('PTRM input'!$I$386*(1+rvanilla03)^0.5)/A2stdlife)) -> 0 | BG133: =IF(A2stdlife="n/a","n/a",IF(BG$3>(A2stdlife+$E133),('PTRM input'!$I$386*(1+rvanilla03)^0.5)-SUM($I133:BF133),('PTRM input'!$I$386*(1+rvanilla03)^0.5)/A2stdlife)) -> 0 | BH133: =IF(A2stdlife="n/a","n/a",IF(BH$3>(A2stdlife+$E133),('PTRM input'!$I$386*(1+rvanilla03)^0.5)-SUM($I133:BG133),('PTRM input'!$I$386*(1+rvanilla03)^0.5)/A2stdlife)) -> 0 | BI133: =IF(A2stdlife="n/a","n/a",IF(BI$3>(A2stdlife+$E133),('PTRM input'!$I$386*(1+rvanilla03)^0.5)-SUM($I133:BH133),('PTRM input'!$I$386*(1+rvanilla03)^0.5)/A2stdlife)) -> 0
E134: 4 | K134: =IF(A2stdlife="n/a","n/a",IF(K$3>(A2stdlife+$E134),('PTRM input'!$J$386*(1+rvanilla04)^0.5)-SUM(J134:$J134),('PTRM input'!$J$386*(1+rvanilla04)^0.5)/A2stdlife)) -> 0.01803849218 | L134: =IF(A2stdlife="n/a","n/a",IF(L$3>(A2stdlife+$E134),('PTRM input'!$J$386*(1+rvanilla04)^0.5)-SUM($J134:K134),('PTRM input'!$J$386*(1+rvanilla04)^0.5)/A2stdlife)) -> 0.01803849218 | M134: =IF(A2stdlife="n/a","n/a",IF(M$3>(A2stdlife+$E134),('PTRM input'!$J$386*(1+rvanilla04)^0.5)-SUM($J134:L134),('PTRM input'!$J$386*(1+rvanilla04)^0.5)/A2stdlife)) -> 0.01803849218 | N134: =IF(A2stdlife="n/a","n/a",IF(N$3>(A2stdlife+$E134),('PTRM input'!$J$386*(1+rvanilla04)^0.5)-SUM($J134:M134),('PTRM input'!$J$386*(1+rvanilla04)^0.5)/A2stdlife)) -> 0.01803849218 | O134: =IF(A2stdlife="n/a","n/a",IF(O$3>(A2stdlife+$E134),('PTRM input'!$J$386*(1+rvanilla04)^0.5)-SUM($J134:N134),('PTRM input'!$J$386*(1+rvanilla04)^0.5)/A2stdlife)) -> 0.01803849218 | P134: =IF(A2stdlife="n/a","n/a",IF(P$3>(A2stdlife+$E134),('PTRM input'!$J$386*(1+rvanilla04)^0.5)-SUM($J134:O134),('PTRM input'!$J$386*(1+rvanilla04)^0.5)/A2stdlife)) -> 0.01803849218 | Q134: =IF(A2stdlife="n/a","n/a",IF(Q$3>(A2stdlife+$E134),('PTRM input'!$J$386*(1+rvanilla04)^0.5)-SUM($J134:P134),('PTRM input'!$J$386*(1+rvanilla04)^0.5)/A2stdlife)) -> 0.01803849218 | R134: =IF(A2stdlife="n/a","n/a",IF(R$3>(A2stdlife+$E134),('PTRM input'!$J$386*(1+rvanilla04)^0.5)-SUM($J134:Q134),('PTRM input'!$J$386*(1+rvanilla04)^0.5)/A2stdlife)) -> 0.01803849218 | S134: =IF(A2stdlife="n/a","n/a",IF(S$3>(A2stdlife+$E134),('PTRM input'!$J$386*(1+rvanilla04)^0.5)-SUM($J134:R134),('PTRM input'!$J$386*(1+rvanilla04)^0.5)/A2stdlife)) -> 0.01803849218 | T134: =IF(A2stdlife="n/a","n/a",IF(T$3>(A2stdlife+$E134),('PTRM input'!$J$386*(1+rvanilla04)^0.5)-SUM($J134:S134),('PTRM input'!$J$386*(1+rvanilla04)^0.5)/A2stdlife)) -> 0.01803849218 | U134: =IF(A2stdlife="n/a","n/a",IF(U$3>(A2stdlife+$E134),('PTRM input'!$J$386*(1+rvanilla04)^0.5)-SUM($J134:T134),('PTRM input'!$J$386*(1+rvanilla04)^0.5)/A2stdlife)) -> 0.01803849218 | V134: =IF(A2stdlife="n/a","n/a",IF(V$3>(A2stdlife+$E134),('PTRM input'!$J$386*(1+rvanilla04)^0.5)-SUM($J134:U134),('PTRM input'!$J$386*(1+rvanilla04)^0.5)/A2stdlife)) -> 0.01803849218 | W134: =IF(A2stdlife="n/a","n/a",IF(W$3>(A2stdlife+$E134),('PTRM input'!$J$386*(1+rvanilla04)^0.5)-SUM($J134:V134),('PTRM input'!$J$386*(1+rvanilla04)^0.5)/A2stdlife)) -> 0.01803849218 | X134: =IF(A2stdlife="n/a","n/a",IF(X$3>(A2stdlife+$E134),('PTRM input'!$J$386*(1+rvanilla04)^0.5)-SUM($J134:W134),('PTRM input'!$J$386*(1+rvanilla04)^0.5)/A2stdlife)) -> 0.01803849218 | Y134: =IF(A2stdlife="n/a","n/a",IF(Y$3>(A2stdlife+$E134),('PTRM input'!$J$386*(1+rvanilla04)^0.5)-SUM($J134:X134),('PTRM input'!$J$386*(1+rvanilla04)^0.5)/A2stdlife)) -> 0.01803849218 | Z134: =IF(A2stdlife="n/a","n/a",IF(Z$3>(A2stdlife+$E134),('PTRM input'!$J$386*(1+rvanilla04)^0.5)-SUM($J134:Y134),('PTRM input'!$J$386*(1+rvanilla04)^0.5)/A2stdlife)) -> 0.01803849218 | AA134: =IF(A2stdlife="n/a","n/a",IF(AA$3>(A2stdlife+$E134),('PTRM input'!$J$386*(1+rvanilla04)^0.5)-SUM($J134:Z134),('PTRM input'!$J$386*(1+rvanilla04)^0.5)/A2stdlife)) -> 0.01803849218 | AB134: =IF(A2stdlife="n/a","n/a",IF(AB$3>(A2stdlife+$E134),('PTRM input'!$J$386*(1+rvanilla04)^0.5)-SUM($J134:AA134),('PTRM input'!$J$386*(1+rvanilla04)^0.5)/A2stdlife)) -> 0.01803849218 | AC134: =IF(A2stdlife="n/a","n/a",IF(AC$3>(A2stdlife+$E134),('PTRM input'!$J$386*(1+rvanilla04)^0.5)-SUM($J134:AB134),('PTRM input'!$J$386*(1+rvanilla04)^0.5)/A2stdlife)) -> 0.01803849218 | AD134: =IF(A2stdlife="n/a","n/a",IF(AD$3>(A2stdlife+$E134),('PTRM input'!$J$386*(1+rvanilla04)^0.5)-SUM($J134:AC134),('PTRM input'!$J$386*(1+rvanilla04)^0.5)/A2stdlife)) -> 0.01803849218 | AE134: =IF(A2stdlife="n/a","n/a",IF(AE$3>(A2stdlife+$E134),('PTRM input'!$J$386*(1+rvanilla04)^0.5)-SUM($J134:AD134),('PTRM input'!$J$386*(1+rvanilla04)^0.5)/A2stdlife)) -> 0.01803849218 | AF134: =IF(A2stdlife="n/a","n/a",IF(AF$3>(A2stdlife+$E134),('PTRM input'!$J$386*(1+rvanilla04)^0.5)-SUM($J134:AE134),('PTRM input'!$J$386*(1+rvanilla04)^0.5)/A2stdlife)) -> 0.01803849218 | AG134: =IF(A2stdlife="n/a","n/a",IF(AG$3>(A2stdlife+$E134),('PTRM input'!$J$386*(1+rvanilla04)^0.5)-SUM($J134:AF134),('PTRM input'!$J$386*(1+rvanilla04)^0.5)/A2stdlife)) -> 0.01803849218 | AH134: =IF(A2stdlife="n/a","n/a",IF(AH$3>(A2stdlife+$E134),('PTRM input'!$J$386*(1+rvanilla04)^0.5)-SUM($J134:AG134),('PTRM input'!$J$386*(1+rvanilla04)^0.5)/A2stdlife)) -> 0.01803849218 | AI134: =IF(A2stdlife="n/a","n/a",IF(AI$3>(A2stdlife+$E134),('PTRM input'!$J$386*(1+rvanilla04)^0.5)-SUM($J134:AH134),('PTRM input'!$J$386*(1+rvanilla04)^0.5)/A2stdlife)) -> 0.01803849218 | AJ134: =IF(A2stdlife="n/a","n/a",IF(AJ$3>(A2stdlife+$E134),('PTRM input'!$J$386*(1+rvanilla04)^0.5)-SUM($J134:AI134),('PTRM input'!$J$386*(1+rvanilla04)^0.5)/A2stdlife)) -> 0.01803849218 | AK134: =IF(A2stdlife="n/a","n/a",IF(AK$3>(A2stdlife+$E134),('PTRM input'!$J$386*(1+rvanilla04)^0.5)-SUM($J134:AJ134),('PTRM input'!$J$386*(1+rvanilla04)^0.5)/A2stdlife)) -> 0.01803849218 | AL134: =IF(A2stdlife="n/a","n/a",IF(AL$3>(A2stdlife+$E134),('PTRM input'!$J$386*(1+rvanilla04)^0.5)-SUM($J134:AK134),('PTRM input'!$J$386*(1+rvanilla04)^0.5)/A2stdlife)) -> 0.01803849218 | AM134: =IF(A2stdlife="n/a","n/a",IF(AM$3>(A2stdlife+$E134),('PTRM input'!$J$386*(1+rvanilla04)^0.5)-SUM($J134:AL134),('PTRM input'!$J$386*(1+rvanilla04)^0.5)/A2stdlife)) -> 0.01803849218 | AN134: =IF(A2stdlife="n/a","n/a",IF(AN$3>(A2stdlife+$E134),('PTRM input'!$J$386*(1+rvanilla04)^0.5)-SUM($J134:AM134),('PTRM input'!$J$386*(1+rvanilla04)^0.5)/A2stdlife)) -> 0.01803849218 | AO134: =IF(A2stdlife="n/a","n/a",IF(AO$3>(A2stdlife+$E134),('PTRM input'!$J$386*(1+rvanilla04)^0.5)-SUM($J134:AN134),('PTRM input'!$J$386*(1+rvanilla04)^0.5)/A2stdlife)) -> 2.220446049e-16 | AP134: =IF(A2stdlife="n/a","n/a",IF(AP$3>(A2stdlife+$E134),('PTRM input'!$J$386*(1+rvanilla04)^0.5)-SUM($J134:AO134),('PTRM input'!$J$386*(1+rvanilla04)^0.5)/A2stdlife)) -> 0 | AQ134: =IF(A2stdlife="n/a","n/a",IF(AQ$3>(A2stdlife+$E134),('PTRM input'!$J$386*(1+rvanilla04)^0.5)-SUM($J134:AP134),('PTRM input'!$J$386*(1+rvanilla04)^0.5)/A2stdlife)) -> 0 | AR134: =IF(A2stdlife="n/a","n/a",IF(AR$3>(A2stdlife+$E134),('PTRM input'!$J$386*(1+rvanilla04)^0.5)-SUM($J134:AQ134),('PTRM input'!$J$386*(1+rvanilla04)^0.5)/A2stdlife)) -> 0 | AS134: =IF(A2stdlife="n/a","n/a",IF(AS$3>(A2stdlife+$E134),('PTRM input'!$J$386*(1+rvanilla04)^0.5)-SUM($J134:AR134),('PTRM input'!$J$386*(1+rvanilla04)^0.5)/A2stdlife)) -> 0 | AT134: =IF(A2stdlife="n/a","n/a",IF(AT$3>(A2stdlife+$E134),('PTRM input'!$J$386*(1+rvanilla04)^0.5)-SUM($J134:AS134),('PTRM input'!$J$386*(1+rvanilla04)^0.5)/A2stdlife)) -> 0 | AU134: =IF(A2stdlife="n/a","n/a",IF(AU$3>(A2stdlife+$E134),('PTRM input'!$J$386*(1+rvanilla04)^0.5)-SUM($J134:AT134),('PTRM input'!$J$386*(1+rvanilla04)^0.5)/A2stdlife)) -> 0 | AV134: =IF(A2stdlife="n/a","n/a",IF(AV$3>(A2stdlife+$E134),('PTRM input'!$J$386*(1+rvanilla04)^0.5)-SUM($J134:AU134),('PTRM input'!$J$386*(1+rvanilla04)^0.5)/A2stdlife)) -> 0 | AW134: =IF(A2stdlife="n/a","n/a",IF(AW$3>(A2stdlife+$E134),('PTRM input'!$J$386*(1+rvanilla04)^0.5)-SUM($J134:AV134),('PTRM input'!$J$386*(1+rvanilla04)^0.5)/A2stdlife)) -> 0 | AX134: =IF(A2stdlife="n/a","n/a",IF(AX$3>(A2stdlife+$E134),('PTRM input'!$J$386*(1+rvanilla04)^0.5)-SUM($J134:AW134),('PTRM input'!$J$386*(1+rvanilla04)^0.5)/A2stdlife)) -> 0 | AY134: =IF(A2stdlife="n/a","n/a",IF(AY$3>(A2stdlife+$E134),('PTRM input'!$J$386*(1+rvanilla04)^0.5)-SUM($J134:AX134),('PTRM input'!$J$386*(1+rvanilla04)^0.5)/A2stdlife)) -> 0 | AZ134: =IF(A2stdlife="n/a","n/a",IF(AZ$3>(A2stdlife+$E134),('PTRM input'!$J$386*(1+rvanilla04)^0.5)-SUM($J134:AY134),('PTRM input'!$J$386*(1+rvanilla04)^0.5)/A2stdlife)) -> 0 | BA134: =IF(A2stdlife="n/a","n/a",IF(BA$3>(A2stdlife+$E134),('PTRM input'!$J$386*(1+rvanilla04)^0.5)-SUM($J134:AZ134),('PTRM input'!$J$386*(1+rvanilla04)^0.5)/A2stdlife)) -> 0 | BB134: =IF(A2stdlife="n/a","n/a",IF(BB$3>(A2stdlife+$E134),('PTRM input'!$J$386*(1+rvanilla04)^0.5)-SUM($J134:BA134),('PTRM input'!$J$386*(1+rvanilla04)^0.5)/A2stdlife)) -> 0 | BC134: =IF(A2stdlife="n/a","n/a",IF(BC$3>(A2stdlife+$E134),('PTRM input'!$J$386*(1+rvanilla04)^0.5)-SUM($J134:BB134),('PTRM input'!$J$386*(1+rvanilla04)^0.5)/A2stdlife)) -> 0 | BD134: =IF(A2stdlife="n/a","n/a",IF(BD$3>(A2stdlife+$E134),('PTRM input'!$J$386*(1+rvanilla04)^0.5)-SUM($J134:BC134),('PTRM input'!$J$386*(1+rvanilla04)^0.5)/A2stdlife)) -> 0 | BE134: =IF(A2stdlife="n/a","n/a",IF(BE$3>(A2stdlife+$E134),('PTRM input'!$J$386*(1+rvanilla04)^0.5)-SUM($J134:BD134),('PTRM input'!$J$386*(1+rvanilla04)^0.5)/A2stdlife)) -> 0 | BF134: =IF(A2stdlife="n/a","n/a",IF(BF$3>(A2stdlife+$E134),('PTRM input'!$J$386*(1+rvanilla04)^0.5)-SUM($J134:BE134),('PTRM input'!$J$386*(1+rvanilla04)^0.5)/A2stdlife)) -> 0 | BG134: =IF(A2stdlife="n/a","n/a",IF(BG$3>(A2stdlife+$E134),('PTRM input'!$J$386*(1+rvanilla04)^0.5)-SUM($J134:BF134),('PTRM input'!$J$386*(1+rvanilla04)^0.5)/A2stdlife)) -> 0 | BH134: =IF(A2stdlife="n/a","n/a",IF(BH$3>(A2stdlife+$E134),('PTRM input'!$J$386*(1+rvanilla04)^0.5)-SUM($J134:BG134),('PTRM input'!$J$386*(1+rvanilla04)^0.5)/A2stdlife)) -> 0 | BI134: =IF(A2stdlife="n/a","n/a",IF(BI$3>(A2stdlife+$E134),('PTRM input'!$J$386*(1+rvanilla04)^0.5)-SUM($J134:BH134),('PTRM input'!$J$386*(1+rvanilla04)^0.5)/A2stdlife)) -> 0
E135: 5 | L135: =IF(A2stdlife="n/a","n/a",IF(L$3>(A2stdlife+$E135),('PTRM input'!$K$386*(1+rvanilla05)^0.5)-SUM($K135:K135),('PTRM input'!$K$386*(1+rvanilla05)^0.5)/A2stdlife)) -> 0.1542913588 | M135: =IF(A2stdlife="n/a","n/a",IF(M$3>(A2stdlife+$E135),('PTRM input'!$K$386*(1+rvanilla05)^0.5)-SUM($K135:L135),('PTRM input'!$K$386*(1+rvanilla05)^0.5)/A2stdlife)) -> 0.1542913588 | N135: =IF(A2stdlife="n/a","n/a",IF(N$3>(A2stdlife+$E135),('PTRM input'!$K$386*(1+rvanilla05)^0.5)-SUM($K135:M135),('PTRM input'!$K$386*(1+rvanilla05)^0.5)/A2stdlife)) -> 0.1542913588 | O135: =IF(A2stdlife="n/a","n/a",IF(O$3>(A2stdlife+$E135),('PTRM input'!$K$386*(1+rvanilla05)^0.5)-SUM($K135:N135),('PTRM input'!$K$386*(1+rvanilla05)^0.5)/A2stdlife)) -> 0.1542913588 | P135: =IF(A2stdlife="n/a","n/a",IF(P$3>(A2stdlife+$E135),('PTRM input'!$K$386*(1+rvanilla05)^0.5)-SUM($K135:O135),('PTRM input'!$K$386*(1+rvanilla05)^0.5)/A2stdlife)) -> 0.1542913588 | Q135: =IF(A2stdlife="n/a","n/a",IF(Q$3>(A2stdlife+$E135),('PTRM input'!$K$386*(1+rvanilla05)^0.5)-SUM($K135:P135),('PTRM input'!$K$386*(1+rvanilla05)^0.5)/A2stdlife)) -> 0.1542913588 | R135: =IF(A2stdlife="n/a","n/a",IF(R$3>(A2stdlife+$E135),('PTRM input'!$K$386*(1+rvanilla05)^0.5)-SUM($K135:Q135),('PTRM input'!$K$386*(1+rvanilla05)^0.5)/A2stdlife)) -> 0.1542913588 | S135: =IF(A2stdlife="n/a","n/a",IF(S$3>(A2stdlife+$E135),('PTRM input'!$K$386*(1+rvanilla05)^0.5)-SUM($K135:R135),('PTRM input'!$K$386*(1+rvanilla05)^0.5)/A2stdlife)) -> 0.1542913588 | T135: =IF(A2stdlife="n/a","n/a",IF(T$3>(A2stdlife+$E135),('PTRM input'!$K$386*(1+rvanilla05)^0.5)-SUM($K135:S135),('PTRM input'!$K$386*(1+rvanilla05)^0.5)/A2stdlife)) -> 0.1542913588 | U135: =IF(A2stdlife="n/a","n/a",IF(U$3>(A2stdlife+$E135),('PTRM input'!$K$386*(1+rvanilla05)^0.5)-SUM($K135:T135),('PTRM input'!$K$386*(1+rvanilla05)^0.5)/A2stdlife)) -> 0.1542913588 | V135: =IF(A2stdlife="n/a","n/a",IF(V$3>(A2stdlife+$E135),('PTRM input'!$K$386*(1+rvanilla05)^0.5)-SUM($K135:U135),('PTRM input'!$K$386*(1+rvanilla05)^0.5)/A2stdlife)) -> 0.1542913588 | W135: =IF(A2stdlife="n/a","n/a",IF(W$3>(A2stdlife+$E135),('PTRM input'!$K$386*(1+rvanilla05)^0.5)-SUM($K135:V135),('PTRM input'!$K$386*(1+rvanilla05)^0.5)/A2stdlife)) -> 0.1542913588 | X135: =IF(A2stdlife="n/a","n/a",IF(X$3>(A2stdlife+$E135),('PTRM input'!$K$386*(1+rvanilla05)^0.5)-SUM($K135:W135),('PTRM input'!$K$386*(1+rvanilla05)^0.5)/A2stdlife)) -> 0.1542913588 | Y135: =IF(A2stdlife="n/a","n/a",IF(Y$3>(A2stdlife+$E135),('PTRM input'!$K$386*(1+rvanilla05)^0.5)-SUM($K135:X135),('PTRM input'!$K$386*(1+rvanilla05)^0.5)/A2stdlife)) -> 0.1542913588 | Z135: =IF(A2stdlife="n/a","n/a",IF(Z$3>(A2stdlife+$E135),('PTRM input'!$K$386*(1+rvanilla05)^0.5)-SUM($K135:Y135),('PTRM input'!$K$386*(1+rvanilla05)^0.5)/A2stdlife)) -> 0.1542913588 | AA135: =IF(A2stdlife="n/a","n/a",IF(AA$3>(A2stdlife+$E135),('PTRM input'!$K$386*(1+rvanilla05)^0.5)-SUM($K135:Z135),('PTRM input'!$K$386*(1+rvanilla05)^0.5)/A2stdlife)) -> 0.1542913588 | AB135: =IF(A2stdlife="n/a","n/a",IF(AB$3>(A2stdlife+$E135),('PTRM input'!$K$386*(1+rvanilla05)^0.5)-SUM($K135:AA135),('PTRM input'!$K$386*(1+rvanilla05)^0.5)/A2stdlife)) -> 0.1542913588 | AC135: =IF(A2stdlife="n/a","n/a",IF(AC$3>(A2stdlife+$E135),('PTRM input'!$K$386*(1+rvanilla05)^0.5)-SUM($K135:AB135),('PTRM input'!$K$386*(1+rvanilla05)^0.5)/A2stdlife)) -> 0.1542913588 | AD135: =IF(A2stdlife="n/a","n/a",IF(AD$3>(A2stdlife+$E135),('PTRM input'!$K$386*(1+rvanilla05)^0.5)-SUM($K135:AC135),('PTRM input'!$K$386*(1+rvanilla05)^0.5)/A2stdlife)) -> 0.1542913588 | AE135: =IF(A2stdlife="n/a","n/a",IF(AE$3>(A2stdlife+$E135),('PTRM input'!$K$386*(1+rvanilla05)^0.5)-SUM($K135:AD135),('PTRM input'!$K$386*(1+rvanilla05)^0.5)/A2stdlife)) -> 0.1542913588 | AF135: =IF(A2stdlife="n/a","n/a",IF(AF$3>(A2stdlife+$E135),('PTRM input'!$K$386*(1+rvanilla05)^0.5)-SUM($K135:AE135),('PTRM input'!$K$386*(1+rvanilla05)^0.5)/A2stdlife)) -> 0.1542913588 | AG135: =IF(A2stdlife="n/a","n/a",IF(AG$3>(A2stdlife+$E135),('PTRM input'!$K$386*(1+rvanilla05)^0.5)-SUM($K135:AF135),('PTRM input'!$K$386*(1+rvanilla05)^0.5)/A2stdlife)) -> 0.1542913588 | AH135: =IF(A2stdlife="n/a","n/a",IF(AH$3>(A2stdlife+$E135),('PTRM input'!$K$386*(1+rvanilla05)^0.5)-SUM($K135:AG135),('PTRM input'!$K$386*(1+rvanilla05)^0.5)/A2stdlife)) -> 0.1542913588 | AI135: =IF(A2stdlife="n/a","n/a",IF(AI$3>(A2stdlife+$E135),('PTRM input'!$K$386*(1+rvanilla05)^0.5)-SUM($K135:AH135),('PTRM input'!$K$386*(1+rvanilla05)^0.5)/A2stdlife)) -> 0.1542913588 | AJ135: =IF(A2stdlife="n/a","n/a",IF(AJ$3>(A2stdlife+$E135),('PTRM input'!$K$386*(1+rvanilla05)^0.5)-SUM($K135:AI135),('PTRM input'!$K$386*(1+rvanilla05)^0.5)/A2stdlife)) -> 0.1542913588 | AK135: =IF(A2stdlife="n/a","n/a",IF(AK$3>(A2stdlife+$E135),('PTRM input'!$K$386*(1+rvanilla05)^0.5)-SUM($K135:AJ135),('PTRM input'!$K$386*(1+rvanilla05)^0.5)/A2stdlife)) -> 0.1542913588 | AL135: =IF(A2stdlife="n/a","n/a",IF(AL$3>(A2stdlife+$E135),('PTRM input'!$K$386*(1+rvanilla05)^0.5)-SUM($K135:AK135),('PTRM input'!$K$386*(1+rvanilla05)^0.5)/A2stdlife)) -> 0.1542913588 | AM135: =IF(A2stdlife="n/a","n/a",IF(AM$3>(A2stdlife+$E135),('PTRM input'!$K$386*(1+rvanilla05)^0.5)-SUM($K135:AL135),('PTRM input'!$K$386*(1+rvanilla05)^0.5)/A2stdlife)) -> 0.1542913588 | AN135: =IF(A2stdlife="n/a","n/a",IF(AN$3>(A2stdlife+$E135),('PTRM input'!$K$386*(1+rvanilla05)^0.5)-SUM($K135:AM135),('PTRM input'!$K$386*(1+rvanilla05)^0.5)/A2stdlife)) -> 0.1542913588 | AO135: =IF(A2stdlife="n/a","n/a",IF(AO$3>(A2stdlife+$E135),('PTRM input'!$K$386*(1+rvanilla05)^0.5)-SUM($K135:AN135),('PTRM input'!$K$386*(1+rvanilla05)^0.5)/A2stdlife)) -> 0.1542913588 | AP135: =IF(A2stdlife="n/a","n/a",IF(AP$3>(A2stdlife+$E135),('PTRM input'!$K$386*(1+rvanilla05)^0.5)-SUM($K135:AO135),('PTRM input'!$K$386*(1+rvanilla05)^0.5)/A2stdlife)) -> 8.881784197e-16 | AQ135: =IF(A2stdlife="n/a","n/a",IF(AQ$3>(A2stdlife+$E135),('PTRM input'!$K$386*(1+rvanilla05)^0.5)-SUM($K135:AP135),('PTRM input'!$K$386*(1+rvanilla05)^0.5)/A2stdlife)) -> 0 | AR135: =IF(A2stdlife="n/a","n/a",IF(AR$3>(A2stdlife+$E135),('PTRM input'!$K$386*(1+rvanilla05)^0.5)-SUM($K135:AQ135),('PTRM input'!$K$386*(1+rvanilla05)^0.5)/A2stdlife)) -> 0 | AS135: =IF(A2stdlife="n/a","n/a",IF(AS$3>(A2stdlife+$E135),('PTRM input'!$K$386*(1+rvanilla05)^0.5)-SUM($K135:AR135),('PTRM input'!$K$386*(1+rvanilla05)^0.5)/A2stdlife)) -> 0 | AT135: =IF(A2stdlife="n/a","n/a",IF(AT$3>(A2stdlife+$E135),('PTRM input'!$K$386*(1+rvanilla05)^0.5)-SUM($K135:AS135),('PTRM input'!$K$386*(1+rvanilla05)^0.5)/A2stdlife)) -> 0 | AU135: =IF(A2stdlife="n/a","n/a",IF(AU$3>(A2stdlife+$E135),('PTRM input'!$K$386*(1+rvanilla05)^0.5)-SUM($K135:AT135),('PTRM input'!$K$386*(1+rvanilla05)^0.5)/A2stdlife)) -> 0 | AV135: =IF(A2stdlife="n/a","n/a",IF(AV$3>(A2stdlife+$E135),('PTRM input'!$K$386*(1+rvanilla05)^0.5)-SUM($K135:AU135),('PTRM input'!$K$386*(1+rvanilla05)^0.5)/A2stdlife)) -> 0 | AW135: =IF(A2stdlife="n/a","n/a",IF(AW$3>(A2stdlife+$E135),('PTRM input'!$K$386*(1+rvanilla05)^0.5)-SUM($K135:AV135),('PTRM input'!$K$386*(1+rvanilla05)^0.5)/A2stdlife)) -> 0 | AX135: =IF(A2stdlife="n/a","n/a",IF(AX$3>(A2stdlife+$E135),('PTRM input'!$K$386*(1+rvanilla05)^0.5)-SUM($K135:AW135),('PTRM input'!$K$386*(1+rvanilla05)^0.5)/A2stdlife)) -> 0 | AY135: =IF(A2stdlife="n/a","n/a",IF(AY$3>(A2stdlife+$E135),('PTRM input'!$K$386*(1+rvanilla05)^0.5)-SUM($K135:AX135),('PTRM input'!$K$386*(1+rvanilla05)^0.5)/A2stdlife)) -> 0 | AZ135: =IF(A2stdlife="n/a","n/a",IF(AZ$3>(A2stdlife+$E135),('PTRM input'!$K$386*(1+rvanilla05)^0.5)-SUM($K135:AY135),('PTRM input'!$K$386*(1+rvanilla05)^0.5)/A2stdlife)) -> 0 | BA135: =IF(A2stdlife="n/a","n/a",IF(BA$3>(A2stdlife+$E135),('PTRM input'!$K$386*(1+rvanilla05)^0.5)-SUM($K135:AZ135),('PTRM input'!$K$386*(1+rvanilla05)^0.5)/A2stdlife)) -> 0 | BB135: =IF(A2stdlife="n/a","n/a",IF(BB$3>(A2stdlife+$E135),('PTRM input'!$K$386*(1+rvanilla05)^0.5)-SUM($K135:BA135),('PTRM input'!$K$386*(1+rvanilla05)^0.5)/A2stdlife)) -> 0 | BC135: =IF(A2stdlife="n/a","n/a",IF(BC$3>(A2stdlife+$E135),('PTRM input'!$K$386*(1+rvanilla05)^0.5)-SUM($K135:BB135),('PTRM input'!$K$386*(1+rvanilla05)^0.5)/A2stdlife)) -> 0 | BD135: =IF(A2stdlife="n/a","n/a",IF(BD$3>(A2stdlife+$E135),('PTRM input'!$K$386*(1+rvanilla05)^0.5)-SUM($K135:BC135),('PTRM input'!$K$386*(1+rvanilla05)^0.5)/A2stdlife)) -> 0 | BE135: =IF(A2stdlife="n/a","n/a",IF(BE$3>(A2stdlife+$E135),('PTRM input'!$K$386*(1+rvanilla05)^0.5)-SUM($K135:BD135),('PTRM input'!$K$386*(1+rvanilla05)^0.5)/A2stdlife)) -> 0 | BF135: =IF(A2stdlife="n/a","n/a",IF(BF$3>(A2stdlife+$E135),('PTRM input'!$K$386*(1+rvanilla05)^0.5)-SUM($K135:BE135),('PTRM input'!$K$386*(1+rvanilla05)^0.5)/A2stdlife)) -> 0 | BG135: =IF(A2stdlife="n/a","n/a",IF(BG$3>(A2stdlife+$E135),('PTRM input'!$K$386*(1+rvanilla05)^0.5)-SUM($K135:BF135),('PTRM input'!$K$386*(1+rvanilla05)^0.5)/A2stdlife)) -> 0 | BH135: =IF(A2stdlife="n/a","n/a",IF(BH$3>(A2stdlife+$E135),('PTRM input'!$K$386*(1+rvanilla05)^0.5)-SUM($K135:BG135),('PTRM input'!$K$386*(1+rvanilla05)^0.5)/A2stdlife)) -> 0 | BI135: =IF(A2stdlife="n/a","n/a",IF(BI$3>(A2stdlife+$E135),('PTRM input'!$K$386*(1+rvanilla05)^0.5)-SUM($K135:BH135),('PTRM input'!$K$386*(1+rvanilla05)^0.5)/A2stdlife)) -> 0
